Workbook

Sheet LIQUIDAÇÃO REAJ. 50ª (hidden)
A1: ' | B1: PODER JUDICIÁRIO | F1: Obra: | G1: =#REF! ->  | I1: REAJUSTE DA MEDIÇÃO 49ª MEDIÇÃO CONFORME 5ºTA
B2: TRIBUNAL DE JUSTIÇA DE PERNAMBUCO | F2: Local: | G2: =#REF! -> 
B3: DIRETORIA DE ENGENHARIA E ARQUITETURA | F3: Contrato: | G3: =#REF! -> 
B4: PLANILHA PARA LIQUIDAÇÃO - 49ª MEDIÇÃO | F4: Contratada: | G4: =#REF! -> 
G5: DATA: | H5: 2022-02-10 | I5: REAJUSTE: | J5: 0.2225 | K5: REAJUSTE: | L5: 0.2225
A6: Item | B6: Código | C6: Cód. Efisco | D6: Discriminação/especificação dos serviços | E6: UNID | F6: QUANT | G6: SERVIÇO | I6: OBRA | K6: BENS PERMANENTES
G7: P. UNIT. | H7: P. PARCIAL | I7: P. UNIT. | J7: P. PARCIAL | K7: P. UNIT. | L7: P. PARCIAL
A8: 1.2 | B8: =IF(COUNTA(#REF!)>0,VLOOKUP($A8,'PLANILHA SINTÉTICA'!$A$10:$T$1083,2,0),"") -> Administração local pelo período da obra. | C8: =IF(COUNTA(A8)>0,VLOOKUP($A8,'[8]PLANILHA SINTÉTICA'!$A$9:$U$1082,3,0),"") -> 401010-8 | D8: =IF(COUNTA(A8)>0,VLOOKUP($A8,'PLANILHA SINTÉTICA'!$A$10:$T$1083,4,0),"") -> 18 | E8: =IF(COUNTA(A8)>0,VLOOKUP($A8,'PLANILHA SINTÉTICA'!$A$10:$T$1083,5,0),"") -> 17.8366 | F8: =IF(ISERROR(VLOOKUP($A8,#REF!,8,0)),0,(VLOOKUP($A8,#REF!,8,0))) -> 0 | G8: =IF(COUNTA(A8)>0,VLOOKUP($A8,'[8]PLANILHA SINTÉTICA'!$A$9:$AC$1082,15,0),"") -> 124499.8247 | H8: =ROUND(G8*F8,2) -> 0 | I8: =ROUND($G8*$J$5,2) -> 27701.21 | J8: =ROUND($H8*$J$5,2) -> 0
A9: 1.25 | B9: =IF(COUNTA(#REF!)>0,VLOOKUP($A9,'PLANILHA SINTÉTICA'!$A$10:$T$1083,2,0),"") -> Desmontagem de andaimes do tipo fachadeiro inclusive carregamento, descarregamento e transporte posto/obra | C9: =IF(COUNTA(A9)>0,VLOOKUP($A9,'[8]PLANILHA SINTÉTICA'!$A$9:$U$1082,3,0),"") -> 411687-9 | D9: =IF(COUNTA(A9)>0,VLOOKUP($A9,'PLANILHA SINTÉTICA'!$A$10:$T$1083,4,0),"") -> 3784 | E9: =IF(COUNTA(A9)>0,VLOOKUP($A9,'PLANILHA SINTÉTICA'!$A$10:$T$1083,5,0),"") -> 3784 | F9: =IF(ISERROR(VLOOKUP($A9,#REF!,8,0)),0,(VLOOKUP($A9,#REF!,8,0))) -> 0 | G9: =IF(COUNTA(A9)>0,VLOOKUP($A9,'[8]PLANILHA SINTÉTICA'!$A$9:$AC$1082,15,0),"") -> 2.84876 | H9: 0 | I9: 0.63 | J9: 0
A10: 5.4 | B10: =IF(COUNTA(#REF!)>0,VLOOKUP($A10,'PLANILHA SINTÉTICA'!$A$10:$T$1083,2,0),"") -> Porcelanato Bianco polido, 62,5x62,5cm Elizabeth ou equivalente, assentadas com argamassa colante AC III Quartzolit ou equivalente e rejuntadas com argamassa de rejuntamento flexível Quartzolit ou equivalente. | C10: =IF(COUNTA(A10)>0,VLOOKUP($A10,'[8]PLANILHA SINTÉTICA'!$A$9:$U$1082,3,0),"") -> 428759-2 | D10: =IF(COUNTA(A10)>0,VLOOKUP($A10,'PLANILHA SINTÉTICA'!$A$10:$T$1083,4,0),"") -> 2463 | E10: =IF(COUNTA(A10)>0,VLOOKUP($A10,'PLANILHA SINTÉTICA'!$A$10:$T$1083,5,0),"") -> 2189.4114 | F10: =IF(ISERROR(VLOOKUP($A10,#REF!,8,0)),0,(VLOOKUP($A10,#REF!,8,0))) -> 0 | G10: =IF(COUNTA(A10)>0,VLOOKUP($A10,'[8]PLANILHA SINTÉTICA'!$A$9:$AC$1082,15,0),"") -> 70.864784 | H10: 0 | I10: 15.77 | J10: 0
A11: 7.3 | B11: =IF(COUNTA(#REF!)>0,VLOOKUP($A11,'PLANILHA SINTÉTICA'!$A$10:$T$1083,2,0),"") -> Fornecimento e assentamento de piso tátil DIRECIONAL em lajota de concreto, com dimensões (0,25x0,25)m, aplicado sobre lastro de concreto 1:4:8 com 5cm de espessura, inclusive execução de lastro. | C11: =IF(COUNTA(A11)>0,VLOOKUP($A11,'[8]PLANILHA SINTÉTICA'!$A$9:$U$1082,3,0),"") -> 428691-0 | D11: =IF(COUNTA(A11)>0,VLOOKUP($A11,'PLANILHA SINTÉTICA'!$A$10:$T$1083,4,0),"") -> 1.3 | E11: =IF(COUNTA(A11)>0,VLOOKUP($A11,'PLANILHA SINTÉTICA'!$A$10:$T$1083,5,0),"") -> 1.3 | F11: =IF(ISERROR(VLOOKUP($A11,#REF!,8,0)),0,(VLOOKUP($A11,#REF!,8,0))) -> 0 | G11: =IF(COUNTA(A11)>0,VLOOKUP($A11,'[8]PLANILHA SINTÉTICA'!$A$9:$AC$1082,15,0),"") -> 106.812894 | H11: 0 | I11: 23.77 | J11: 0
A12: 7.4 | B12: =IF(COUNTA(#REF!)>0,VLOOKUP($A12,'PLANILHA SINTÉTICA'!$A$10:$T$1083,2,0),"") -> Fornecimento e assentamento de piso tátil de ALERTA em lajota de concreto, com dimensões (0,25x0,25)m, aplicado sobre lastro de concreto 1:4:8 com 5cm de espessura, inclusive execução de lastro. | C12: =IF(COUNTA(A12)>0,VLOOKUP($A12,'[8]PLANILHA SINTÉTICA'!$A$9:$U$1082,3,0),"") -> 428692-8 | D12: =IF(COUNTA(A12)>0,VLOOKUP($A12,'PLANILHA SINTÉTICA'!$A$10:$T$1083,4,0),"") -> 7.3 | E12: =IF(COUNTA(A12)>0,VLOOKUP($A12,'PLANILHA SINTÉTICA'!$A$10:$T$1083,5,0),"") -> 7.3 | F12: =IF(ISERROR(VLOOKUP($A12,#REF!,8,0)),0,(VLOOKUP($A12,#REF!,8,0))) -> 0 | G12: =IF(COUNTA(A12)>0,VLOOKUP($A12,'[8]PLANILHA SINTÉTICA'!$A$9:$AC$1082,15,0),"") -> 106.812894 | H12: 0 | I12: 23.77 | J12: 0
A13: 8.41 | B13: =IF(COUNTA(#REF!)>0,VLOOKUP($A13,'PLANILHA SINTÉTICA'!$A$10:$T$1083,2,0),"") -> Fornecimento e assentamento de DIVIBOX em granito Verde Ubatuba medindo 7cm de altura e 4cm de espessura. | C13: =IF(COUNTA(A13)>0,VLOOKUP($A13,'[8]PLANILHA SINTÉTICA'!$A$9:$U$1082,3,0),"") -> 470735-4 | D13: =IF(COUNTA(A13)>0,VLOOKUP($A13,'PLANILHA SINTÉTICA'!$A$10:$T$1083,4,0),"") -> 4.8 | E13: =IF(COUNTA(A13)>0,VLOOKUP($A13,'PLANILHA SINTÉTICA'!$A$10:$T$1083,5,0),"") -> 4.8 | F13: =IF(ISERROR(VLOOKUP($A13,#REF!,8,0)),0,(VLOOKUP($A13,#REF!,8,0))) -> 0 | G13: =IF(COUNTA(A13)>0,VLOOKUP($A13,'[8]PLANILHA SINTÉTICA'!$A$9:$AC$1082,15,0),"") -> 48.792388 | H13: 0 | I13: 10.86 | J13: 0
A14: 8.43 | B14: =IF(COUNTA(#REF!)>0,VLOOKUP($A14,'PLANILHA SINTÉTICA'!$A$10:$T$1083,2,0),"") -> Fornecimento e instalação de espelho para ESCADA DE ACESSO PRINCIPAL em granito polido Verde Ubatuba com altura de 18cm, conforme detalhe 36/45. | C14: =IF(COUNTA(A14)>0,VLOOKUP($A14,'[8]PLANILHA SINTÉTICA'!$A$9:$U$1082,3,0),"") -> 470712-5 | D14: =IF(COUNTA(A14)>0,VLOOKUP($A14,'PLANILHA SINTÉTICA'!$A$10:$T$1083,4,0),"") -> 93 | E14: =IF(COUNTA(A14)>0,VLOOKUP($A14,'PLANILHA SINTÉTICA'!$A$10:$T$1083,5,0),"") -> 93 | F14: =IF(ISERROR(VLOOKUP($A14,#REF!,8,0)),0,(VLOOKUP($A14,#REF!,8,0))) -> 0 | G14: =IF(COUNTA(A14)>0,VLOOKUP($A14,'[8]PLANILHA SINTÉTICA'!$A$9:$AC$1082,15,0),"") -> 53.36021 | H14: 0 | I14: 11.87 | J14: 0
A15: 9.3 | B15: =IF(COUNTA(#REF!)>0,VLOOKUP($A15,'PLANILHA SINTÉTICA'!$A$10:$T$1083,2,0),"") -> Aplicação manual de pintura com tinta látex acrílica em paredes na cor branco neve, duas demãos. | C15: =IF(COUNTA(A15)>0,VLOOKUP($A15,'[8]PLANILHA SINTÉTICA'!$A$9:$U$1082,3,0),"") -> 432006-9 | D15: =IF(COUNTA(A15)>0,VLOOKUP($A15,'PLANILHA SINTÉTICA'!$A$10:$T$1083,4,0),"") -> 9217 | E15: =IF(COUNTA(A15)>0,VLOOKUP($A15,'PLANILHA SINTÉTICA'!$A$10:$T$1083,5,0),"") -> 7833.98 | F15: =IF(ISERROR(VLOOKUP($A15,#REF!,8,0)),0,(VLOOKUP($A15,#REF!,8,0))) -> 0 | G15: =IF(COUNTA(A15)>0,VLOOKUP($A15,'[8]PLANILHA SINTÉTICA'!$A$9:$AC$1082,15,0),"") -> 8.279482 | H15: 0 | I15: 1.84 | J15: 0
A16: 9.8 | B16: =IF(COUNTA(#REF!)>0,VLOOKUP($A16,'PLANILHA SINTÉTICA'!$A$10:$T$1083,2,0),"") -> Pintura acrílica de faixas de demarcação, 10 cm de largura (estacionamento). | C16: =IF(COUNTA(A16)>0,VLOOKUP($A16,'[8]PLANILHA SINTÉTICA'!$A$9:$U$1082,3,0),"") -> 469734-0 | D16: =IF(COUNTA(A16)>0,VLOOKUP($A16,'PLANILHA SINTÉTICA'!$A$10:$T$1083,4,0),"") -> 402 | E16: =IF(COUNTA(A16)>0,VLOOKUP($A16,'PLANILHA SINTÉTICA'!$A$10:$T$1083,5,0),"") -> 402 | F16: =IF(ISERROR(VLOOKUP($A16,#REF!,8,0)),0,(VLOOKUP($A16,#REF!,8,0))) -> 0 | G16: =IF(COUNTA(A16)>0,VLOOKUP($A16,'[8]PLANILHA SINTÉTICA'!$A$9:$AC$1082,15,0),"") -> 14.433002 | H16: 0 | I16: 3.21 | J16: 0
A17: 10.1 | B17: =IF(COUNTA(#REF!)>0,VLOOKUP($A17,'PLANILHA SINTÉTICA'!$A$10:$T$1083,2,0),"") -> Fornecimento e instalação de esquadrias tipo "PELE DE VIDRO", em alumínio anodizado cor bronze, com vidro laminado refletivo 6mm na cor verde, composta por painéis fixos e painéis de abrir tipo maximar, inclusive fechos e braços articulados em alumínio anodizado bronze, conforme projetos. (EPV1) | C17: =IF(COUNTA(A17)>0,VLOOKUP($A17,'[8]PLANILHA SINTÉTICA'!$A$9:$U$1082,3,0),"") -> 464030-6 | D17: =IF(COUNTA(A17)>0,VLOOKUP($A17,'PLANILHA SINTÉTICA'!$A$10:$T$1083,4,0),"") -> 292 | E17: =IF(COUNTA(A17)>0,VLOOKUP($A17,'PLANILHA SINTÉTICA'!$A$10:$T$1083,5,0),"") -> 292 | F17: =IF(ISERROR(VLOOKUP($A17,#REF!,8,0)),0,(VLOOKUP($A17,#REF!,8,0))) -> 0 | G17: =IF(COUNTA(A17)>0,VLOOKUP($A17,'[8]PLANILHA SINTÉTICA'!$A$9:$AC$1082,15,0),"") -> 1052.222988 | H17: 0 | I17: 234.12 | J17: 0
A18: 10.10 | B18: =IF(COUNTA(#REF!)>0,VLOOKUP($A18,'PLANILHA SINTÉTICA'!$A$10:$T$1083,2,0),"") -> Fornecimento e assentamento de Porta em esquadria de vidro temperado verde (PVT1), espessura 10mm, com duas folhas de abrir 1,15mx2,10m cada folha, inclusive ferragens, conforme detalhe. (Salão do Júri, auditório e espera -vara infância) | C18: =IF(COUNTA(A18)>0,VLOOKUP($A18,'[8]PLANILHA SINTÉTICA'!$A$9:$U$1082,3,0),"") -> 470832-6 | D18: =IF(COUNTA(A18)>0,VLOOKUP($A18,'PLANILHA SINTÉTICA'!$A$10:$T$1083,4,0),"") -> 3 | E18: =IF(COUNTA(A18)>0,VLOOKUP($A18,'PLANILHA SINTÉTICA'!$A$10:$T$1083,5,0),"") -> 3 | F18: =IF(ISERROR(VLOOKUP($A18,#REF!,8,0)),0,(VLOOKUP($A18,#REF!,8,0))) -> 0 | G18: =IF(COUNTA(A18)>0,VLOOKUP($A18,'[8]PLANILHA SINTÉTICA'!$A$9:$AC$1082,15,0),"") -> 2842.907672 | H18: 0 | I18: 632.55 | J18: 0
A19: 10.16 | B19: =IF(COUNTA(#REF!)>0,VLOOKUP($A19,'PLANILHA SINTÉTICA'!$A$10:$T$1083,2,0),"") -> Fornecimento e assentamento de Porta (PA5) em esquadria de alumínio anodizado bronze com venezianas industriais, de giro com uma folha dim (0,60x2,10m). (Laje condensadores) | C19: =IF(COUNTA(A19)>0,VLOOKUP($A19,'[8]PLANILHA SINTÉTICA'!$A$9:$U$1082,3,0),"") -> 470835-0 | D19: =IF(COUNTA(A19)>0,VLOOKUP($A19,'PLANILHA SINTÉTICA'!$A$10:$T$1083,4,0),"") -> 3 | E19: =IF(COUNTA(A19)>0,VLOOKUP($A19,'PLANILHA SINTÉTICA'!$A$10:$T$1083,5,0),"") -> 3 | F19: =IF(ISERROR(VLOOKUP($A19,#REF!,8,0)),0,(VLOOKUP($A19,#REF!,8,0))) -> 0 | G19: =IF(COUNTA(A19)>0,VLOOKUP($A19,'[8]PLANILHA SINTÉTICA'!$A$9:$AC$1082,15,0),"") -> 809.82499 | H19: 0 | I19: 180.19 | J19: 0
A20: 10.22 | B20: =IF(COUNTA(#REF!)>0,VLOOKUP($A20,'PLANILHA SINTÉTICA'!$A$10:$T$1083,2,0),"") -> Fornecimento e instalação de janela em alumínio anodizado bronze tipo correr, com vidro liso verde, espessura de 6mm, dimensão (7,28x1,70)m - JAV3. (Laje para condensadores - DET 02/36) | C20: =IF(COUNTA(A20)>0,VLOOKUP($A20,'[8]PLANILHA SINTÉTICA'!$A$9:$U$1082,3,0),"") -> 481936-5 | D20: =IF(COUNTA(A20)>0,VLOOKUP($A20,'PLANILHA SINTÉTICA'!$A$10:$T$1083,4,0),"") -> 1 | E20: =IF(COUNTA(A20)>0,VLOOKUP($A20,'PLANILHA SINTÉTICA'!$A$10:$T$1083,5,0),"") -> 1 | F20: =IF(ISERROR(VLOOKUP($A20,#REF!,8,0)),0,(VLOOKUP($A20,#REF!,8,0))) -> 0 | G20: =IF(COUNTA(A20)>0,VLOOKUP($A20,'[8]PLANILHA SINTÉTICA'!$A$9:$AC$1082,15,0),"") -> 5692.685858 | H20: 0 | I20: 1266.62 | J20: 0
A21: 10.23 | B21: =IF(COUNTA(#REF!)>0,VLOOKUP($A21,'PLANILHA SINTÉTICA'!$A$10:$T$1083,2,0),"") -> Fornecimento e instalação de janela com porta de alumínio anodizado bronze tipo correr, com vidro liso verde, espessura de 6mm, dimensão (6,05x1,70)m e (1,23x2,80)m - JAV3. (Laje condensadores - DET 03/36) | C21: =IF(COUNTA(A21)>0,VLOOKUP($A21,'[8]PLANILHA SINTÉTICA'!$A$9:$U$1082,3,0),"") -> 482907-7 | D21: =IF(COUNTA(A21)>0,VLOOKUP($A21,'PLANILHA SINTÉTICA'!$A$10:$T$1083,4,0),"") -> 3 | E21: =IF(COUNTA(A21)>0,VLOOKUP($A21,'PLANILHA SINTÉTICA'!$A$10:$T$1083,5,0),"") -> 3 | F21: =IF(ISERROR(VLOOKUP($A21,#REF!,8,0)),0,(VLOOKUP($A21,#REF!,8,0))) -> 0 | G21: =IF(COUNTA(A21)>0,VLOOKUP($A21,'[8]PLANILHA SINTÉTICA'!$A$9:$AC$1082,15,0),"") -> 5947.738876 | H21: 0 | I21: 1323.37 | J21: 0
A22: 10.24 | B22: =IF(COUNTA(#REF!)>0,VLOOKUP($A22,'PLANILHA SINTÉTICA'!$A$10:$T$1083,2,0),"") -> Fornecimento e instalação de janela em alumínio anodizado bronze tipo correr, com vidro liso verde, espessura de 6mm, dimensão (6,96x1,70)m - JAV4. (Laje condensadores - DET 03/36) | C22: =IF(COUNTA(A22)>0,VLOOKUP($A22,'[8]PLANILHA SINTÉTICA'!$A$9:$U$1082,3,0),"") -> 481937-3 | D22: =IF(COUNTA(A22)>0,VLOOKUP($A22,'PLANILHA SINTÉTICA'!$A$10:$T$1083,4,0),"") -> 4 | E22: =IF(COUNTA(A22)>0,VLOOKUP($A22,'PLANILHA SINTÉTICA'!$A$10:$T$1083,5,0),"") -> 4 | F22: =IF(ISERROR(VLOOKUP($A22,#REF!,8,0)),0,(VLOOKUP($A22,#REF!,8,0))) -> 0 | G22: =IF(COUNTA(A22)>0,VLOOKUP($A22,'[8]PLANILHA SINTÉTICA'!$A$9:$AC$1082,15,0),"") -> 5337.887436 | H22: 0 | I22: 1187.68 | J22: 0
A23: 10.29 | B23: =IF(COUNTA(#REF!)>0,VLOOKUP($A23,'PLANILHA SINTÉTICA'!$A$10:$T$1083,2,0),"") -> Fornecimento e instalação de janela em alumínio anodizado bronze tipo correr, com vidro liso verde, espessura de 6mm, dimensão (5,13x1,70 + 1,30x2,80)m - JAV9. (Laje condensadores - DET 08/36) | C23: =IF(COUNTA(A23)>0,VLOOKUP($A23,'[8]PLANILHA SINTÉTICA'!$A$9:$U$1082,3,0),"") -> 482906-9 | D23: =IF(COUNTA(A23)>0,VLOOKUP($A23,'PLANILHA SINTÉTICA'!$A$10:$T$1083,4,0),"") -> 3 | E23: =IF(COUNTA(A23)>0,VLOOKUP($A23,'PLANILHA SINTÉTICA'!$A$10:$T$1083,5,0),"") -> 3 | F23: =IF(ISERROR(VLOOKUP($A23,#REF!,8,0)),0,(VLOOKUP($A23,#REF!,8,0))) -> 0 | G23: =IF(COUNTA(A23)>0,VLOOKUP($A23,'[8]PLANILHA SINTÉTICA'!$A$9:$AC$1082,15,0),"") -> 4024.80269 | H23: 0 | I23: 895.52 | J23: 0
A24: 10.30 | B24: =IF(COUNTA(#REF!)>0,VLOOKUP($A24,'PLANILHA SINTÉTICA'!$A$10:$T$1083,2,0),"") -> Fornecimento e instalação de janela em alumínio anodizado bronze tipo correr, com vidro liso verde, espessura de 6mm, dimensão (6,75x1,70)m - JAV10. (Laje condensadores - DET 09/36) | C24: =IF(COUNTA(A24)>0,VLOOKUP($A24,'[8]PLANILHA SINTÉTICA'!$A$9:$U$1082,3,0),"") -> 481941-1 | D24: =IF(COUNTA(A24)>0,VLOOKUP($A24,'PLANILHA SINTÉTICA'!$A$10:$T$1083,4,0),"") -> 3 | E24: =IF(COUNTA(A24)>0,VLOOKUP($A24,'PLANILHA SINTÉTICA'!$A$10:$T$1083,5,0),"") -> 3 | F24: =IF(ISERROR(VLOOKUP($A24,#REF!,8,0)),0,(VLOOKUP($A24,#REF!,8,0))) -> 0 | G24: =IF(COUNTA(A24)>0,VLOOKUP($A24,'[8]PLANILHA SINTÉTICA'!$A$9:$AC$1082,15,0),"") -> 5098.731792 | H24: 0 | I24: 1134.47 | J24: 0
A25: 11.1 | B25: =IF(COUNTA(#REF!)>0,VLOOKUP($A25,'PLANILHA SINTÉTICA'!$A$10:$T$1083,2,0),"") -> Fornecimento e instalação de Gradil externo Eletrogradi Sitela ou equivalente, cor verde, conforme detalhe. (Entrada PRINCIPAL) | C25: =IF(COUNTA(A25)>0,VLOOKUP($A25,'[8]PLANILHA SINTÉTICA'!$A$9:$U$1082,3,0),"") -> 460845-3 | D25: =IF(COUNTA(A25)>0,VLOOKUP($A25,'PLANILHA SINTÉTICA'!$A$10:$T$1083,4,0),"") -> 137 | E25: =IF(COUNTA(A25)>0,VLOOKUP($A25,'PLANILHA SINTÉTICA'!$A$10:$T$1083,5,0),"") -> 136.18 | F25: =IF(ISERROR(VLOOKUP($A25,#REF!,8,0)),0,(VLOOKUP($A25,#REF!,8,0))) -> 0 | G25: =IF(COUNTA(A25)>0,VLOOKUP($A25,'[8]PLANILHA SINTÉTICA'!$A$9:$AC$1082,15,0),"") -> 232.946782 | H25: 0 | I25: 51.83 | J25: 0
A26: 11.4 | B26: =IF(COUNTA(#REF!)>0,VLOOKUP($A26,'PLANILHA SINTÉTICA'!$A$10:$T$1083,2,0),"") -> Fornecimento e instalação de PORTÃO pivotante para acesso PEDESTRES, medindo (5,10x2,11)m, com arame em aço MTC, camada de zinco, revestimento em Poliéster aplicado eletrostaticamente com camadas de 100 a 200 micons, montantes em tubo industrial com pintura eletrostática cor verde, referência Eletrogradi - da SITELA ou equivalente da BELGO modelo Nylofor 3D, conforme detalhe 33/45. | C26: =IF(COUNTA(A26)>0,VLOOKUP($A26,'[8]PLANILHA SINTÉTICA'!$A$9:$U$1082,3,0),"") -> 461085-7 | D26: =IF(COUNTA(A26)>0,VLOOKUP($A26,'PLANILHA SINTÉTICA'!$A$10:$T$1083,4,0),"") -> 1 | E26: =IF(COUNTA(A26)>0,VLOOKUP($A26,'PLANILHA SINTÉTICA'!$A$10:$T$1083,5,0),"") -> 1 | F26: =IF(ISERROR(VLOOKUP($A26,#REF!,8,0)),0,(VLOOKUP($A26,#REF!,8,0))) -> 0 | G26: =IF(COUNTA(A26)>0,VLOOKUP($A26,'[8]PLANILHA SINTÉTICA'!$A$9:$AC$1082,15,0),"") -> 3737.980038 | H26: 0 | I26: 831.7 | J26: 0
A27: 11.5 | B27: =IF(COUNTA(#REF!)>0,VLOOKUP($A27,'PLANILHA SINTÉTICA'!$A$10:$T$1083,2,0),"") -> Fornecimento e assentamento de grade de proteção em ferro (Janelas), com barra chata 1" x 1/8", formando quadros com espaçamento = 15cm e moldura de contorno em barra chata de 1" x 1/4", pintados com zarcão ou antiferrugem, conforme detalhe. (Chumbadas por dentro do fórum). | C27: =IF(COUNTA(A27)>0,VLOOKUP($A27,'[8]PLANILHA SINTÉTICA'!$A$9:$U$1082,3,0),"") -> 461601-4 | D27: =IF(COUNTA(A27)>0,VLOOKUP($A27,'PLANILHA SINTÉTICA'!$A$10:$T$1083,4,0),"") -> 105 | E27: =IF(COUNTA(A27)>0,VLOOKUP($A27,'PLANILHA SINTÉTICA'!$A$10:$T$1083,5,0),"") -> 100.78 | F27: =IF(ISERROR(VLOOKUP($A27,#REF!,8,0)),0,(VLOOKUP($A27,#REF!,8,0))) -> 0 | G27: =IF(COUNTA(A27)>0,VLOOKUP($A27,'[8]PLANILHA SINTÉTICA'!$A$9:$AC$1082,15,0),"") -> 299.020744 | H27: 0 | I27: 66.53 | J27: 0
A28: 12.1 | B28: =IF(COUNTA(#REF!)>0,VLOOKUP($A28,'PLANILHA SINTÉTICA'!$A$10:$T$1083,2,0),"") -> Fornecimento e instalação de corrimão em aço inox AISI 304, escovado, composto de guarda corpo com diâmetro de 1 1/2" e altura em relação ao piso de 1,10m; corrimãos com diâmetro de 1 1/2", com alturas em relação ao piso de 0,92m e 0,70m; longarinas intermediárias com diâmetro de 1/2", com alturas em relação ao piso de 0,44m e 0,25m; balaústre de aço inox com diâmetro de 1 1/2", fixado no piso com roseta em aço inox nas dimensões 5" x 1/8" e chumbador metálico tipo UR 6mm, conforme detalhes de arquitetura-Prancha 19/46. (Rampa e escada principal)- CORRIMÃO INOX PISO - TIPO 1. | C28: =IF(COUNTA(A28)>0,VLOOKUP($A28,'[8]PLANILHA SINTÉTICA'!$A$9:$U$1082,3,0),"") -> 460716-3 | D28: =IF(COUNTA(A28)>0,VLOOKUP($A28,'PLANILHA SINTÉTICA'!$A$10:$T$1083,4,0),"") -> 78 | E28: =IF(COUNTA(A28)>0,VLOOKUP($A28,'PLANILHA SINTÉTICA'!$A$10:$T$1083,5,0),"") -> 68.7 | F28: =IF(ISERROR(VLOOKUP($A28,#REF!,8,0)),0,(VLOOKUP($A28,#REF!,8,0))) -> 0 | G28: =IF(COUNTA(A28)>0,VLOOKUP($A28,'[8]PLANILHA SINTÉTICA'!$A$9:$AC$1082,15,0),"") -> 422.873988 | H28: 0 | I28: 94.09 | J28: 0
A29: 12.3 | B29: =IF(COUNTA(#REF!)>0,VLOOKUP($A29,'PLANILHA SINTÉTICA'!$A$10:$T$1083,2,0),"") -> Fornecimento e instalação de Corrimão em aço inox escovado, composto por guarda corpo com diâmetro de 1 e 1/2", longarinas intermediárias com diâmetro de 1/2", e corrimão duplo (NOS DOIS LADOS DO GUARDA CORPO) com diâmetro de 1 e 1/2". Altura do guarda corpo de 1,10m e do corrimão duplo de 0,92m (parte superior) e 0,70m (parte inferior). Balaústres com diâmetro de 1 e 1/2", fixados ao chão com roseta de fixação. Detalhe 18/46 Escada de acesso principal. CORRIMÃO INOX PISO - TIPO 3. | C29: =IF(COUNTA(A29)>0,VLOOKUP($A29,'[8]PLANILHA SINTÉTICA'!$A$9:$U$1082,3,0),"") -> 476429-3 | D29: =IF(COUNTA(A29)>0,VLOOKUP($A29,'PLANILHA SINTÉTICA'!$A$10:$T$1083,4,0),"") -> 3 | E29: =IF(COUNTA(A29)>0,VLOOKUP($A29,'PLANILHA SINTÉTICA'!$A$10:$T$1083,5,0),"") -> 3 | F29: =IF(ISERROR(VLOOKUP($A29,#REF!,8,0)),0,(VLOOKUP($A29,#REF!,8,0))) -> 0 | G29: =IF(COUNTA(A29)>0,VLOOKUP($A29,'[8]PLANILHA SINTÉTICA'!$A$9:$AC$1082,15,0),"") -> 528.604602 | H29: 0 | I29: 117.61 | J29: 0
A30: 12.4 | B30: =IF(COUNTA(#REF!)>0,VLOOKUP($A30,'PLANILHA SINTÉTICA'!$A$10:$T$1083,2,0),"") -> Fornecimento e assentamento de Corrimão tubular em ferro com diâmetro 1 1/2" com tubo em "L" com diâmetro de 3/4", fixado na parede com roseta de acabamento, inclusive pintura automotiva, conforme detalhe. (Escada interna) - CORRIMÃO FERRO PAREDE - TIPO 5. | C30: =IF(COUNTA(A30)>0,VLOOKUP($A30,'[8]PLANILHA SINTÉTICA'!$A$9:$U$1082,3,0),"") -> 476867-1 | D30: =IF(COUNTA(A30)>0,VLOOKUP($A30,'PLANILHA SINTÉTICA'!$A$10:$T$1083,4,0),"") -> 151 | E30: =IF(COUNTA(A30)>0,VLOOKUP($A30,'PLANILHA SINTÉTICA'!$A$10:$T$1083,5,0),"") -> 151 | F30: =IF(ISERROR(VLOOKUP($A30,#REF!,8,0)),0,(VLOOKUP($A30,#REF!,8,0))) -> 0 | G30: =IF(COUNTA(A30)>0,VLOOKUP($A30,'[8]PLANILHA SINTÉTICA'!$A$9:$AC$1082,15,0),"") -> 114.99169 | H30: 0 | I30: 25.59 | J30: 0
A31: 16.10 | B31: =IF(COUNTA(#REF!)>0,VLOOKUP($A31,'PLANILHA SINTÉTICA'!$A$10:$T$1083,2,0),"") -> Fornecimento e assentamento de tubos soldáveis de PVC rígido diâmetro 32 mm, inclusive conexões abertura e fechamento de valas para alimentador predial. (dreno ar condicionado) | C31: =IF(COUNTA(A31)>0,VLOOKUP($A31,'[8]PLANILHA SINTÉTICA'!$A$9:$U$1082,3,0),"") -> 460516-0 | D31: =IF(COUNTA(A31)>0,VLOOKUP($A31,'PLANILHA SINTÉTICA'!$A$10:$T$1083,4,0),"") -> 1490 | E31: =IF(COUNTA(A31)>0,VLOOKUP($A31,'PLANILHA SINTÉTICA'!$A$10:$T$1083,5,0),"") -> 594.43 | F31: 78 | G31: =IF(COUNTA(A31)>0,VLOOKUP($A31,'[8]PLANILHA SINTÉTICA'!$A$9:$AC$1082,15,0),"") -> 13.375562 | H31: 1043.29 | I31: 2.98 | J31: 232.13
A32: 16.32 | B32: =IF(COUNTA(#REF!)>0,VLOOKUP($A32,'PLANILHA SINTÉTICA'!$A$10:$T$1083,2,0),"") -> Fornecimento de torneira de pressão para lavatório linha Benefit, fabricação Docol ou equivalente. (wc Especial). | C32: =IF(COUNTA(A32)>0,VLOOKUP($A32,'[8]PLANILHA SINTÉTICA'!$A$9:$U$1082,3,0),"") -> 203038-1 | D32: =IF(COUNTA(A32)>0,VLOOKUP($A32,'PLANILHA SINTÉTICA'!$A$10:$T$1083,4,0),"") -> 84 | E32: =IF(COUNTA(A32)>0,VLOOKUP($A32,'PLANILHA SINTÉTICA'!$A$10:$T$1083,5,0),"") -> 16 | F32: =IF(ISERROR(VLOOKUP($A32,#REF!,8,0)),0,(VLOOKUP($A32,#REF!,8,0))) -> 0 | G32: =IF(COUNTA(A32)>0,VLOOKUP($A32,'[8]PLANILHA SINTÉTICA'!$A$9:$AC$1082,15,0),"") -> 440.887502 | H32: 0 | I32: 98.1 | J32: 0
A33: 16.38 | B33: =IF(COUNTA(#REF!)>0,VLOOKUP($A33,'PLANILHA SINTÉTICA'!$A$10:$T$1083,2,0),"") -> Fornecimento com instalação de Torneira cromada de mesa para lavatório temporizada pressão bica baixa com acionamento manual e fechamento automático, Fabrimar ou equivalente (Wc's) | C33: =IF(COUNTA(A33)>0,VLOOKUP($A33,'[8]PLANILHA SINTÉTICA'!$A$9:$U$1082,3,0),"") -> 442617-7 | D33: =IF(COUNTA(A33)>0,VLOOKUP($A33,'PLANILHA SINTÉTICA'!$A$10:$T$1083,4,0),"") -> 98 | E33: =IF(COUNTA(A33)>0,VLOOKUP($A33,'PLANILHA SINTÉTICA'!$A$10:$T$1083,5,0),"") -> 84 | F33: =IF(ISERROR(VLOOKUP($A33,#REF!,8,0)),0,(VLOOKUP($A33,#REF!,8,0))) -> 0 | G33: =IF(COUNTA(A33)>0,VLOOKUP($A33,'[8]PLANILHA SINTÉTICA'!$A$9:$AC$1082,15,0),"") -> 146.390846 | H33: 0 | I33: 32.57 | J33: 0
A34: 16.40 | B34: =IF(COUNTA(#REF!)>0,VLOOKUP($A34,'PLANILHA SINTÉTICA'!$A$10:$T$1083,2,0),"") -> Fornecimento e instalação de TORNEIRA cromada tubo móvel parede para cozinha, ref. 1168, linha ASCOT, fabricação Fabrimar ou equivalente. (COPA) | C34: =IF(COUNTA(A34)>0,VLOOKUP($A34,'[8]PLANILHA SINTÉTICA'!$A$9:$U$1082,3,0),"") -> 295050-2 | D34: =IF(COUNTA(A34)>0,VLOOKUP($A34,'PLANILHA SINTÉTICA'!$A$10:$T$1083,4,0),"") -> 7 | E34: =IF(COUNTA(A34)>0,VLOOKUP($A34,'PLANILHA SINTÉTICA'!$A$10:$T$1083,5,0),"") -> 7 | F34: =IF(ISERROR(VLOOKUP($A34,#REF!,8,0)),0,(VLOOKUP($A34,#REF!,8,0))) -> 0 | G34: =IF(COUNTA(A34)>0,VLOOKUP($A34,'[8]PLANILHA SINTÉTICA'!$A$9:$AC$1082,15,0),"") -> 86.107262 | H34: 0 | I34: 19.16 | J34: 0
A35: 16.53 | B35: =IF(COUNTA(#REF!)>0,VLOOKUP($A35,'PLANILHA SINTÉTICA'!$A$10:$T$1083,2,0),"") -> Fornecimento e instalação de porta papel higiênico sem tampa - Eco Cromado, referência 337413 Expambox ou equivalente. | C35: =IF(COUNTA(A35)>0,VLOOKUP($A35,'[8]PLANILHA SINTÉTICA'!$A$9:$U$1082,3,0),"") -> 216905-3 | D35: =IF(COUNTA(A35)>0,VLOOKUP($A35,'PLANILHA SINTÉTICA'!$A$10:$T$1083,4,0),"") -> 95 | E35: =IF(COUNTA(A35)>0,VLOOKUP($A35,'PLANILHA SINTÉTICA'!$A$10:$T$1083,5,0),"") -> 94 | F35: =IF(ISERROR(VLOOKUP($A35,#REF!,8,0)),0,(VLOOKUP($A35,#REF!,8,0))) -> 0 | G35: =IF(COUNTA(A35)>0,VLOOKUP($A35,'[8]PLANILHA SINTÉTICA'!$A$9:$AC$1082,15,0),"") -> 45.675654 | H35: 0 | I35: 10.16 | J35: 0
A36: 16.55 | B36: =IF(COUNTA(#REF!)>0,VLOOKUP($A36,'PLANILHA SINTÉTICA'!$A$10:$T$1083,2,0),"") -> Fornecimento e assentamento de saboneteira plástica de parede, tipo dispenser para sabonete líquido, com reservatório de 800 a 1.500ml. | C36: =IF(COUNTA(A36)>0,VLOOKUP($A36,'[8]PLANILHA SINTÉTICA'!$A$9:$U$1082,3,0),"") -> 209858-0 | D36: =IF(COUNTA(A36)>0,VLOOKUP($A36,'PLANILHA SINTÉTICA'!$A$10:$T$1083,4,0),"") -> 34 | E36: =IF(COUNTA(A36)>0,VLOOKUP($A36,'PLANILHA SINTÉTICA'!$A$10:$T$1083,5,0),"") -> 28 | F36: =IF(ISERROR(VLOOKUP($A36,#REF!,8,0)),0,(VLOOKUP($A36,#REF!,8,0))) -> 0 | G36: =IF(COUNTA(A36)>0,VLOOKUP($A36,'[8]PLANILHA SINTÉTICA'!$A$9:$AC$1082,15,0),"") -> 46.25356 | H36: 0 | I36: 10.29 | J36: 0
A37: 16.56 | B37: =IF(COUNTA(#REF!)>0,VLOOKUP($A37,'PLANILHA SINTÉTICA'!$A$10:$T$1083,2,0),"") -> Conjunto moto-bomba (centrífuga), P= 3 CV, Schneider, Dancor ou equivalente, inclusive acessórios, fixação e instalação. | C37: =IF(COUNTA(A37)>0,VLOOKUP($A37,'[8]PLANILHA SINTÉTICA'!$A$9:$U$1082,3,0),"") -> 481950-0 | D37: =IF(COUNTA(A37)>0,VLOOKUP($A37,'PLANILHA SINTÉTICA'!$A$10:$T$1083,4,0),"") -> 2 | E37: =IF(COUNTA(A37)>0,VLOOKUP($A37,'PLANILHA SINTÉTICA'!$A$10:$T$1083,5,0),"") -> 2 | F37: =IF(ISERROR(VLOOKUP($A37,#REF!,8,0)),0,(VLOOKUP($A37,#REF!,8,0))) -> 0 | G37: =IF(COUNTA(A37)>0,VLOOKUP($A37,'[8]PLANILHA SINTÉTICA'!$A$9:$AC$1082,15,0),"") -> 1550.881836 | H37: 0 | K37: =ROUND($G37*$J$5,2) -> 345.07 | L37: =ROUND($H37*$J$5,2) -> 0
A38: 16.59 | B38: =IF(COUNTA(#REF!)>0,VLOOKUP($A38,'PLANILHA SINTÉTICA'!$A$10:$T$1083,2,0),"") -> Chave de bóia superior 10A/ 250v, fornecimento e instalação. | C38: =IF(COUNTA(A38)>0,VLOOKUP($A38,'[8]PLANILHA SINTÉTICA'!$A$9:$U$1082,3,0),"") -> 438964-6 | D38: =IF(COUNTA(A38)>0,VLOOKUP($A38,'PLANILHA SINTÉTICA'!$A$10:$T$1083,4,0),"") -> 2 | E38: =IF(COUNTA(A38)>0,VLOOKUP($A38,'PLANILHA SINTÉTICA'!$A$10:$T$1083,5,0),"") -> 2 | F38: =IF(ISERROR(VLOOKUP($A38,#REF!,8,0)),0,(VLOOKUP($A38,#REF!,8,0))) -> 0 | G38: =IF(COUNTA(A38)>0,VLOOKUP($A38,'[8]PLANILHA SINTÉTICA'!$A$9:$AC$1082,15,0),"") -> 61.433482 | H38: 0 | I38: =ROUND($G38*$J$5,2) -> 13.67 | J38: =ROUND($H38*$J$5,2) -> 0
A39: 18.27 | B39: =IF(COUNTA(#REF!)>0,VLOOKUP($A39,'PLANILHA SINTÉTICA'!$A$10:$T$1083,2,0),"") -> Verga pré-moldada para janelas com mais de 1,5 m de vão. | C39: =IF(COUNTA(A39)>0,VLOOKUP($A39,'[8]PLANILHA SINTÉTICA'!$A$9:$U$1082,3,0),"") -> 456457-0 | D39: =IF(COUNTA(A39)>0,VLOOKUP($A39,'PLANILHA SINTÉTICA'!$A$10:$T$1083,4,0),"") -> 22 | E39: =IF(COUNTA(A39)>0,VLOOKUP($A39,'PLANILHA SINTÉTICA'!$A$10:$T$1083,5,0),"") -> 16 | F39: =IF(ISERROR(VLOOKUP($A39,#REF!,8,0)),0,(VLOOKUP($A39,#REF!,8,0))) -> 0 | G39: =IF(COUNTA(A39)>0,VLOOKUP($A39,'[8]PLANILHA SINTÉTICA'!$A$9:$AC$1082,15,0),"") -> 22.36307 | H39: 0 | I39: 4.98 | J39: 0
A40: 18.29 | B40: =IF(COUNTA(#REF!)>0,VLOOKUP($A40,'PLANILHA SINTÉTICA'!$A$10:$T$1083,2,0),"") -> Verga pré-moldada para portas com mais de 1,5 m de vão. | C40: =IF(COUNTA(A40)>0,VLOOKUP($A40,'[8]PLANILHA SINTÉTICA'!$A$9:$U$1082,3,0),"") -> 444316-0 | D40: =IF(COUNTA(A40)>0,VLOOKUP($A40,'PLANILHA SINTÉTICA'!$A$10:$T$1083,4,0),"") -> 2.6 | E40: =IF(COUNTA(A40)>0,VLOOKUP($A40,'PLANILHA SINTÉTICA'!$A$10:$T$1083,5,0),"") -> 2.6 | F40: =IF(ISERROR(VLOOKUP($A40,#REF!,8,0)),0,(VLOOKUP($A40,#REF!,8,0))) -> 0 | G40: =IF(COUNTA(A40)>0,VLOOKUP($A40,'[8]PLANILHA SINTÉTICA'!$A$9:$AC$1082,15,0),"") -> 22.019918 | H40: 0 | I40: 4.9 | J40: 0
A41: 18.30 | B41: =IF(COUNTA(#REF!)>0,VLOOKUP($A41,'PLANILHA SINTÉTICA'!$A$10:$T$1083,2,0),"") -> Contraverga pré-moldada para vãos de mais de 1,5 m de comprimento. | C41: =IF(COUNTA(A41)>0,VLOOKUP($A41,'[8]PLANILHA SINTÉTICA'!$A$9:$U$1082,3,0),"") -> 457789-2 | D41: =IF(COUNTA(A41)>0,VLOOKUP($A41,'PLANILHA SINTÉTICA'!$A$10:$T$1083,4,0),"") -> 22 | E41: =IF(COUNTA(A41)>0,VLOOKUP($A41,'PLANILHA SINTÉTICA'!$A$10:$T$1083,5,0),"") -> 16 | F41: =IF(ISERROR(VLOOKUP($A41,#REF!,8,0)),0,(VLOOKUP($A41,#REF!,8,0))) -> 0 | G41: =IF(COUNTA(A41)>0,VLOOKUP($A41,'[8]PLANILHA SINTÉTICA'!$A$9:$AC$1082,15,0),"") -> 20.097016 | H41: 0 | I41: 4.47 | J41: 0
A42: 18.38 | B42: =IF(COUNTA(#REF!)>0,VLOOKUP($A42,'PLANILHA SINTÉTICA'!$A$10:$T$1083,2,0),"") -> Fornecimento e assentamento de cobogó cavernoso 20 x 20 cm. | C42: =IF(COUNTA(A42)>0,VLOOKUP($A42,'[8]PLANILHA SINTÉTICA'!$A$9:$U$1082,3,0),"") -> 438776-7 | D42: =IF(COUNTA(A42)>0,VLOOKUP($A42,'PLANILHA SINTÉTICA'!$A$10:$T$1083,4,0),"") -> 7 | E42: =IF(COUNTA(A42)>0,VLOOKUP($A42,'PLANILHA SINTÉTICA'!$A$10:$T$1083,5,0),"") -> 7 | F42: =IF(ISERROR(VLOOKUP($A42,#REF!,8,0)),0,(VLOOKUP($A42,#REF!,8,0))) -> 0 | G42: =IF(COUNTA(A42)>0,VLOOKUP($A42,'[8]PLANILHA SINTÉTICA'!$A$9:$AC$1082,15,0),"") -> 141.252738 | H42: 0 | I42: 31.43 | J42: 0
A43: 18.39 | B43: =IF(COUNTA(#REF!)>0,VLOOKUP($A43,'PLANILHA SINTÉTICA'!$A$10:$T$1083,2,0),"") -> Fundo selador PVA para ambientes internos, uma demão. (TETO) | C43: =IF(COUNTA(A43)>0,VLOOKUP($A43,'[8]PLANILHA SINTÉTICA'!$A$9:$U$1082,3,0),"") -> 432002-6 | D43: =IF(COUNTA(A43)>0,VLOOKUP($A43,'PLANILHA SINTÉTICA'!$A$10:$T$1083,4,0),"") -> 156 | E43: =IF(COUNTA(A43)>0,VLOOKUP($A43,'PLANILHA SINTÉTICA'!$A$10:$T$1083,5,0),"") -> 153.7 | F43: =IF(ISERROR(VLOOKUP($A43,#REF!,8,0)),0,(VLOOKUP($A43,#REF!,8,0))) -> 0 | G43: =IF(COUNTA(A43)>0,VLOOKUP($A43,'[8]PLANILHA SINTÉTICA'!$A$9:$AC$1082,15,0),"") -> 2.380598 | H43: 0 | I43: 0.53 | J43: 0
A44: 18.73 | B44: =IF(COUNTA(#REF!)>0,VLOOKUP($A44,'PLANILHA SINTÉTICA'!$A$10:$T$1083,2,0),"") -> Registro de gaveta bruto, latão, roscável, 3/4, fornecido e instalado em ramal de água. | C44: =IF(COUNTA(A44)>0,VLOOKUP($A44,'[8]PLANILHA SINTÉTICA'!$A$9:$U$1082,3,0),"") -> 431750-5 | D44: =IF(COUNTA(A44)>0,VLOOKUP($A44,'PLANILHA SINTÉTICA'!$A$10:$T$1083,4,0),"") -> 1 | E44: =IF(COUNTA(A44)>0,VLOOKUP($A44,'PLANILHA SINTÉTICA'!$A$10:$T$1083,5,0),"") -> 1 | F44: =IF(ISERROR(VLOOKUP($A44,#REF!,8,0)),0,(VLOOKUP($A44,#REF!,8,0))) -> 0 | G44: =IF(COUNTA(A44)>0,VLOOKUP($A44,'[8]PLANILHA SINTÉTICA'!$A$9:$AC$1082,15,0),"") -> 28.729762 | H44: 0 | I44: 6.39 | J44: 0
A45: 18.74 | B45: =IF(COUNTA(#REF!)>0,VLOOKUP($A45,'PLANILHA SINTÉTICA'!$A$10:$T$1083,2,0),"") -> Fornecimento de registro de gaveta com canopla, acabamento cromado, ref. 1509-C39, Deca ou similar, linha prata, diâmetro de 3/4 pol., inclusive fixação. | C45: =IF(COUNTA(A45)>0,VLOOKUP($A45,'[8]PLANILHA SINTÉTICA'!$A$9:$U$1082,3,0),"") -> 436218-7 | D45: =IF(COUNTA(A45)>0,VLOOKUP($A45,'PLANILHA SINTÉTICA'!$A$10:$T$1083,4,0),"") -> 3 | E45: =IF(COUNTA(A45)>0,VLOOKUP($A45,'PLANILHA SINTÉTICA'!$A$10:$T$1083,5,0),"") -> 3 | F45: =IF(ISERROR(VLOOKUP($A45,#REF!,8,0)),0,(VLOOKUP($A45,#REF!,8,0))) -> 0 | G45: =IF(COUNTA(A45)>0,VLOOKUP($A45,'[8]PLANILHA SINTÉTICA'!$A$9:$AC$1082,15,0),"") -> 75.234432 | H45: 0 | I45: 16.74 | J45: 0
A46: 18.75 | B46: =IF(COUNTA(#REF!)>0,VLOOKUP($A46,'PLANILHA SINTÉTICA'!$A$10:$T$1083,2,0),"") -> Registro de gaveta com canopla 1" - fornecimento e instalação | C46: =IF(COUNTA(A46)>0,VLOOKUP($A46,'[8]PLANILHA SINTÉTICA'!$A$9:$U$1082,3,0),"") -> 430172-2 | D46: =IF(COUNTA(A46)>0,VLOOKUP($A46,'PLANILHA SINTÉTICA'!$A$10:$T$1083,4,0),"") -> 1 | E46: =IF(COUNTA(A46)>0,VLOOKUP($A46,'PLANILHA SINTÉTICA'!$A$10:$T$1083,5,0),"") -> 1 | F46: =IF(ISERROR(VLOOKUP($A46,#REF!,8,0)),0,(VLOOKUP($A46,#REF!,8,0))) -> 0 | G46: =IF(COUNTA(A46)>0,VLOOKUP($A46,'[8]PLANILHA SINTÉTICA'!$A$9:$AC$1082,15,0),"") -> 90.384464 | H46: 0 | I46: 20.11 | J46: 0
A47: 19.66 | B47: =IF(COUNTA(#REF!)>0,VLOOKUP($A47,'PLANILHA SINTÉTICA'!$A$10:$T$1083,2,0),"") -> Fornecimento e instalação de janela em alumínio anodizado bronze tipo correr, com vidro liso verde, espessura de 6mm, dimensão (1,00x0,50)m - JAV15. | C47: =IF(COUNTA(A47)>0,VLOOKUP($A47,'[8]PLANILHA SINTÉTICA'!$A$9:$U$1082,3,0),"") -> 472698-7 | D47: =IF(COUNTA(A47)>0,VLOOKUP($A47,'PLANILHA SINTÉTICA'!$A$10:$T$1083,4,0),"") -> 1 | E47: =IF(COUNTA(A47)>0,VLOOKUP($A47,'PLANILHA SINTÉTICA'!$A$10:$T$1083,5,0),"") -> 1 | F47: =IF(ISERROR(VLOOKUP($A47,#REF!,8,0)),0,(VLOOKUP($A47,#REF!,8,0))) -> 0 | G47: =IF(COUNTA(A47)>0,VLOOKUP($A47,'[8]PLANILHA SINTÉTICA'!$A$9:$AC$1082,15,0),"") -> 229.984026 | H47: 0 | I47: 51.17 | J47: 0
A48: 19.67 | B48: =IF(COUNTA(#REF!)>0,VLOOKUP($A48,'PLANILHA SINTÉTICA'!$A$10:$T$1083,2,0),"") -> Fornecimento e assentamento de Kit Porta Pronta PM2 (dim.=0,70x2,10m), porta semi-oca (folha espessura 35mm), contraplacada em compensado com lâmina de Corrupixá ou Liptus, revestida em laminado melamínico madeirado cor branca, inclusive fitamento da porta em PVC, grade e alizares em madeira Liptus em tábuas secas em estufa com acabamento em primer branco, chumbada com espuma de poliuretano, dobradiças em inox com rolamento, de 3 1/2 x 3", fechadura em inox, escovado, marca La Fonte, Imab ou equivalente, código HI MARS, conforme detalhe. (Wc guarita) | C48: =IF(COUNTA(A48)>0,VLOOKUP($A48,'[8]PLANILHA SINTÉTICA'!$A$9:$U$1082,3,0),"") -> 430086-6 | D48: =IF(COUNTA(A48)>0,VLOOKUP($A48,'PLANILHA SINTÉTICA'!$A$10:$T$1083,4,0),"") -> 1 | E48: =IF(COUNTA(A48)>0,VLOOKUP($A48,'PLANILHA SINTÉTICA'!$A$10:$T$1083,5,0),"") -> 1 | F48: =IF(ISERROR(VLOOKUP($A48,#REF!,8,0)),0,(VLOOKUP($A48,#REF!,8,0))) -> 0 | G48: =IF(COUNTA(A48)>0,VLOOKUP($A48,'[8]PLANILHA SINTÉTICA'!$A$9:$AC$1082,15,0),"") -> 628.985106 | H48: 0 | I48: 139.95 | J48: 0
A49: 19.68 | B49: =IF(COUNTA(#REF!)>0,VLOOKUP($A49,'PLANILHA SINTÉTICA'!$A$10:$T$1083,2,0),"") -> Porta em esquadria de alumínio anodizado bronze com venezianas industriais, de giro com uma folha. 0,90x2,10m (PA3) | C49: =IF(COUNTA(A49)>0,VLOOKUP($A49,'[8]PLANILHA SINTÉTICA'!$A$9:$U$1082,3,0),"") -> 470867-9 | D49: =IF(COUNTA(A49)>0,VLOOKUP($A49,'PLANILHA SINTÉTICA'!$A$10:$T$1083,4,0),"") -> 1 | E49: =IF(COUNTA(A49)>0,VLOOKUP($A49,'PLANILHA SINTÉTICA'!$A$10:$T$1083,5,0),"") -> 1 | F49: =IF(ISERROR(VLOOKUP($A49,#REF!,8,0)),0,(VLOOKUP($A49,#REF!,8,0))) -> 0 | G49: =IF(COUNTA(A49)>0,VLOOKUP($A49,'[8]PLANILHA SINTÉTICA'!$A$9:$AC$1082,15,0),"") -> 1231.598728 | H49: 0 | I49: 274.03 | J49: 0
A50: 20.17 | B50: =IF(COUNTA(#REF!)>0,VLOOKUP($A50,'PLANILHA SINTÉTICA'!$A$10:$T$1083,2,0),"") -> Contrapiso em argamassa traço 1:4 (cimento e areia), preparo mecânico com betoneira 400 L, aplicado em áreas secas sobre laje, aderido, espessura 2cm, acabamento não reforçado. | C50: =IF(COUNTA(A50)>0,VLOOKUP($A50,'[8]PLANILHA SINTÉTICA'!$A$9:$U$1082,3,0),"") -> 430928-6 | D50: =IF(COUNTA(A50)>0,VLOOKUP($A50,'PLANILHA SINTÉTICA'!$A$10:$T$1083,4,0),"") -> 25.3 | E50: =IF(COUNTA(A50)>0,VLOOKUP($A50,'PLANILHA SINTÉTICA'!$A$10:$T$1083,5,0),"") -> 23.4 | F50: =IF(ISERROR(VLOOKUP($A50,#REF!,8,0)),0,(VLOOKUP($A50,#REF!,8,0))) -> 0 | G50: =IF(COUNTA(A50)>0,VLOOKUP($A50,'[8]PLANILHA SINTÉTICA'!$A$9:$AC$1082,15,0),"") -> 18.788824 | H50: 0 | I50: 4.18 | J50: 0
A51: 20.26 | B51: =IF(COUNTA(#REF!)>0,VLOOKUP($A51,'PLANILHA SINTÉTICA'!$A$10:$T$1083,2,0),"") -> Impermeabilização de superfície com manta asfáltica protegida com filme de alumínio gofrado (de espessura 0,8mm), inclusa aplicação de emulsão asfáltica, E=3mm. (Laje) | C51: =IF(COUNTA(A51)>0,VLOOKUP($A51,'[8]PLANILHA SINTÉTICA'!$A$9:$U$1082,3,0),"") -> 431420-4 | D51: =IF(COUNTA(A51)>0,VLOOKUP($A51,'PLANILHA SINTÉTICA'!$A$10:$T$1083,4,0),"") -> 5.4 | E51: =IF(COUNTA(A51)>0,VLOOKUP($A51,'PLANILHA SINTÉTICA'!$A$10:$T$1083,5,0),"") -> 5.38 | F51: =IF(ISERROR(VLOOKUP($A51,#REF!,8,0)),0,(VLOOKUP($A51,#REF!,8,0))) -> 0 | G51: =IF(COUNTA(A51)>0,VLOOKUP($A51,'[8]PLANILHA SINTÉTICA'!$A$9:$AC$1082,15,0),"") -> 74.509744 | H51: 0 | I51: 16.58 | J51: 0
A52: 20.27 | B52: =IF(COUNTA(#REF!)>0,VLOOKUP($A52,'PLANILHA SINTÉTICA'!$A$10:$T$1083,2,0),"") -> Fornecimento e instalação de PORTÃO pivotante para LIXEIRA, com gradil Eletrogradi, na cor bronze, (1,50x2,11)m conforme detalhes. | C52: =IF(COUNTA(A52)>0,VLOOKUP($A52,'[8]PLANILHA SINTÉTICA'!$A$9:$U$1082,3,0),"") -> 475555-3 | D52: =IF(COUNTA(A52)>0,VLOOKUP($A52,'PLANILHA SINTÉTICA'!$A$10:$T$1083,4,0),"") -> 6.33 | E52: =IF(COUNTA(A52)>0,VLOOKUP($A52,'PLANILHA SINTÉTICA'!$A$10:$T$1083,5,0),"") -> 6.33 | F52: =IF(ISERROR(VLOOKUP($A52,#REF!,8,0)),0,(VLOOKUP($A52,#REF!,8,0))) -> 0 | G52: =IF(COUNTA(A52)>0,VLOOKUP($A52,'[8]PLANILHA SINTÉTICA'!$A$9:$AC$1082,15,0),"") -> 801.969028 | H52: 0 | I52: 178.44 | J52: 0
A53: 26.1 | B53: =IF(COUNTA(#REF!)>0,VLOOKUP($A53,'PLANILHA SINTÉTICA'!$A$10:$T$1083,2,0),"") -> Fornecimento e assentamento de mastro para bandeira em tubo de ferro galvanizado de 2.1/2", 2" e 1.1/2'' conforme detalhe, inclusive pintura anticorrosiva e em esmalte sintético, cor a definir, com fixação no piso. (Conforme detalhe 40/45) | C53: =IF(COUNTA(A53)>0,VLOOKUP($A53,'[8]PLANILHA SINTÉTICA'!$A$9:$U$1082,3,0),"") -> 429836-5 | D53: =IF(COUNTA(A53)>0,VLOOKUP($A53,'PLANILHA SINTÉTICA'!$A$10:$T$1083,4,0),"") -> 16 | E53: =IF(COUNTA(A53)>0,VLOOKUP($A53,'PLANILHA SINTÉTICA'!$A$10:$T$1083,5,0),"") -> 16 | F53: =IF(ISERROR(VLOOKUP($A53,#REF!,8,0)),0,(VLOOKUP($A53,#REF!,8,0))) -> 0 | G53: =IF(COUNTA(A53)>0,VLOOKUP($A53,'[8]PLANILHA SINTÉTICA'!$A$9:$AC$1082,15,0),"") -> 155.349104 | H53: 0 | I53: 34.57 | J53: 0
A54: 26.2 | B54: =IF(COUNTA(#REF!)>0,VLOOKUP($A54,'PLANILHA SINTÉTICA'!$A$10:$T$1083,2,0),"") -> Fornecimento e instalação de letreiro " FÓRUM DE LIMOEIRO" com letras tipo caixa, fonte Arial Black, com 10,00 cm de profundidade, altura com 80,00 cm, em chapa de aço INOX 304 escovado, com sistema de fixação, pregos e buchas ou perfil tipo "L". (Detalhe 41/45) | C54: =IF(COUNTA(A54)>0,VLOOKUP($A54,'[8]PLANILHA SINTÉTICA'!$A$9:$U$1082,3,0),"") -> 470289-1 | D54: =IF(COUNTA(A54)>0,VLOOKUP($A54,'PLANILHA SINTÉTICA'!$A$10:$T$1083,4,0),"") -> 16 | E54: =IF(COUNTA(A54)>0,VLOOKUP($A54,'PLANILHA SINTÉTICA'!$A$10:$T$1083,5,0),"") -> 16 | F54: =IF(ISERROR(VLOOKUP($A54,#REF!,8,0)),0,(VLOOKUP($A54,#REF!,8,0))) -> 0 | G54: =IF(COUNTA(A54)>0,VLOOKUP($A54,'[8]PLANILHA SINTÉTICA'!$A$9:$AC$1082,15,0),"") -> 187.012666 | H54: 0 | I54: 41.61 | J54: 0
A55: 26.7 | B55: =IF(COUNTA(#REF!)>0,VLOOKUP($A55,'PLANILHA SINTÉTICA'!$A$10:$T$1083,2,0),"") -> Fornecimento de espelho cristal 4mm, colocado sobre chapas de isopor, fixado com parafuso de latão, inclusive assentamento. | C55: =IF(COUNTA(A55)>0,VLOOKUP($A55,'[8]PLANILHA SINTÉTICA'!$A$9:$U$1082,3,0),"") -> 429778-4 | D55: =IF(COUNTA(A55)>0,VLOOKUP($A55,'PLANILHA SINTÉTICA'!$A$10:$T$1083,4,0),"") -> 60.1 | E55: =IF(COUNTA(A55)>0,VLOOKUP($A55,'PLANILHA SINTÉTICA'!$A$10:$T$1083,5,0),"") -> 59.1 | F55: =IF(ISERROR(VLOOKUP($A55,#REF!,8,0)),0,(VLOOKUP($A55,#REF!,8,0))) -> 0 | G55: =IF(COUNTA(A55)>0,VLOOKUP($A55,'[8]PLANILHA SINTÉTICA'!$A$9:$AC$1082,15,0),"") -> 240.169442 | H55: 0 | I55: 53.44 | J55: 0
A56: 26.8 | B56: =IF(COUNTA(#REF!)>0,VLOOKUP($A56,'PLANILHA SINTÉTICA'!$A$10:$T$1083,2,0),"") -> Fornecimento e colocação de escultura em concreto medindo 2m de altura (justiça cega), conforme detalhe. | C56: =IF(COUNTA(A56)>0,VLOOKUP($A56,'[8]PLANILHA SINTÉTICA'!$A$9:$U$1082,3,0),"") -> 484189-1 | D56: =IF(COUNTA(A56)>0,VLOOKUP($A56,'PLANILHA SINTÉTICA'!$A$10:$T$1083,4,0),"") -> 1 | E56: =IF(COUNTA(A56)>0,VLOOKUP($A56,'PLANILHA SINTÉTICA'!$A$10:$T$1083,5,0),"") -> 1 | F56: =IF(ISERROR(VLOOKUP($A56,#REF!,8,0)),0,(VLOOKUP($A56,#REF!,8,0))) -> 0 | G56: =IF(COUNTA(A56)>0,VLOOKUP($A56,'[8]PLANILHA SINTÉTICA'!$A$9:$AC$1082,15,0),"") -> 21760.2968 | H56: 0 | I56: 4841.67 | J56: 0
A57: 26.9 | B57: =IF(COUNTA(#REF!)>0,VLOOKUP($A57,'PLANILHA SINTÉTICA'!$A$10:$T$1083,2,0),"") -> Fornecimento e fixação de brasão do Estado de Pernambuco em latão fundido, alto relevo, nas dimensões aproximadas 0,70m x 0,71m, conforme modelo. | C57: =IF(COUNTA(A57)>0,VLOOKUP($A57,'[8]PLANILHA SINTÉTICA'!$A$9:$U$1082,3,0),"") -> 429837-3 | D57: =IF(COUNTA(A57)>0,VLOOKUP($A57,'PLANILHA SINTÉTICA'!$A$10:$T$1083,4,0),"") -> 1 | E57: =IF(COUNTA(A57)>0,VLOOKUP($A57,'PLANILHA SINTÉTICA'!$A$10:$T$1083,5,0),"") -> 1 | F57: =IF(ISERROR(VLOOKUP($A57,#REF!,8,0)),0,(VLOOKUP($A57,#REF!,8,0))) -> 0 | G57: =IF(COUNTA(A57)>0,VLOOKUP($A57,'[8]PLANILHA SINTÉTICA'!$A$9:$AC$1082,15,0),"") -> 8878.79458 | H57: 0 | I57: 1975.53 | J57: 0
A58: 26.10 | B58: =IF(COUNTA(#REF!)>0,VLOOKUP($A58,'PLANILHA SINTÉTICA'!$A$10:$T$1083,2,0),"") -> Barras em tubo de ferro com 5cm de diâmetro para BICICLETÁRIO do tipo "U invertido", inclusive argola com furo de 1" em ferro fundido, barra de segurança e base de fixação, pintadas com pintura automotiva cor prata, conforme detalhe 42/45. | C58: =IF(COUNTA(A58)>0,VLOOKUP($A58,'[8]PLANILHA SINTÉTICA'!$A$9:$U$1082,3,0),"") -> 430855-7 | D58: =IF(COUNTA(A58)>0,VLOOKUP($A58,'PLANILHA SINTÉTICA'!$A$10:$T$1083,4,0),"") -> 12 | E58: =IF(COUNTA(A58)>0,VLOOKUP($A58,'PLANILHA SINTÉTICA'!$A$10:$T$1083,5,0),"") -> 12 | F58: =IF(ISERROR(VLOOKUP($A58,#REF!,8,0)),0,(VLOOKUP($A58,#REF!,8,0))) -> 0 | G58: =IF(COUNTA(A58)>0,VLOOKUP($A58,'[8]PLANILHA SINTÉTICA'!$A$9:$AC$1082,15,0),"") -> 410.654206 | H58: 0 | I58: 91.37 | J58: 0
A59: 27.15 | B59: =IF(COUNTA(#REF!)>0,VLOOKUP($A59,'PLANILHA SINTÉTICA'!$A$10:$T$1083,2,0),"") -> Construção de caixa coletora tipo "com grade" em alvenaria de 1 vez - tijolos maciços prensados - nas dimensões internas de 0,25x0,85x1,00m, inclusive escavação, reaterro compactado e remoção do material excedente (sem a grade) | C59: =IF(COUNTA(A59)>0,VLOOKUP($A59,'[8]PLANILHA SINTÉTICA'!$A$9:$U$1082,3,0),"") -> 436347-7 | D59: =IF(COUNTA(A59)>0,VLOOKUP($A59,'PLANILHA SINTÉTICA'!$A$10:$T$1083,4,0),"") -> 6 | E59: =IF(COUNTA(A59)>0,VLOOKUP($A59,'PLANILHA SINTÉTICA'!$A$10:$T$1083,5,0),"") -> 6 | F59: =IF(ISERROR(VLOOKUP($A59,#REF!,8,0)),0,(VLOOKUP($A59,#REF!,8,0))) -> 0 | G59: =IF(COUNTA(A59)>0,VLOOKUP($A59,'[8]PLANILHA SINTÉTICA'!$A$9:$AC$1082,15,0),"") -> 568.376458 | H59: 0 | I59: 126.46 | J59: 0
A60: 27.16 | B60: =IF(COUNTA(#REF!)>0,VLOOKUP($A60,'PLANILHA SINTÉTICA'!$A$10:$T$1083,2,0),"") -> Construção de caixa coletora tipo "com gaveta", em alvenaria de 1 vez (tijolos maciços, prensados), nas dimensões internas de 0,80x0,80x0,90m, inclusive escavação, reaterro compactado e remoção do material excedente (com sobretampa de concreto). | C60: =IF(COUNTA(A60)>0,VLOOKUP($A60,'[8]PLANILHA SINTÉTICA'!$A$9:$U$1082,3,0),"") -> 436349-3 | D60: =IF(COUNTA(A60)>0,VLOOKUP($A60,'PLANILHA SINTÉTICA'!$A$10:$T$1083,4,0),"") -> 2 | E60: =IF(COUNTA(A60)>0,VLOOKUP($A60,'PLANILHA SINTÉTICA'!$A$10:$T$1083,5,0),"") -> 2 | F60: =IF(ISERROR(VLOOKUP($A60,#REF!,8,0)),0,(VLOOKUP($A60,#REF!,8,0))) -> 0 | G60: =IF(COUNTA(A60)>0,VLOOKUP($A60,'[8]PLANILHA SINTÉTICA'!$A$9:$AC$1082,15,0),"") -> 1214.73295 | H60: 0 | I60: 270.28 | J60: 0
A61: 27.17 | B61: =IF(COUNTA(#REF!)>0,VLOOKUP($A61,'PLANILHA SINTÉTICA'!$A$10:$T$1083,2,0),"") -> Construção de poço de visita em alvenaria de 1 vez (tijolos maciços prensados), nas dimensões internas 1,00x1,00x1,50m, inclusive escavação, reaterro compactado e remoção do material excedente (sem o tampão). | C61: =IF(COUNTA(A61)>0,VLOOKUP($A61,'[8]PLANILHA SINTÉTICA'!$A$9:$U$1082,3,0),"") -> 436350-7 | D61: =IF(COUNTA(A61)>0,VLOOKUP($A61,'PLANILHA SINTÉTICA'!$A$10:$T$1083,4,0),"") -> 2 | E61: =IF(COUNTA(A61)>0,VLOOKUP($A61,'PLANILHA SINTÉTICA'!$A$10:$T$1083,5,0),"") -> 2 | F61: =IF(ISERROR(VLOOKUP($A61,#REF!,8,0)),0,(VLOOKUP($A61,#REF!,8,0))) -> 0 | G61: =IF(COUNTA(A61)>0,VLOOKUP($A61,'[8]PLANILHA SINTÉTICA'!$A$9:$AC$1082,15,0),"") -> 2121.296956 | H61: 0 | I61: 471.99 | J61: 0
A62: 27.18 | B62: =IF(COUNTA(#REF!)>0,VLOOKUP($A62,'PLANILHA SINTÉTICA'!$A$10:$T$1083,2,0),"") -> Construção de poço de visita tipo "com gaveta" em alvenaria de 1 vez de tijolos maciços, prensados, nas dimensões internas 1,00x1,00x1,50m, inclusive escavação, reaterro compactado e remoção do material excedente (com sobretampa de concreto). | C62: =IF(COUNTA(A62)>0,VLOOKUP($A62,'[8]PLANILHA SINTÉTICA'!$A$9:$U$1082,3,0),"") -> 436355-8 | D62: =IF(COUNTA(A62)>0,VLOOKUP($A62,'PLANILHA SINTÉTICA'!$A$10:$T$1083,4,0),"") -> 10 | E62: =IF(COUNTA(A62)>0,VLOOKUP($A62,'PLANILHA SINTÉTICA'!$A$10:$T$1083,5,0),"") -> 10 | F62: =IF(ISERROR(VLOOKUP($A62,#REF!,8,0)),0,(VLOOKUP($A62,#REF!,8,0))) -> 0 | G62: =IF(COUNTA(A62)>0,VLOOKUP($A62,'[8]PLANILHA SINTÉTICA'!$A$9:$AC$1082,15,0),"") -> 2217.401232 | H62: 0 | I62: 493.37 | J62: 0
A63: 28.1 | B63: =IF(COUNTA(#REF!)>0,VLOOKUP($A63,'PLANILHA SINTÉTICA'!$A$10:$T$1083,2,0),"") -> Fornecimento e plantio de Palmeira Fenix, com cerca de 1,00m de altura, incluindo preparação de cova com 40 x 40 x 40 cm, com barro jardim e estrume bovino. | C63: =IF(COUNTA(A63)>0,VLOOKUP($A63,'[8]PLANILHA SINTÉTICA'!$A$9:$U$1082,3,0),"") -> 402167-3 | D63: =IF(COUNTA(A63)>0,VLOOKUP($A63,'PLANILHA SINTÉTICA'!$A$10:$T$1083,4,0),"") -> 1 | E63: =IF(COUNTA(A63)>0,VLOOKUP($A63,'PLANILHA SINTÉTICA'!$A$10:$T$1083,5,0),"") -> 1 | F63: =IF(ISERROR(VLOOKUP($A63,#REF!,8,0)),0,(VLOOKUP($A63,#REF!,8,0))) -> 0 | G63: =IF(COUNTA(A63)>0,VLOOKUP($A63,'[8]PLANILHA SINTÉTICA'!$A$9:$AC$1082,15,0),"") -> 170.18855 | H63: 0 | I63: 37.87 | J63: 0
A64: 28.2 | B64: =IF(COUNTA(#REF!)>0,VLOOKUP($A64,'PLANILHA SINTÉTICA'!$A$10:$T$1083,2,0),"") -> Fornecimento e plantio de Palmeira Cica, com cerca de 1,00m de altura, incluindo preparação de cova com 40 x 40 x 40 cm, com barro jardim e estrume bovino. | C64: =IF(COUNTA(A64)>0,VLOOKUP($A64,'[8]PLANILHA SINTÉTICA'!$A$9:$U$1082,3,0),"") -> 481951-9 | D64: =IF(COUNTA(A64)>0,VLOOKUP($A64,'PLANILHA SINTÉTICA'!$A$10:$T$1083,4,0),"") -> 3 | E64: =IF(COUNTA(A64)>0,VLOOKUP($A64,'PLANILHA SINTÉTICA'!$A$10:$T$1083,5,0),"") -> 3 | F64: =IF(ISERROR(VLOOKUP($A64,#REF!,8,0)),0,(VLOOKUP($A64,#REF!,8,0))) -> 0 | G64: =IF(COUNTA(A64)>0,VLOOKUP($A64,'[8]PLANILHA SINTÉTICA'!$A$9:$AC$1082,15,0),"") -> 155.060262 | H64: 0 | I64: 34.5 | J64: 0
A65: 28.3 | B65: =IF(COUNTA(#REF!)>0,VLOOKUP($A65,'PLANILHA SINTÉTICA'!$A$10:$T$1083,2,0),"") -> Fornecimento e plantio de Pata de Vaca (Bauhinia blakeana), com cerca de 1,50m de altura, incluindo preparação de cova com 40 x 40 x 40 cm, com barro jardim e estrume bovino. | C65: =IF(COUNTA(A65)>0,VLOOKUP($A65,'[8]PLANILHA SINTÉTICA'!$A$9:$U$1082,3,0),"") -> 461505-0 | D65: =IF(COUNTA(A65)>0,VLOOKUP($A65,'PLANILHA SINTÉTICA'!$A$10:$T$1083,4,0),"") -> 26 | E65: =IF(COUNTA(A65)>0,VLOOKUP($A65,'PLANILHA SINTÉTICA'!$A$10:$T$1083,5,0),"") -> 16 | F65: =IF(ISERROR(VLOOKUP($A65,#REF!,8,0)),0,(VLOOKUP($A65,#REF!,8,0))) -> 0 | G65: =IF(COUNTA(A65)>0,VLOOKUP($A65,'[8]PLANILHA SINTÉTICA'!$A$9:$AC$1082,15,0),"") -> 115.208336 | H65: =ROUND(G65*F65,2) -> 0 | I65: 25.63 | J65: 0
A66: 28.4 | B66: =IF(COUNTA(#REF!)>0,VLOOKUP($A66,'PLANILHA SINTÉTICA'!$A$10:$T$1083,2,0),"") -> Fornecimento e plantio de Ipê Amarelo (Tabebuia chrysotricha), com cerca de 1,50m de altura, incluindo preparação de cova com 40 x 40 x 40 cm, com barro jardim e estrume bovino. | C66: =IF(COUNTA(A66)>0,VLOOKUP($A66,'[8]PLANILHA SINTÉTICA'!$A$9:$U$1082,3,0),"") -> 472672-3 | D66: =IF(COUNTA(A66)>0,VLOOKUP($A66,'PLANILHA SINTÉTICA'!$A$10:$T$1083,4,0),"") -> 1 | E66: =IF(COUNTA(A66)>0,VLOOKUP($A66,'PLANILHA SINTÉTICA'!$A$10:$T$1083,5,0),"") -> 1 | F66: =IF(ISERROR(VLOOKUP($A66,#REF!,8,0)),0,(VLOOKUP($A66,#REF!,8,0))) -> 0 | G66: =IF(COUNTA(A66)>0,VLOOKUP($A66,'[8]PLANILHA SINTÉTICA'!$A$9:$AC$1082,15,0),"") -> 209.044652 | H66: 0 | I66: 46.51 | J66: 0
A67: 28.5 | B67: =IF(COUNTA(#REF!)>0,VLOOKUP($A67,'PLANILHA SINTÉTICA'!$A$10:$T$1083,2,0),"") -> Fornecimento e plantio de mudas de Dracena de Madagascar, com cerca de 1,00m de altura. | C67: =IF(COUNTA(A67)>0,VLOOKUP($A67,'[8]PLANILHA SINTÉTICA'!$A$9:$U$1082,3,0),"") -> 435721-3 | D67: =IF(COUNTA(A67)>0,VLOOKUP($A67,'PLANILHA SINTÉTICA'!$A$10:$T$1083,4,0),"") -> 22 | E67: =IF(COUNTA(A67)>0,VLOOKUP($A67,'PLANILHA SINTÉTICA'!$A$10:$T$1083,5,0),"") -> 17 | F67: =IF(ISERROR(VLOOKUP($A67,#REF!,8,0)),0,(VLOOKUP($A67,#REF!,8,0))) -> 0 | G67: =IF(COUNTA(A67)>0,VLOOKUP($A67,'[8]PLANILHA SINTÉTICA'!$A$9:$AC$1082,15,0),"") -> 49.359738 | H67: 0 | I67: 10.98 | J67: 0
A68: 28.9 | B68: =IF(COUNTA(#REF!)>0,VLOOKUP($A68,'PLANILHA SINTÉTICA'!$A$10:$T$1083,2,0),"") -> Fornecimento e plantio de grama esmeralda em rolos. (Jardim e cobograma) | C68: =IF(COUNTA(A68)>0,VLOOKUP($A68,'[8]PLANILHA SINTÉTICA'!$A$9:$U$1082,3,0),"") -> 438958-1 | D68: =IF(COUNTA(A68)>0,VLOOKUP($A68,'PLANILHA SINTÉTICA'!$A$10:$T$1083,4,0),"") -> 1040 | E68: =IF(COUNTA(A68)>0,VLOOKUP($A68,'PLANILHA SINTÉTICA'!$A$10:$T$1083,5,0),"") -> 1040 | F68: =IF(ISERROR(VLOOKUP($A68,#REF!,8,0)),0,(VLOOKUP($A68,#REF!,8,0))) -> 0 | G68: =IF(COUNTA(A68)>0,VLOOKUP($A68,'[8]PLANILHA SINTÉTICA'!$A$9:$AC$1082,15,0),"") -> 12.88466 | H68: 0 | I68: 2.87 | J68: 0
A69: 29.02.01 | B69: =IF(COUNTA(#REF!)>0,VLOOKUP($A69,'PLANILHA SINTÉTICA'!$A$10:$T$1083,2,0),"") -> Luminária de embutir p/ 02 (duas) lâmpadas LED de 18W, sem alojamento; corpo em chapa de aço galvanizado c/ pintura eletrostática em pó de poliéster epóxi; refletor facetado em alumínio anodizado de alta pureza e refletância; aletas parabólicas em alumínio; soquetes em policarbonato; inclusive lâmpadas LED tubular Philips, Osram, ou equivalente, 2x18W, 220V, demais acessórios e instalação. Ref. Lumicenter, Luminárias Projeto, Itaim, Stillux, Indelpa ou equivalente. | C69: =IF(COUNTA(A69)>0,VLOOKUP($A69,'[8]PLANILHA SINTÉTICA'!$A$9:$U$1082,3,0),"") -> 430980-4 | D69: =IF(COUNTA(A69)>0,VLOOKUP($A69,'PLANILHA SINTÉTICA'!$A$10:$T$1083,4,0),"") -> 429 | E69: =IF(COUNTA(A69)>0,VLOOKUP($A69,'PLANILHA SINTÉTICA'!$A$10:$T$1083,5,0),"") -> 429 | F69: =IF(ISERROR(VLOOKUP($A69,#REF!,8,0)),0,(VLOOKUP($A69,#REF!,8,0))) -> 0 | G69: =IF(COUNTA(A69)>0,VLOOKUP($A69,'[8]PLANILHA SINTÉTICA'!$A$9:$AC$1082,15,0),"") -> 210.09111 | H69: 0 | I69: 46.75 | J69: 0
A70: 29.02.02 | B70: =IF(COUNTA(#REF!)>0,VLOOKUP($A70,'PLANILHA SINTÉTICA'!$A$10:$T$1083,2,0),"") -> Luminária circular de embutir p/ 02 lâmpadas LED bulbo de 10W, c/ aro de acabamento em chapa de aço pintada, refletor em alumínio repuxado e anodizado de alta pureza e refletância; soquetes em policarbonato s/ vidro difusor temperado jateado central (diâmetro externo aprox. do vidro 21,0 cm), inclusive lâmpadas, , p/ lâmpada fluorescente, 2x10W, 220V, demais acessórios e instalação . Ref. Lumicenter, Luminárias Projeto, Itaim, Stillux, Indelpa ou equivalente. | C70: =IF(COUNTA(A70)>0,VLOOKUP($A70,'[8]PLANILHA SINTÉTICA'!$A$9:$U$1082,3,0),"") -> 430981-2 | D70: =IF(COUNTA(A70)>0,VLOOKUP($A70,'PLANILHA SINTÉTICA'!$A$10:$T$1083,4,0),"") -> 284 | E70: =IF(COUNTA(A70)>0,VLOOKUP($A70,'PLANILHA SINTÉTICA'!$A$10:$T$1083,5,0),"") -> 280 | F70: =IF(ISERROR(VLOOKUP($A70,#REF!,8,0)),0,(VLOOKUP($A70,#REF!,8,0))) -> 0 | G70: =IF(COUNTA(A70)>0,VLOOKUP($A70,'[8]PLANILHA SINTÉTICA'!$A$9:$AC$1082,15,0),"") -> 128.641746 | H70: 0 | I70: =ROUND($G70*$J$5,2) -> 28.62 | J70: =ROUND($H70*$J$5,2) -> 0
A71: 29.02.07 | B71: =IF(COUNTA(#REF!)>0,VLOOKUP($A71,'PLANILHA SINTÉTICA'!$A$10:$T$1083,2,0),"") -> Fornecimento de luminária externa, com corpo óptico e alojamento em liga de alumínio injetado de baixa pressão, padrão litoral (parafusos inox); refletor assimétrico polido, anodizado e selado, confeccionado em peça única, porta lâmpada em porcelana, rosca E27 para lâmpada 250W tubular, base para relé fotoelétrico e alojamento para equipamento auxiliar; fechamento do corpo óptico com lente plana de vidro temperado preso ao corpo da luminária através de aro de alumínio fundido e presília de aço inoxidável (IP 65), ref. Lexa A-190 - Almec ou equivalente; inclusive lâmpada MVM 250W tubular (Osram ou equivalente), reator interno de alto fator de potência (250W) e REATOR, relé foto elétrico (fotocélula), encaixe em braço e demais acessórios, inclusive instalação em postes de até 17m. | C71: =IF(COUNTA(A71)>0,VLOOKUP($A71,'[8]PLANILHA SINTÉTICA'!$A$9:$U$1082,3,0),"") -> 445063-9 | D71: =IF(COUNTA(A71)>0,VLOOKUP($A71,'PLANILHA SINTÉTICA'!$A$10:$T$1083,4,0),"") -> 14 | E71: =IF(COUNTA(A71)>0,VLOOKUP($A71,'PLANILHA SINTÉTICA'!$A$10:$T$1083,5,0),"") -> 14 | F71: =IF(ISERROR(VLOOKUP($A71,#REF!,8,0)),0,(VLOOKUP($A71,#REF!,8,0))) -> 0 | G71: =IF(COUNTA(A71)>0,VLOOKUP($A71,'[8]PLANILHA SINTÉTICA'!$A$9:$AC$1082,15,0),"") -> 572.44245 | H71: 0 | I71: 127.37 | J71: 0
A72: 29.02.09 | B72: =IF(COUNTA(#REF!)>0,VLOOKUP($A72,'PLANILHA SINTÉTICA'!$A$10:$T$1083,2,0),"") -> Fornecimento de POSTE CURVO SIMPLES, telecônico, confeccionado em tubo de aço patente galvanizado a fogo medindo 8metros, flangeado com base e chumbador, produzido em três estágios, sendo: 3", 2 1/2" e 2". Ref. MP-600, fab: EDESA, ou equivalente. | C72: =IF(COUNTA(A72)>0,VLOOKUP($A72,'[8]PLANILHA SINTÉTICA'!$A$9:$U$1082,3,0),"") -> 373073-5 | D72: =IF(COUNTA(A72)>0,VLOOKUP($A72,'PLANILHA SINTÉTICA'!$A$10:$T$1083,4,0),"") -> 21 | E72: =IF(COUNTA(A72)>0,VLOOKUP($A72,'PLANILHA SINTÉTICA'!$A$10:$T$1083,5,0),"") -> 21 | F72: =IF(ISERROR(VLOOKUP($A72,#REF!,8,0)),0,(VLOOKUP($A72,#REF!,8,0))) -> 0 | G72: =IF(COUNTA(A72)>0,VLOOKUP($A72,'[8]PLANILHA SINTÉTICA'!$A$9:$AC$1082,15,0),"") -> 1093.808274 | H72: 0 | I72: 243.37 | J72: 0
A73: 29.04.01 | B73: =IF(COUNTA(#REF!)>0,VLOOKUP($A73,'PLANILHA SINTÉTICA'!$A$10:$T$1083,2,0),"") -> Quadro de distribuição metálico de sobrepor, em chapa 16 BWG, para 6 circuitos monopolares padrão DIN, com barra de neutro e terra, com porta e trinco, Cemar ou equivalente, inclusive instalação conforme projeto. | C73: =IF(COUNTA(A73)>0,VLOOKUP($A73,'[8]PLANILHA SINTÉTICA'!$A$9:$U$1082,3,0),"") -> 431292-9 | D73: =IF(COUNTA(A73)>0,VLOOKUP($A73,'PLANILHA SINTÉTICA'!$A$10:$T$1083,4,0),"") -> 3 | E73: =IF(COUNTA(A73)>0,VLOOKUP($A73,'PLANILHA SINTÉTICA'!$A$10:$T$1083,5,0),"") -> 3 | F73: =IF(ISERROR(VLOOKUP($A73,#REF!,8,0)),0,(VLOOKUP($A73,#REF!,8,0))) -> 0 | G73: =IF(COUNTA(A73)>0,VLOOKUP($A73,'[8]PLANILHA SINTÉTICA'!$A$9:$AC$1082,15,0),"") -> 52.812068 | H73: 0 | I73: 11.75 | J73: 0
A74: 29.04.02 | B74: =IF(COUNTA(#REF!)>0,VLOOKUP($A74,'PLANILHA SINTÉTICA'!$A$10:$T$1083,2,0),"") -> Quadro de distribuição metálico de sobrepor, em chapa 16 BWG, para 8 circuitos monopolares padrão DIN, com barra de neutro e terra, com porta e trinco, Cemar ou equivalente, inclusive instalação conforme projeto. | C74: =IF(COUNTA(A74)>0,VLOOKUP($A74,'[8]PLANILHA SINTÉTICA'!$A$9:$U$1082,3,0),"") -> 471384-2 | D74: =IF(COUNTA(A74)>0,VLOOKUP($A74,'PLANILHA SINTÉTICA'!$A$10:$T$1083,4,0),"") -> 1 | E74: =IF(COUNTA(A74)>0,VLOOKUP($A74,'PLANILHA SINTÉTICA'!$A$10:$T$1083,5,0),"") -> 1 | F74: =IF(ISERROR(VLOOKUP($A74,#REF!,8,0)),0,(VLOOKUP($A74,#REF!,8,0))) -> 0 | G74: =IF(COUNTA(A74)>0,VLOOKUP($A74,'[8]PLANILHA SINTÉTICA'!$A$9:$AC$1082,15,0),"") -> 264.277024 | H74: 0 | I74: 58.8 | J74: 0
A75: 29.04.03 | B75: =IF(COUNTA(#REF!)>0,VLOOKUP($A75,'PLANILHA SINTÉTICA'!$A$10:$T$1083,2,0),"") -> Quadro de distribuição metálico de sobrepor, em chapa 16 BWG, para 12 circuitos monopolares padrão DIN, com barra de neutro e terra, com porta e trinco, Cemar ou equivalente, inclusive instalação conforme projeto. | C75: =IF(COUNTA(A75)>0,VLOOKUP($A75,'[8]PLANILHA SINTÉTICA'!$A$9:$U$1082,3,0),"") -> 445272-0 | D75: =IF(COUNTA(A75)>0,VLOOKUP($A75,'PLANILHA SINTÉTICA'!$A$10:$T$1083,4,0),"") -> 3 | E75: =IF(COUNTA(A75)>0,VLOOKUP($A75,'PLANILHA SINTÉTICA'!$A$10:$T$1083,5,0),"") -> 3 | F75: =IF(ISERROR(VLOOKUP($A75,#REF!,8,0)),0,(VLOOKUP($A75,#REF!,8,0))) -> 0 | G75: =IF(COUNTA(A75)>0,VLOOKUP($A75,'[8]PLANILHA SINTÉTICA'!$A$9:$AC$1082,15,0),"") -> 279.443376 | H75: 0 | I75: 62.18 | J75: 0
A76: 29.04.05 | B76: =IF(COUNTA(#REF!)>0,VLOOKUP($A76,'PLANILHA SINTÉTICA'!$A$10:$T$1083,2,0),"") -> Quadro de distribuição de sobrepor com barramento com barramento trifásico 56 disjuntores unipolares em chapa de aço galvanizado em chave geral trifásica. | C76: =IF(COUNTA(A76)>0,VLOOKUP($A76,'[8]PLANILHA SINTÉTICA'!$A$9:$U$1082,3,0),"") -> 431289-9 | D76: =IF(COUNTA(A76)>0,VLOOKUP($A76,'PLANILHA SINTÉTICA'!$A$10:$T$1083,4,0),"") -> 4 | E76: =IF(COUNTA(A76)>0,VLOOKUP($A76,'PLANILHA SINTÉTICA'!$A$10:$T$1083,5,0),"") -> 4 | F76: =IF(ISERROR(VLOOKUP($A76,#REF!,8,0)),0,(VLOOKUP($A76,#REF!,8,0))) -> 0 | G76: =IF(COUNTA(A76)>0,VLOOKUP($A76,'[8]PLANILHA SINTÉTICA'!$A$9:$AC$1082,15,0),"") -> 1223.441806 | H76: 0 | I76: 272.22 | J76: 0
A77: 29.04.07 | B77: =IF(COUNTA(#REF!)>0,VLOOKUP($A77,'PLANILHA SINTÉTICA'!$A$10:$T$1083,2,0),"") -> Quadro de distribuição metálico de EMBUTIR, em chapa 16 BWG, para 12 circuitos monopolares padrão DIN, com barra de neutro e terra, com porta e trinco, Cemar ou equivalente, inclusive instalação conforme projeto. | C77: =IF(COUNTA(A77)>0,VLOOKUP($A77,'[8]PLANILHA SINTÉTICA'!$A$9:$U$1082,3,0),"") -> 431288-0 | D77: =IF(COUNTA(A77)>0,VLOOKUP($A77,'PLANILHA SINTÉTICA'!$A$10:$T$1083,4,0),"") -> 2 | E77: =IF(COUNTA(A77)>0,VLOOKUP($A77,'PLANILHA SINTÉTICA'!$A$10:$T$1083,5,0),"") -> 2 | F77: =IF(ISERROR(VLOOKUP($A77,#REF!,8,0)),0,(VLOOKUP($A77,#REF!,8,0))) -> 0 | G77: =IF(COUNTA(A77)>0,VLOOKUP($A77,'[8]PLANILHA SINTÉTICA'!$A$9:$AC$1082,15,0),"") -> 235.852752 | H77: 0 | I77: 52.48 | J77: 0
A78: 29.04.09 | B78: =IF(COUNTA(#REF!)>0,VLOOKUP($A78,'PLANILHA SINTÉTICA'!$A$10:$T$1083,2,0),"") -> Disjuntor monopolar termomagnético de 6 até 32A Eletromar padrão IEC ou equivalente, inclusive instalação em quadro de distribuição, conforme projeto. | C78: =IF(COUNTA(A78)>0,VLOOKUP($A78,'[8]PLANILHA SINTÉTICA'!$A$9:$U$1082,3,0),"") -> 469808-8 | D78: =IF(COUNTA(A78)>0,VLOOKUP($A78,'PLANILHA SINTÉTICA'!$A$10:$T$1083,4,0),"") -> 99 | E78: =IF(COUNTA(A78)>0,VLOOKUP($A78,'PLANILHA SINTÉTICA'!$A$10:$T$1083,5,0),"") -> 99 | F78: =IF(ISERROR(VLOOKUP($A78,#REF!,8,0)),0,(VLOOKUP($A78,#REF!,8,0))) -> 0 | G78: =IF(COUNTA(A78)>0,VLOOKUP($A78,'[8]PLANILHA SINTÉTICA'!$A$9:$AC$1082,15,0),"") -> 10.8603 | H78: 0 | I78: 2.42 | J78: 0
A79: 29.04.10 | B79: =IF(COUNTA(#REF!)>0,VLOOKUP($A79,'PLANILHA SINTÉTICA'!$A$10:$T$1083,2,0),"") -> Disjuntor tripolar termomagnético de 32A Eletromar padrão IEC ou equivalente, inclusive instalação em quadro de distribuição, conforme projeto. | C79: =IF(COUNTA(A79)>0,VLOOKUP($A79,'[8]PLANILHA SINTÉTICA'!$A$9:$U$1082,3,0),"") -> 468590-3 | D79: =IF(COUNTA(A79)>0,VLOOKUP($A79,'PLANILHA SINTÉTICA'!$A$10:$T$1083,4,0),"") -> 22 | E79: =IF(COUNTA(A79)>0,VLOOKUP($A79,'PLANILHA SINTÉTICA'!$A$10:$T$1083,5,0),"") -> 22 | F79: =IF(ISERROR(VLOOKUP($A79,#REF!,8,0)),0,(VLOOKUP($A79,#REF!,8,0))) -> 0 | G79: =IF(COUNTA(A79)>0,VLOOKUP($A79,'[8]PLANILHA SINTÉTICA'!$A$9:$AC$1082,15,0),"") -> 73.806654 | H79: 0 | I79: 16.42 | J79: 0
A80: 29.04.13 | B80: =IF(COUNTA(#REF!)>0,VLOOKUP($A80,'PLANILHA SINTÉTICA'!$A$10:$T$1083,2,0),"") -> Fornecimento e instalação de disjuntor tripolar termomagnético de 63A Eletromar padrão IEC ou equivalente. | C80: =IF(COUNTA(A80)>0,VLOOKUP($A80,'[8]PLANILHA SINTÉTICA'!$A$9:$U$1082,3,0),"") -> 203845-5 | D80: =IF(COUNTA(A80)>0,VLOOKUP($A80,'PLANILHA SINTÉTICA'!$A$10:$T$1083,4,0),"") -> 6 | E80: =IF(COUNTA(A80)>0,VLOOKUP($A80,'PLANILHA SINTÉTICA'!$A$10:$T$1083,5,0),"") -> 6 | F80: =IF(ISERROR(VLOOKUP($A80,#REF!,8,0)),0,(VLOOKUP($A80,#REF!,8,0))) -> 0 | G80: =IF(COUNTA(A80)>0,VLOOKUP($A80,'[8]PLANILHA SINTÉTICA'!$A$9:$AC$1082,15,0),"") -> 86.213942 | H80: 0 | I80: 19.18 | J80: 0
A81: 29.04.14 | B81: =IF(COUNTA(#REF!)>0,VLOOKUP($A81,'PLANILHA SINTÉTICA'!$A$10:$T$1083,2,0),"") -> Disjuntor tripolar termomagnético de 80A Eletromar padrão IEC ou equivalente, inclusive instalação em quadro de distribuição, conforme o projeto. | C81: =IF(COUNTA(A81)>0,VLOOKUP($A81,'[8]PLANILHA SINTÉTICA'!$A$9:$U$1082,3,0),"") -> 468592-0 | D81: =IF(COUNTA(A81)>0,VLOOKUP($A81,'PLANILHA SINTÉTICA'!$A$10:$T$1083,4,0),"") -> 1 | E81: =IF(COUNTA(A81)>0,VLOOKUP($A81,'PLANILHA SINTÉTICA'!$A$10:$T$1083,5,0),"") -> 1 | F81: =IF(ISERROR(VLOOKUP($A81,#REF!,8,0)),0,(VLOOKUP($A81,#REF!,8,0))) -> 0 | G81: =IF(COUNTA(A81)>0,VLOOKUP($A81,'[8]PLANILHA SINTÉTICA'!$A$9:$AC$1082,15,0),"") -> 121.289298 | H81: 0 | I81: 26.99 | J81: 0
A82: 29.04.21 | B82: =IF(COUNTA(#REF!)>0,VLOOKUP($A82,'PLANILHA SINTÉTICA'!$A$10:$T$1083,2,0),"") -> Interruptor Diferencial Residual bipolar de 25A, com sensibilidade de 30mA, Eletromar padrão IEC ou equivalente, inclusive instalação em quadro de distribuição, conforme projeto | C82: =IF(COUNTA(A82)>0,VLOOKUP($A82,'[8]PLANILHA SINTÉTICA'!$A$9:$U$1082,3,0),"") -> 465547-8 | D82: =IF(COUNTA(A82)>0,VLOOKUP($A82,'PLANILHA SINTÉTICA'!$A$10:$T$1083,4,0),"") -> 13 | E82: =IF(COUNTA(A82)>0,VLOOKUP($A82,'PLANILHA SINTÉTICA'!$A$10:$T$1083,5,0),"") -> 13 | F82: =IF(ISERROR(VLOOKUP($A82,#REF!,8,0)),0,(VLOOKUP($A82,#REF!,8,0))) -> 0 | G82: =IF(COUNTA(A82)>0,VLOOKUP($A82,'[8]PLANILHA SINTÉTICA'!$A$9:$AC$1082,15,0),"") -> 101.404614 | H82: 0 | I82: 22.56 | J82: 0
A83: 29.05.01 | B83: =IF(COUNTA(#REF!)>0,VLOOKUP($A83,'PLANILHA SINTÉTICA'!$A$10:$T$1083,2,0),"") -> Cabo de cobre AFUMEX, ATOX, AFITOX ou equivalente (Não-Halogenado), isolação 750V., de 2,5mm², inclusive instalação em eletroduto/eletrocalha/leito. | C83: =IF(COUNTA(A83)>0,VLOOKUP($A83,'[8]PLANILHA SINTÉTICA'!$A$9:$U$1082,3,0),"") -> 465594-0 | D83: =IF(COUNTA(A83)>0,VLOOKUP($A83,'PLANILHA SINTÉTICA'!$A$10:$T$1083,4,0),"") -> 223.8 | E83: =IF(COUNTA(A83)>0,VLOOKUP($A83,'PLANILHA SINTÉTICA'!$A$10:$T$1083,5,0),"") -> 223.8 | F83: =IF(ISERROR(VLOOKUP($A83,#REF!,8,0)),0,(VLOOKUP($A83,#REF!,8,0))) -> 0 | G83: =IF(COUNTA(A83)>0,VLOOKUP($A83,'[8]PLANILHA SINTÉTICA'!$A$9:$AC$1082,15,0),"") -> 2.258284 | H83: 0 | I83: 0.5 | J83: 0
A84: 29.05.04 | B84: =IF(COUNTA(#REF!)>0,VLOOKUP($A84,'PLANILHA SINTÉTICA'!$A$10:$T$1083,2,0),"") -> Cabo de cobre AFUMEX, ATOX, AFITOX ou equivalente (Não-Halogenado), isolação 0,6/1kV., de 2,5mm²., inclusive instalação em eletroduto/eletrocalha/leito. | C84: =IF(COUNTA(A84)>0,VLOOKUP($A84,'[8]PLANILHA SINTÉTICA'!$A$9:$U$1082,3,0),"") -> 440914-0 | D84: =IF(COUNTA(A84)>0,VLOOKUP($A84,'PLANILHA SINTÉTICA'!$A$10:$T$1083,4,0),"") -> 2107.2 | E84: =IF(COUNTA(A84)>0,VLOOKUP($A84,'PLANILHA SINTÉTICA'!$A$10:$T$1083,5,0),"") -> 2107.2 | F84: =IF(ISERROR(VLOOKUP($A84,#REF!,8,0)),0,(VLOOKUP($A84,#REF!,8,0))) -> 0 | G84: =IF(COUNTA(A84)>0,VLOOKUP($A84,'[8]PLANILHA SINTÉTICA'!$A$9:$AC$1082,15,0),"") -> 3.0131 | H84: 0 | I84: 0.67 | J84: 0
A85: 29.05.05 | B85: =IF(COUNTA(#REF!)>0,VLOOKUP($A85,'PLANILHA SINTÉTICA'!$A$10:$T$1083,2,0),"") -> Cabo de cobre AFUMEX, ATOX, AFITOX ou equivalente (Não-Halogenado), isolação 0,6/1kV., de 4,0mm², inclusive instalação em eletroduto/ eletrocalha / leito. | C85: =IF(COUNTA(A85)>0,VLOOKUP($A85,'[8]PLANILHA SINTÉTICA'!$A$9:$U$1082,3,0),"") -> 380039-3 | D85: =IF(COUNTA(A85)>0,VLOOKUP($A85,'PLANILHA SINTÉTICA'!$A$10:$T$1083,4,0),"") -> 1209.4 | E85: =IF(COUNTA(A85)>0,VLOOKUP($A85,'PLANILHA SINTÉTICA'!$A$10:$T$1083,5,0),"") -> 1209.4 | F85: =IF(ISERROR(VLOOKUP($A85,#REF!,8,0)),0,(VLOOKUP($A85,#REF!,8,0))) -> 0 | G85: =IF(COUNTA(A85)>0,VLOOKUP($A85,'[8]PLANILHA SINTÉTICA'!$A$9:$AC$1082,15,0),"") -> 3.99442 | H85: 0 | I85: 0.89 | J85: 0
A86: 29.05.06 | B86: =IF(COUNTA(#REF!)>0,VLOOKUP($A86,'PLANILHA SINTÉTICA'!$A$10:$T$1083,2,0),"") -> Cabo de cobre AFUMEX, ATOX, AFITOX ou equivalente (Não-Halogenado), isolação 0,6/1kV., de 6,0mm²., inclusive instalação em eletroduto/eletrocalha/leito. | C86: =IF(COUNTA(A86)>0,VLOOKUP($A86,'[8]PLANILHA SINTÉTICA'!$A$9:$U$1082,3,0),"") -> 468390-0 | D86: =IF(COUNTA(A86)>0,VLOOKUP($A86,'PLANILHA SINTÉTICA'!$A$10:$T$1083,4,0),"") -> 361 | E86: =IF(COUNTA(A86)>0,VLOOKUP($A86,'PLANILHA SINTÉTICA'!$A$10:$T$1083,5,0),"") -> 361 | F86: =IF(ISERROR(VLOOKUP($A86,#REF!,8,0)),0,(VLOOKUP($A86,#REF!,8,0))) -> 0 | G86: =IF(COUNTA(A86)>0,VLOOKUP($A86,'[8]PLANILHA SINTÉTICA'!$A$9:$AC$1082,15,0),"") -> 5.150712 | H86: 0 | I86: 1.15 | J86: 0
A87: 29.05.07 | B87: =IF(COUNTA(#REF!)>0,VLOOKUP($A87,'PLANILHA SINTÉTICA'!$A$10:$T$1083,2,0),"") -> Cabo de cobre AFUMEX, ATOX, AFITOX ou equivalente (Não-Halogenado), isolação 0,6/1kV., de 10mm²., inclusive instalação em eletroduto/eletrocalha/leito. | C87: =IF(COUNTA(A87)>0,VLOOKUP($A87,'[8]PLANILHA SINTÉTICA'!$A$9:$U$1082,3,0),"") -> 429220-0 | D87: =IF(COUNTA(A87)>0,VLOOKUP($A87,'PLANILHA SINTÉTICA'!$A$10:$T$1083,4,0),"") -> 642.9 | E87: =IF(COUNTA(A87)>0,VLOOKUP($A87,'PLANILHA SINTÉTICA'!$A$10:$T$1083,5,0),"") -> 642.9 | F87: =IF(ISERROR(VLOOKUP($A87,#REF!,8,0)),0,(VLOOKUP($A87,#REF!,8,0))) -> 0 | G87: =IF(COUNTA(A87)>0,VLOOKUP($A87,'[8]PLANILHA SINTÉTICA'!$A$9:$AC$1082,15,0),"") -> 7.463462 | H87: 0 | I87: 1.66 | J87: 0
A88: 29.05.08 | B88: =IF(COUNTA(#REF!)>0,VLOOKUP($A88,'PLANILHA SINTÉTICA'!$A$10:$T$1083,2,0),"") -> Cabo de cobre AFUMEX, ATOX, AFITOX ou equivalente (Não-Halogenado), isolação 0,6/1kV., de 16mm²., inclusive instalação em eletroduto/eletrocalha/leito. | C88: =IF(COUNTA(A88)>0,VLOOKUP($A88,'[8]PLANILHA SINTÉTICA'!$A$9:$U$1082,3,0),"") -> 473421-1 | D88: =IF(COUNTA(A88)>0,VLOOKUP($A88,'PLANILHA SINTÉTICA'!$A$10:$T$1083,4,0),"") -> 695.8 | E88: =IF(COUNTA(A88)>0,VLOOKUP($A88,'PLANILHA SINTÉTICA'!$A$10:$T$1083,5,0),"") -> 695.8 | F88: =IF(ISERROR(VLOOKUP($A88,#REF!,8,0)),0,(VLOOKUP($A88,#REF!,8,0))) -> 0 | G88: =IF(COUNTA(A88)>0,VLOOKUP($A88,'[8]PLANILHA SINTÉTICA'!$A$9:$AC$1082,15,0),"") -> 10.755114 | H88: 0 | I88: 2.39 | J88: 0
A89: 29.05.09 | B89: =IF(COUNTA(#REF!)>0,VLOOKUP($A89,'PLANILHA SINTÉTICA'!$A$10:$T$1083,2,0),"") -> Cabo de cobre AFUMEX, ATOX, AFITOX ou equivalente (Não-Halogenado), isolação 0,6/1kV., de 25mm²., inclusive instalação em eletroduto/eletrocalha/leito. | C89: =IF(COUNTA(A89)>0,VLOOKUP($A89,'[8]PLANILHA SINTÉTICA'!$A$9:$U$1082,3,0),"") -> 473423-8 | D89: =IF(COUNTA(A89)>0,VLOOKUP($A89,'PLANILHA SINTÉTICA'!$A$10:$T$1083,4,0),"") -> 196 | E89: =IF(COUNTA(A89)>0,VLOOKUP($A89,'PLANILHA SINTÉTICA'!$A$10:$T$1083,5,0),"") -> 196 | F89: =IF(ISERROR(VLOOKUP($A89,#REF!,8,0)),0,(VLOOKUP($A89,#REF!,8,0))) -> 0 | G89: =IF(COUNTA(A89)>0,VLOOKUP($A89,'[8]PLANILHA SINTÉTICA'!$A$9:$AC$1082,15,0),"") -> 15.28449 | H89: 0 | I89: 3.4 | J89: 0
A90: 29.05.10 | B90: =IF(COUNTA(#REF!)>0,VLOOKUP($A90,'PLANILHA SINTÉTICA'!$A$10:$T$1083,2,0),"") -> Cabo de cobre AFUMEX, ATOX, AFITOX ou equivalente (Não-Halogenado), isolação 0,6/1kV., de 50mm²., inclusive instalação em eletroduto/eletrocalha/leito. | C90: =IF(COUNTA(A90)>0,VLOOKUP($A90,'[8]PLANILHA SINTÉTICA'!$A$9:$U$1082,3,0),"") -> 398164-9 | D90: =IF(COUNTA(A90)>0,VLOOKUP($A90,'PLANILHA SINTÉTICA'!$A$10:$T$1083,4,0),"") -> 255.3 | E90: =IF(COUNTA(A90)>0,VLOOKUP($A90,'PLANILHA SINTÉTICA'!$A$10:$T$1083,5,0),"") -> 201.5 | F90: =IF(ISERROR(VLOOKUP($A90,#REF!,8,0)),0,(VLOOKUP($A90,#REF!,8,0))) -> 0 | G90: =IF(COUNTA(A90)>0,VLOOKUP($A90,'[8]PLANILHA SINTÉTICA'!$A$9:$AC$1082,15,0),"") -> 31.796848 | H90: 0 | I90: 7.07 | J90: 0
A91: 29.05.11 | B91: =IF(COUNTA(#REF!)>0,VLOOKUP($A91,'PLANILHA SINTÉTICA'!$A$10:$T$1083,2,0),"") -> Cabo de cobre AFUMEX, ATOX, AFITOX ou equivalente (Não-Halogenado), isolação 0,6/1kV., de 95mm²., inclusive instalação em eletroduto/eletrocalha/leito. | C91: =IF(COUNTA(A91)>0,VLOOKUP($A91,'[8]PLANILHA SINTÉTICA'!$A$9:$U$1082,3,0),"") -> 380041-5 | D91: =IF(COUNTA(A91)>0,VLOOKUP($A91,'PLANILHA SINTÉTICA'!$A$10:$T$1083,4,0),"") -> 269.1 | E91: =IF(COUNTA(A91)>0,VLOOKUP($A91,'PLANILHA SINTÉTICA'!$A$10:$T$1083,5,0),"") -> 130 | F91: =IF(ISERROR(VLOOKUP($A91,#REF!,8,0)),0,(VLOOKUP($A91,#REF!,8,0))) -> 0 | G91: =IF(COUNTA(A91)>0,VLOOKUP($A91,'[8]PLANILHA SINTÉTICA'!$A$9:$AC$1082,15,0),"") -> 50.808242 | H91: 0 | I91: 11.3 | J91: 0
A92: 29.05.12 | B92: =IF(COUNTA(#REF!)>0,VLOOKUP($A92,'PLANILHA SINTÉTICA'!$A$10:$T$1083,2,0),"") -> Cabo de cobre AFUMEX, ATOX, AFITOX ou equivalente (Não-Halogenado), isolação 0,6/1kV., de 150mm²., inclusive instalação em eletroduto/eletrocalha/leito. | C92: =IF(COUNTA(A92)>0,VLOOKUP($A92,'[8]PLANILHA SINTÉTICA'!$A$9:$U$1082,3,0),"") -> 468594-6 | D92: =IF(COUNTA(A92)>0,VLOOKUP($A92,'PLANILHA SINTÉTICA'!$A$10:$T$1083,4,0),"") -> 63.1 | E92: =IF(COUNTA(A92)>0,VLOOKUP($A92,'PLANILHA SINTÉTICA'!$A$10:$T$1083,5,0),"") -> 63.1 | F92: =IF(ISERROR(VLOOKUP($A92,#REF!,8,0)),0,(VLOOKUP($A92,#REF!,8,0))) -> 0 | G92: =IF(COUNTA(A92)>0,VLOOKUP($A92,'[8]PLANILHA SINTÉTICA'!$A$9:$AC$1082,15,0),"") -> 89.693172 | H92: 0 | I92: 19.96 | J92: 0
A93: 29.11.08 | B93: =IF(COUNTA(#REF!)>0,VLOOKUP($A93,'PLANILHA SINTÉTICA'!$A$10:$T$1083,2,0),"") -> Cabo de cobre AFUMEX, ATOX, AFITOX ou equivalente (Não-Halogenado), isolação 0,6/1kV., de 6,0mm²., inclusive instalação em eletroduto/eletrocalha/leito. | C93: =IF(COUNTA(A93)>0,VLOOKUP($A93,'[8]PLANILHA SINTÉTICA'!$A$9:$U$1082,3,0),"") -> 468390-0 | D93: =IF(COUNTA(A93)>0,VLOOKUP($A93,'PLANILHA SINTÉTICA'!$A$10:$T$1083,4,0),"") -> 375.4 | E93: =IF(COUNTA(A93)>0,VLOOKUP($A93,'PLANILHA SINTÉTICA'!$A$10:$T$1083,5,0),"") -> 375.4 | F93: =IF(ISERROR(VLOOKUP($A93,#REF!,8,0)),0,(VLOOKUP($A93,#REF!,8,0))) -> 0 | G93: =IF(COUNTA(A93)>0,VLOOKUP($A93,'[8]PLANILHA SINTÉTICA'!$A$9:$AC$1082,15,0),"") -> 5.150712 | H93: 0 | I93: 1.15 | J93: 0
A94: 29.11.12 | B94: =IF(COUNTA(#REF!)>0,VLOOKUP($A94,'PLANILHA SINTÉTICA'!$A$10:$T$1083,2,0),"") -> Cabo de cobre AFUMEX, ATOX, AFITOX ou equivalente (Não-Halogenado), isolação 0,6/1kV., de 35mm². , inclusive instalação em eletroduto/eletrocalha/leito. | C94: =IF(COUNTA(A94)>0,VLOOKUP($A94,'[8]PLANILHA SINTÉTICA'!$A$9:$U$1082,3,0),"") -> 203422-0 | D94: =IF(COUNTA(A94)>0,VLOOKUP($A94,'PLANILHA SINTÉTICA'!$A$10:$T$1083,4,0),"") -> 25.5 | E94: =IF(COUNTA(A94)>0,VLOOKUP($A94,'PLANILHA SINTÉTICA'!$A$10:$T$1083,5,0),"") -> 25.5 | F94: =IF(ISERROR(VLOOKUP($A94,#REF!,8,0)),0,(VLOOKUP($A94,#REF!,8,0))) -> 0 | G94: =IF(COUNTA(A94)>0,VLOOKUP($A94,'[8]PLANILHA SINTÉTICA'!$A$9:$AC$1082,15,0),"") -> 21.329294 | H94: 0 | I94: 4.75 | J94: 0
A95: 29.11.15 | B95: =IF(COUNTA(#REF!)>0,VLOOKUP($A95,'PLANILHA SINTÉTICA'!$A$10:$T$1083,2,0),"") -> Quadro de distribuição metálico de sobrepor, em chapa 16 BWG, para 24 circuitos monopolares padrão DIN, com barra de neutro e terra 150A, com porta e trinco, Cemar ou equivalente, inclusive instalação conforme projeto. | C95: =IF(COUNTA(A95)>0,VLOOKUP($A95,'[8]PLANILHA SINTÉTICA'!$A$9:$U$1082,3,0),"") -> 400966-5 | D95: =IF(COUNTA(A95)>0,VLOOKUP($A95,'PLANILHA SINTÉTICA'!$A$10:$T$1083,4,0),"") -> 3 | E95: =IF(COUNTA(A95)>0,VLOOKUP($A95,'PLANILHA SINTÉTICA'!$A$10:$T$1083,5,0),"") -> 3 | F95: =IF(ISERROR(VLOOKUP($A95,#REF!,8,0)),0,(VLOOKUP($A95,#REF!,8,0))) -> 0 | G95: =IF(COUNTA(A95)>0,VLOOKUP($A95,'[8]PLANILHA SINTÉTICA'!$A$9:$AC$1082,15,0),"") -> 590.260256 | H95: 0 | I95: 131.33 | J95: 0
A96: 29.11.16 | B96: =IF(COUNTA(#REF!)>0,VLOOKUP($A96,'PLANILHA SINTÉTICA'!$A$10:$T$1083,2,0),"") -> Quadro de distribuição metálico de sobrepor, em chapa 16 BWG, para 8 circuitos monopolares padrão DIN, com barra de neutro e terra, com porta e trinco, Cemar ou equivalente, inclusive instalação conforme projeto. | C96: =IF(COUNTA(A96)>0,VLOOKUP($A96,'[8]PLANILHA SINTÉTICA'!$A$9:$U$1082,3,0),"") -> 471384-2 | D96: =IF(COUNTA(A96)>0,VLOOKUP($A96,'PLANILHA SINTÉTICA'!$A$10:$T$1083,4,0),"") -> 4 | E96: =IF(COUNTA(A96)>0,VLOOKUP($A96,'PLANILHA SINTÉTICA'!$A$10:$T$1083,5,0),"") -> 3 | F96: =IF(ISERROR(VLOOKUP($A96,#REF!,8,0)),0,(VLOOKUP($A96,#REF!,8,0))) -> 0 | G96: =IF(COUNTA(A96)>0,VLOOKUP($A96,'[8]PLANILHA SINTÉTICA'!$A$9:$AC$1082,15,0),"") -> 264.277024 | H96: 0 | I96: 58.8 | J96: 0
A97: 29.11.21 | B97: =IF(COUNTA(#REF!)>0,VLOOKUP($A97,'PLANILHA SINTÉTICA'!$A$10:$T$1083,2,0),"") -> Fornecimento e instalação de disjuntor tripolar termomagnético de 100A Eletromar padrão IEC ou equivalente. | C97: =IF(COUNTA(A97)>0,VLOOKUP($A97,'[8]PLANILHA SINTÉTICA'!$A$9:$U$1082,3,0),"") -> 354786-8 | D97: =IF(COUNTA(A97)>0,VLOOKUP($A97,'PLANILHA SINTÉTICA'!$A$10:$T$1083,4,0),"") -> 1 | E97: =IF(COUNTA(A97)>0,VLOOKUP($A97,'PLANILHA SINTÉTICA'!$A$10:$T$1083,5,0),"") -> 1 | F97: =IF(ISERROR(VLOOKUP($A97,#REF!,8,0)),0,(VLOOKUP($A97,#REF!,8,0))) -> 0 | G97: =IF(COUNTA(A97)>0,VLOOKUP($A97,'[8]PLANILHA SINTÉTICA'!$A$9:$AC$1082,15,0),"") -> 121.289298 | H97: 0 | I97: 26.99 | J97: 0
A98: 29.13.06 | B98: =IF(COUNTA(#REF!)>0,VLOOKUP($A98,'PLANILHA SINTÉTICA'!$A$10:$T$1083,2,0),"") -> Fornecimento e instalação de disjuntor tripolar termomagnético de 80A Eletromar padrão IEC ou equivalente. | C98: =IF(COUNTA(A98)>0,VLOOKUP($A98,'[8]PLANILHA SINTÉTICA'!$A$9:$U$1082,3,0),"") -> 468592-0 | D98: =IF(COUNTA(A98)>0,VLOOKUP($A98,'PLANILHA SINTÉTICA'!$A$10:$T$1083,4,0),"") -> 3 | E98: =IF(COUNTA(A98)>0,VLOOKUP($A98,'PLANILHA SINTÉTICA'!$A$10:$T$1083,5,0),"") -> 3 | F98: =IF(ISERROR(VLOOKUP($A98,#REF!,8,0)),0,(VLOOKUP($A98,#REF!,8,0))) -> 0 | G98: =IF(COUNTA(A98)>0,VLOOKUP($A98,'[8]PLANILHA SINTÉTICA'!$A$9:$AC$1082,15,0),"") -> 121.289298 | H98: 0 | I98: 26.99 | J98: 0
A99: 29.13.09 | B99: =IF(COUNTA(#REF!)>0,VLOOKUP($A99,'PLANILHA SINTÉTICA'!$A$10:$T$1083,2,0),"") -> Quadro de distribuição metálico de embutir, em chapa 16 BWG, para 16 circuitos monopolares padrão DIN, com barra de neutro e terra, com porta e trinco, Cemar ou equivalente, inclusive instalação conforme projeto. | C99: =IF(COUNTA(A99)>0,VLOOKUP($A99,'[8]PLANILHA SINTÉTICA'!$A$9:$U$1082,3,0),"") -> 463747-0 | D99: =IF(COUNTA(A99)>0,VLOOKUP($A99,'PLANILHA SINTÉTICA'!$A$10:$T$1083,4,0),"") -> 2 | E99: =IF(COUNTA(A99)>0,VLOOKUP($A99,'PLANILHA SINTÉTICA'!$A$10:$T$1083,5,0),"") -> 2 | F99: =IF(ISERROR(VLOOKUP($A99,#REF!,8,0)),0,(VLOOKUP($A99,#REF!,8,0))) -> 0 | G99: =IF(COUNTA(A99)>0,VLOOKUP($A99,'[8]PLANILHA SINTÉTICA'!$A$9:$AC$1082,15,0),"") -> 279.130258 | H99: 0 | I99: 62.11 | J99: 0
A100: 31.08 | B100: =IF(COUNTA(#REF!)>0,VLOOKUP($A100,'PLANILHA SINTÉTICA'!$A$10:$T$1083,2,0),"") -> Fornecimento e instalação de cabo para sinal e detecção de incêndio em par trançado mais dreno shieldado acabamento em PVC Prysmian, Lipperfil ou equivalente CTR FLEX BL FT COBRE 2 x 1,5mm2 500V preto NBR 7289.. | C100: =IF(COUNTA(A100)>0,VLOOKUP($A100,'[8]PLANILHA SINTÉTICA'!$A$9:$U$1082,3,0),"") -> 469812-6 | D100: =IF(COUNTA(A100)>0,VLOOKUP($A100,'PLANILHA SINTÉTICA'!$A$10:$T$1083,4,0),"") -> 2686 | E100: =IF(COUNTA(A100)>0,VLOOKUP($A100,'PLANILHA SINTÉTICA'!$A$10:$T$1083,5,0),"") -> 2300 | F100: =IF(ISERROR(VLOOKUP($A100,#REF!,8,0)),0,(VLOOKUP($A100,#REF!,8,0))) -> 0 | G100: =IF(COUNTA(A100)>0,VLOOKUP($A100,'[8]PLANILHA SINTÉTICA'!$A$9:$AC$1082,15,0),"") -> 5.307892 | H100: 0 | I100: 1.18 | J100: 0
A101: 31.36 | B101: =IF(COUNTA(#REF!)>0,VLOOKUP($A101,'PLANILHA SINTÉTICA'!$A$10:$T$1083,2,0),"") -> Central eletrônica inteligente de detecção e alarme de incêndio, de 24Vcc, com capacidade para 6 laços do sistema de detecção e módulos de expansão das chaves de fluxo, compatível com os pontos de detecção e acionadores endereçáveis do projeto, inclusive as placas de laço, de fabricação Apolo ou equivalente, inclusive instalação e treinamento. | C101: =IF(COUNTA(A101)>0,VLOOKUP($A101,'[8]PLANILHA SINTÉTICA'!$A$9:$U$1082,3,0),"") -> 424724-8 | D101: =IF(COUNTA(A101)>0,VLOOKUP($A101,'PLANILHA SINTÉTICA'!$A$10:$T$1083,4,0),"") -> 1 | E101: =IF(COUNTA(A101)>0,VLOOKUP($A101,'PLANILHA SINTÉTICA'!$A$10:$T$1083,5,0),"") -> 1 | F101: =IF(ISERROR(VLOOKUP($A101,#REF!,8,0)),0,(VLOOKUP($A101,#REF!,8,0))) -> 0 | G101: =IF(COUNTA(A101)>0,VLOOKUP($A101,'[8]PLANILHA SINTÉTICA'!$A$9:$AC$1082,15,0),"") -> 13058.44614 | H101: 0 | K101: =ROUND($G101*$J$5,2) -> 2905.5 | L101: =ROUND($H101*$J$5,2) -> 0
A102: 32.05 | B102: =IF(COUNTA(#REF!)>0,VLOOKUP($A102,'PLANILHA SINTÉTICA'!$A$10:$T$1083,2,0),"") -> Fornecimento de unidade interna(evaporadora) multisplit - CASSETE INVERTER, que utiliza o gás ecológico R-410A, com capacidade térmica de resfriamento nominal:24.000 BTU/H | C102: =IF(COUNTA(A102)>0,VLOOKUP($A102,'[8]PLANILHA SINTÉTICA'!$A$9:$U$1082,3,0),"") -> 422139-7 | D102: =IF(COUNTA(A102)>0,VLOOKUP($A102,'PLANILHA SINTÉTICA'!$A$10:$T$1083,4,0),"") -> 18 | E102: =IF(COUNTA(A102)>0,VLOOKUP($A102,'PLANILHA SINTÉTICA'!$A$10:$T$1083,5,0),"") -> 18 | F102: 2 | G102: =IF(COUNTA(A102)>0,VLOOKUP($A102,'[8]PLANILHA SINTÉTICA'!$A$9:$AC$1082,15,0),"") -> 2413.423362 | H102: 4826.85 | K102: =ROUND($G102*$J$5,2) -> 536.99 | L102: =ROUND($H102*$J$5,2) -> 1073.97
A103: 32.08 | B103: =IF(COUNTA(#REF!)>0,VLOOKUP($A103,'PLANILHA SINTÉTICA'!$A$10:$T$1083,2,0),"") -> Instalação , conforme projeto, de Condicionador de ar do tipo Split/CASSETE, com capacidade de 24.000 BTU/h, INVERTER, realizando os serviços de confecção de linhas frigoríficas em tubo de cobre utilizando nitrogênio com fluxo constante para realização das soldas evitando impurezas e a dos drenos termicamente isolados. Fornecimento e instalação de carga de fluido refrigerante ecológico R-410A. A execução da instalação deve ser executada por Técnico de Refrigeração devidamente especializado em equipamentos INVERTER. Realizar a interligação entre as unidades Evaporadora e Condensadora com cabo PP 4x 1,5mm²; inclusive fixação de unidade evaporadora e interligação de drenos, calços de borracha, bem como todos os acessórios necessários para a completa instalação e funcionamento do sistema, e limpeza final da obra. | C103: =IF(COUNTA(A103)>0,VLOOKUP($A103,'[8]PLANILHA SINTÉTICA'!$A$9:$U$1082,3,0),"") -> 276777-5 | D103: =IF(COUNTA(A103)>0,VLOOKUP($A103,'PLANILHA SINTÉTICA'!$A$10:$T$1083,4,0),"") -> 18 | E103: =IF(COUNTA(A103)>0,VLOOKUP($A103,'PLANILHA SINTÉTICA'!$A$10:$T$1083,5,0),"") -> 18 | F103: 6 | G103: =IF(COUNTA(A103)>0,VLOOKUP($A103,'[8]PLANILHA SINTÉTICA'!$A$9:$AC$1082,15,0),"") -> 1090.01409 | H103: 6540.08 | K103: =ROUND($G103*$J$5,2) -> 242.53 | L103: =ROUND($H103*$J$5,2) -> 1455.17
A104: 32.11 | B104: =IF(COUNTA(#REF!)>0,VLOOKUP($A104,'PLANILHA SINTÉTICA'!$A$10:$T$1083,2,0),"") -> Instalação , conforme projeto, de Condicionador de ar do tipo Split/cassete, com capacidade de 18.000 BTU/h, INVERTER, realizando os serviços de confecção de linhas frigoríficas em tubo de cobre utilizando nitrogênio com fluxo constante para realização das soldas evitando impurezas e a dos drenos termicamente isolados. Fornecimento e instalação de carga de fluido refrigerante ecológico R-410A. A execução da instalação deve ser executada por Técnico de Refrigeração devidamente especializado em equipamentos INVERTER. Realizar a interligação entre as unidades Evaporadora e Condensadora com cabo PP4x1,5mm²; inclusive fixação de unidade evaporadora e interligação de drenos, calços de borracha, bem como todos os acessórios necessários para a completa instalação e funcionamento do sistema, e limpeza final da obra. | C104: =IF(COUNTA(A104)>0,VLOOKUP($A104,'[8]PLANILHA SINTÉTICA'!$A$9:$U$1082,3,0),"") -> 475570-7 | D104: =IF(COUNTA(A104)>0,VLOOKUP($A104,'PLANILHA SINTÉTICA'!$A$10:$T$1083,4,0),"") -> 110 | E104: =IF(COUNTA(A104)>0,VLOOKUP($A104,'PLANILHA SINTÉTICA'!$A$10:$T$1083,5,0),"") -> 91 | F104: 16 | G104: =IF(COUNTA(A104)>0,VLOOKUP($A104,'[8]PLANILHA SINTÉTICA'!$A$9:$AC$1082,15,0),"") -> 1061.897194 | H104: 16990.36 | K104: =ROUND($G104*$J$5,2) -> 236.27 | L104: =ROUND($H104*$J$5,2) -> 3780.36
A105: 32.25 | B105: =IF(COUNTA(#REF!)>0,VLOOKUP($A105,'PLANILHA SINTÉTICA'!$A$10:$T$1083,2,0),"") -> Fornecimento e instalação de dutos em chapa de aço galvanizada bitola nº 24, incluindo acessórios de sustentação. | C105: =IF(COUNTA(A105)>0,VLOOKUP($A105,'[8]PLANILHA SINTÉTICA'!$A$9:$U$1082,3,0),"") -> 484196-4 | D105: =IF(COUNTA(A105)>0,VLOOKUP($A105,'PLANILHA SINTÉTICA'!$A$10:$T$1083,4,0),"") -> 432.29 | E105: =IF(COUNTA(A105)>0,VLOOKUP($A105,'PLANILHA SINTÉTICA'!$A$10:$T$1083,5,0),"") -> 432.29 | F105: =IF(ISERROR(VLOOKUP($A105,#REF!,8,0)),0,(VLOOKUP($A105,#REF!,8,0))) -> 0 | G105: =IF(COUNTA(A105)>0,VLOOKUP($A105,'[8]PLANILHA SINTÉTICA'!$A$9:$AC$1082,15,0),"") -> 49.695824 | H105: 0 | I105: =ROUND($G105*$J$5,2) -> 11.06 | J105: =ROUND($H105*$J$5,2) -> 0
A106: 32.26 | B106: =IF(COUNTA(#REF!)>0,VLOOKUP($A106,'PLANILHA SINTÉTICA'!$A$10:$T$1083,2,0),"") -> Fornecimento e instalação de dutos em chapa de aço galvanizada bitola nº 26, incluindo acessórios de sustentação. | C106: =IF(COUNTA(A106)>0,VLOOKUP($A106,'[8]PLANILHA SINTÉTICA'!$A$9:$U$1082,3,0),"") -> 484197-2 | D106: =IF(COUNTA(A106)>0,VLOOKUP($A106,'PLANILHA SINTÉTICA'!$A$10:$T$1083,4,0),"") -> 570.31 | E106: =IF(COUNTA(A106)>0,VLOOKUP($A106,'PLANILHA SINTÉTICA'!$A$10:$T$1083,5,0),"") -> 570.31 | F106: =IF(ISERROR(VLOOKUP($A106,#REF!,8,0)),0,(VLOOKUP($A106,#REF!,8,0))) -> 0 | G106: =IF(COUNTA(A106)>0,VLOOKUP($A106,'[8]PLANILHA SINTÉTICA'!$A$9:$AC$1082,15,0),"") -> 39.021976 | H106: 0 | I106: =ROUND($G106*$J$5,2) -> 8.68 | J106: =ROUND($H106*$J$5,2) -> 0
A107: 32.29 | B107: =IF(COUNTA(#REF!)>0,VLOOKUP($A107,'PLANILHA SINTÉTICA'!$A$10:$T$1083,2,0),"") -> Fornecimento e instalação de Duto flexível Aludec 60 ou equivalente, 125mm | C107: =IF(COUNTA(A107)>0,VLOOKUP($A107,'[8]PLANILHA SINTÉTICA'!$A$9:$U$1082,3,0),"") -> 432544-3 | D107: =IF(COUNTA(A107)>0,VLOOKUP($A107,'PLANILHA SINTÉTICA'!$A$10:$T$1083,4,0),"") -> 102 | E107: =IF(COUNTA(A107)>0,VLOOKUP($A107,'PLANILHA SINTÉTICA'!$A$10:$T$1083,5,0),"") -> 102 | F107: =IF(ISERROR(VLOOKUP($A107,#REF!,8,0)),0,(VLOOKUP($A107,#REF!,8,0))) -> 0 | G107: =IF(COUNTA(A107)>0,VLOOKUP($A107,'[8]PLANILHA SINTÉTICA'!$A$9:$AC$1082,15,0),"") -> 20.29951 | H107: 0 | I107: =ROUND($G107*$J$5,2) -> 4.52 | J107: =ROUND($H107*$J$5,2) -> 0
G108: TOTAL DA 49ª MEDIÇÃO | H108: =SUM(H8:H107) -> 29400.58 | I108: Reajuste obra | J108: =SUM(J8:J107) -> 232.13 | K108: Reajuste Bens Perm. | L108: =SUM(L8:L107) -> 6309.5
I109: TOTAL DO REAJUSTE | J109: =J108+L108 -> 6541.63

Sheet LIQUIDAÇÃO REAJ. (hidden)
A1: ' | B1: PODER JUDICIÁRIO | F1: Obra: | G1: =#REF! ->  | I1: REAJUSTE DA 49ª MEDIÇÃO CONFORME 5ºTA
B2: TRIBUNAL DE JUSTIÇA DE PERNAMBUCO | F2: Local: | G2: =#REF! -> 
B3: DIRETORIA DE ENGENHARIA E ARQUITETURA | F3: Contrato: | G3: =#REF! -> 
B4: PLANILHA PARA LIQUIDAÇÃO - 49ª MEDIÇÃO | F4: Contratada: | G4: =#REF! -> 
G5: DATA: | H5: 2022-02-10 | I5: REAJUSTE: | J5: 0.2225 | K5: REAJUSTE: | L5: 0.2225
A6: Item | B6: Código | C6: Cód. Efisco | D6: Discriminação/especificação dos serviços | E6: UNID | F6: QUANT | G6: SERVIÇO | I6: OBRA | K6: EQUIPAMENTO
G7: P. UNIT. | H7: P. PARCIAL | I7: P. UNIT. | J7: P. PARCIAL | K7: P. UNIT. | L7: P. PARCIAL
A8: 16.35 | B8: =IF(COUNTA(#REF!)>0,VLOOKUP($A8,'PLANILHA SINTÉTICA'!$A$10:$T$1083,2,0),"") -> Fornecimento e assentamento de mictório de louça branca com sifão integrado e medindo 33x28x53cm, tubo de ligação 1/2" cromado. | C8: =IF(COUNTA(A8)>0,VLOOKUP($A8,'[8]PLANILHA SINTÉTICA'!$A$9:$U$1082,3,0),"") -> 235515-9 | D8: =IF(COUNTA(A8)>0,VLOOKUP($A8,'PLANILHA SINTÉTICA'!$A$10:$T$1083,4,0),"") -> 16 | E8: =IF(COUNTA(A8)>0,VLOOKUP($A8,'PLANILHA SINTÉTICA'!$A$10:$T$1083,5,0),"") -> 10 | F8: =IF(ISERROR(VLOOKUP($A8,#REF!,8,0)),0,(VLOOKUP($A8,#REF!,8,0))) -> 0 | G8: =IF(COUNTA(A8)>0,VLOOKUP($A8,'[8]PLANILHA SINTÉTICA'!$A$9:$AC$1082,15,0),"") -> 355.119462 | H8: =ROUND(G8*F8,2) -> 0 | I8: =ROUND($G8*$J$5,2) -> 79.01 | J8: =ROUND($H8*$J$5,2) -> 0
A9: 19.40 | B9: =IF(COUNTA(#REF!)>0,VLOOKUP($A9,'PLANILHA SINTÉTICA'!$A$10:$T$1083,2,0),"") -> Fornecimento e assentamento de lavatório pequeno Celite ou equivalente, sem coluna, medindo 40x30cm, inclusive válvula, sifão e engate. (IZY L101) | C9: =IF(COUNTA(A9)>0,VLOOKUP($A9,'[8]PLANILHA SINTÉTICA'!$A$9:$U$1082,3,0),"") -> 295153-3 | D9: =IF(COUNTA(A9)>0,VLOOKUP($A9,'PLANILHA SINTÉTICA'!$A$10:$T$1083,4,0),"") -> 1 | E9: =IF(COUNTA(A9)>0,VLOOKUP($A9,'PLANILHA SINTÉTICA'!$A$10:$T$1083,5,0),"") -> 0.9 | F9: =IF(ISERROR(VLOOKUP($A9,#REF!,8,0)),0,(VLOOKUP($A9,#REF!,8,0))) -> 0 | G9: =IF(COUNTA(A9)>0,VLOOKUP($A9,'[8]PLANILHA SINTÉTICA'!$A$9:$AC$1082,15,0),"") -> 186.390598 | H9: 0 | I9: =ROUND($G9*$J$5,2) -> 41.47 | J9: =ROUND($H9*$J$5,2) -> 0
A10: 29.01.08 | B10: =IF(COUNTA(#REF!)>0,VLOOKUP($A10,'PLANILHA SINTÉTICA'!$A$10:$T$1083,2,0),"") -> Ponto para interruptor three-way de duas teclas, composto por fiação em cabo de 2,5mm² Prysmian ou equivalente e eletroduto de PVC rígido de 3/4" com luva de rosca interna, curva e acessórios até o ponto de luz. | C10: =IF(COUNTA(A10)>0,VLOOKUP($A10,'[8]PLANILHA SINTÉTICA'!$A$9:$U$1082,3,0),"") -> 321161-4 | D10: =IF(COUNTA(A10)>0,VLOOKUP($A10,'PLANILHA SINTÉTICA'!$A$10:$T$1083,4,0),"") -> 4 | E10: =IF(COUNTA(A10)>0,VLOOKUP($A10,'PLANILHA SINTÉTICA'!$A$10:$T$1083,5,0),"") -> 4 | F10: =IF(ISERROR(VLOOKUP($A10,#REF!,8,0)),0,(VLOOKUP($A10,#REF!,8,0))) -> 0 | G10: =IF(COUNTA(A10)>0,VLOOKUP($A10,'[8]PLANILHA SINTÉTICA'!$A$9:$AC$1082,15,0),"") -> 80.462088 | H10: 0 | I10: =ROUND($G10*$J$5,2) -> 17.9 | J10: =ROUND($H10*$J$5,2) -> 0
A11: 32.01 | B11: =IF(COUNTA(#REF!)>0,VLOOKUP($A11,'PLANILHA SINTÉTICA'!$A$10:$T$1083,2,0),"") -> Fornecimento de unidade interna(evaporadora) multisplit - CASSETE INVERTER, que utiliza o gás ecológico R-410A, com capacidade térmica de resfriamento nominal:12.000 BTU/H | C11: =IF(COUNTA(A11)>0,VLOOKUP($A11,'[8]PLANILHA SINTÉTICA'!$A$9:$U$1082,3,0),"") -> 390403-2 | D11: =IF(COUNTA(A11)>0,VLOOKUP($A11,'PLANILHA SINTÉTICA'!$A$10:$T$1083,4,0),"") -> 18 | E11: =IF(COUNTA(A11)>0,VLOOKUP($A11,'PLANILHA SINTÉTICA'!$A$10:$T$1083,5,0),"") -> 16 | F11: =IF(ISERROR(VLOOKUP($A11,#REF!,8,0)),0,(VLOOKUP($A11,#REF!,8,0))) -> 0 | G11: =IF(COUNTA(A11)>0,VLOOKUP($A11,'[8]PLANILHA SINTÉTICA'!$A$9:$AC$1082,15,0),"") -> 2019.890166 | H11: 0 | K11: =ROUND($G11*$J$5,2) -> 449.43 | L11: =ROUND($H11*$J$5,2) -> 0
A12: 29.04.04 | B12: =IF(COUNTA(#REF!)>0,VLOOKUP($A12,'PLANILHA SINTÉTICA'!$A$10:$T$1083,2,0),"") -> Quadro de distribuição metálico de sobrepor, em chapa 16 BWG, para 24 circuitos monopolares padrão DIN, com barra de neutro e terra 150A, com porta e trinco, Cemar ou equivalente, inclusive instalação conforme projeto. | C12: =IF(COUNTA(A12)>0,VLOOKUP($A12,'[8]PLANILHA SINTÉTICA'!$A$9:$U$1082,3,0),"") -> 400966-5 | D12: =IF(COUNTA(A12)>0,VLOOKUP($A12,'PLANILHA SINTÉTICA'!$A$10:$T$1083,4,0),"") -> 1 | E12: =IF(COUNTA(A12)>0,VLOOKUP($A12,'PLANILHA SINTÉTICA'!$A$10:$T$1083,5,0),"") -> 1 | F12: =IF(ISERROR(VLOOKUP($A12,#REF!,8,0)),0,(VLOOKUP($A12,#REF!,8,0))) -> 0 | G12: =IF(COUNTA(A12)>0,VLOOKUP($A12,'[8]PLANILHA SINTÉTICA'!$A$9:$AC$1082,15,0),"") -> 590.260256 | H12: 0 | I12: =ROUND($G12*$J$5,2) -> 131.33 | J12: =ROUND($H12*$J$5,2) -> 0
A13: 29.11.15 | B13: =IF(COUNTA(#REF!)>0,VLOOKUP($A13,'PLANILHA SINTÉTICA'!$A$10:$T$1083,2,0),"") -> Quadro de distribuição metálico de sobrepor, em chapa 16 BWG, para 24 circuitos monopolares padrão DIN, com barra de neutro e terra 150A, com porta e trinco, Cemar ou equivalente, inclusive instalação conforme projeto. | C13: =IF(COUNTA(A13)>0,VLOOKUP($A13,'[8]PLANILHA SINTÉTICA'!$A$9:$U$1082,3,0),"") -> 400966-5 | D13: =IF(COUNTA(A13)>0,VLOOKUP($A13,'PLANILHA SINTÉTICA'!$A$10:$T$1083,4,0),"") -> 3 | E13: =IF(COUNTA(A13)>0,VLOOKUP($A13,'PLANILHA SINTÉTICA'!$A$10:$T$1083,5,0),"") -> 3 | F13: =IF(ISERROR(VLOOKUP($A13,#REF!,8,0)),0,(VLOOKUP($A13,#REF!,8,0))) -> 0 | G13: =IF(COUNTA(A13)>0,VLOOKUP($A13,'[8]PLANILHA SINTÉTICA'!$A$9:$AC$1082,15,0),"") -> 590.260256 | H13: 0 | I13: 131.33 | J13: 0
A14: 1.2 | B14: =IF(COUNTA(#REF!)>0,VLOOKUP($A14,'PLANILHA SINTÉTICA'!$A$10:$T$1083,2,0),"") -> Administração local pelo período da obra. | C14: =IF(COUNTA(A14)>0,VLOOKUP($A14,'[8]PLANILHA SINTÉTICA'!$A$9:$U$1082,3,0),"") -> 401010-8 | D14: =IF(COUNTA(A14)>0,VLOOKUP($A14,'PLANILHA SINTÉTICA'!$A$10:$T$1083,4,0),"") -> 18 | E14: =IF(COUNTA(A14)>0,VLOOKUP($A14,'PLANILHA SINTÉTICA'!$A$10:$T$1083,5,0),"") -> 17.8366 | F14: =IF(ISERROR(VLOOKUP($A14,#REF!,8,0)),0,(VLOOKUP($A14,#REF!,8,0))) -> 0 | G14: =IF(COUNTA(A14)>0,VLOOKUP($A14,'[8]PLANILHA SINTÉTICA'!$A$9:$AC$1082,15,0),"") -> 124499.8247 | H14: 0 | I14: 27701.21 | J14: 0 | K14: =IF($M14<>0,ROUND($G14*$J$5,2),0) -> 0 | L14: =IF($M14>0,ROUND($H14*$J$5,2),0) -> 0
A15: 16.30 | B15: =IF(COUNTA(#REF!)>0,VLOOKUP($A15,'PLANILHA SINTÉTICA'!$A$10:$T$1083,2,0),"") -> Fornecimento e instalação de válvula de descarga, linha Benefit, diâmetro 1 1/4", referência 184906, fabricação Docol ou equivalente. (Wc PPNE) | C15: =IF(COUNTA(A15)>0,VLOOKUP($A15,'[8]PLANILHA SINTÉTICA'!$A$9:$U$1082,3,0),"") -> 408501-9 | D15: =IF(COUNTA(A15)>0,VLOOKUP($A15,'PLANILHA SINTÉTICA'!$A$10:$T$1083,4,0),"") -> 18 | E15: =IF(COUNTA(A15)>0,VLOOKUP($A15,'PLANILHA SINTÉTICA'!$A$10:$T$1083,5,0),"") -> 18 | F15: =IF(ISERROR(VLOOKUP($A15,#REF!,8,0)),0,(VLOOKUP($A15,#REF!,8,0))) -> 0 | G15: =IF(COUNTA(A15)>0,VLOOKUP($A15,'[8]PLANILHA SINTÉTICA'!$A$9:$AC$1082,15,0),"") -> 624.653842 | H15: 0 | I15: 138.99 | J15: 0
A16: 29.07.01 | B16: =IF(COUNTA(#REF!)>0,VLOOKUP($A16,'PLANILHA SINTÉTICA'!$A$10:$T$1083,2,0),"") -> Fornecimento e instalação de caixa 4x4 pol para instalação em parede. | C16: =IF(COUNTA(A16)>0,VLOOKUP($A16,'[8]PLANILHA SINTÉTICA'!$A$9:$U$1082,3,0),"") -> 410151-0 | D16: =IF(COUNTA(A16)>0,VLOOKUP($A16,'PLANILHA SINTÉTICA'!$A$10:$T$1083,4,0),"") -> 40 | E16: =IF(COUNTA(A16)>0,VLOOKUP($A16,'PLANILHA SINTÉTICA'!$A$10:$T$1083,5,0),"") -> 40 | F16: =IF(ISERROR(VLOOKUP($A16,#REF!,8,0)),0,(VLOOKUP($A16,#REF!,8,0))) -> 0 | G16: =IF(COUNTA(A16)>0,VLOOKUP($A16,'[8]PLANILHA SINTÉTICA'!$A$9:$AC$1082,15,0),"") -> 7.1647 | H16: 0 | I16: 1.59 | J16: 0
A17: 1.25 | B17: =IF(COUNTA(#REF!)>0,VLOOKUP($A17,'PLANILHA SINTÉTICA'!$A$10:$T$1083,2,0),"") -> Desmontagem de andaimes do tipo fachadeiro inclusive carregamento, descarregamento e transporte posto/obra | C17: =IF(COUNTA(A17)>0,VLOOKUP($A17,'[8]PLANILHA SINTÉTICA'!$A$9:$U$1082,3,0),"") -> 411687-9 | D17: =IF(COUNTA(A17)>0,VLOOKUP($A17,'PLANILHA SINTÉTICA'!$A$10:$T$1083,4,0),"") -> 3784 | E17: =IF(COUNTA(A17)>0,VLOOKUP($A17,'PLANILHA SINTÉTICA'!$A$10:$T$1083,5,0),"") -> 3784 | F17: =IF(ISERROR(VLOOKUP($A17,#REF!,8,0)),0,(VLOOKUP($A17,#REF!,8,0))) -> 0 | G17: =IF(COUNTA(A17)>0,VLOOKUP($A17,'[8]PLANILHA SINTÉTICA'!$A$9:$AC$1082,15,0),"") -> 2.84876 | H17: 0 | I17: 0.63 | J17: 0
A18: 32.03 | B18: =IF(COUNTA(#REF!)>0,VLOOKUP($A18,'PLANILHA SINTÉTICA'!$A$10:$T$1083,2,0),"") -> Fornecimento de unidade interna(evaporadora) multisplit - CASSETE INVERTER, que utiliza o gás ecológico R-410A, com capacidade térmica de resfriamento nominal:18.000 BTU/H | C18: =IF(COUNTA(A18)>0,VLOOKUP($A18,'[8]PLANILHA SINTÉTICA'!$A$9:$U$1082,3,0),"") -> 422138-9 | D18: =IF(COUNTA(A18)>0,VLOOKUP($A18,'PLANILHA SINTÉTICA'!$A$10:$T$1083,4,0),"") -> 110 | E18: =IF(COUNTA(A18)>0,VLOOKUP($A18,'PLANILHA SINTÉTICA'!$A$10:$T$1083,5,0),"") -> 91 | F18: =IF(ISERROR(VLOOKUP($A18,#REF!,8,0)),0,(VLOOKUP($A18,#REF!,8,0))) -> 0 | G18: =IF(COUNTA(A18)>0,VLOOKUP($A18,'[8]PLANILHA SINTÉTICA'!$A$9:$AC$1082,15,0),"") -> 2152.460996 | H18: 0 | K18: =ROUND($G18*$J$5,2) -> 478.92 | L18: =ROUND($H18*$J$5,2) -> 0
A19: 29.01.01 | B19: =IF(COUNTA(#REF!)>0,VLOOKUP($A19,'PLANILHA SINTÉTICA'!$A$10:$T$1083,2,0),"") -> Ponto de luz em teto ou parede, composto por fiação em cabo flexível de 2,5mm² AFUMEX, ATOX, AFITOX ou equivalente (Não-Halogenado), isolação 750V., eletroduto de PVC rígido de 3/4" com luva de rosca interna, curvas, caixa octogonal e demais acessórios, desde o ponto de luz até o quadro de distribuição. | C19: =IF(COUNTA(A19)>0,VLOOKUP($A19,'[8]PLANILHA SINTÉTICA'!$A$9:$U$1082,3,0),"") -> 429092-5 | D19: =IF(COUNTA(A19)>0,VLOOKUP($A19,'PLANILHA SINTÉTICA'!$A$10:$T$1083,4,0),"") -> 873 | E19: =IF(COUNTA(A19)>0,VLOOKUP($A19,'PLANILHA SINTÉTICA'!$A$10:$T$1083,5,0),"") -> 873 | F19: =IF(ISERROR(VLOOKUP($A19,#REF!,8,0)),0,(VLOOKUP($A19,#REF!,8,0))) -> 0 | G19: =IF(COUNTA(A19)>0,VLOOKUP($A19,'[8]PLANILHA SINTÉTICA'!$A$9:$AC$1082,15,0),"") -> 63.094448 | H19: 0 | I19: =ROUND($G19*$J$5,2) -> 14.04 | J19: =ROUND($H19*$J$5,2) -> 0
A20: 29.01.02 | B20: =IF(COUNTA(#REF!)>0,VLOOKUP($A20,'PLANILHA SINTÉTICA'!$A$10:$T$1083,2,0),"") -> Ponto para interruptor de uma seção, composto por fiação em cabo de 2,5mm² AFUMEX, ATOX, AFITOX ou equivalente (Não-Halogenado), isolação 750V., eletroduto de PVC rígido de 3/4" com luva de rosca interna, curva e acessórios até o ponto de luz. | C20: =IF(COUNTA(A20)>0,VLOOKUP($A20,'[8]PLANILHA SINTÉTICA'!$A$9:$U$1082,3,0),"") -> 429094-1 | D20: =IF(COUNTA(A20)>0,VLOOKUP($A20,'PLANILHA SINTÉTICA'!$A$10:$T$1083,4,0),"") -> 97 | E20: =IF(COUNTA(A20)>0,VLOOKUP($A20,'PLANILHA SINTÉTICA'!$A$10:$T$1083,5,0),"") -> 97 | F20: =IF(ISERROR(VLOOKUP($A20,#REF!,8,0)),0,(VLOOKUP($A20,#REF!,8,0))) -> 0 | G20: =IF(COUNTA(A20)>0,VLOOKUP($A20,'[8]PLANILHA SINTÉTICA'!$A$9:$AC$1082,15,0),"") -> 39.75048 | H20: 0 | I20: 8.84 | J20: 0
A21: 10.5 | B21: =IF(COUNTA(#REF!)>0,VLOOKUP($A21,'PLANILHA SINTÉTICA'!$A$10:$T$1083,2,0),"") -> Fornecimento e assentamento de porta PM3 (dim.=0,90x1,60m) Alcoplac da Neocom ou equivalente, com painéis em laminado estrutural TS-10mm, (fórmica maciça com 10mm de espessura), acabamento texturizado dupla face, cor a definir, batente em perfil especial de alumínio anodizado natural, incluindo ferragens, fechadura tipo tarjeta com indicação "Livre/ocupado" em nylon. Chapa em Inox conforme NBR 9050, conforme detalhe. (Wc PPNE) | C21: =IF(COUNTA(A21)>0,VLOOKUP($A21,'[8]PLANILHA SINTÉTICA'!$A$9:$U$1082,3,0),"") -> 430149-8 | D21: =IF(COUNTA(A21)>0,VLOOKUP($A21,'PLANILHA SINTÉTICA'!$A$10:$T$1083,4,0),"") -> 16 | E21: =IF(COUNTA(A21)>0,VLOOKUP($A21,'PLANILHA SINTÉTICA'!$A$10:$T$1083,5,0),"") -> 16 | F21: =IF(ISERROR(VLOOKUP($A21,#REF!,8,0)),0,(VLOOKUP($A21,#REF!,8,0))) -> 0 | G21: =IF(COUNTA(A21)>0,VLOOKUP($A21,'[8]PLANILHA SINTÉTICA'!$A$9:$AC$1082,15,0),"") -> 659.500484 | H21: 0 | I21: 146.74 | J21: 0
A22: 10.6 | B22: =IF(COUNTA(#REF!)>0,VLOOKUP($A22,'PLANILHA SINTÉTICA'!$A$10:$T$1083,2,0),"") -> Fornecimento e assentamento de porta PM4 (dim.=0,60x1,60m) Alcoplac da Neocom ou equivalente, em laminado estrutural TS-10mm, acabamento texturizado dupla face, cor a definir, batente em perfil especial de alumínio anodizado natural, incluindo ferragens, fechadura tipo tarjeta com indicação "Livre/ocupado" em nylon, conforme detalhe. (Wc) | C22: =IF(COUNTA(A22)>0,VLOOKUP($A22,'[8]PLANILHA SINTÉTICA'!$A$9:$U$1082,3,0),"") -> 430150-1 | D22: =IF(COUNTA(A22)>0,VLOOKUP($A22,'PLANILHA SINTÉTICA'!$A$10:$T$1083,4,0),"") -> 56 | E22: =IF(COUNTA(A22)>0,VLOOKUP($A22,'PLANILHA SINTÉTICA'!$A$10:$T$1083,5,0),"") -> 56 | F22: =IF(ISERROR(VLOOKUP($A22,#REF!,8,0)),0,(VLOOKUP($A22,#REF!,8,0))) -> 0 | G22: =IF(COUNTA(A22)>0,VLOOKUP($A22,'[8]PLANILHA SINTÉTICA'!$A$9:$AC$1082,15,0),"") -> 569.476882 | H22: 0 | I22: 126.71 | J22: 0
A23: 16.20 | B23: =IF(COUNTA(#REF!)>0,VLOOKUP($A23,'PLANILHA SINTÉTICA'!$A$10:$T$1083,2,0),"") -> Tubulação PVC esgoto predial Ø 40mm, para coletores ou sub-coletores de esgoto ou águas pluviais, inclusive abertura e fechamento de valas. | C23: =IF(COUNTA(A23)>0,VLOOKUP($A23,'[8]PLANILHA SINTÉTICA'!$A$9:$U$1082,3,0),"") -> 430394-6 | D23: =IF(COUNTA(A23)>0,VLOOKUP($A23,'PLANILHA SINTÉTICA'!$A$10:$T$1083,4,0),"") -> 266 | E23: =IF(COUNTA(A23)>0,VLOOKUP($A23,'PLANILHA SINTÉTICA'!$A$10:$T$1083,5,0),"") -> 126.8 | F23: =IF(ISERROR(VLOOKUP($A23,#REF!,8,0)),0,(VLOOKUP($A23,#REF!,8,0))) -> 0 | G23: =IF(COUNTA(A23)>0,VLOOKUP($A23,'[8]PLANILHA SINTÉTICA'!$A$9:$AC$1082,15,0),"") -> 9.433468 | H23: 0 | I23: 2.1 | J23: 0
A24: 16.21 | B24: =IF(COUNTA(#REF!)>0,VLOOKUP($A24,'PLANILHA SINTÉTICA'!$A$10:$T$1083,2,0),"") -> Tubulação PVC esgoto predial Ø 50mm, para coletores ou sub-coletores de esgoto ou águas pluviais, inclusive abertura e fechamento de valas. | C24: =IF(COUNTA(A24)>0,VLOOKUP($A24,'[8]PLANILHA SINTÉTICA'!$A$9:$U$1082,3,0),"") -> 430395-4 | D24: =IF(COUNTA(A24)>0,VLOOKUP($A24,'PLANILHA SINTÉTICA'!$A$10:$T$1083,4,0),"") -> 148 | E24: =IF(COUNTA(A24)>0,VLOOKUP($A24,'PLANILHA SINTÉTICA'!$A$10:$T$1083,5,0),"") -> 148 | F24: =IF(ISERROR(VLOOKUP($A24,#REF!,8,0)),0,(VLOOKUP($A24,#REF!,8,0))) -> 0 | G24: =IF(COUNTA(A24)>0,VLOOKUP($A24,'[8]PLANILHA SINTÉTICA'!$A$9:$AC$1082,15,0),"") -> 12.892008 | H24: 0 | I24: 2.87 | J24: 0
A25: 18.50 | B25: =IF(COUNTA(#REF!)>0,VLOOKUP($A25,'PLANILHA SINTÉTICA'!$A$10:$T$1083,2,0),"") -> Contrapiso em argamassa traço 1:4 (cimento e areia), preparo mecânico com betoneira 400 L, aplicado em áreas secas sobre laje, aderido, espessura 2cm, acabamento não reforçado. | C25: =IF(COUNTA(A25)>0,VLOOKUP($A25,'[8]PLANILHA SINTÉTICA'!$A$9:$U$1082,3,0),"") -> 430928-6 | D25: =IF(COUNTA(A25)>0,VLOOKUP($A25,'PLANILHA SINTÉTICA'!$A$10:$T$1083,4,0),"") -> 178 | E25: =IF(COUNTA(A25)>0,VLOOKUP($A25,'PLANILHA SINTÉTICA'!$A$10:$T$1083,5,0),"") -> 99.68 | F25: =IF(ISERROR(VLOOKUP($A25,#REF!,8,0)),0,(VLOOKUP($A25,#REF!,8,0))) -> 0 | G25: =IF(COUNTA(A25)>0,VLOOKUP($A25,'[8]PLANILHA SINTÉTICA'!$A$9:$AC$1082,15,0),"") -> 18.788824 | H25: 0 | I25: 4.18 | J25: 0
A26: 19.59 | B26: =IF(COUNTA(#REF!)>0,VLOOKUP($A26,'PLANILHA SINTÉTICA'!$A$10:$T$1083,2,0),"") -> Impermeabilização com manta asfáltica espessura 3mm protegida com filme de alumínio gofrado espessura 0,8mm, incluso emulsão asfáltica. | C26: =IF(COUNTA(A26)>0,VLOOKUP($A26,'[8]PLANILHA SINTÉTICA'!$A$9:$U$1082,3,0),"") -> 431420-4 | D26: =IF(COUNTA(A26)>0,VLOOKUP($A26,'PLANILHA SINTÉTICA'!$A$10:$T$1083,4,0),"") -> 5.4 | E26: =IF(COUNTA(A26)>0,VLOOKUP($A26,'PLANILHA SINTÉTICA'!$A$10:$T$1083,5,0),"") -> 5.4 | F26: =IF(ISERROR(VLOOKUP($A26,#REF!,8,0)),0,(VLOOKUP($A26,#REF!,8,0))) -> 0 | G26: =IF(COUNTA(A26)>0,VLOOKUP($A26,'[8]PLANILHA SINTÉTICA'!$A$9:$AC$1082,15,0),"") -> 74.509744 | H26: 0 | I26: 16.58 | J26: 0
A27: 1.24 | B27: =IF(COUNTA(#REF!)>0,VLOOKUP($A27,'PLANILHA SINTÉTICA'!$A$10:$T$1083,2,0),"") -> Locação de andaime metálico tipo fachadeiro, incluindo montagem. | C27: =IF(COUNTA(A27)>0,VLOOKUP($A27,'[8]PLANILHA SINTÉTICA'!$A$9:$U$1082,3,0),"") -> 431656-8 | D27: =IF(COUNTA(A27)>0,VLOOKUP($A27,'PLANILHA SINTÉTICA'!$A$10:$T$1083,4,0),"") -> 3784 | E27: =IF(COUNTA(A27)>0,VLOOKUP($A27,'PLANILHA SINTÉTICA'!$A$10:$T$1083,5,0),"") -> 3784 | F27: =IF(ISERROR(VLOOKUP($A27,#REF!,8,0)),0,(VLOOKUP($A27,#REF!,8,0))) -> 0 | G27: =IF(COUNTA(A27)>0,VLOOKUP($A27,'[8]PLANILHA SINTÉTICA'!$A$9:$AC$1082,15,0),"") -> 6.24488 | H27: 0 | I27: 1.39 | J27: 0
A28: 19.38 | B28: =IF(COUNTA(#REF!)>0,VLOOKUP($A28,'PLANILHA SINTÉTICA'!$A$10:$T$1083,2,0),"") -> Fornecimento e assentamento de bacia sanitária com caixa acoplada Confort Vogue Plus em louça branca, Linha Deca ou equivalente, inclusive engate e anel de vedação. | C28: =IF(COUNTA(A28)>0,VLOOKUP($A28,'[8]PLANILHA SINTÉTICA'!$A$9:$U$1082,3,0),"") -> 432026-3 | D28: =IF(COUNTA(A28)>0,VLOOKUP($A28,'PLANILHA SINTÉTICA'!$A$10:$T$1083,4,0),"") -> 1 | E28: =IF(COUNTA(A28)>0,VLOOKUP($A28,'PLANILHA SINTÉTICA'!$A$10:$T$1083,5,0),"") -> 1 | F28: =IF(ISERROR(VLOOKUP($A28,#REF!,8,0)),0,(VLOOKUP($A28,#REF!,8,0))) -> 0 | G28: =IF(COUNTA(A28)>0,VLOOKUP($A28,'[8]PLANILHA SINTÉTICA'!$A$9:$AC$1082,15,0),"") -> 788.538012 | H28: 0 | I28: 175.45 | J28: 0
A29: 29.01.04 | B29: =IF(COUNTA(#REF!)>0,VLOOKUP($A29,'PLANILHA SINTÉTICA'!$A$10:$T$1083,2,0),"") -> Ponto para interruptor de duas seções, composto por fiação em cabo de 2,5mm² AFUMEX, ATOX, AFITOX ou equivalente (Não-Halogenado), isolação 750V., eletroduto de PVC rígido de 3/4" com luva de rosca interna, curva e acessórios até o ponto de luz. | C29: =IF(COUNTA(A29)>0,VLOOKUP($A29,'[8]PLANILHA SINTÉTICA'!$A$9:$U$1082,3,0),"") -> 432648-2 | D29: =IF(COUNTA(A29)>0,VLOOKUP($A29,'PLANILHA SINTÉTICA'!$A$10:$T$1083,4,0),"") -> 19 | E29: =IF(COUNTA(A29)>0,VLOOKUP($A29,'PLANILHA SINTÉTICA'!$A$10:$T$1083,5,0),"") -> 19 | F29: =IF(ISERROR(VLOOKUP($A29,#REF!,8,0)),0,(VLOOKUP($A29,#REF!,8,0))) -> 0 | G29: =IF(COUNTA(A29)>0,VLOOKUP($A29,'[8]PLANILHA SINTÉTICA'!$A$9:$AC$1082,15,0),"") -> 46.407392 | H29: 0 | I29: 10.33 | J29: 0
A30: 29.01.10 | B30: =IF(COUNTA(#REF!)>0,VLOOKUP($A30,'PLANILHA SINTÉTICA'!$A$10:$T$1083,2,0),"") -> Ponto para tomada universal (2p+t), inclusive fiação em cabo de 2,5mm² AFUMEX, ATOX, AFITOX ou equivalente (Não-Halogenado) e eletroduto de PVC rígido de 3/4" com luva de rosca interna, curva e acessórios até outro ponto/eletrocalha. | C30: =IF(COUNTA(A30)>0,VLOOKUP($A30,'[8]PLANILHA SINTÉTICA'!$A$9:$U$1082,3,0),"") -> 432649-0 | D30: =IF(COUNTA(A30)>0,VLOOKUP($A30,'PLANILHA SINTÉTICA'!$A$10:$T$1083,4,0),"") -> 189 | E30: =IF(COUNTA(A30)>0,VLOOKUP($A30,'PLANILHA SINTÉTICA'!$A$10:$T$1083,5,0),"") -> 189 | F30: =IF(ISERROR(VLOOKUP($A30,#REF!,8,0)),0,(VLOOKUP($A30,#REF!,8,0))) -> 0 | G30: =IF(COUNTA(A30)>0,VLOOKUP($A30,'[8]PLANILHA SINTÉTICA'!$A$9:$AC$1082,15,0),"") -> 89.093766 | H30: 0 | I30: 19.82 | J30: 0
A31: 29.01.06 | B31: =IF(COUNTA(#REF!)>0,VLOOKUP($A31,'PLANILHA SINTÉTICA'!$A$10:$T$1083,2,0),"") -> Ponto para interruptor de três seções, composto por fiação em cabo de 2,5mm² Prysmian ou equivalente, eletroduto de PVC rígido de 3/4" com luva luna de rosca interna, curva e acessórios até o ponto de luz. | C31: =IF(COUNTA(A31)>0,VLOOKUP($A31,'[8]PLANILHA SINTÉTICA'!$A$9:$U$1082,3,0),"") -> 432650-4 | D31: =IF(COUNTA(A31)>0,VLOOKUP($A31,'PLANILHA SINTÉTICA'!$A$10:$T$1083,4,0),"") -> 2 | E31: =IF(COUNTA(A31)>0,VLOOKUP($A31,'PLANILHA SINTÉTICA'!$A$10:$T$1083,5,0),"") -> 2 | F31: =IF(ISERROR(VLOOKUP($A31,#REF!,8,0)),0,(VLOOKUP($A31,#REF!,8,0))) -> 0 | G31: =IF(COUNTA(A31)>0,VLOOKUP($A31,'[8]PLANILHA SINTÉTICA'!$A$9:$AC$1082,15,0),"") -> 53.100978 | H31: 0 | I31: 11.81 | J31: 0
A32: 1.13 | B32: =IF(COUNTA(#REF!)>0,VLOOKUP($A32,'PLANILHA SINTÉTICA'!$A$10:$T$1083,2,0),"") -> Remoção de material de primeira categoria em caminhão basculante, D.M.T. 12KM, inclusive carga e descarga mecânica. | C32: =IF(COUNTA(A32)>0,VLOOKUP($A32,'[8]PLANILHA SINTÉTICA'!$A$9:$U$1082,3,0),"") -> 435208-4 | D32: =IF(COUNTA(A32)>0,VLOOKUP($A32,'PLANILHA SINTÉTICA'!$A$10:$T$1083,4,0),"") -> 3692 | E32: =IF(COUNTA(A32)>0,VLOOKUP($A32,'PLANILHA SINTÉTICA'!$A$10:$T$1083,5,0),"") -> 781.2 | F32: =IF(ISERROR(VLOOKUP($A32,#REF!,8,0)),0,(VLOOKUP($A32,#REF!,8,0))) -> 0 | G32: =IF(COUNTA(A32)>0,VLOOKUP($A32,'[8]PLANILHA SINTÉTICA'!$A$9:$AC$1082,15,0),"") -> 19.56812 | H32: 0 | I32: 4.35 | J32: 0
A33: 2.13 | B33: =IF(COUNTA(#REF!)>0,VLOOKUP($A33,'PLANILHA SINTÉTICA'!$A$10:$T$1083,2,0),"") -> Alvenaria de tijolos de 8 furos, assentados e rejuntados com argamassa de cimento e areia no traço 1:6 - 1 vez. | C33: =IF(COUNTA(A33)>0,VLOOKUP($A33,'[8]PLANILHA SINTÉTICA'!$A$9:$U$1082,3,0),"") -> 435446-0 | D33: =IF(COUNTA(A33)>0,VLOOKUP($A33,'PLANILHA SINTÉTICA'!$A$10:$T$1083,4,0),"") -> 455 | E33: =IF(COUNTA(A33)>0,VLOOKUP($A33,'PLANILHA SINTÉTICA'!$A$10:$T$1083,5,0),"") -> 443.87 | F33: =IF(ISERROR(VLOOKUP($A33,#REF!,8,0)),0,(VLOOKUP($A33,#REF!,8,0))) -> 0 | G33: =IF(COUNTA(A33)>0,VLOOKUP($A33,'[8]PLANILHA SINTÉTICA'!$A$9:$AC$1082,15,0),"") -> 66.477944 | H33: 0 | I33: 14.79 | J33: 0
A34: 16.15 | B34: =IF(COUNTA(#REF!)>0,VLOOKUP($A34,'PLANILHA SINTÉTICA'!$A$10:$T$1083,2,0),"") -> Fornecimento e assentamento de tubos soldáveis de PVC rígido diâmetro 75 mm, inclusive conexões e abertura de rasgos em alvenaria, para colunas de água e barriletes. | C34: =IF(COUNTA(A34)>0,VLOOKUP($A34,'[8]PLANILHA SINTÉTICA'!$A$9:$U$1082,3,0),"") -> 436162-8 | D34: =IF(COUNTA(A34)>0,VLOOKUP($A34,'PLANILHA SINTÉTICA'!$A$10:$T$1083,4,0),"") -> 20 | E34: =IF(COUNTA(A34)>0,VLOOKUP($A34,'PLANILHA SINTÉTICA'!$A$10:$T$1083,5,0),"") -> 20 | F34: =IF(ISERROR(VLOOKUP($A34,#REF!,8,0)),0,(VLOOKUP($A34,#REF!,8,0))) -> 0 | G34: =IF(COUNTA(A34)>0,VLOOKUP($A34,'[8]PLANILHA SINTÉTICA'!$A$9:$AC$1082,15,0),"") -> 42.007262 | H34: 0 | I34: 9.35 | J34: 0
A35: 16.6 | B35: =IF(COUNTA(#REF!)>0,VLOOKUP($A35,'PLANILHA SINTÉTICA'!$A$10:$T$1083,2,0),"") -> Caixa coletora de inspeção ou de areia com paredes em alvenaria, laje de tampa e de fundo em concreto, revestida internamente com argamassa de cimento e areia 1:4, dimensões internas 0,60 x 0,60m, com profundidade até 1,0m com inscrição em baixo relevo. | C35: =IF(COUNTA(A35)>0,VLOOKUP($A35,'[8]PLANILHA SINTÉTICA'!$A$9:$U$1082,3,0),"") -> 436177-6 | D35: =IF(COUNTA(A35)>0,VLOOKUP($A35,'PLANILHA SINTÉTICA'!$A$10:$T$1083,4,0),"") -> 32 | E35: =IF(COUNTA(A35)>0,VLOOKUP($A35,'PLANILHA SINTÉTICA'!$A$10:$T$1083,5,0),"") -> 28 | F35: =IF(ISERROR(VLOOKUP($A35,#REF!,8,0)),0,(VLOOKUP($A35,#REF!,8,0))) -> 0 | G35: =IF(COUNTA(A35)>0,VLOOKUP($A35,'[8]PLANILHA SINTÉTICA'!$A$9:$AC$1082,15,0),"") -> 398.098512 | H35: 0 | I35: 88.58 | J35: 0
A36: 16.7 | B36: =IF(COUNTA(#REF!)>0,VLOOKUP($A36,'PLANILHA SINTÉTICA'!$A$10:$T$1083,2,0),"") -> Caixa de gordura com paredes em alvenaria, laje de tampa e de fundo em concreto, revestida internamente com argamassa de cimento e areia 1:4, dimensões internas 0,50 x 0,50 x 0,50m com chicana de concreto. | C36: =IF(COUNTA(A36)>0,VLOOKUP($A36,'[8]PLANILHA SINTÉTICA'!$A$9:$U$1082,3,0),"") -> 436178-4 | D36: =IF(COUNTA(A36)>0,VLOOKUP($A36,'PLANILHA SINTÉTICA'!$A$10:$T$1083,4,0),"") -> 3 | E36: =IF(COUNTA(A36)>0,VLOOKUP($A36,'PLANILHA SINTÉTICA'!$A$10:$T$1083,5,0),"") -> 3 | F36: =IF(ISERROR(VLOOKUP($A36,#REF!,8,0)),0,(VLOOKUP($A36,#REF!,8,0))) -> 0 | G36: =IF(COUNTA(A36)>0,VLOOKUP($A36,'[8]PLANILHA SINTÉTICA'!$A$9:$AC$1082,15,0),"") -> 247.857136 | H36: 0 | I36: 55.15 | J36: 0
A37: 16.10 | B37: =IF(COUNTA(#REF!)>0,VLOOKUP($A37,'PLANILHA SINTÉTICA'!$A$10:$T$1083,2,0),"") -> Fornecimento e assentamento de tubos soldáveis de PVC rígido diâmetro 32 mm, inclusive conexões abertura e fechamento de valas para alimentador predial. (dreno ar condicionado) | C37: =IF(COUNTA(A37)>0,VLOOKUP($A37,'[8]PLANILHA SINTÉTICA'!$A$9:$U$1082,3,0),"") -> 460516-0 | D37: =IF(COUNTA(A37)>0,VLOOKUP($A37,'PLANILHA SINTÉTICA'!$A$10:$T$1083,4,0),"") -> 1490 | E37: =IF(COUNTA(A37)>0,VLOOKUP($A37,'PLANILHA SINTÉTICA'!$A$10:$T$1083,5,0),"") -> 594.43 | F37: =IF(ISERROR(VLOOKUP($A37,#REF!,8,0)),0,(VLOOKUP($A37,#REF!,8,0))) -> 0 | G37: =IF(COUNTA(A37)>0,VLOOKUP($A37,'[8]PLANILHA SINTÉTICA'!$A$9:$AC$1082,15,0),"") -> 13.375562 | H37: 0 | I37: 2.98 | J37: 0
A38: 11.1 | B38: =IF(COUNTA(#REF!)>0,VLOOKUP($A38,'PLANILHA SINTÉTICA'!$A$10:$T$1083,2,0),"") -> Fornecimento e instalação de Gradil externo Eletrogradi Sitela ou equivalente, cor verde, conforme detalhe. (Entrada PRINCIPAL) | C38: =IF(COUNTA(A38)>0,VLOOKUP($A38,'[8]PLANILHA SINTÉTICA'!$A$9:$U$1082,3,0),"") -> 460845-3 | D38: =IF(COUNTA(A38)>0,VLOOKUP($A38,'PLANILHA SINTÉTICA'!$A$10:$T$1083,4,0),"") -> 137 | E38: =IF(COUNTA(A38)>0,VLOOKUP($A38,'PLANILHA SINTÉTICA'!$A$10:$T$1083,5,0),"") -> 136.18 | F38: =IF(ISERROR(VLOOKUP($A38,#REF!,8,0)),0,(VLOOKUP($A38,#REF!,8,0))) -> 0 | G38: =IF(COUNTA(A38)>0,VLOOKUP($A38,'[8]PLANILHA SINTÉTICA'!$A$9:$AC$1082,15,0),"") -> 232.946782 | H38: 0 | I38: 51.83 | J38: 0
A39: 18.23 | B39: =IF(COUNTA(#REF!)>0,VLOOKUP($A39,'PLANILHA SINTÉTICA'!$A$10:$T$1083,2,0),"") -> Lastro de concreto, espessura 5cm, preparo mecânico, inclusos lançamento e adensamento. | C39: =IF(COUNTA(A39)>0,VLOOKUP($A39,'[8]PLANILHA SINTÉTICA'!$A$9:$U$1082,3,0),"") -> 460897-6 | D39: =IF(COUNTA(A39)>0,VLOOKUP($A39,'PLANILHA SINTÉTICA'!$A$10:$T$1083,4,0),"") -> 156 | E39: =IF(COUNTA(A39)>0,VLOOKUP($A39,'PLANILHA SINTÉTICA'!$A$10:$T$1083,5,0),"") -> 99.68 | F39: =IF(ISERROR(VLOOKUP($A39,#REF!,8,0)),0,(VLOOKUP($A39,#REF!,8,0))) -> 0 | G39: =IF(COUNTA(A39)>0,VLOOKUP($A39,'[8]PLANILHA SINTÉTICA'!$A$9:$AC$1082,15,0),"") -> 14.924582 | H39: 0 | I39: 3.32 | J39: 0
A40: 20.16 | B40: =IF(COUNTA(#REF!)>0,VLOOKUP($A40,'PLANILHA SINTÉTICA'!$A$10:$T$1083,2,0),"") -> Lastro de concreto, espessura 5cm, preparo mecânico, inclusos lançamento e adensamento. | C40: =IF(COUNTA(A40)>0,VLOOKUP($A40,'[8]PLANILHA SINTÉTICA'!$A$9:$U$1082,3,0),"") -> 460897-6 | D40: =IF(COUNTA(A40)>0,VLOOKUP($A40,'PLANILHA SINTÉTICA'!$A$10:$T$1083,4,0),"") -> 25.3 | E40: =IF(COUNTA(A40)>0,VLOOKUP($A40,'PLANILHA SINTÉTICA'!$A$10:$T$1083,5,0),"") -> 23.4 | F40: =IF(ISERROR(VLOOKUP($A40,#REF!,8,0)),0,(VLOOKUP($A40,#REF!,8,0))) -> 0 | G40: =IF(COUNTA(A40)>0,VLOOKUP($A40,'[8]PLANILHA SINTÉTICA'!$A$9:$AC$1082,15,0),"") -> 14.924582 | H40: =ROUND(G40*F40,2) -> 0 | I40: 3.32 | J40: 0
A41: 8.18 | B41: =IF(COUNTA(#REF!)>0,VLOOKUP($A41,'PLANILHA SINTÉTICA'!$A$10:$T$1083,2,0),"") -> Fornecimento e instalação de Bancada com 2,00m de comprimento para DEFENSORIA em granito polido Verde Ubatuba composta por tampo superior e inferior, inclusive montante bipolido com borda arredondada, testeira medindo 10cm; revestimento frontal e posterior, conforme detalhe 05/45. | C41: =IF(COUNTA(A41)>0,VLOOKUP($A41,'[8]PLANILHA SINTÉTICA'!$A$9:$U$1082,3,0),"") -> 462174-3 | D41: =IF(COUNTA(A41)>0,VLOOKUP($A41,'PLANILHA SINTÉTICA'!$A$10:$T$1083,4,0),"") -> 1 | E41: =IF(COUNTA(A41)>0,VLOOKUP($A41,'PLANILHA SINTÉTICA'!$A$10:$T$1083,5,0),"") -> 1 | F41: =IF(ISERROR(VLOOKUP($A41,#REF!,8,0)),0,(VLOOKUP($A41,#REF!,8,0))) -> 0 | G41: =IF(COUNTA(A41)>0,VLOOKUP($A41,'[8]PLANILHA SINTÉTICA'!$A$9:$AC$1082,15,0),"") -> 2773.703464 | H41: 0 | I41: 617.15 | J41: 0
A42: 29.13.09 | B42: =IF(COUNTA(#REF!)>0,VLOOKUP($A42,'PLANILHA SINTÉTICA'!$A$10:$T$1083,2,0),"") -> Quadro de distribuição metálico de embutir, em chapa 16 BWG, para 16 circuitos monopolares padrão DIN, com barra de neutro e terra, com porta e trinco, Cemar ou equivalente, inclusive instalação conforme projeto. | C42: =IF(COUNTA(A42)>0,VLOOKUP($A42,'[8]PLANILHA SINTÉTICA'!$A$9:$U$1082,3,0),"") -> 463747-0 | D42: =IF(COUNTA(A42)>0,VLOOKUP($A42,'PLANILHA SINTÉTICA'!$A$10:$T$1083,4,0),"") -> 2 | E42: =IF(COUNTA(A42)>0,VLOOKUP($A42,'PLANILHA SINTÉTICA'!$A$10:$T$1083,5,0),"") -> 2 | F42: =IF(ISERROR(VLOOKUP($A42,#REF!,8,0)),0,(VLOOKUP($A42,#REF!,8,0))) -> 0 | G42: =IF(COUNTA(A42)>0,VLOOKUP($A42,'[8]PLANILHA SINTÉTICA'!$A$9:$AC$1082,15,0),"") -> 279.130258 | H42: 0 | I42: 62.11 | J42: 0
A43: 29.01.03 | B43: =IF(COUNTA(#REF!)>0,VLOOKUP($A43,'PLANILHA SINTÉTICA'!$A$10:$T$1083,2,0),"") -> Ponto para interruptor de uma seção em Dry-Wall, composto por fiação em cabo de 2,5mm² AFUMEX, ATOX, AFITOX ou equivalente (Não-Halogenado), isolação 750V., eletroduto de PVC rígido de 3/4", eletroduto corrugado de 25mm, com luva de rosca intern, luva de pressão, curva e acessórios até o ponto de luz. | C43: =IF(COUNTA(A43)>0,VLOOKUP($A43,'[8]PLANILHA SINTÉTICA'!$A$9:$U$1082,3,0),"") -> 464023-3 | D43: =IF(COUNTA(A43)>0,VLOOKUP($A43,'PLANILHA SINTÉTICA'!$A$10:$T$1083,4,0),"") -> 64 | E43: =IF(COUNTA(A43)>0,VLOOKUP($A43,'PLANILHA SINTÉTICA'!$A$10:$T$1083,5,0),"") -> 64 | F43: =IF(ISERROR(VLOOKUP($A43,#REF!,8,0)),0,(VLOOKUP($A43,#REF!,8,0))) -> 0 | G43: =IF(COUNTA(A43)>0,VLOOKUP($A43,'[8]PLANILHA SINTÉTICA'!$A$9:$AC$1082,15,0),"") -> 43.803816 | H43: 0 | I43: 9.75 | J43: 0
A44: 29.01.05 | B44: =IF(COUNTA(#REF!)>0,VLOOKUP($A44,'PLANILHA SINTÉTICA'!$A$10:$T$1083,2,0),"") -> Ponto para interruptor de duas seções em Dry-Wall, composto por fiação em cabo AFUMEX, ATOX, AFITOX ou equivalente (Não-Halogenado), isolação 750V., de 2,5mm², eletroduto de PVC rígido de 3/4", eletroduto corrugado de 25mm, com luva de rosca interna, luva de pressão, curva e acessórios até o ponto de luz. | C44: =IF(COUNTA(A44)>0,VLOOKUP($A44,'[8]PLANILHA SINTÉTICA'!$A$9:$U$1082,3,0),"") -> 464026-8 | D44: =IF(COUNTA(A44)>0,VLOOKUP($A44,'PLANILHA SINTÉTICA'!$A$10:$T$1083,4,0),"") -> 4 | E44: =IF(COUNTA(A44)>0,VLOOKUP($A44,'PLANILHA SINTÉTICA'!$A$10:$T$1083,5,0),"") -> 4 | F44: =IF(ISERROR(VLOOKUP($A44,#REF!,8,0)),0,(VLOOKUP($A44,#REF!,8,0))) -> 0 | G44: =IF(COUNTA(A44)>0,VLOOKUP($A44,'[8]PLANILHA SINTÉTICA'!$A$9:$AC$1082,15,0),"") -> 50.473168 | H44: 0 | I44: 11.23 | J44: 0
A45: 10.1 | B45: =IF(COUNTA(#REF!)>0,VLOOKUP($A45,'PLANILHA SINTÉTICA'!$A$10:$T$1083,2,0),"") -> Fornecimento e instalação de esquadrias tipo "PELE DE VIDRO", em alumínio anodizado cor bronze, com vidro laminado refletivo 6mm na cor verde, composta por painéis fixos e painéis de abrir tipo maximar, inclusive fechos e braços articulados em alumínio anodizado bronze, conforme projetos. (EPV1) | C45: =IF(COUNTA(A45)>0,VLOOKUP($A45,'[8]PLANILHA SINTÉTICA'!$A$9:$U$1082,3,0),"") -> 464030-6 | D45: =IF(COUNTA(A45)>0,VLOOKUP($A45,'PLANILHA SINTÉTICA'!$A$10:$T$1083,4,0),"") -> 292 | E45: =IF(COUNTA(A45)>0,VLOOKUP($A45,'PLANILHA SINTÉTICA'!$A$10:$T$1083,5,0),"") -> 292 | F45: =IF(ISERROR(VLOOKUP($A45,#REF!,8,0)),0,(VLOOKUP($A45,#REF!,8,0))) -> 0 | G45: =IF(COUNTA(A45)>0,VLOOKUP($A45,'[8]PLANILHA SINTÉTICA'!$A$9:$AC$1082,15,0),"") -> 1052.222988 | H45: 0 | I45: 234.12 | J45: 0
A46: 29.01.11 | B46: =IF(COUNTA(#REF!)>0,VLOOKUP($A46,'PLANILHA SINTÉTICA'!$A$10:$T$1083,2,0),"") -> Ponto para tomada universal (2p+t) em Dry-Wall, inclusive fiação em cabo AFUMEX, ATOX, AFITOX ou equivalente (Não-Halogenado), isolação 750V., de 2,5mm² e eletroduto de PVC rígido de 3/4", eletroduto corrugado de 25mm, com luva de rosca interna, curva e acessórios até outro ponto/eletrocalha. | C46: =IF(COUNTA(A46)>0,VLOOKUP($A46,'[8]PLANILHA SINTÉTICA'!$A$9:$U$1082,3,0),"") -> 466619-4 | D46: =IF(COUNTA(A46)>0,VLOOKUP($A46,'PLANILHA SINTÉTICA'!$A$10:$T$1083,4,0),"") -> 156 | E46: =IF(COUNTA(A46)>0,VLOOKUP($A46,'PLANILHA SINTÉTICA'!$A$10:$T$1083,5,0),"") -> 148 | F46: =IF(ISERROR(VLOOKUP($A46,#REF!,8,0)),0,(VLOOKUP($A46,#REF!,8,0))) -> 0 | G46: =IF(COUNTA(A46)>0,VLOOKUP($A46,'[8]PLANILHA SINTÉTICA'!$A$9:$AC$1082,15,0),"") -> 94.96419 | H46: 0 | I46: 21.13 | J46: 0
A47: 8.42 | B47: =IF(COUNTA(#REF!)>0,VLOOKUP($A47,'PLANILHA SINTÉTICA'!$A$10:$T$1083,2,0),"") -> Fornecimento e instalação de piso (degrau) para ESCADA DE ACESSO PRINCIPAL em granito flamejado Verde Ubatuba com faixa antiderrapante com largura de 30cm, conforme detalhe 36/45. (DEGRAUS) | C47: =IF(COUNTA(A47)>0,VLOOKUP($A47,'[8]PLANILHA SINTÉTICA'!$A$9:$U$1082,3,0),"") -> 468567-9 | D47: =IF(COUNTA(A47)>0,VLOOKUP($A47,'PLANILHA SINTÉTICA'!$A$10:$T$1083,4,0),"") -> 93 | E47: =IF(COUNTA(A47)>0,VLOOKUP($A47,'PLANILHA SINTÉTICA'!$A$10:$T$1083,5,0),"") -> 93 | F47: =IF(ISERROR(VLOOKUP($A47,#REF!,8,0)),0,(VLOOKUP($A47,#REF!,8,0))) -> 0 | G47: =IF(COUNTA(A47)>0,VLOOKUP($A47,'[8]PLANILHA SINTÉTICA'!$A$9:$AC$1082,15,0),"") -> 96.443176 | H47: 0 | I47: 21.46 | J47: 0
A48: 8.32 | B48: =IF(COUNTA(#REF!)>0,VLOOKUP($A48,'PLANILHA SINTÉTICA'!$A$10:$T$1083,2,0),"") -> Fornecimento e instalação de Placas em granito polido Verde Ubatuba com acabamento bizotado de 1cm para revestimento da parede dos ELEVADORES, conforme detalhe 25/45. | C48: =IF(COUNTA(A48)>0,VLOOKUP($A48,'[8]PLANILHA SINTÉTICA'!$A$9:$U$1082,3,0),"") -> 470085-6 | D48: =IF(COUNTA(A48)>0,VLOOKUP($A48,'PLANILHA SINTÉTICA'!$A$10:$T$1083,4,0),"") -> 19 | E48: =IF(COUNTA(A48)>0,VLOOKUP($A48,'PLANILHA SINTÉTICA'!$A$10:$T$1083,5,0),"") -> 9.962 | F48: =IF(ISERROR(VLOOKUP($A48,#REF!,8,0)),0,(VLOOKUP($A48,#REF!,8,0))) -> 0 | G48: =IF(COUNTA(A48)>0,VLOOKUP($A48,'[8]PLANILHA SINTÉTICA'!$A$9:$AC$1082,15,0),"") -> 370.295486 | H48: 0 | I48: 82.39 | J48: 0
A49: 8.43 | B49: =IF(COUNTA(#REF!)>0,VLOOKUP($A49,'PLANILHA SINTÉTICA'!$A$10:$T$1083,2,0),"") -> Fornecimento e instalação de espelho para ESCADA DE ACESSO PRINCIPAL em granito polido Verde Ubatuba com altura de 18cm, conforme detalhe 36/45. | C49: =IF(COUNTA(A49)>0,VLOOKUP($A49,'[8]PLANILHA SINTÉTICA'!$A$9:$U$1082,3,0),"") -> 470712-5 | D49: =IF(COUNTA(A49)>0,VLOOKUP($A49,'PLANILHA SINTÉTICA'!$A$10:$T$1083,4,0),"") -> 93 | E49: =IF(COUNTA(A49)>0,VLOOKUP($A49,'PLANILHA SINTÉTICA'!$A$10:$T$1083,5,0),"") -> 93 | F49: =IF(ISERROR(VLOOKUP($A49,#REF!,8,0)),0,(VLOOKUP($A49,#REF!,8,0))) -> 0 | G49: =IF(COUNTA(A49)>0,VLOOKUP($A49,'[8]PLANILHA SINTÉTICA'!$A$9:$AC$1082,15,0),"") -> 53.36021 | H49: 0 | I49: 11.87 | J49: 0
A50: 8.48 | B50: =IF(COUNTA(#REF!)>0,VLOOKUP($A50,'PLANILHA SINTÉTICA'!$A$10:$T$1083,2,0),"") -> Fornecimento e instalação de Piso em granito flamejado Verde Ubatuba em placas de 50x50cm com acabamento bizotado de 1cm para RAMPA E ESCADA, conforme detalhe 36/45. | C50: =IF(COUNTA(A50)>0,VLOOKUP($A50,'[8]PLANILHA SINTÉTICA'!$A$9:$U$1082,3,0),"") -> 470715-0 | D50: =IF(COUNTA(A50)>0,VLOOKUP($A50,'PLANILHA SINTÉTICA'!$A$10:$T$1083,4,0),"") -> 98 | E50: =IF(COUNTA(A50)>0,VLOOKUP($A50,'PLANILHA SINTÉTICA'!$A$10:$T$1083,5,0),"") -> 98 | F50: =IF(ISERROR(VLOOKUP($A50,#REF!,8,0)),0,(VLOOKUP($A50,#REF!,8,0))) -> 0 | G50: =IF(COUNTA(A50)>0,VLOOKUP($A50,'[8]PLANILHA SINTÉTICA'!$A$9:$AC$1082,15,0),"") -> 370.295486 | H50: 0 | I50: 82.39 | J50: 0
A51: 29.11.01 | B51: =IF(COUNTA(#REF!)>0,VLOOKUP($A51,'PLANILHA SINTÉTICA'!$A$10:$T$1083,2,0),"") -> Ponto para tomada estabilizada (computador) em alvenaria/piso, composto por fiação em cabo AFUMEX, ATOX, AFITOX ou equivalente (Não-Halogenado), isolação 750V., de 4,0mm² eletroduto de PVC rígido de 3/4", com luva de rosca interna, curvas e demais acessórios. | C51: =IF(COUNTA(A51)>0,VLOOKUP($A51,'[8]PLANILHA SINTÉTICA'!$A$9:$U$1082,3,0),"") -> 470841-5 | D51: =IF(COUNTA(A51)>0,VLOOKUP($A51,'PLANILHA SINTÉTICA'!$A$10:$T$1083,4,0),"") -> 102 | E51: =IF(COUNTA(A51)>0,VLOOKUP($A51,'PLANILHA SINTÉTICA'!$A$10:$T$1083,5,0),"") -> 102 | F51: =IF(ISERROR(VLOOKUP($A51,#REF!,8,0)),0,(VLOOKUP($A51,#REF!,8,0))) -> 0 | G51: =IF(COUNTA(A51)>0,VLOOKUP($A51,'[8]PLANILHA SINTÉTICA'!$A$9:$AC$1082,15,0),"") -> 141.326578 | H51: 0 | I51: 31.45 | J51: 0
A52: 29.11.02 | B52: =IF(COUNTA(#REF!)>0,VLOOKUP($A52,'PLANILHA SINTÉTICA'!$A$10:$T$1083,2,0),"") -> Ponto para tomada estabilizada (computador) em Dry-Wall, composto por fiação em cabo de 4,0mm² e eletroduto de PVC rígido de 3/4", eletroduto corrugado de 25mm, com luva de rosca interna, curvas e demais acessórios. | C52: =IF(COUNTA(A52)>0,VLOOKUP($A52,'[8]PLANILHA SINTÉTICA'!$A$9:$U$1082,3,0),"") -> 470843-1 | D52: =IF(COUNTA(A52)>0,VLOOKUP($A52,'PLANILHA SINTÉTICA'!$A$10:$T$1083,4,0),"") -> 143 | E52: =IF(COUNTA(A52)>0,VLOOKUP($A52,'PLANILHA SINTÉTICA'!$A$10:$T$1083,5,0),"") -> 143 | F52: =IF(ISERROR(VLOOKUP($A52,#REF!,8,0)),0,(VLOOKUP($A52,#REF!,8,0))) -> 0 | G52: =IF(COUNTA(A52)>0,VLOOKUP($A52,'[8]PLANILHA SINTÉTICA'!$A$9:$AC$1082,15,0),"") -> 147.208796 | H52: 0 | I52: 32.75 | J52: 0
A53: 29.11.16 | B53: =IF(COUNTA(#REF!)>0,VLOOKUP($A53,'PLANILHA SINTÉTICA'!$A$10:$T$1083,2,0),"") -> Quadro de distribuição metálico de sobrepor, em chapa 16 BWG, para 8 circuitos monopolares padrão DIN, com barra de neutro e terra, com porta e trinco, Cemar ou equivalente, inclusive instalação conforme projeto. | C53: =IF(COUNTA(A53)>0,VLOOKUP($A53,'[8]PLANILHA SINTÉTICA'!$A$9:$U$1082,3,0),"") -> 471384-2 | D53: =IF(COUNTA(A53)>0,VLOOKUP($A53,'PLANILHA SINTÉTICA'!$A$10:$T$1083,4,0),"") -> 4 | E53: =IF(COUNTA(A53)>0,VLOOKUP($A53,'PLANILHA SINTÉTICA'!$A$10:$T$1083,5,0),"") -> 3 | F53: =IF(ISERROR(VLOOKUP($A53,#REF!,8,0)),0,(VLOOKUP($A53,#REF!,8,0))) -> 0 | G53: =IF(COUNTA(A53)>0,VLOOKUP($A53,'[8]PLANILHA SINTÉTICA'!$A$9:$AC$1082,15,0),"") -> 264.277024 | H53: 0 | I53: 58.8 | J53: 0
A54: 29.07.09 | B54: =IF(COUNTA(#REF!)>0,VLOOKUP($A54,'PLANILHA SINTÉTICA'!$A$10:$T$1083,2,0),"") -> Cabo paralelo em fio de cobre, isolamento em PVC - 70 C,de 2x1,5 mm² para instalação do sistema de som, inclusive instalação em eletroduto/eletrocalha. | C54: =IF(COUNTA(A54)>0,VLOOKUP($A54,'[8]PLANILHA SINTÉTICA'!$A$9:$U$1082,3,0),"") -> 471409-1 | D54: =IF(COUNTA(A54)>0,VLOOKUP($A54,'PLANILHA SINTÉTICA'!$A$10:$T$1083,4,0),"") -> 317 | E54: =IF(COUNTA(A54)>0,VLOOKUP($A54,'PLANILHA SINTÉTICA'!$A$10:$T$1083,5,0),"") -> 264 | F54: =IF(ISERROR(VLOOKUP($A54,#REF!,8,0)),0,(VLOOKUP($A54,#REF!,8,0))) -> 0 | G54: =IF(COUNTA(A54)>0,VLOOKUP($A54,'[8]PLANILHA SINTÉTICA'!$A$9:$AC$1082,15,0),"") -> 4.411548 | H54: 0 | I54: 0.98 | J54: 0
A55: 29.12.08 | B55: =IF(COUNTA(#REF!)>0,VLOOKUP($A55,'PLANILHA SINTÉTICA'!$A$10:$T$1083,2,0),"") -> Quadro de distribuição metálico de sobrepor, em chapa 16 BWG, para 16circuitos monopolares padrão DIN, com barra de neutro e terra, com porta e trinco, Cemar ou equivalente, inclusive instalação conforme projeto. | C55: =IF(COUNTA(A55)>0,VLOOKUP($A55,'[8]PLANILHA SINTÉTICA'!$A$9:$U$1082,3,0),"") -> 472784-3 | D55: =IF(COUNTA(A55)>0,VLOOKUP($A55,'PLANILHA SINTÉTICA'!$A$10:$T$1083,4,0),"") -> 1 | E55: =IF(COUNTA(A55)>0,VLOOKUP($A55,'PLANILHA SINTÉTICA'!$A$10:$T$1083,5,0),"") -> 1 | F55: =IF(ISERROR(VLOOKUP($A55,#REF!,8,0)),0,(VLOOKUP($A55,#REF!,8,0))) -> 0 | G55: =IF(COUNTA(A55)>0,VLOOKUP($A55,'[8]PLANILHA SINTÉTICA'!$A$9:$AC$1082,15,0),"") -> 313.061596 | H55: 0 | I55: 69.66 | J55: 0
A56: 10.20 | B56: =IF(COUNTA(#REF!)>0,VLOOKUP($A56,'PLANILHA SINTÉTICA'!$A$10:$T$1083,2,0),"") -> Fornecimento e instalação de janela em alumínio anodizado bronze tipo correr, com vidro liso verde, espessura de 6mm, dimensão (14,58x1,70)m - JAV1. (Fachada Frontal - DET 01/36) | C56: =IF(COUNTA(A56)>0,VLOOKUP($A56,'[8]PLANILHA SINTÉTICA'!$A$9:$U$1082,3,0),"") -> 481929-2 | D56: =IF(COUNTA(A56)>0,VLOOKUP($A56,'PLANILHA SINTÉTICA'!$A$10:$T$1083,4,0),"") -> 12 | E56: =IF(COUNTA(A56)>0,VLOOKUP($A56,'PLANILHA SINTÉTICA'!$A$10:$T$1083,5,0),"") -> 12 | F56: =IF(ISERROR(VLOOKUP($A56,#REF!,8,0)),0,(VLOOKUP($A56,#REF!,8,0))) -> 0 | G56: =IF(COUNTA(A56)>0,VLOOKUP($A56,'[8]PLANILHA SINTÉTICA'!$A$9:$AC$1082,15,0),"") -> 10987.95627 | H56: 0 | I56: 2444.82 | J56: 0
A57: 32.25 | B57: =IF(COUNTA(#REF!)>0,VLOOKUP($A57,'PLANILHA SINTÉTICA'!$A$10:$T$1083,2,0),"") -> Fornecimento e instalação de dutos em chapa de aço galvanizada bitola nº 24, incluindo acessórios de sustentação. | C57: =IF(COUNTA(A57)>0,VLOOKUP($A57,'[8]PLANILHA SINTÉTICA'!$A$9:$U$1082,3,0),"") -> 484196-4 | D57: =IF(COUNTA(A57)>0,VLOOKUP($A57,'PLANILHA SINTÉTICA'!$A$10:$T$1083,4,0),"") -> 432.29 | E57: =IF(COUNTA(A57)>0,VLOOKUP($A57,'PLANILHA SINTÉTICA'!$A$10:$T$1083,5,0),"") -> 432.29 | F57: =IF(ISERROR(VLOOKUP($A57,#REF!,8,0)),0,(VLOOKUP($A57,#REF!,8,0))) -> 0 | G57: =IF(COUNTA(A57)>0,VLOOKUP($A57,'[8]PLANILHA SINTÉTICA'!$A$9:$AC$1082,15,0),"") -> 49.695824 | H57: 0 | I57: 11.06 | J57: 0
A58: 32.26 | B58: =IF(COUNTA(#REF!)>0,VLOOKUP($A58,'PLANILHA SINTÉTICA'!$A$10:$T$1083,2,0),"") -> Fornecimento e instalação de dutos em chapa de aço galvanizada bitola nº 26, incluindo acessórios de sustentação. | C58: =IF(COUNTA(A58)>0,VLOOKUP($A58,'[8]PLANILHA SINTÉTICA'!$A$9:$U$1082,3,0),"") -> 484197-2 | D58: =IF(COUNTA(A58)>0,VLOOKUP($A58,'PLANILHA SINTÉTICA'!$A$10:$T$1083,4,0),"") -> 570.31 | E58: =IF(COUNTA(A58)>0,VLOOKUP($A58,'PLANILHA SINTÉTICA'!$A$10:$T$1083,5,0),"") -> 570.31 | F58: =IF(ISERROR(VLOOKUP($A58,#REF!,8,0)),0,(VLOOKUP($A58,#REF!,8,0))) -> 0 | G58: =IF(COUNTA(A58)>0,VLOOKUP($A58,'[8]PLANILHA SINTÉTICA'!$A$9:$AC$1082,15,0),"") -> 39.021976 | H58: 0 | I58: 8.68 | J58: 0
G59: TOTAL DA 49ª MEDIÇÃO | H59: =SUM(H8:H58) -> 0 | I59: Reajuste obra | J59: =SUM(J8:J58) -> 0 | K59: Reajuste Equip. | L59: =SUM(L8:L58) -> 0
I60: TOTAL DO REAJUSTE | J60: =J59+L59 -> 0

Sheet REEQUILÍBRIO 50ª (hidden)
A1: ' | B1: PODER JUDICIÁRIO | F1: Obra: | G1: =#REF! ->  | I1: REEQUILÍBRIO ECONÔMICO FINANCEIRO DA 49ª MEDIÇÃO CONFORME O 7º TA.
B2: TRIBUNAL DE JUSTIÇA DE PERNAMBUCO | F2: Local: | G2: =#REF! -> 
B3: DIRETORIA DE ENGENHARIA E ARQUITETURA | F3: Contrato: | G3: =#REF! -> 
B4: PLANILHA PARA LIQUIDAÇÃO - 49ª MEDIÇÃO | F4: Contratada: | G4: =#REF! -> 
G5: DATA: | H5: 2022-02-10 | I5: REEQUILIBRIO | K5: REEQUILIBRIO
A6: Item | B6: Código | C6: Cód. Efisco | D6: Discriminação/especificação dos serviços | E6: UNID | F6: QUANT | G6: SERVIÇO | I6: OBRA | K6: EQUIPAMENTO
G7: P. UNIT. | H7: P. PARCIAL | I7: P. UNIT. | J7: P. PARCIAL | K7: P. UNIT. | L7: P. PARCIAL
A8: 1.2 | B8: =IF(COUNTA(#REF!)>0,VLOOKUP($A8,'PLANILHA SINTÉTICA'!$A$10:$T$1083,2,0),"") -> Administração local pelo período da obra. | C8: =IF(COUNTA(A8)>0,VLOOKUP($A8,'[8]PLANILHA SINTÉTICA'!$A$9:$U$1082,3,0),"") -> 401010-8 | D8: =IF(COUNTA(A8)>0,VLOOKUP($A8,'PLANILHA SINTÉTICA'!$A$10:$T$1083,4,0),"") -> 18 | E8: =IF(COUNTA(A8)>0,VLOOKUP($A8,'PLANILHA SINTÉTICA'!$A$10:$T$1083,5,0),"") -> 17.8366 | F8: =IF(ISERROR(VLOOKUP($A8,#REF!,8,0)),0,(VLOOKUP($A8,#REF!,8,0))) -> 0 | G8: =IF(COUNTA(A8)>0,VLOOKUP($A8,'[8]PLANILHA SINTÉTICA'!$A$9:$AC$1082,15,0),"") -> 124499.8247 | H8: =ROUND(G8*F8,2) -> 0
A9: 1.25 | B9: =IF(COUNTA(#REF!)>0,VLOOKUP($A9,'PLANILHA SINTÉTICA'!$A$10:$T$1083,2,0),"") -> Desmontagem de andaimes do tipo fachadeiro inclusive carregamento, descarregamento e transporte posto/obra | C9: =IF(COUNTA(A9)>0,VLOOKUP($A9,'[8]PLANILHA SINTÉTICA'!$A$9:$U$1082,3,0),"") -> 411687-9 | D9: =IF(COUNTA(A9)>0,VLOOKUP($A9,'PLANILHA SINTÉTICA'!$A$10:$T$1083,4,0),"") -> 3784 | E9: =IF(COUNTA(A9)>0,VLOOKUP($A9,'PLANILHA SINTÉTICA'!$A$10:$T$1083,5,0),"") -> 3784 | F9: =IF(ISERROR(VLOOKUP($A9,#REF!,8,0)),0,(VLOOKUP($A9,#REF!,8,0))) -> 0 | G9: =IF(COUNTA(A9)>0,VLOOKUP($A9,'[8]PLANILHA SINTÉTICA'!$A$9:$AC$1082,15,0),"") -> 2.84876 | H9: 0
A10: 5.4 | B10: =IF(COUNTA(#REF!)>0,VLOOKUP($A10,'PLANILHA SINTÉTICA'!$A$10:$T$1083,2,0),"") -> Porcelanato Bianco polido, 62,5x62,5cm Elizabeth ou equivalente, assentadas com argamassa colante AC III Quartzolit ou equivalente e rejuntadas com argamassa de rejuntamento flexível Quartzolit ou equivalente. | C10: =IF(COUNTA(A10)>0,VLOOKUP($A10,'[8]PLANILHA SINTÉTICA'!$A$9:$U$1082,3,0),"") -> 428759-2 | D10: =IF(COUNTA(A10)>0,VLOOKUP($A10,'PLANILHA SINTÉTICA'!$A$10:$T$1083,4,0),"") -> 2463 | E10: =IF(COUNTA(A10)>0,VLOOKUP($A10,'PLANILHA SINTÉTICA'!$A$10:$T$1083,5,0),"") -> 2189.4114 | F10: =IF(ISERROR(VLOOKUP($A10,#REF!,8,0)),0,(VLOOKUP($A10,#REF!,8,0))) -> 0 | G10: =IF(COUNTA(A10)>0,VLOOKUP($A10,'[8]PLANILHA SINTÉTICA'!$A$9:$AC$1082,15,0),"") -> 70.864784 | H10: 0
A11: 7.3 | B11: =IF(COUNTA(#REF!)>0,VLOOKUP($A11,'PLANILHA SINTÉTICA'!$A$10:$T$1083,2,0),"") -> Fornecimento e assentamento de piso tátil DIRECIONAL em lajota de concreto, com dimensões (0,25x0,25)m, aplicado sobre lastro de concreto 1:4:8 com 5cm de espessura, inclusive execução de lastro. | C11: =IF(COUNTA(A11)>0,VLOOKUP($A11,'[8]PLANILHA SINTÉTICA'!$A$9:$U$1082,3,0),"") -> 428691-0 | D11: =IF(COUNTA(A11)>0,VLOOKUP($A11,'PLANILHA SINTÉTICA'!$A$10:$T$1083,4,0),"") -> 1.3 | E11: =IF(COUNTA(A11)>0,VLOOKUP($A11,'PLANILHA SINTÉTICA'!$A$10:$T$1083,5,0),"") -> 1.3 | F11: =IF(ISERROR(VLOOKUP($A11,#REF!,8,0)),0,(VLOOKUP($A11,#REF!,8,0))) -> 0 | G11: =IF(COUNTA(A11)>0,VLOOKUP($A11,'[8]PLANILHA SINTÉTICA'!$A$9:$AC$1082,15,0),"") -> 106.812894 | H11: 0
A12: 7.4 | B12: =IF(COUNTA(#REF!)>0,VLOOKUP($A12,'PLANILHA SINTÉTICA'!$A$10:$T$1083,2,0),"") -> Fornecimento e assentamento de piso tátil de ALERTA em lajota de concreto, com dimensões (0,25x0,25)m, aplicado sobre lastro de concreto 1:4:8 com 5cm de espessura, inclusive execução de lastro. | C12: =IF(COUNTA(A12)>0,VLOOKUP($A12,'[8]PLANILHA SINTÉTICA'!$A$9:$U$1082,3,0),"") -> 428692-8 | D12: =IF(COUNTA(A12)>0,VLOOKUP($A12,'PLANILHA SINTÉTICA'!$A$10:$T$1083,4,0),"") -> 7.3 | E12: =IF(COUNTA(A12)>0,VLOOKUP($A12,'PLANILHA SINTÉTICA'!$A$10:$T$1083,5,0),"") -> 7.3 | F12: =IF(ISERROR(VLOOKUP($A12,#REF!,8,0)),0,(VLOOKUP($A12,#REF!,8,0))) -> 0 | G12: =IF(COUNTA(A12)>0,VLOOKUP($A12,'[8]PLANILHA SINTÉTICA'!$A$9:$AC$1082,15,0),"") -> 106.812894 | H12: 0
A13: 8.41 | B13: =IF(COUNTA(#REF!)>0,VLOOKUP($A13,'PLANILHA SINTÉTICA'!$A$10:$T$1083,2,0),"") -> Fornecimento e assentamento de DIVIBOX em granito Verde Ubatuba medindo 7cm de altura e 4cm de espessura. | C13: =IF(COUNTA(A13)>0,VLOOKUP($A13,'[8]PLANILHA SINTÉTICA'!$A$9:$U$1082,3,0),"") -> 470735-4 | D13: =IF(COUNTA(A13)>0,VLOOKUP($A13,'PLANILHA SINTÉTICA'!$A$10:$T$1083,4,0),"") -> 4.8 | E13: =IF(COUNTA(A13)>0,VLOOKUP($A13,'PLANILHA SINTÉTICA'!$A$10:$T$1083,5,0),"") -> 4.8 | F13: =IF(ISERROR(VLOOKUP($A13,#REF!,8,0)),0,(VLOOKUP($A13,#REF!,8,0))) -> 0 | G13: =IF(COUNTA(A13)>0,VLOOKUP($A13,'[8]PLANILHA SINTÉTICA'!$A$9:$AC$1082,15,0),"") -> 48.792388 | H13: 0
A14: 8.43 | B14: =IF(COUNTA(#REF!)>0,VLOOKUP($A14,'PLANILHA SINTÉTICA'!$A$10:$T$1083,2,0),"") -> Fornecimento e instalação de espelho para ESCADA DE ACESSO PRINCIPAL em granito polido Verde Ubatuba com altura de 18cm, conforme detalhe 36/45. | C14: =IF(COUNTA(A14)>0,VLOOKUP($A14,'[8]PLANILHA SINTÉTICA'!$A$9:$U$1082,3,0),"") -> 470712-5 | D14: =IF(COUNTA(A14)>0,VLOOKUP($A14,'PLANILHA SINTÉTICA'!$A$10:$T$1083,4,0),"") -> 93 | E14: =IF(COUNTA(A14)>0,VLOOKUP($A14,'PLANILHA SINTÉTICA'!$A$10:$T$1083,5,0),"") -> 93 | F14: =IF(ISERROR(VLOOKUP($A14,#REF!,8,0)),0,(VLOOKUP($A14,#REF!,8,0))) -> 0 | G14: =IF(COUNTA(A14)>0,VLOOKUP($A14,'[8]PLANILHA SINTÉTICA'!$A$9:$AC$1082,15,0),"") -> 53.36021 | H14: 0
A15: 9.3 | B15: =IF(COUNTA(#REF!)>0,VLOOKUP($A15,'PLANILHA SINTÉTICA'!$A$10:$T$1083,2,0),"") -> Aplicação manual de pintura com tinta látex acrílica em paredes na cor branco neve, duas demãos. | C15: =IF(COUNTA(A15)>0,VLOOKUP($A15,'[8]PLANILHA SINTÉTICA'!$A$9:$U$1082,3,0),"") -> 432006-9 | D15: =IF(COUNTA(A15)>0,VLOOKUP($A15,'PLANILHA SINTÉTICA'!$A$10:$T$1083,4,0),"") -> 9217 | E15: =IF(COUNTA(A15)>0,VLOOKUP($A15,'PLANILHA SINTÉTICA'!$A$10:$T$1083,5,0),"") -> 7833.98 | F15: =IF(ISERROR(VLOOKUP($A15,#REF!,8,0)),0,(VLOOKUP($A15,#REF!,8,0))) -> 0 | G15: =IF(COUNTA(A15)>0,VLOOKUP($A15,'[8]PLANILHA SINTÉTICA'!$A$9:$AC$1082,15,0),"") -> 8.279482 | H15: 0
A16: 9.8 | B16: =IF(COUNTA(#REF!)>0,VLOOKUP($A16,'PLANILHA SINTÉTICA'!$A$10:$T$1083,2,0),"") -> Pintura acrílica de faixas de demarcação, 10 cm de largura (estacionamento). | C16: =IF(COUNTA(A16)>0,VLOOKUP($A16,'[8]PLANILHA SINTÉTICA'!$A$9:$U$1082,3,0),"") -> 469734-0 | D16: =IF(COUNTA(A16)>0,VLOOKUP($A16,'PLANILHA SINTÉTICA'!$A$10:$T$1083,4,0),"") -> 402 | E16: =IF(COUNTA(A16)>0,VLOOKUP($A16,'PLANILHA SINTÉTICA'!$A$10:$T$1083,5,0),"") -> 402 | F16: =IF(ISERROR(VLOOKUP($A16,#REF!,8,0)),0,(VLOOKUP($A16,#REF!,8,0))) -> 0 | G16: =IF(COUNTA(A16)>0,VLOOKUP($A16,'[8]PLANILHA SINTÉTICA'!$A$9:$AC$1082,15,0),"") -> 14.433002 | H16: 0
A17: 10.1 | B17: =IF(COUNTA(#REF!)>0,VLOOKUP($A17,'PLANILHA SINTÉTICA'!$A$10:$T$1083,2,0),"") -> Fornecimento e instalação de esquadrias tipo "PELE DE VIDRO", em alumínio anodizado cor bronze, com vidro laminado refletivo 6mm na cor verde, composta por painéis fixos e painéis de abrir tipo maximar, inclusive fechos e braços articulados em alumínio anodizado bronze, conforme projetos. (EPV1) | C17: =IF(COUNTA(A17)>0,VLOOKUP($A17,'[8]PLANILHA SINTÉTICA'!$A$9:$U$1082,3,0),"") -> 464030-6 | D17: =IF(COUNTA(A17)>0,VLOOKUP($A17,'PLANILHA SINTÉTICA'!$A$10:$T$1083,4,0),"") -> 292 | E17: =IF(COUNTA(A17)>0,VLOOKUP($A17,'PLANILHA SINTÉTICA'!$A$10:$T$1083,5,0),"") -> 292 | F17: =IF(ISERROR(VLOOKUP($A17,#REF!,8,0)),0,(VLOOKUP($A17,#REF!,8,0))) -> 0 | G17: =IF(COUNTA(A17)>0,VLOOKUP($A17,'[8]PLANILHA SINTÉTICA'!$A$9:$AC$1082,15,0),"") -> 1052.222988 | H17: 0 | I17: =G17*91.67% -> 964.5728131 | J17: =ROUND(F17*I17,2) -> 0
A18: 10.10 | B18: =IF(COUNTA(#REF!)>0,VLOOKUP($A18,'PLANILHA SINTÉTICA'!$A$10:$T$1083,2,0),"") -> Fornecimento e assentamento de Porta em esquadria de vidro temperado verde (PVT1), espessura 10mm, com duas folhas de abrir 1,15mx2,10m cada folha, inclusive ferragens, conforme detalhe. (Salão do Júri, auditório e espera -vara infância) | C18: =IF(COUNTA(A18)>0,VLOOKUP($A18,'[8]PLANILHA SINTÉTICA'!$A$9:$U$1082,3,0),"") -> 470832-6 | D18: =IF(COUNTA(A18)>0,VLOOKUP($A18,'PLANILHA SINTÉTICA'!$A$10:$T$1083,4,0),"") -> 3 | E18: =IF(COUNTA(A18)>0,VLOOKUP($A18,'PLANILHA SINTÉTICA'!$A$10:$T$1083,5,0),"") -> 3 | F18: =IF(ISERROR(VLOOKUP($A18,#REF!,8,0)),0,(VLOOKUP($A18,#REF!,8,0))) -> 0 | G18: =IF(COUNTA(A18)>0,VLOOKUP($A18,'[8]PLANILHA SINTÉTICA'!$A$9:$AC$1082,15,0),"") -> 2842.907672 | H18: 0
A19: 10.16 | B19: =IF(COUNTA(#REF!)>0,VLOOKUP($A19,'PLANILHA SINTÉTICA'!$A$10:$T$1083,2,0),"") -> Fornecimento e assentamento de Porta (PA5) em esquadria de alumínio anodizado bronze com venezianas industriais, de giro com uma folha dim (0,60x2,10m). (Laje condensadores) | C19: =IF(COUNTA(A19)>0,VLOOKUP($A19,'[8]PLANILHA SINTÉTICA'!$A$9:$U$1082,3,0),"") -> 470835-0 | D19: =IF(COUNTA(A19)>0,VLOOKUP($A19,'PLANILHA SINTÉTICA'!$A$10:$T$1083,4,0),"") -> 3 | E19: =IF(COUNTA(A19)>0,VLOOKUP($A19,'PLANILHA SINTÉTICA'!$A$10:$T$1083,5,0),"") -> 3 | F19: =IF(ISERROR(VLOOKUP($A19,#REF!,8,0)),0,(VLOOKUP($A19,#REF!,8,0))) -> 0 | G19: =IF(COUNTA(A19)>0,VLOOKUP($A19,'[8]PLANILHA SINTÉTICA'!$A$9:$AC$1082,15,0),"") -> 809.82499 | H19: 0 | I19: =G19*81.35% -> 658.7926294 | J19: =ROUND(F19*I19,2) -> 0
A20: 10.22 | B20: =IF(COUNTA(#REF!)>0,VLOOKUP($A20,'PLANILHA SINTÉTICA'!$A$10:$T$1083,2,0),"") -> Fornecimento e instalação de janela em alumínio anodizado bronze tipo correr, com vidro liso verde, espessura de 6mm, dimensão (7,28x1,70)m - JAV3. (Laje para condensadores - DET 02/36) | C20: =IF(COUNTA(A20)>0,VLOOKUP($A20,'[8]PLANILHA SINTÉTICA'!$A$9:$U$1082,3,0),"") -> 481936-5 | D20: =IF(COUNTA(A20)>0,VLOOKUP($A20,'PLANILHA SINTÉTICA'!$A$10:$T$1083,4,0),"") -> 1 | E20: =IF(COUNTA(A20)>0,VLOOKUP($A20,'PLANILHA SINTÉTICA'!$A$10:$T$1083,5,0),"") -> 1 | F20: =IF(ISERROR(VLOOKUP($A20,#REF!,8,0)),0,(VLOOKUP($A20,#REF!,8,0))) -> 0 | G20: =IF(COUNTA(A20)>0,VLOOKUP($A20,'[8]PLANILHA SINTÉTICA'!$A$9:$AC$1082,15,0),"") -> 5692.685858 | H20: 0 | I20: 4630.999945 | J20: 0
A21: 10.23 | B21: =IF(COUNTA(#REF!)>0,VLOOKUP($A21,'PLANILHA SINTÉTICA'!$A$10:$T$1083,2,0),"") -> Fornecimento e instalação de janela com porta de alumínio anodizado bronze tipo correr, com vidro liso verde, espessura de 6mm, dimensão (6,05x1,70)m e (1,23x2,80)m - JAV3. (Laje condensadores - DET 03/36) | C21: =IF(COUNTA(A21)>0,VLOOKUP($A21,'[8]PLANILHA SINTÉTICA'!$A$9:$U$1082,3,0),"") -> 482907-7 | D21: =IF(COUNTA(A21)>0,VLOOKUP($A21,'PLANILHA SINTÉTICA'!$A$10:$T$1083,4,0),"") -> 3 | E21: =IF(COUNTA(A21)>0,VLOOKUP($A21,'PLANILHA SINTÉTICA'!$A$10:$T$1083,5,0),"") -> 3 | F21: =IF(ISERROR(VLOOKUP($A21,#REF!,8,0)),0,(VLOOKUP($A21,#REF!,8,0))) -> 0 | G21: =IF(COUNTA(A21)>0,VLOOKUP($A21,'[8]PLANILHA SINTÉTICA'!$A$9:$AC$1082,15,0),"") -> 5947.738876 | H21: 0 | I21: 4838.485576 | J21: 0
A22: 10.24 | B22: =IF(COUNTA(#REF!)>0,VLOOKUP($A22,'PLANILHA SINTÉTICA'!$A$10:$T$1083,2,0),"") -> Fornecimento e instalação de janela em alumínio anodizado bronze tipo correr, com vidro liso verde, espessura de 6mm, dimensão (6,96x1,70)m - JAV4. (Laje condensadores - DET 03/36) | C22: =IF(COUNTA(A22)>0,VLOOKUP($A22,'[8]PLANILHA SINTÉTICA'!$A$9:$U$1082,3,0),"") -> 481937-3 | D22: =IF(COUNTA(A22)>0,VLOOKUP($A22,'PLANILHA SINTÉTICA'!$A$10:$T$1083,4,0),"") -> 4 | E22: =IF(COUNTA(A22)>0,VLOOKUP($A22,'PLANILHA SINTÉTICA'!$A$10:$T$1083,5,0),"") -> 4 | F22: =IF(ISERROR(VLOOKUP($A22,#REF!,8,0)),0,(VLOOKUP($A22,#REF!,8,0))) -> 0 | G22: =IF(COUNTA(A22)>0,VLOOKUP($A22,'[8]PLANILHA SINTÉTICA'!$A$9:$AC$1082,15,0),"") -> 5337.887436 | H22: 0 | I22: 4342.371429 | J22: 0
A23: 10.29 | B23: =IF(COUNTA(#REF!)>0,VLOOKUP($A23,'PLANILHA SINTÉTICA'!$A$10:$T$1083,2,0),"") -> Fornecimento e instalação de janela em alumínio anodizado bronze tipo correr, com vidro liso verde, espessura de 6mm, dimensão (5,13x1,70 + 1,30x2,80)m - JAV9. (Laje condensadores - DET 08/36) | C23: =IF(COUNTA(A23)>0,VLOOKUP($A23,'[8]PLANILHA SINTÉTICA'!$A$9:$U$1082,3,0),"") -> 482906-9 | D23: =IF(COUNTA(A23)>0,VLOOKUP($A23,'PLANILHA SINTÉTICA'!$A$10:$T$1083,4,0),"") -> 3 | E23: =IF(COUNTA(A23)>0,VLOOKUP($A23,'PLANILHA SINTÉTICA'!$A$10:$T$1083,5,0),"") -> 3 | F23: =IF(ISERROR(VLOOKUP($A23,#REF!,8,0)),0,(VLOOKUP($A23,#REF!,8,0))) -> 0 | G23: =IF(COUNTA(A23)>0,VLOOKUP($A23,'[8]PLANILHA SINTÉTICA'!$A$9:$AC$1082,15,0),"") -> 4024.80269 | H23: 0 | I23: 3274.176988 | J23: 0
A24: 10.30 | B24: =IF(COUNTA(#REF!)>0,VLOOKUP($A24,'PLANILHA SINTÉTICA'!$A$10:$T$1083,2,0),"") -> Fornecimento e instalação de janela em alumínio anodizado bronze tipo correr, com vidro liso verde, espessura de 6mm, dimensão (6,75x1,70)m - JAV10. (Laje condensadores - DET 09/36) | C24: =IF(COUNTA(A24)>0,VLOOKUP($A24,'[8]PLANILHA SINTÉTICA'!$A$9:$U$1082,3,0),"") -> 481941-1 | D24: =IF(COUNTA(A24)>0,VLOOKUP($A24,'PLANILHA SINTÉTICA'!$A$10:$T$1083,4,0),"") -> 3 | E24: =IF(COUNTA(A24)>0,VLOOKUP($A24,'PLANILHA SINTÉTICA'!$A$10:$T$1083,5,0),"") -> 3 | F24: =IF(ISERROR(VLOOKUP($A24,#REF!,8,0)),0,(VLOOKUP($A24,#REF!,8,0))) -> 0 | G24: =IF(COUNTA(A24)>0,VLOOKUP($A24,'[8]PLANILHA SINTÉTICA'!$A$9:$AC$1082,15,0),"") -> 5098.731792 | H24: 0 | I24: 4147.818313 | J24: 0
A25: 11.1 | B25: =IF(COUNTA(#REF!)>0,VLOOKUP($A25,'PLANILHA SINTÉTICA'!$A$10:$T$1083,2,0),"") -> Fornecimento e instalação de Gradil externo Eletrogradi Sitela ou equivalente, cor verde, conforme detalhe. (Entrada PRINCIPAL) | C25: =IF(COUNTA(A25)>0,VLOOKUP($A25,'[8]PLANILHA SINTÉTICA'!$A$9:$U$1082,3,0),"") -> 460845-3 | D25: =IF(COUNTA(A25)>0,VLOOKUP($A25,'PLANILHA SINTÉTICA'!$A$10:$T$1083,4,0),"") -> 137 | E25: =IF(COUNTA(A25)>0,VLOOKUP($A25,'PLANILHA SINTÉTICA'!$A$10:$T$1083,5,0),"") -> 136.18 | F25: =IF(ISERROR(VLOOKUP($A25,#REF!,8,0)),0,(VLOOKUP($A25,#REF!,8,0))) -> 0 | G25: =IF(COUNTA(A25)>0,VLOOKUP($A25,'[8]PLANILHA SINTÉTICA'!$A$9:$AC$1082,15,0),"") -> 232.946782 | H25: 0
A26: 11.4 | B26: =IF(COUNTA(#REF!)>0,VLOOKUP($A26,'PLANILHA SINTÉTICA'!$A$10:$T$1083,2,0),"") -> Fornecimento e instalação de PORTÃO pivotante para acesso PEDESTRES, medindo (5,10x2,11)m, com arame em aço MTC, camada de zinco, revestimento em Poliéster aplicado eletrostaticamente com camadas de 100 a 200 micons, montantes em tubo industrial com pintura eletrostática cor verde, referência Eletrogradi - da SITELA ou equivalente da BELGO modelo Nylofor 3D, conforme detalhe 33/45. | C26: =IF(COUNTA(A26)>0,VLOOKUP($A26,'[8]PLANILHA SINTÉTICA'!$A$9:$U$1082,3,0),"") -> 461085-7 | D26: =IF(COUNTA(A26)>0,VLOOKUP($A26,'PLANILHA SINTÉTICA'!$A$10:$T$1083,4,0),"") -> 1 | E26: =IF(COUNTA(A26)>0,VLOOKUP($A26,'PLANILHA SINTÉTICA'!$A$10:$T$1083,5,0),"") -> 1 | F26: =IF(ISERROR(VLOOKUP($A26,#REF!,8,0)),0,(VLOOKUP($A26,#REF!,8,0))) -> 0 | G26: =IF(COUNTA(A26)>0,VLOOKUP($A26,'[8]PLANILHA SINTÉTICA'!$A$9:$AC$1082,15,0),"") -> 3737.980038 | H26: 0
A27: 11.5 | B27: =IF(COUNTA(#REF!)>0,VLOOKUP($A27,'PLANILHA SINTÉTICA'!$A$10:$T$1083,2,0),"") -> Fornecimento e assentamento de grade de proteção em ferro (Janelas), com barra chata 1" x 1/8", formando quadros com espaçamento = 15cm e moldura de contorno em barra chata de 1" x 1/4", pintados com zarcão ou antiferrugem, conforme detalhe. (Chumbadas por dentro do fórum). | C27: =IF(COUNTA(A27)>0,VLOOKUP($A27,'[8]PLANILHA SINTÉTICA'!$A$9:$U$1082,3,0),"") -> 461601-4 | D27: =IF(COUNTA(A27)>0,VLOOKUP($A27,'PLANILHA SINTÉTICA'!$A$10:$T$1083,4,0),"") -> 105 | E27: =IF(COUNTA(A27)>0,VLOOKUP($A27,'PLANILHA SINTÉTICA'!$A$10:$T$1083,5,0),"") -> 100.78 | F27: =IF(ISERROR(VLOOKUP($A27,#REF!,8,0)),0,(VLOOKUP($A27,#REF!,8,0))) -> 0 | G27: =IF(COUNTA(A27)>0,VLOOKUP($A27,'[8]PLANILHA SINTÉTICA'!$A$9:$AC$1082,15,0),"") -> 299.020744 | H27: 0
A28: 12.1 | B28: =IF(COUNTA(#REF!)>0,VLOOKUP($A28,'PLANILHA SINTÉTICA'!$A$10:$T$1083,2,0),"") -> Fornecimento e instalação de corrimão em aço inox AISI 304, escovado, composto de guarda corpo com diâmetro de 1 1/2" e altura em relação ao piso de 1,10m; corrimãos com diâmetro de 1 1/2", com alturas em relação ao piso de 0,92m e 0,70m; longarinas intermediárias com diâmetro de 1/2", com alturas em relação ao piso de 0,44m e 0,25m; balaústre de aço inox com diâmetro de 1 1/2", fixado no piso com roseta em aço inox nas dimensões 5" x 1/8" e chumbador metálico tipo UR 6mm, conforme detalhes de arquitetura-Prancha 19/46. (Rampa e escada principal)- CORRIMÃO INOX PISO - TIPO 1. | C28: =IF(COUNTA(A28)>0,VLOOKUP($A28,'[8]PLANILHA SINTÉTICA'!$A$9:$U$1082,3,0),"") -> 460716-3 | D28: =IF(COUNTA(A28)>0,VLOOKUP($A28,'PLANILHA SINTÉTICA'!$A$10:$T$1083,4,0),"") -> 78 | E28: =IF(COUNTA(A28)>0,VLOOKUP($A28,'PLANILHA SINTÉTICA'!$A$10:$T$1083,5,0),"") -> 68.7 | F28: =IF(ISERROR(VLOOKUP($A28,#REF!,8,0)),0,(VLOOKUP($A28,#REF!,8,0))) -> 0 | G28: =IF(COUNTA(A28)>0,VLOOKUP($A28,'[8]PLANILHA SINTÉTICA'!$A$9:$AC$1082,15,0),"") -> 422.873988 | H28: 0
A29: 12.3 | B29: =IF(COUNTA(#REF!)>0,VLOOKUP($A29,'PLANILHA SINTÉTICA'!$A$10:$T$1083,2,0),"") -> Fornecimento e instalação de Corrimão em aço inox escovado, composto por guarda corpo com diâmetro de 1 e 1/2", longarinas intermediárias com diâmetro de 1/2", e corrimão duplo (NOS DOIS LADOS DO GUARDA CORPO) com diâmetro de 1 e 1/2". Altura do guarda corpo de 1,10m e do corrimão duplo de 0,92m (parte superior) e 0,70m (parte inferior). Balaústres com diâmetro de 1 e 1/2", fixados ao chão com roseta de fixação. Detalhe 18/46 Escada de acesso principal. CORRIMÃO INOX PISO - TIPO 3. | C29: =IF(COUNTA(A29)>0,VLOOKUP($A29,'[8]PLANILHA SINTÉTICA'!$A$9:$U$1082,3,0),"") -> 476429-3 | D29: =IF(COUNTA(A29)>0,VLOOKUP($A29,'PLANILHA SINTÉTICA'!$A$10:$T$1083,4,0),"") -> 3 | E29: =IF(COUNTA(A29)>0,VLOOKUP($A29,'PLANILHA SINTÉTICA'!$A$10:$T$1083,5,0),"") -> 3 | F29: =IF(ISERROR(VLOOKUP($A29,#REF!,8,0)),0,(VLOOKUP($A29,#REF!,8,0))) -> 0 | G29: =IF(COUNTA(A29)>0,VLOOKUP($A29,'[8]PLANILHA SINTÉTICA'!$A$9:$AC$1082,15,0),"") -> 528.604602 | H29: 0
A30: 12.4 | B30: =IF(COUNTA(#REF!)>0,VLOOKUP($A30,'PLANILHA SINTÉTICA'!$A$10:$T$1083,2,0),"") -> Fornecimento e assentamento de Corrimão tubular em ferro com diâmetro 1 1/2" com tubo em "L" com diâmetro de 3/4", fixado na parede com roseta de acabamento, inclusive pintura automotiva, conforme detalhe. (Escada interna) - CORRIMÃO FERRO PAREDE - TIPO 5. | C30: =IF(COUNTA(A30)>0,VLOOKUP($A30,'[8]PLANILHA SINTÉTICA'!$A$9:$U$1082,3,0),"") -> 476867-1 | D30: =IF(COUNTA(A30)>0,VLOOKUP($A30,'PLANILHA SINTÉTICA'!$A$10:$T$1083,4,0),"") -> 151 | E30: =IF(COUNTA(A30)>0,VLOOKUP($A30,'PLANILHA SINTÉTICA'!$A$10:$T$1083,5,0),"") -> 151 | F30: =IF(ISERROR(VLOOKUP($A30,#REF!,8,0)),0,(VLOOKUP($A30,#REF!,8,0))) -> 0 | G30: =IF(COUNTA(A30)>0,VLOOKUP($A30,'[8]PLANILHA SINTÉTICA'!$A$9:$AC$1082,15,0),"") -> 114.99169 | H30: 0
A31: 16.10 | B31: =IF(COUNTA(#REF!)>0,VLOOKUP($A31,'PLANILHA SINTÉTICA'!$A$10:$T$1083,2,0),"") -> Fornecimento e assentamento de tubos soldáveis de PVC rígido diâmetro 32 mm, inclusive conexões abertura e fechamento de valas para alimentador predial. (dreno ar condicionado) | C31: =IF(COUNTA(A31)>0,VLOOKUP($A31,'[8]PLANILHA SINTÉTICA'!$A$9:$U$1082,3,0),"") -> 460516-0 | D31: =IF(COUNTA(A31)>0,VLOOKUP($A31,'PLANILHA SINTÉTICA'!$A$10:$T$1083,4,0),"") -> 1490 | E31: =IF(COUNTA(A31)>0,VLOOKUP($A31,'PLANILHA SINTÉTICA'!$A$10:$T$1083,5,0),"") -> 594.43 | F31: 78 | G31: =IF(COUNTA(A31)>0,VLOOKUP($A31,'[8]PLANILHA SINTÉTICA'!$A$9:$AC$1082,15,0),"") -> 13.375562 | H31: 1043.29
A32: 16.32 | B32: =IF(COUNTA(#REF!)>0,VLOOKUP($A32,'PLANILHA SINTÉTICA'!$A$10:$T$1083,2,0),"") -> Fornecimento de torneira de pressão para lavatório linha Benefit, fabricação Docol ou equivalente. (wc Especial). | C32: =IF(COUNTA(A32)>0,VLOOKUP($A32,'[8]PLANILHA SINTÉTICA'!$A$9:$U$1082,3,0),"") -> 203038-1 | D32: =IF(COUNTA(A32)>0,VLOOKUP($A32,'PLANILHA SINTÉTICA'!$A$10:$T$1083,4,0),"") -> 84 | E32: =IF(COUNTA(A32)>0,VLOOKUP($A32,'PLANILHA SINTÉTICA'!$A$10:$T$1083,5,0),"") -> 16 | F32: =IF(ISERROR(VLOOKUP($A32,#REF!,8,0)),0,(VLOOKUP($A32,#REF!,8,0))) -> 0 | G32: =IF(COUNTA(A32)>0,VLOOKUP($A32,'[8]PLANILHA SINTÉTICA'!$A$9:$AC$1082,15,0),"") -> 440.887502 | H32: 0
A33: 16.38 | B33: =IF(COUNTA(#REF!)>0,VLOOKUP($A33,'PLANILHA SINTÉTICA'!$A$10:$T$1083,2,0),"") -> Fornecimento com instalação de Torneira cromada de mesa para lavatório temporizada pressão bica baixa com acionamento manual e fechamento automático, Fabrimar ou equivalente (Wc's) | C33: =IF(COUNTA(A33)>0,VLOOKUP($A33,'[8]PLANILHA SINTÉTICA'!$A$9:$U$1082,3,0),"") -> 442617-7 | D33: =IF(COUNTA(A33)>0,VLOOKUP($A33,'PLANILHA SINTÉTICA'!$A$10:$T$1083,4,0),"") -> 98 | E33: =IF(COUNTA(A33)>0,VLOOKUP($A33,'PLANILHA SINTÉTICA'!$A$10:$T$1083,5,0),"") -> 84 | F33: =IF(ISERROR(VLOOKUP($A33,#REF!,8,0)),0,(VLOOKUP($A33,#REF!,8,0))) -> 0 | G33: =IF(COUNTA(A33)>0,VLOOKUP($A33,'[8]PLANILHA SINTÉTICA'!$A$9:$AC$1082,15,0),"") -> 146.390846 | H33: 0
A34: 16.40 | B34: =IF(COUNTA(#REF!)>0,VLOOKUP($A34,'PLANILHA SINTÉTICA'!$A$10:$T$1083,2,0),"") -> Fornecimento e instalação de TORNEIRA cromada tubo móvel parede para cozinha, ref. 1168, linha ASCOT, fabricação Fabrimar ou equivalente. (COPA) | C34: =IF(COUNTA(A34)>0,VLOOKUP($A34,'[8]PLANILHA SINTÉTICA'!$A$9:$U$1082,3,0),"") -> 295050-2 | D34: =IF(COUNTA(A34)>0,VLOOKUP($A34,'PLANILHA SINTÉTICA'!$A$10:$T$1083,4,0),"") -> 7 | E34: =IF(COUNTA(A34)>0,VLOOKUP($A34,'PLANILHA SINTÉTICA'!$A$10:$T$1083,5,0),"") -> 7 | F34: =IF(ISERROR(VLOOKUP($A34,#REF!,8,0)),0,(VLOOKUP($A34,#REF!,8,0))) -> 0 | G34: =IF(COUNTA(A34)>0,VLOOKUP($A34,'[8]PLANILHA SINTÉTICA'!$A$9:$AC$1082,15,0),"") -> 86.107262 | H34: 0
A35: 16.53 | B35: =IF(COUNTA(#REF!)>0,VLOOKUP($A35,'PLANILHA SINTÉTICA'!$A$10:$T$1083,2,0),"") -> Fornecimento e instalação de porta papel higiênico sem tampa - Eco Cromado, referência 337413 Expambox ou equivalente. | C35: =IF(COUNTA(A35)>0,VLOOKUP($A35,'[8]PLANILHA SINTÉTICA'!$A$9:$U$1082,3,0),"") -> 216905-3 | D35: =IF(COUNTA(A35)>0,VLOOKUP($A35,'PLANILHA SINTÉTICA'!$A$10:$T$1083,4,0),"") -> 95 | E35: =IF(COUNTA(A35)>0,VLOOKUP($A35,'PLANILHA SINTÉTICA'!$A$10:$T$1083,5,0),"") -> 94 | F35: =IF(ISERROR(VLOOKUP($A35,#REF!,8,0)),0,(VLOOKUP($A35,#REF!,8,0))) -> 0 | G35: =IF(COUNTA(A35)>0,VLOOKUP($A35,'[8]PLANILHA SINTÉTICA'!$A$9:$AC$1082,15,0),"") -> 45.675654 | H35: 0
A36: 16.55 | B36: =IF(COUNTA(#REF!)>0,VLOOKUP($A36,'PLANILHA SINTÉTICA'!$A$10:$T$1083,2,0),"") -> Fornecimento e assentamento de saboneteira plástica de parede, tipo dispenser para sabonete líquido, com reservatório de 800 a 1.500ml. | C36: =IF(COUNTA(A36)>0,VLOOKUP($A36,'[8]PLANILHA SINTÉTICA'!$A$9:$U$1082,3,0),"") -> 209858-0 | D36: =IF(COUNTA(A36)>0,VLOOKUP($A36,'PLANILHA SINTÉTICA'!$A$10:$T$1083,4,0),"") -> 34 | E36: =IF(COUNTA(A36)>0,VLOOKUP($A36,'PLANILHA SINTÉTICA'!$A$10:$T$1083,5,0),"") -> 28 | F36: =IF(ISERROR(VLOOKUP($A36,#REF!,8,0)),0,(VLOOKUP($A36,#REF!,8,0))) -> 0 | G36: =IF(COUNTA(A36)>0,VLOOKUP($A36,'[8]PLANILHA SINTÉTICA'!$A$9:$AC$1082,15,0),"") -> 46.25356 | H36: 0
A37: 16.56 | B37: =IF(COUNTA(#REF!)>0,VLOOKUP($A37,'PLANILHA SINTÉTICA'!$A$10:$T$1083,2,0),"") -> Conjunto moto-bomba (centrífuga), P= 3 CV, Schneider, Dancor ou equivalente, inclusive acessórios, fixação e instalação. | C37: =IF(COUNTA(A37)>0,VLOOKUP($A37,'[8]PLANILHA SINTÉTICA'!$A$9:$U$1082,3,0),"") -> 481950-0 | D37: =IF(COUNTA(A37)>0,VLOOKUP($A37,'PLANILHA SINTÉTICA'!$A$10:$T$1083,4,0),"") -> 2 | E37: =IF(COUNTA(A37)>0,VLOOKUP($A37,'PLANILHA SINTÉTICA'!$A$10:$T$1083,5,0),"") -> 2 | F37: =IF(ISERROR(VLOOKUP($A37,#REF!,8,0)),0,(VLOOKUP($A37,#REF!,8,0))) -> 0 | G37: =IF(COUNTA(A37)>0,VLOOKUP($A37,'[8]PLANILHA SINTÉTICA'!$A$9:$AC$1082,15,0),"") -> 1550.881836 | H37: 0
A38: 16.59 | B38: =IF(COUNTA(#REF!)>0,VLOOKUP($A38,'PLANILHA SINTÉTICA'!$A$10:$T$1083,2,0),"") -> Chave de bóia superior 10A/ 250v, fornecimento e instalação. | C38: =IF(COUNTA(A38)>0,VLOOKUP($A38,'[8]PLANILHA SINTÉTICA'!$A$9:$U$1082,3,0),"") -> 438964-6 | D38: =IF(COUNTA(A38)>0,VLOOKUP($A38,'PLANILHA SINTÉTICA'!$A$10:$T$1083,4,0),"") -> 2 | E38: =IF(COUNTA(A38)>0,VLOOKUP($A38,'PLANILHA SINTÉTICA'!$A$10:$T$1083,5,0),"") -> 2 | F38: =IF(ISERROR(VLOOKUP($A38,#REF!,8,0)),0,(VLOOKUP($A38,#REF!,8,0))) -> 0 | G38: =IF(COUNTA(A38)>0,VLOOKUP($A38,'[8]PLANILHA SINTÉTICA'!$A$9:$AC$1082,15,0),"") -> 61.433482 | H38: 0
A39: 18.27 | B39: =IF(COUNTA(#REF!)>0,VLOOKUP($A39,'PLANILHA SINTÉTICA'!$A$10:$T$1083,2,0),"") -> Verga pré-moldada para janelas com mais de 1,5 m de vão. | C39: =IF(COUNTA(A39)>0,VLOOKUP($A39,'[8]PLANILHA SINTÉTICA'!$A$9:$U$1082,3,0),"") -> 456457-0 | D39: =IF(COUNTA(A39)>0,VLOOKUP($A39,'PLANILHA SINTÉTICA'!$A$10:$T$1083,4,0),"") -> 22 | E39: =IF(COUNTA(A39)>0,VLOOKUP($A39,'PLANILHA SINTÉTICA'!$A$10:$T$1083,5,0),"") -> 16 | F39: =IF(ISERROR(VLOOKUP($A39,#REF!,8,0)),0,(VLOOKUP($A39,#REF!,8,0))) -> 0 | G39: =IF(COUNTA(A39)>0,VLOOKUP($A39,'[8]PLANILHA SINTÉTICA'!$A$9:$AC$1082,15,0),"") -> 22.36307 | H39: 0
A40: 18.29 | B40: =IF(COUNTA(#REF!)>0,VLOOKUP($A40,'PLANILHA SINTÉTICA'!$A$10:$T$1083,2,0),"") -> Verga pré-moldada para portas com mais de 1,5 m de vão. | C40: =IF(COUNTA(A40)>0,VLOOKUP($A40,'[8]PLANILHA SINTÉTICA'!$A$9:$U$1082,3,0),"") -> 444316-0 | D40: =IF(COUNTA(A40)>0,VLOOKUP($A40,'PLANILHA SINTÉTICA'!$A$10:$T$1083,4,0),"") -> 2.6 | E40: =IF(COUNTA(A40)>0,VLOOKUP($A40,'PLANILHA SINTÉTICA'!$A$10:$T$1083,5,0),"") -> 2.6 | F40: =IF(ISERROR(VLOOKUP($A40,#REF!,8,0)),0,(VLOOKUP($A40,#REF!,8,0))) -> 0 | G40: =IF(COUNTA(A40)>0,VLOOKUP($A40,'[8]PLANILHA SINTÉTICA'!$A$9:$AC$1082,15,0),"") -> 22.019918 | H40: 0
A41: 18.30 | B41: =IF(COUNTA(#REF!)>0,VLOOKUP($A41,'PLANILHA SINTÉTICA'!$A$10:$T$1083,2,0),"") -> Contraverga pré-moldada para vãos de mais de 1,5 m de comprimento. | C41: =IF(COUNTA(A41)>0,VLOOKUP($A41,'[8]PLANILHA SINTÉTICA'!$A$9:$U$1082,3,0),"") -> 457789-2 | D41: =IF(COUNTA(A41)>0,VLOOKUP($A41,'PLANILHA SINTÉTICA'!$A$10:$T$1083,4,0),"") -> 22 | E41: =IF(COUNTA(A41)>0,VLOOKUP($A41,'PLANILHA SINTÉTICA'!$A$10:$T$1083,5,0),"") -> 16 | F41: =IF(ISERROR(VLOOKUP($A41,#REF!,8,0)),0,(VLOOKUP($A41,#REF!,8,0))) -> 0 | G41: =IF(COUNTA(A41)>0,VLOOKUP($A41,'[8]PLANILHA SINTÉTICA'!$A$9:$AC$1082,15,0),"") -> 20.097016 | H41: 0
A42: 18.38 | B42: =IF(COUNTA(#REF!)>0,VLOOKUP($A42,'PLANILHA SINTÉTICA'!$A$10:$T$1083,2,0),"") -> Fornecimento e assentamento de cobogó cavernoso 20 x 20 cm. | C42: =IF(COUNTA(A42)>0,VLOOKUP($A42,'[8]PLANILHA SINTÉTICA'!$A$9:$U$1082,3,0),"") -> 438776-7 | D42: =IF(COUNTA(A42)>0,VLOOKUP($A42,'PLANILHA SINTÉTICA'!$A$10:$T$1083,4,0),"") -> 7 | E42: =IF(COUNTA(A42)>0,VLOOKUP($A42,'PLANILHA SINTÉTICA'!$A$10:$T$1083,5,0),"") -> 7 | F42: =IF(ISERROR(VLOOKUP($A42,#REF!,8,0)),0,(VLOOKUP($A42,#REF!,8,0))) -> 0 | G42: =IF(COUNTA(A42)>0,VLOOKUP($A42,'[8]PLANILHA SINTÉTICA'!$A$9:$AC$1082,15,0),"") -> 141.252738 | H42: 0
A43: 18.39 | B43: =IF(COUNTA(#REF!)>0,VLOOKUP($A43,'PLANILHA SINTÉTICA'!$A$10:$T$1083,2,0),"") -> Fundo selador PVA para ambientes internos, uma demão. (TETO) | C43: =IF(COUNTA(A43)>0,VLOOKUP($A43,'[8]PLANILHA SINTÉTICA'!$A$9:$U$1082,3,0),"") -> 432002-6 | D43: =IF(COUNTA(A43)>0,VLOOKUP($A43,'PLANILHA SINTÉTICA'!$A$10:$T$1083,4,0),"") -> 156 | E43: =IF(COUNTA(A43)>0,VLOOKUP($A43,'PLANILHA SINTÉTICA'!$A$10:$T$1083,5,0),"") -> 153.7 | F43: =IF(ISERROR(VLOOKUP($A43,#REF!,8,0)),0,(VLOOKUP($A43,#REF!,8,0))) -> 0 | G43: =IF(COUNTA(A43)>0,VLOOKUP($A43,'[8]PLANILHA SINTÉTICA'!$A$9:$AC$1082,15,0),"") -> 2.380598 | H43: 0
A44: 18.73 | B44: =IF(COUNTA(#REF!)>0,VLOOKUP($A44,'PLANILHA SINTÉTICA'!$A$10:$T$1083,2,0),"") -> Registro de gaveta bruto, latão, roscável, 3/4, fornecido e instalado em ramal de água. | C44: =IF(COUNTA(A44)>0,VLOOKUP($A44,'[8]PLANILHA SINTÉTICA'!$A$9:$U$1082,3,0),"") -> 431750-5 | D44: =IF(COUNTA(A44)>0,VLOOKUP($A44,'PLANILHA SINTÉTICA'!$A$10:$T$1083,4,0),"") -> 1 | E44: =IF(COUNTA(A44)>0,VLOOKUP($A44,'PLANILHA SINTÉTICA'!$A$10:$T$1083,5,0),"") -> 1 | F44: =IF(ISERROR(VLOOKUP($A44,#REF!,8,0)),0,(VLOOKUP($A44,#REF!,8,0))) -> 0 | G44: =IF(COUNTA(A44)>0,VLOOKUP($A44,'[8]PLANILHA SINTÉTICA'!$A$9:$AC$1082,15,0),"") -> 28.729762 | H44: 0
A45: 18.74 | B45: =IF(COUNTA(#REF!)>0,VLOOKUP($A45,'PLANILHA SINTÉTICA'!$A$10:$T$1083,2,0),"") -> Fornecimento de registro de gaveta com canopla, acabamento cromado, ref. 1509-C39, Deca ou similar, linha prata, diâmetro de 3/4 pol., inclusive fixação. | C45: =IF(COUNTA(A45)>0,VLOOKUP($A45,'[8]PLANILHA SINTÉTICA'!$A$9:$U$1082,3,0),"") -> 436218-7 | D45: =IF(COUNTA(A45)>0,VLOOKUP($A45,'PLANILHA SINTÉTICA'!$A$10:$T$1083,4,0),"") -> 3 | E45: =IF(COUNTA(A45)>0,VLOOKUP($A45,'PLANILHA SINTÉTICA'!$A$10:$T$1083,5,0),"") -> 3 | F45: =IF(ISERROR(VLOOKUP($A45,#REF!,8,0)),0,(VLOOKUP($A45,#REF!,8,0))) -> 0 | G45: =IF(COUNTA(A45)>0,VLOOKUP($A45,'[8]PLANILHA SINTÉTICA'!$A$9:$AC$1082,15,0),"") -> 75.234432 | H45: 0
A46: 18.75 | B46: =IF(COUNTA(#REF!)>0,VLOOKUP($A46,'PLANILHA SINTÉTICA'!$A$10:$T$1083,2,0),"") -> Registro de gaveta com canopla 1" - fornecimento e instalação | C46: =IF(COUNTA(A46)>0,VLOOKUP($A46,'[8]PLANILHA SINTÉTICA'!$A$9:$U$1082,3,0),"") -> 430172-2 | D46: =IF(COUNTA(A46)>0,VLOOKUP($A46,'PLANILHA SINTÉTICA'!$A$10:$T$1083,4,0),"") -> 1 | E46: =IF(COUNTA(A46)>0,VLOOKUP($A46,'PLANILHA SINTÉTICA'!$A$10:$T$1083,5,0),"") -> 1 | F46: =IF(ISERROR(VLOOKUP($A46,#REF!,8,0)),0,(VLOOKUP($A46,#REF!,8,0))) -> 0 | G46: =IF(COUNTA(A46)>0,VLOOKUP($A46,'[8]PLANILHA SINTÉTICA'!$A$9:$AC$1082,15,0),"") -> 90.384464 | H46: 0
A47: 19.66 | B47: =IF(COUNTA(#REF!)>0,VLOOKUP($A47,'PLANILHA SINTÉTICA'!$A$10:$T$1083,2,0),"") -> Fornecimento e instalação de janela em alumínio anodizado bronze tipo correr, com vidro liso verde, espessura de 6mm, dimensão (1,00x0,50)m - JAV15. | C47: =IF(COUNTA(A47)>0,VLOOKUP($A47,'[8]PLANILHA SINTÉTICA'!$A$9:$U$1082,3,0),"") -> 472698-7 | D47: =IF(COUNTA(A47)>0,VLOOKUP($A47,'PLANILHA SINTÉTICA'!$A$10:$T$1083,4,0),"") -> 1 | E47: =IF(COUNTA(A47)>0,VLOOKUP($A47,'PLANILHA SINTÉTICA'!$A$10:$T$1083,5,0),"") -> 1 | F47: =IF(ISERROR(VLOOKUP($A47,#REF!,8,0)),0,(VLOOKUP($A47,#REF!,8,0))) -> 0 | G47: =IF(COUNTA(A47)>0,VLOOKUP($A47,'[8]PLANILHA SINTÉTICA'!$A$9:$AC$1082,15,0),"") -> 229.984026 | H47: 0
A48: 19.67 | B48: =IF(COUNTA(#REF!)>0,VLOOKUP($A48,'PLANILHA SINTÉTICA'!$A$10:$T$1083,2,0),"") -> Fornecimento e assentamento de Kit Porta Pronta PM2 (dim.=0,70x2,10m), porta semi-oca (folha espessura 35mm), contraplacada em compensado com lâmina de Corrupixá ou Liptus, revestida em laminado melamínico madeirado cor branca, inclusive fitamento da porta em PVC, grade e alizares em madeira Liptus em tábuas secas em estufa com acabamento em primer branco, chumbada com espuma de poliuretano, dobradiças em inox com rolamento, de 3 1/2 x 3", fechadura em inox, escovado, marca La Fonte, Imab ou equivalente, código HI MARS, conforme detalhe. (Wc guarita) | C48: =IF(COUNTA(A48)>0,VLOOKUP($A48,'[8]PLANILHA SINTÉTICA'!$A$9:$U$1082,3,0),"") -> 430086-6 | D48: =IF(COUNTA(A48)>0,VLOOKUP($A48,'PLANILHA SINTÉTICA'!$A$10:$T$1083,4,0),"") -> 1 | E48: =IF(COUNTA(A48)>0,VLOOKUP($A48,'PLANILHA SINTÉTICA'!$A$10:$T$1083,5,0),"") -> 1 | F48: =IF(ISERROR(VLOOKUP($A48,#REF!,8,0)),0,(VLOOKUP($A48,#REF!,8,0))) -> 0 | G48: =IF(COUNTA(A48)>0,VLOOKUP($A48,'[8]PLANILHA SINTÉTICA'!$A$9:$AC$1082,15,0),"") -> 628.985106 | H48: 0
A49: 19.68 | B49: =IF(COUNTA(#REF!)>0,VLOOKUP($A49,'PLANILHA SINTÉTICA'!$A$10:$T$1083,2,0),"") -> Porta em esquadria de alumínio anodizado bronze com venezianas industriais, de giro com uma folha. 0,90x2,10m (PA3) | C49: =IF(COUNTA(A49)>0,VLOOKUP($A49,'[8]PLANILHA SINTÉTICA'!$A$9:$U$1082,3,0),"") -> 470867-9 | D49: =IF(COUNTA(A49)>0,VLOOKUP($A49,'PLANILHA SINTÉTICA'!$A$10:$T$1083,4,0),"") -> 1 | E49: =IF(COUNTA(A49)>0,VLOOKUP($A49,'PLANILHA SINTÉTICA'!$A$10:$T$1083,5,0),"") -> 1 | F49: =IF(ISERROR(VLOOKUP($A49,#REF!,8,0)),0,(VLOOKUP($A49,#REF!,8,0))) -> 0 | G49: =IF(COUNTA(A49)>0,VLOOKUP($A49,'[8]PLANILHA SINTÉTICA'!$A$9:$AC$1082,15,0),"") -> 1231.598728 | H49: 0
A50: 20.17 | B50: =IF(COUNTA(#REF!)>0,VLOOKUP($A50,'PLANILHA SINTÉTICA'!$A$10:$T$1083,2,0),"") -> Contrapiso em argamassa traço 1:4 (cimento e areia), preparo mecânico com betoneira 400 L, aplicado em áreas secas sobre laje, aderido, espessura 2cm, acabamento não reforçado. | C50: =IF(COUNTA(A50)>0,VLOOKUP($A50,'[8]PLANILHA SINTÉTICA'!$A$9:$U$1082,3,0),"") -> 430928-6 | D50: =IF(COUNTA(A50)>0,VLOOKUP($A50,'PLANILHA SINTÉTICA'!$A$10:$T$1083,4,0),"") -> 25.3 | E50: =IF(COUNTA(A50)>0,VLOOKUP($A50,'PLANILHA SINTÉTICA'!$A$10:$T$1083,5,0),"") -> 23.4 | F50: =IF(ISERROR(VLOOKUP($A50,#REF!,8,0)),0,(VLOOKUP($A50,#REF!,8,0))) -> 0 | G50: =IF(COUNTA(A50)>0,VLOOKUP($A50,'[8]PLANILHA SINTÉTICA'!$A$9:$AC$1082,15,0),"") -> 18.788824 | H50: 0
A51: 20.26 | B51: =IF(COUNTA(#REF!)>0,VLOOKUP($A51,'PLANILHA SINTÉTICA'!$A$10:$T$1083,2,0),"") -> Impermeabilização de superfície com manta asfáltica protegida com filme de alumínio gofrado (de espessura 0,8mm), inclusa aplicação de emulsão asfáltica, E=3mm. (Laje) | C51: =IF(COUNTA(A51)>0,VLOOKUP($A51,'[8]PLANILHA SINTÉTICA'!$A$9:$U$1082,3,0),"") -> 431420-4 | D51: =IF(COUNTA(A51)>0,VLOOKUP($A51,'PLANILHA SINTÉTICA'!$A$10:$T$1083,4,0),"") -> 5.4 | E51: =IF(COUNTA(A51)>0,VLOOKUP($A51,'PLANILHA SINTÉTICA'!$A$10:$T$1083,5,0),"") -> 5.38 | F51: =IF(ISERROR(VLOOKUP($A51,#REF!,8,0)),0,(VLOOKUP($A51,#REF!,8,0))) -> 0 | G51: =IF(COUNTA(A51)>0,VLOOKUP($A51,'[8]PLANILHA SINTÉTICA'!$A$9:$AC$1082,15,0),"") -> 74.509744 | H51: 0
A52: 20.27 | B52: =IF(COUNTA(#REF!)>0,VLOOKUP($A52,'PLANILHA SINTÉTICA'!$A$10:$T$1083,2,0),"") -> Fornecimento e instalação de PORTÃO pivotante para LIXEIRA, com gradil Eletrogradi, na cor bronze, (1,50x2,11)m conforme detalhes. | C52: =IF(COUNTA(A52)>0,VLOOKUP($A52,'[8]PLANILHA SINTÉTICA'!$A$9:$U$1082,3,0),"") -> 475555-3 | D52: =IF(COUNTA(A52)>0,VLOOKUP($A52,'PLANILHA SINTÉTICA'!$A$10:$T$1083,4,0),"") -> 6.33 | E52: =IF(COUNTA(A52)>0,VLOOKUP($A52,'PLANILHA SINTÉTICA'!$A$10:$T$1083,5,0),"") -> 6.33 | F52: =IF(ISERROR(VLOOKUP($A52,#REF!,8,0)),0,(VLOOKUP($A52,#REF!,8,0))) -> 0 | G52: =IF(COUNTA(A52)>0,VLOOKUP($A52,'[8]PLANILHA SINTÉTICA'!$A$9:$AC$1082,15,0),"") -> 801.969028 | H52: 0
A53: 26.1 | B53: =IF(COUNTA(#REF!)>0,VLOOKUP($A53,'PLANILHA SINTÉTICA'!$A$10:$T$1083,2,0),"") -> Fornecimento e assentamento de mastro para bandeira em tubo de ferro galvanizado de 2.1/2", 2" e 1.1/2'' conforme detalhe, inclusive pintura anticorrosiva e em esmalte sintético, cor a definir, com fixação no piso. (Conforme detalhe 40/45) | C53: =IF(COUNTA(A53)>0,VLOOKUP($A53,'[8]PLANILHA SINTÉTICA'!$A$9:$U$1082,3,0),"") -> 429836-5 | D53: =IF(COUNTA(A53)>0,VLOOKUP($A53,'PLANILHA SINTÉTICA'!$A$10:$T$1083,4,0),"") -> 16 | E53: =IF(COUNTA(A53)>0,VLOOKUP($A53,'PLANILHA SINTÉTICA'!$A$10:$T$1083,5,0),"") -> 16 | F53: =IF(ISERROR(VLOOKUP($A53,#REF!,8,0)),0,(VLOOKUP($A53,#REF!,8,0))) -> 0 | G53: =IF(COUNTA(A53)>0,VLOOKUP($A53,'[8]PLANILHA SINTÉTICA'!$A$9:$AC$1082,15,0),"") -> 155.349104 | H53: 0
A54: 26.2 | B54: =IF(COUNTA(#REF!)>0,VLOOKUP($A54,'PLANILHA SINTÉTICA'!$A$10:$T$1083,2,0),"") -> Fornecimento e instalação de letreiro " FÓRUM DE LIMOEIRO" com letras tipo caixa, fonte Arial Black, com 10,00 cm de profundidade, altura com 80,00 cm, em chapa de aço INOX 304 escovado, com sistema de fixação, pregos e buchas ou perfil tipo "L". (Detalhe 41/45) | C54: =IF(COUNTA(A54)>0,VLOOKUP($A54,'[8]PLANILHA SINTÉTICA'!$A$9:$U$1082,3,0),"") -> 470289-1 | D54: =IF(COUNTA(A54)>0,VLOOKUP($A54,'PLANILHA SINTÉTICA'!$A$10:$T$1083,4,0),"") -> 16 | E54: =IF(COUNTA(A54)>0,VLOOKUP($A54,'PLANILHA SINTÉTICA'!$A$10:$T$1083,5,0),"") -> 16 | F54: =IF(ISERROR(VLOOKUP($A54,#REF!,8,0)),0,(VLOOKUP($A54,#REF!,8,0))) -> 0 | G54: =IF(COUNTA(A54)>0,VLOOKUP($A54,'[8]PLANILHA SINTÉTICA'!$A$9:$AC$1082,15,0),"") -> 187.012666 | H54: 0
A55: 26.7 | B55: =IF(COUNTA(#REF!)>0,VLOOKUP($A55,'PLANILHA SINTÉTICA'!$A$10:$T$1083,2,0),"") -> Fornecimento de espelho cristal 4mm, colocado sobre chapas de isopor, fixado com parafuso de latão, inclusive assentamento. | C55: =IF(COUNTA(A55)>0,VLOOKUP($A55,'[8]PLANILHA SINTÉTICA'!$A$9:$U$1082,3,0),"") -> 429778-4 | D55: =IF(COUNTA(A55)>0,VLOOKUP($A55,'PLANILHA SINTÉTICA'!$A$10:$T$1083,4,0),"") -> 60.1 | E55: =IF(COUNTA(A55)>0,VLOOKUP($A55,'PLANILHA SINTÉTICA'!$A$10:$T$1083,5,0),"") -> 59.1 | F55: =IF(ISERROR(VLOOKUP($A55,#REF!,8,0)),0,(VLOOKUP($A55,#REF!,8,0))) -> 0 | G55: =IF(COUNTA(A55)>0,VLOOKUP($A55,'[8]PLANILHA SINTÉTICA'!$A$9:$AC$1082,15,0),"") -> 240.169442 | H55: 0
A56: 26.8 | B56: =IF(COUNTA(#REF!)>0,VLOOKUP($A56,'PLANILHA SINTÉTICA'!$A$10:$T$1083,2,0),"") -> Fornecimento e colocação de escultura em concreto medindo 2m de altura (justiça cega), conforme detalhe. | C56: =IF(COUNTA(A56)>0,VLOOKUP($A56,'[8]PLANILHA SINTÉTICA'!$A$9:$U$1082,3,0),"") -> 484189-1 | D56: =IF(COUNTA(A56)>0,VLOOKUP($A56,'PLANILHA SINTÉTICA'!$A$10:$T$1083,4,0),"") -> 1 | E56: =IF(COUNTA(A56)>0,VLOOKUP($A56,'PLANILHA SINTÉTICA'!$A$10:$T$1083,5,0),"") -> 1 | F56: =IF(ISERROR(VLOOKUP($A56,#REF!,8,0)),0,(VLOOKUP($A56,#REF!,8,0))) -> 0 | G56: =IF(COUNTA(A56)>0,VLOOKUP($A56,'[8]PLANILHA SINTÉTICA'!$A$9:$AC$1082,15,0),"") -> 21760.2968 | H56: 0
A57: 26.9 | B57: =IF(COUNTA(#REF!)>0,VLOOKUP($A57,'PLANILHA SINTÉTICA'!$A$10:$T$1083,2,0),"") -> Fornecimento e fixação de brasão do Estado de Pernambuco em latão fundido, alto relevo, nas dimensões aproximadas 0,70m x 0,71m, conforme modelo. | C57: =IF(COUNTA(A57)>0,VLOOKUP($A57,'[8]PLANILHA SINTÉTICA'!$A$9:$U$1082,3,0),"") -> 429837-3 | D57: =IF(COUNTA(A57)>0,VLOOKUP($A57,'PLANILHA SINTÉTICA'!$A$10:$T$1083,4,0),"") -> 1 | E57: =IF(COUNTA(A57)>0,VLOOKUP($A57,'PLANILHA SINTÉTICA'!$A$10:$T$1083,5,0),"") -> 1 | F57: =IF(ISERROR(VLOOKUP($A57,#REF!,8,0)),0,(VLOOKUP($A57,#REF!,8,0))) -> 0 | G57: =IF(COUNTA(A57)>0,VLOOKUP($A57,'[8]PLANILHA SINTÉTICA'!$A$9:$AC$1082,15,0),"") -> 8878.79458 | H57: 0
A58: 26.10 | B58: =IF(COUNTA(#REF!)>0,VLOOKUP($A58,'PLANILHA SINTÉTICA'!$A$10:$T$1083,2,0),"") -> Barras em tubo de ferro com 5cm de diâmetro para BICICLETÁRIO do tipo "U invertido", inclusive argola com furo de 1" em ferro fundido, barra de segurança e base de fixação, pintadas com pintura automotiva cor prata, conforme detalhe 42/45. | C58: =IF(COUNTA(A58)>0,VLOOKUP($A58,'[8]PLANILHA SINTÉTICA'!$A$9:$U$1082,3,0),"") -> 430855-7 | D58: =IF(COUNTA(A58)>0,VLOOKUP($A58,'PLANILHA SINTÉTICA'!$A$10:$T$1083,4,0),"") -> 12 | E58: =IF(COUNTA(A58)>0,VLOOKUP($A58,'PLANILHA SINTÉTICA'!$A$10:$T$1083,5,0),"") -> 12 | F58: =IF(ISERROR(VLOOKUP($A58,#REF!,8,0)),0,(VLOOKUP($A58,#REF!,8,0))) -> 0 | G58: =IF(COUNTA(A58)>0,VLOOKUP($A58,'[8]PLANILHA SINTÉTICA'!$A$9:$AC$1082,15,0),"") -> 410.654206 | H58: 0
A59: 27.15 | B59: =IF(COUNTA(#REF!)>0,VLOOKUP($A59,'PLANILHA SINTÉTICA'!$A$10:$T$1083,2,0),"") -> Construção de caixa coletora tipo "com grade" em alvenaria de 1 vez - tijolos maciços prensados - nas dimensões internas de 0,25x0,85x1,00m, inclusive escavação, reaterro compactado e remoção do material excedente (sem a grade) | C59: =IF(COUNTA(A59)>0,VLOOKUP($A59,'[8]PLANILHA SINTÉTICA'!$A$9:$U$1082,3,0),"") -> 436347-7 | D59: =IF(COUNTA(A59)>0,VLOOKUP($A59,'PLANILHA SINTÉTICA'!$A$10:$T$1083,4,0),"") -> 6 | E59: =IF(COUNTA(A59)>0,VLOOKUP($A59,'PLANILHA SINTÉTICA'!$A$10:$T$1083,5,0),"") -> 6 | F59: =IF(ISERROR(VLOOKUP($A59,#REF!,8,0)),0,(VLOOKUP($A59,#REF!,8,0))) -> 0 | G59: =IF(COUNTA(A59)>0,VLOOKUP($A59,'[8]PLANILHA SINTÉTICA'!$A$9:$AC$1082,15,0),"") -> 568.376458 | H59: 0
A60: 27.16 | B60: =IF(COUNTA(#REF!)>0,VLOOKUP($A60,'PLANILHA SINTÉTICA'!$A$10:$T$1083,2,0),"") -> Construção de caixa coletora tipo "com gaveta", em alvenaria de 1 vez (tijolos maciços, prensados), nas dimensões internas de 0,80x0,80x0,90m, inclusive escavação, reaterro compactado e remoção do material excedente (com sobretampa de concreto). | C60: =IF(COUNTA(A60)>0,VLOOKUP($A60,'[8]PLANILHA SINTÉTICA'!$A$9:$U$1082,3,0),"") -> 436349-3 | D60: =IF(COUNTA(A60)>0,VLOOKUP($A60,'PLANILHA SINTÉTICA'!$A$10:$T$1083,4,0),"") -> 2 | E60: =IF(COUNTA(A60)>0,VLOOKUP($A60,'PLANILHA SINTÉTICA'!$A$10:$T$1083,5,0),"") -> 2 | F60: =IF(ISERROR(VLOOKUP($A60,#REF!,8,0)),0,(VLOOKUP($A60,#REF!,8,0))) -> 0 | G60: =IF(COUNTA(A60)>0,VLOOKUP($A60,'[8]PLANILHA SINTÉTICA'!$A$9:$AC$1082,15,0),"") -> 1214.73295 | H60: 0
A61: 27.17 | B61: =IF(COUNTA(#REF!)>0,VLOOKUP($A61,'PLANILHA SINTÉTICA'!$A$10:$T$1083,2,0),"") -> Construção de poço de visita em alvenaria de 1 vez (tijolos maciços prensados), nas dimensões internas 1,00x1,00x1,50m, inclusive escavação, reaterro compactado e remoção do material excedente (sem o tampão). | C61: =IF(COUNTA(A61)>0,VLOOKUP($A61,'[8]PLANILHA SINTÉTICA'!$A$9:$U$1082,3,0),"") -> 436350-7 | D61: =IF(COUNTA(A61)>0,VLOOKUP($A61,'PLANILHA SINTÉTICA'!$A$10:$T$1083,4,0),"") -> 2 | E61: =IF(COUNTA(A61)>0,VLOOKUP($A61,'PLANILHA SINTÉTICA'!$A$10:$T$1083,5,0),"") -> 2 | F61: =IF(ISERROR(VLOOKUP($A61,#REF!,8,0)),0,(VLOOKUP($A61,#REF!,8,0))) -> 0 | G61: =IF(COUNTA(A61)>0,VLOOKUP($A61,'[8]PLANILHA SINTÉTICA'!$A$9:$AC$1082,15,0),"") -> 2121.296956 | H61: 0
A62: 27.18 | B62: =IF(COUNTA(#REF!)>0,VLOOKUP($A62,'PLANILHA SINTÉTICA'!$A$10:$T$1083,2,0),"") -> Construção de poço de visita tipo "com gaveta" em alvenaria de 1 vez de tijolos maciços, prensados, nas dimensões internas 1,00x1,00x1,50m, inclusive escavação, reaterro compactado e remoção do material excedente (com sobretampa de concreto). | C62: =IF(COUNTA(A62)>0,VLOOKUP($A62,'[8]PLANILHA SINTÉTICA'!$A$9:$U$1082,3,0),"") -> 436355-8 | D62: =IF(COUNTA(A62)>0,VLOOKUP($A62,'PLANILHA SINTÉTICA'!$A$10:$T$1083,4,0),"") -> 10 | E62: =IF(COUNTA(A62)>0,VLOOKUP($A62,'PLANILHA SINTÉTICA'!$A$10:$T$1083,5,0),"") -> 10 | F62: =IF(ISERROR(VLOOKUP($A62,#REF!,8,0)),0,(VLOOKUP($A62,#REF!,8,0))) -> 0 | G62: =IF(COUNTA(A62)>0,VLOOKUP($A62,'[8]PLANILHA SINTÉTICA'!$A$9:$AC$1082,15,0),"") -> 2217.401232 | H62: 0
A63: 28.1 | B63: =IF(COUNTA(#REF!)>0,VLOOKUP($A63,'PLANILHA SINTÉTICA'!$A$10:$T$1083,2,0),"") -> Fornecimento e plantio de Palmeira Fenix, com cerca de 1,00m de altura, incluindo preparação de cova com 40 x 40 x 40 cm, com barro jardim e estrume bovino. | C63: =IF(COUNTA(A63)>0,VLOOKUP($A63,'[8]PLANILHA SINTÉTICA'!$A$9:$U$1082,3,0),"") -> 402167-3 | D63: =IF(COUNTA(A63)>0,VLOOKUP($A63,'PLANILHA SINTÉTICA'!$A$10:$T$1083,4,0),"") -> 1 | E63: =IF(COUNTA(A63)>0,VLOOKUP($A63,'PLANILHA SINTÉTICA'!$A$10:$T$1083,5,0),"") -> 1 | F63: =IF(ISERROR(VLOOKUP($A63,#REF!,8,0)),0,(VLOOKUP($A63,#REF!,8,0))) -> 0 | G63: =IF(COUNTA(A63)>0,VLOOKUP($A63,'[8]PLANILHA SINTÉTICA'!$A$9:$AC$1082,15,0),"") -> 170.18855 | H63: 0
A64: 28.2 | B64: =IF(COUNTA(#REF!)>0,VLOOKUP($A64,'PLANILHA SINTÉTICA'!$A$10:$T$1083,2,0),"") -> Fornecimento e plantio de Palmeira Cica, com cerca de 1,00m de altura, incluindo preparação de cova com 40 x 40 x 40 cm, com barro jardim e estrume bovino. | C64: =IF(COUNTA(A64)>0,VLOOKUP($A64,'[8]PLANILHA SINTÉTICA'!$A$9:$U$1082,3,0),"") -> 481951-9 | D64: =IF(COUNTA(A64)>0,VLOOKUP($A64,'PLANILHA SINTÉTICA'!$A$10:$T$1083,4,0),"") -> 3 | E64: =IF(COUNTA(A64)>0,VLOOKUP($A64,'PLANILHA SINTÉTICA'!$A$10:$T$1083,5,0),"") -> 3 | F64: =IF(ISERROR(VLOOKUP($A64,#REF!,8,0)),0,(VLOOKUP($A64,#REF!,8,0))) -> 0 | G64: =IF(COUNTA(A64)>0,VLOOKUP($A64,'[8]PLANILHA SINTÉTICA'!$A$9:$AC$1082,15,0),"") -> 155.060262 | H64: 0
A65: 28.3 | B65: =IF(COUNTA(#REF!)>0,VLOOKUP($A65,'PLANILHA SINTÉTICA'!$A$10:$T$1083,2,0),"") -> Fornecimento e plantio de Pata de Vaca (Bauhinia blakeana), com cerca de 1,50m de altura, incluindo preparação de cova com 40 x 40 x 40 cm, com barro jardim e estrume bovino. | C65: =IF(COUNTA(A65)>0,VLOOKUP($A65,'[8]PLANILHA SINTÉTICA'!$A$9:$U$1082,3,0),"") -> 461505-0 | D65: =IF(COUNTA(A65)>0,VLOOKUP($A65,'PLANILHA SINTÉTICA'!$A$10:$T$1083,4,0),"") -> 26 | E65: =IF(COUNTA(A65)>0,VLOOKUP($A65,'PLANILHA SINTÉTICA'!$A$10:$T$1083,5,0),"") -> 16 | F65: =IF(ISERROR(VLOOKUP($A65,#REF!,8,0)),0,(VLOOKUP($A65,#REF!,8,0))) -> 0 | G65: =IF(COUNTA(A65)>0,VLOOKUP($A65,'[8]PLANILHA SINTÉTICA'!$A$9:$AC$1082,15,0),"") -> 115.208336 | H65: =ROUND(G65*F65,2) -> 0
A66: 28.4 | B66: =IF(COUNTA(#REF!)>0,VLOOKUP($A66,'PLANILHA SINTÉTICA'!$A$10:$T$1083,2,0),"") -> Fornecimento e plantio de Ipê Amarelo (Tabebuia chrysotricha), com cerca de 1,50m de altura, incluindo preparação de cova com 40 x 40 x 40 cm, com barro jardim e estrume bovino. | C66: =IF(COUNTA(A66)>0,VLOOKUP($A66,'[8]PLANILHA SINTÉTICA'!$A$9:$U$1082,3,0),"") -> 472672-3 | D66: =IF(COUNTA(A66)>0,VLOOKUP($A66,'PLANILHA SINTÉTICA'!$A$10:$T$1083,4,0),"") -> 1 | E66: =IF(COUNTA(A66)>0,VLOOKUP($A66,'PLANILHA SINTÉTICA'!$A$10:$T$1083,5,0),"") -> 1 | F66: =IF(ISERROR(VLOOKUP($A66,#REF!,8,0)),0,(VLOOKUP($A66,#REF!,8,0))) -> 0 | G66: =IF(COUNTA(A66)>0,VLOOKUP($A66,'[8]PLANILHA SINTÉTICA'!$A$9:$AC$1082,15,0),"") -> 209.044652 | H66: 0
A67: 28.5 | B67: =IF(COUNTA(#REF!)>0,VLOOKUP($A67,'PLANILHA SINTÉTICA'!$A$10:$T$1083,2,0),"") -> Fornecimento e plantio de mudas de Dracena de Madagascar, com cerca de 1,00m de altura. | C67: =IF(COUNTA(A67)>0,VLOOKUP($A67,'[8]PLANILHA SINTÉTICA'!$A$9:$U$1082,3,0),"") -> 435721-3 | D67: =IF(COUNTA(A67)>0,VLOOKUP($A67,'PLANILHA SINTÉTICA'!$A$10:$T$1083,4,0),"") -> 22 | E67: =IF(COUNTA(A67)>0,VLOOKUP($A67,'PLANILHA SINTÉTICA'!$A$10:$T$1083,5,0),"") -> 17 | F67: =IF(ISERROR(VLOOKUP($A67,#REF!,8,0)),0,(VLOOKUP($A67,#REF!,8,0))) -> 0 | G67: =IF(COUNTA(A67)>0,VLOOKUP($A67,'[8]PLANILHA SINTÉTICA'!$A$9:$AC$1082,15,0),"") -> 49.359738 | H67: 0
A68: 28.9 | B68: =IF(COUNTA(#REF!)>0,VLOOKUP($A68,'PLANILHA SINTÉTICA'!$A$10:$T$1083,2,0),"") -> Fornecimento e plantio de grama esmeralda em rolos. (Jardim e cobograma) | C68: =IF(COUNTA(A68)>0,VLOOKUP($A68,'[8]PLANILHA SINTÉTICA'!$A$9:$U$1082,3,0),"") -> 438958-1 | D68: =IF(COUNTA(A68)>0,VLOOKUP($A68,'PLANILHA SINTÉTICA'!$A$10:$T$1083,4,0),"") -> 1040 | E68: =IF(COUNTA(A68)>0,VLOOKUP($A68,'PLANILHA SINTÉTICA'!$A$10:$T$1083,5,0),"") -> 1040 | F68: =IF(ISERROR(VLOOKUP($A68,#REF!,8,0)),0,(VLOOKUP($A68,#REF!,8,0))) -> 0 | G68: =IF(COUNTA(A68)>0,VLOOKUP($A68,'[8]PLANILHA SINTÉTICA'!$A$9:$AC$1082,15,0),"") -> 12.88466 | H68: 0
A69: 29.02.01 | B69: =IF(COUNTA(#REF!)>0,VLOOKUP($A69,'PLANILHA SINTÉTICA'!$A$10:$T$1083,2,0),"") -> Luminária de embutir p/ 02 (duas) lâmpadas LED de 18W, sem alojamento; corpo em chapa de aço galvanizado c/ pintura eletrostática em pó de poliéster epóxi; refletor facetado em alumínio anodizado de alta pureza e refletância; aletas parabólicas em alumínio; soquetes em policarbonato; inclusive lâmpadas LED tubular Philips, Osram, ou equivalente, 2x18W, 220V, demais acessórios e instalação. Ref. Lumicenter, Luminárias Projeto, Itaim, Stillux, Indelpa ou equivalente. | C69: =IF(COUNTA(A69)>0,VLOOKUP($A69,'[8]PLANILHA SINTÉTICA'!$A$9:$U$1082,3,0),"") -> 430980-4 | D69: =IF(COUNTA(A69)>0,VLOOKUP($A69,'PLANILHA SINTÉTICA'!$A$10:$T$1083,4,0),"") -> 429 | E69: =IF(COUNTA(A69)>0,VLOOKUP($A69,'PLANILHA SINTÉTICA'!$A$10:$T$1083,5,0),"") -> 429 | F69: =IF(ISERROR(VLOOKUP($A69,#REF!,8,0)),0,(VLOOKUP($A69,#REF!,8,0))) -> 0 | G69: =IF(COUNTA(A69)>0,VLOOKUP($A69,'[8]PLANILHA SINTÉTICA'!$A$9:$AC$1082,15,0),"") -> 210.09111 | H69: 0
A70: 29.02.02 | B70: =IF(COUNTA(#REF!)>0,VLOOKUP($A70,'PLANILHA SINTÉTICA'!$A$10:$T$1083,2,0),"") -> Luminária circular de embutir p/ 02 lâmpadas LED bulbo de 10W, c/ aro de acabamento em chapa de aço pintada, refletor em alumínio repuxado e anodizado de alta pureza e refletância; soquetes em policarbonato s/ vidro difusor temperado jateado central (diâmetro externo aprox. do vidro 21,0 cm), inclusive lâmpadas, , p/ lâmpada fluorescente, 2x10W, 220V, demais acessórios e instalação . Ref. Lumicenter, Luminárias Projeto, Itaim, Stillux, Indelpa ou equivalente. | C70: =IF(COUNTA(A70)>0,VLOOKUP($A70,'[8]PLANILHA SINTÉTICA'!$A$9:$U$1082,3,0),"") -> 430981-2 | D70: =IF(COUNTA(A70)>0,VLOOKUP($A70,'PLANILHA SINTÉTICA'!$A$10:$T$1083,4,0),"") -> 284 | E70: =IF(COUNTA(A70)>0,VLOOKUP($A70,'PLANILHA SINTÉTICA'!$A$10:$T$1083,5,0),"") -> 280 | F70: =IF(ISERROR(VLOOKUP($A70,#REF!,8,0)),0,(VLOOKUP($A70,#REF!,8,0))) -> 0 | G70: =IF(COUNTA(A70)>0,VLOOKUP($A70,'[8]PLANILHA SINTÉTICA'!$A$9:$AC$1082,15,0),"") -> 128.641746 | H70: 0
A71: 29.02.07 | B71: =IF(COUNTA(#REF!)>0,VLOOKUP($A71,'PLANILHA SINTÉTICA'!$A$10:$T$1083,2,0),"") -> Fornecimento de luminária externa, com corpo óptico e alojamento em liga de alumínio injetado de baixa pressão, padrão litoral (parafusos inox); refletor assimétrico polido, anodizado e selado, confeccionado em peça única, porta lâmpada em porcelana, rosca E27 para lâmpada 250W tubular, base para relé fotoelétrico e alojamento para equipamento auxiliar; fechamento do corpo óptico com lente plana de vidro temperado preso ao corpo da luminária através de aro de alumínio fundido e presília de aço inoxidável (IP 65), ref. Lexa A-190 - Almec ou equivalente; inclusive lâmpada MVM 250W tubular (Osram ou equivalente), reator interno de alto fator de potência (250W) e REATOR, relé foto elétrico (fotocélula), encaixe em braço e demais acessórios, inclusive instalação em postes de até 17m. | C71: =IF(COUNTA(A71)>0,VLOOKUP($A71,'[8]PLANILHA SINTÉTICA'!$A$9:$U$1082,3,0),"") -> 445063-9 | D71: =IF(COUNTA(A71)>0,VLOOKUP($A71,'PLANILHA SINTÉTICA'!$A$10:$T$1083,4,0),"") -> 14 | E71: =IF(COUNTA(A71)>0,VLOOKUP($A71,'PLANILHA SINTÉTICA'!$A$10:$T$1083,5,0),"") -> 14 | F71: =IF(ISERROR(VLOOKUP($A71,#REF!,8,0)),0,(VLOOKUP($A71,#REF!,8,0))) -> 0 | G71: =IF(COUNTA(A71)>0,VLOOKUP($A71,'[8]PLANILHA SINTÉTICA'!$A$9:$AC$1082,15,0),"") -> 572.44245 | H71: 0
A72: 29.02.09 | B72: =IF(COUNTA(#REF!)>0,VLOOKUP($A72,'PLANILHA SINTÉTICA'!$A$10:$T$1083,2,0),"") -> Fornecimento de POSTE CURVO SIMPLES, telecônico, confeccionado em tubo de aço patente galvanizado a fogo medindo 8metros, flangeado com base e chumbador, produzido em três estágios, sendo: 3", 2 1/2" e 2". Ref. MP-600, fab: EDESA, ou equivalente. | C72: =IF(COUNTA(A72)>0,VLOOKUP($A72,'[8]PLANILHA SINTÉTICA'!$A$9:$U$1082,3,0),"") -> 373073-5 | D72: =IF(COUNTA(A72)>0,VLOOKUP($A72,'PLANILHA SINTÉTICA'!$A$10:$T$1083,4,0),"") -> 21 | E72: =IF(COUNTA(A72)>0,VLOOKUP($A72,'PLANILHA SINTÉTICA'!$A$10:$T$1083,5,0),"") -> 21 | F72: =IF(ISERROR(VLOOKUP($A72,#REF!,8,0)),0,(VLOOKUP($A72,#REF!,8,0))) -> 0 | G72: =IF(COUNTA(A72)>0,VLOOKUP($A72,'[8]PLANILHA SINTÉTICA'!$A$9:$AC$1082,15,0),"") -> 1093.808274 | H72: 0
A73: 29.04.01 | B73: =IF(COUNTA(#REF!)>0,VLOOKUP($A73,'PLANILHA SINTÉTICA'!$A$10:$T$1083,2,0),"") -> Quadro de distribuição metálico de sobrepor, em chapa 16 BWG, para 6 circuitos monopolares padrão DIN, com barra de neutro e terra, com porta e trinco, Cemar ou equivalente, inclusive instalação conforme projeto. | C73: =IF(COUNTA(A73)>0,VLOOKUP($A73,'[8]PLANILHA SINTÉTICA'!$A$9:$U$1082,3,0),"") -> 431292-9 | D73: =IF(COUNTA(A73)>0,VLOOKUP($A73,'PLANILHA SINTÉTICA'!$A$10:$T$1083,4,0),"") -> 3 | E73: =IF(COUNTA(A73)>0,VLOOKUP($A73,'PLANILHA SINTÉTICA'!$A$10:$T$1083,5,0),"") -> 3 | F73: =IF(ISERROR(VLOOKUP($A73,#REF!,8,0)),0,(VLOOKUP($A73,#REF!,8,0))) -> 0 | G73: =IF(COUNTA(A73)>0,VLOOKUP($A73,'[8]PLANILHA SINTÉTICA'!$A$9:$AC$1082,15,0),"") -> 52.812068 | H73: 0
A74: 29.04.02 | B74: =IF(COUNTA(#REF!)>0,VLOOKUP($A74,'PLANILHA SINTÉTICA'!$A$10:$T$1083,2,0),"") -> Quadro de distribuição metálico de sobrepor, em chapa 16 BWG, para 8 circuitos monopolares padrão DIN, com barra de neutro e terra, com porta e trinco, Cemar ou equivalente, inclusive instalação conforme projeto. | C74: =IF(COUNTA(A74)>0,VLOOKUP($A74,'[8]PLANILHA SINTÉTICA'!$A$9:$U$1082,3,0),"") -> 471384-2 | D74: =IF(COUNTA(A74)>0,VLOOKUP($A74,'PLANILHA SINTÉTICA'!$A$10:$T$1083,4,0),"") -> 1 | E74: =IF(COUNTA(A74)>0,VLOOKUP($A74,'PLANILHA SINTÉTICA'!$A$10:$T$1083,5,0),"") -> 1 | F74: =IF(ISERROR(VLOOKUP($A74,#REF!,8,0)),0,(VLOOKUP($A74,#REF!,8,0))) -> 0 | G74: =IF(COUNTA(A74)>0,VLOOKUP($A74,'[8]PLANILHA SINTÉTICA'!$A$9:$AC$1082,15,0),"") -> 264.277024 | H74: 0
A75: 29.04.03 | B75: =IF(COUNTA(#REF!)>0,VLOOKUP($A75,'PLANILHA SINTÉTICA'!$A$10:$T$1083,2,0),"") -> Quadro de distribuição metálico de sobrepor, em chapa 16 BWG, para 12 circuitos monopolares padrão DIN, com barra de neutro e terra, com porta e trinco, Cemar ou equivalente, inclusive instalação conforme projeto. | C75: =IF(COUNTA(A75)>0,VLOOKUP($A75,'[8]PLANILHA SINTÉTICA'!$A$9:$U$1082,3,0),"") -> 445272-0 | D75: =IF(COUNTA(A75)>0,VLOOKUP($A75,'PLANILHA SINTÉTICA'!$A$10:$T$1083,4,0),"") -> 3 | E75: =IF(COUNTA(A75)>0,VLOOKUP($A75,'PLANILHA SINTÉTICA'!$A$10:$T$1083,5,0),"") -> 3 | F75: =IF(ISERROR(VLOOKUP($A75,#REF!,8,0)),0,(VLOOKUP($A75,#REF!,8,0))) -> 0 | G75: =IF(COUNTA(A75)>0,VLOOKUP($A75,'[8]PLANILHA SINTÉTICA'!$A$9:$AC$1082,15,0),"") -> 279.443376 | H75: 0
A76: 29.04.05 | B76: =IF(COUNTA(#REF!)>0,VLOOKUP($A76,'PLANILHA SINTÉTICA'!$A$10:$T$1083,2,0),"") -> Quadro de distribuição de sobrepor com barramento com barramento trifásico 56 disjuntores unipolares em chapa de aço galvanizado em chave geral trifásica. | C76: =IF(COUNTA(A76)>0,VLOOKUP($A76,'[8]PLANILHA SINTÉTICA'!$A$9:$U$1082,3,0),"") -> 431289-9 | D76: =IF(COUNTA(A76)>0,VLOOKUP($A76,'PLANILHA SINTÉTICA'!$A$10:$T$1083,4,0),"") -> 4 | E76: =IF(COUNTA(A76)>0,VLOOKUP($A76,'PLANILHA SINTÉTICA'!$A$10:$T$1083,5,0),"") -> 4 | F76: =IF(ISERROR(VLOOKUP($A76,#REF!,8,0)),0,(VLOOKUP($A76,#REF!,8,0))) -> 0 | G76: =IF(COUNTA(A76)>0,VLOOKUP($A76,'[8]PLANILHA SINTÉTICA'!$A$9:$AC$1082,15,0),"") -> 1223.441806 | H76: 0
A77: 29.04.07 | B77: =IF(COUNTA(#REF!)>0,VLOOKUP($A77,'PLANILHA SINTÉTICA'!$A$10:$T$1083,2,0),"") -> Quadro de distribuição metálico de EMBUTIR, em chapa 16 BWG, para 12 circuitos monopolares padrão DIN, com barra de neutro e terra, com porta e trinco, Cemar ou equivalente, inclusive instalação conforme projeto. | C77: =IF(COUNTA(A77)>0,VLOOKUP($A77,'[8]PLANILHA SINTÉTICA'!$A$9:$U$1082,3,0),"") -> 431288-0 | D77: =IF(COUNTA(A77)>0,VLOOKUP($A77,'PLANILHA SINTÉTICA'!$A$10:$T$1083,4,0),"") -> 2 | E77: =IF(COUNTA(A77)>0,VLOOKUP($A77,'PLANILHA SINTÉTICA'!$A$10:$T$1083,5,0),"") -> 2 | F77: =IF(ISERROR(VLOOKUP($A77,#REF!,8,0)),0,(VLOOKUP($A77,#REF!,8,0))) -> 0 | G77: =IF(COUNTA(A77)>0,VLOOKUP($A77,'[8]PLANILHA SINTÉTICA'!$A$9:$AC$1082,15,0),"") -> 235.852752 | H77: 0
A78: 29.04.09 | B78: =IF(COUNTA(#REF!)>0,VLOOKUP($A78,'PLANILHA SINTÉTICA'!$A$10:$T$1083,2,0),"") -> Disjuntor monopolar termomagnético de 6 até 32A Eletromar padrão IEC ou equivalente, inclusive instalação em quadro de distribuição, conforme projeto. | C78: =IF(COUNTA(A78)>0,VLOOKUP($A78,'[8]PLANILHA SINTÉTICA'!$A$9:$U$1082,3,0),"") -> 469808-8 | D78: =IF(COUNTA(A78)>0,VLOOKUP($A78,'PLANILHA SINTÉTICA'!$A$10:$T$1083,4,0),"") -> 99 | E78: =IF(COUNTA(A78)>0,VLOOKUP($A78,'PLANILHA SINTÉTICA'!$A$10:$T$1083,5,0),"") -> 99 | F78: =IF(ISERROR(VLOOKUP($A78,#REF!,8,0)),0,(VLOOKUP($A78,#REF!,8,0))) -> 0 | G78: =IF(COUNTA(A78)>0,VLOOKUP($A78,'[8]PLANILHA SINTÉTICA'!$A$9:$AC$1082,15,0),"") -> 10.8603 | H78: 0
A79: 29.04.10 | B79: =IF(COUNTA(#REF!)>0,VLOOKUP($A79,'PLANILHA SINTÉTICA'!$A$10:$T$1083,2,0),"") -> Disjuntor tripolar termomagnético de 32A Eletromar padrão IEC ou equivalente, inclusive instalação em quadro de distribuição, conforme projeto. | C79: =IF(COUNTA(A79)>0,VLOOKUP($A79,'[8]PLANILHA SINTÉTICA'!$A$9:$U$1082,3,0),"") -> 468590-3 | D79: =IF(COUNTA(A79)>0,VLOOKUP($A79,'PLANILHA SINTÉTICA'!$A$10:$T$1083,4,0),"") -> 22 | E79: =IF(COUNTA(A79)>0,VLOOKUP($A79,'PLANILHA SINTÉTICA'!$A$10:$T$1083,5,0),"") -> 22 | F79: =IF(ISERROR(VLOOKUP($A79,#REF!,8,0)),0,(VLOOKUP($A79,#REF!,8,0))) -> 0 | G79: =IF(COUNTA(A79)>0,VLOOKUP($A79,'[8]PLANILHA SINTÉTICA'!$A$9:$AC$1082,15,0),"") -> 73.806654 | H79: 0
A80: 29.04.13 | B80: =IF(COUNTA(#REF!)>0,VLOOKUP($A80,'PLANILHA SINTÉTICA'!$A$10:$T$1083,2,0),"") -> Fornecimento e instalação de disjuntor tripolar termomagnético de 63A Eletromar padrão IEC ou equivalente. | C80: =IF(COUNTA(A80)>0,VLOOKUP($A80,'[8]PLANILHA SINTÉTICA'!$A$9:$U$1082,3,0),"") -> 203845-5 | D80: =IF(COUNTA(A80)>0,VLOOKUP($A80,'PLANILHA SINTÉTICA'!$A$10:$T$1083,4,0),"") -> 6 | E80: =IF(COUNTA(A80)>0,VLOOKUP($A80,'PLANILHA SINTÉTICA'!$A$10:$T$1083,5,0),"") -> 6 | F80: =IF(ISERROR(VLOOKUP($A80,#REF!,8,0)),0,(VLOOKUP($A80,#REF!,8,0))) -> 0 | G80: =IF(COUNTA(A80)>0,VLOOKUP($A80,'[8]PLANILHA SINTÉTICA'!$A$9:$AC$1082,15,0),"") -> 86.213942 | H80: 0
A81: 29.04.14 | B81: =IF(COUNTA(#REF!)>0,VLOOKUP($A81,'PLANILHA SINTÉTICA'!$A$10:$T$1083,2,0),"") -> Disjuntor tripolar termomagnético de 80A Eletromar padrão IEC ou equivalente, inclusive instalação em quadro de distribuição, conforme o projeto. | C81: =IF(COUNTA(A81)>0,VLOOKUP($A81,'[8]PLANILHA SINTÉTICA'!$A$9:$U$1082,3,0),"") -> 468592-0 | D81: =IF(COUNTA(A81)>0,VLOOKUP($A81,'PLANILHA SINTÉTICA'!$A$10:$T$1083,4,0),"") -> 1 | E81: =IF(COUNTA(A81)>0,VLOOKUP($A81,'PLANILHA SINTÉTICA'!$A$10:$T$1083,5,0),"") -> 1 | F81: =IF(ISERROR(VLOOKUP($A81,#REF!,8,0)),0,(VLOOKUP($A81,#REF!,8,0))) -> 0 | G81: =IF(COUNTA(A81)>0,VLOOKUP($A81,'[8]PLANILHA SINTÉTICA'!$A$9:$AC$1082,15,0),"") -> 121.289298 | H81: 0
A82: 29.04.21 | B82: =IF(COUNTA(#REF!)>0,VLOOKUP($A82,'PLANILHA SINTÉTICA'!$A$10:$T$1083,2,0),"") -> Interruptor Diferencial Residual bipolar de 25A, com sensibilidade de 30mA, Eletromar padrão IEC ou equivalente, inclusive instalação em quadro de distribuição, conforme projeto | C82: =IF(COUNTA(A82)>0,VLOOKUP($A82,'[8]PLANILHA SINTÉTICA'!$A$9:$U$1082,3,0),"") -> 465547-8 | D82: =IF(COUNTA(A82)>0,VLOOKUP($A82,'PLANILHA SINTÉTICA'!$A$10:$T$1083,4,0),"") -> 13 | E82: =IF(COUNTA(A82)>0,VLOOKUP($A82,'PLANILHA SINTÉTICA'!$A$10:$T$1083,5,0),"") -> 13 | F82: =IF(ISERROR(VLOOKUP($A82,#REF!,8,0)),0,(VLOOKUP($A82,#REF!,8,0))) -> 0 | G82: =IF(COUNTA(A82)>0,VLOOKUP($A82,'[8]PLANILHA SINTÉTICA'!$A$9:$AC$1082,15,0),"") -> 101.404614 | H82: 0
A83: 29.05.01 | B83: =IF(COUNTA(#REF!)>0,VLOOKUP($A83,'PLANILHA SINTÉTICA'!$A$10:$T$1083,2,0),"") -> Cabo de cobre AFUMEX, ATOX, AFITOX ou equivalente (Não-Halogenado), isolação 750V., de 2,5mm², inclusive instalação em eletroduto/eletrocalha/leito. | C83: =IF(COUNTA(A83)>0,VLOOKUP($A83,'[8]PLANILHA SINTÉTICA'!$A$9:$U$1082,3,0),"") -> 465594-0 | D83: =IF(COUNTA(A83)>0,VLOOKUP($A83,'PLANILHA SINTÉTICA'!$A$10:$T$1083,4,0),"") -> 223.8 | E83: =IF(COUNTA(A83)>0,VLOOKUP($A83,'PLANILHA SINTÉTICA'!$A$10:$T$1083,5,0),"") -> 223.8 | F83: =IF(ISERROR(VLOOKUP($A83,#REF!,8,0)),0,(VLOOKUP($A83,#REF!,8,0))) -> 0 | G83: =IF(COUNTA(A83)>0,VLOOKUP($A83,'[8]PLANILHA SINTÉTICA'!$A$9:$AC$1082,15,0),"") -> 2.258284 | H83: 0
A84: 29.05.04 | B84: =IF(COUNTA(#REF!)>0,VLOOKUP($A84,'PLANILHA SINTÉTICA'!$A$10:$T$1083,2,0),"") -> Cabo de cobre AFUMEX, ATOX, AFITOX ou equivalente (Não-Halogenado), isolação 0,6/1kV., de 2,5mm²., inclusive instalação em eletroduto/eletrocalha/leito. | C84: =IF(COUNTA(A84)>0,VLOOKUP($A84,'[8]PLANILHA SINTÉTICA'!$A$9:$U$1082,3,0),"") -> 440914-0 | D84: =IF(COUNTA(A84)>0,VLOOKUP($A84,'PLANILHA SINTÉTICA'!$A$10:$T$1083,4,0),"") -> 2107.2 | E84: =IF(COUNTA(A84)>0,VLOOKUP($A84,'PLANILHA SINTÉTICA'!$A$10:$T$1083,5,0),"") -> 2107.2 | F84: =IF(ISERROR(VLOOKUP($A84,#REF!,8,0)),0,(VLOOKUP($A84,#REF!,8,0))) -> 0 | G84: =IF(COUNTA(A84)>0,VLOOKUP($A84,'[8]PLANILHA SINTÉTICA'!$A$9:$AC$1082,15,0),"") -> 3.0131 | H84: 0
A85: 29.05.05 | B85: =IF(COUNTA(#REF!)>0,VLOOKUP($A85,'PLANILHA SINTÉTICA'!$A$10:$T$1083,2,0),"") -> Cabo de cobre AFUMEX, ATOX, AFITOX ou equivalente (Não-Halogenado), isolação 0,6/1kV., de 4,0mm², inclusive instalação em eletroduto/ eletrocalha / leito. | C85: =IF(COUNTA(A85)>0,VLOOKUP($A85,'[8]PLANILHA SINTÉTICA'!$A$9:$U$1082,3,0),"") -> 380039-3 | D85: =IF(COUNTA(A85)>0,VLOOKUP($A85,'PLANILHA SINTÉTICA'!$A$10:$T$1083,4,0),"") -> 1209.4 | E85: =IF(COUNTA(A85)>0,VLOOKUP($A85,'PLANILHA SINTÉTICA'!$A$10:$T$1083,5,0),"") -> 1209.4 | F85: =IF(ISERROR(VLOOKUP($A85,#REF!,8,0)),0,(VLOOKUP($A85,#REF!,8,0))) -> 0 | G85: =IF(COUNTA(A85)>0,VLOOKUP($A85,'[8]PLANILHA SINTÉTICA'!$A$9:$AC$1082,15,0),"") -> 3.99442 | H85: 0
A86: 29.05.06 | B86: =IF(COUNTA(#REF!)>0,VLOOKUP($A86,'PLANILHA SINTÉTICA'!$A$10:$T$1083,2,0),"") -> Cabo de cobre AFUMEX, ATOX, AFITOX ou equivalente (Não-Halogenado), isolação 0,6/1kV., de 6,0mm²., inclusive instalação em eletroduto/eletrocalha/leito. | C86: =IF(COUNTA(A86)>0,VLOOKUP($A86,'[8]PLANILHA SINTÉTICA'!$A$9:$U$1082,3,0),"") -> 468390-0 | D86: =IF(COUNTA(A86)>0,VLOOKUP($A86,'PLANILHA SINTÉTICA'!$A$10:$T$1083,4,0),"") -> 361 | E86: =IF(COUNTA(A86)>0,VLOOKUP($A86,'PLANILHA SINTÉTICA'!$A$10:$T$1083,5,0),"") -> 361 | F86: =IF(ISERROR(VLOOKUP($A86,#REF!,8,0)),0,(VLOOKUP($A86,#REF!,8,0))) -> 0 | G86: =IF(COUNTA(A86)>0,VLOOKUP($A86,'[8]PLANILHA SINTÉTICA'!$A$9:$AC$1082,15,0),"") -> 5.150712 | H86: 0
A87: 29.05.07 | B87: =IF(COUNTA(#REF!)>0,VLOOKUP($A87,'PLANILHA SINTÉTICA'!$A$10:$T$1083,2,0),"") -> Cabo de cobre AFUMEX, ATOX, AFITOX ou equivalente (Não-Halogenado), isolação 0,6/1kV., de 10mm²., inclusive instalação em eletroduto/eletrocalha/leito. | C87: =IF(COUNTA(A87)>0,VLOOKUP($A87,'[8]PLANILHA SINTÉTICA'!$A$9:$U$1082,3,0),"") -> 429220-0 | D87: =IF(COUNTA(A87)>0,VLOOKUP($A87,'PLANILHA SINTÉTICA'!$A$10:$T$1083,4,0),"") -> 642.9 | E87: =IF(COUNTA(A87)>0,VLOOKUP($A87,'PLANILHA SINTÉTICA'!$A$10:$T$1083,5,0),"") -> 642.9 | F87: =IF(ISERROR(VLOOKUP($A87,#REF!,8,0)),0,(VLOOKUP($A87,#REF!,8,0))) -> 0 | G87: =IF(COUNTA(A87)>0,VLOOKUP($A87,'[8]PLANILHA SINTÉTICA'!$A$9:$AC$1082,15,0),"") -> 7.463462 | H87: 0
A88: 29.05.08 | B88: =IF(COUNTA(#REF!)>0,VLOOKUP($A88,'PLANILHA SINTÉTICA'!$A$10:$T$1083,2,0),"") -> Cabo de cobre AFUMEX, ATOX, AFITOX ou equivalente (Não-Halogenado), isolação 0,6/1kV., de 16mm²., inclusive instalação em eletroduto/eletrocalha/leito. | C88: =IF(COUNTA(A88)>0,VLOOKUP($A88,'[8]PLANILHA SINTÉTICA'!$A$9:$U$1082,3,0),"") -> 473421-1 | D88: =IF(COUNTA(A88)>0,VLOOKUP($A88,'PLANILHA SINTÉTICA'!$A$10:$T$1083,4,0),"") -> 695.8 | E88: =IF(COUNTA(A88)>0,VLOOKUP($A88,'PLANILHA SINTÉTICA'!$A$10:$T$1083,5,0),"") -> 695.8 | F88: =IF(ISERROR(VLOOKUP($A88,#REF!,8,0)),0,(VLOOKUP($A88,#REF!,8,0))) -> 0 | G88: =IF(COUNTA(A88)>0,VLOOKUP($A88,'[8]PLANILHA SINTÉTICA'!$A$9:$AC$1082,15,0),"") -> 10.755114 | H88: 0
A89: 29.05.09 | B89: =IF(COUNTA(#REF!)>0,VLOOKUP($A89,'PLANILHA SINTÉTICA'!$A$10:$T$1083,2,0),"") -> Cabo de cobre AFUMEX, ATOX, AFITOX ou equivalente (Não-Halogenado), isolação 0,6/1kV., de 25mm²., inclusive instalação em eletroduto/eletrocalha/leito. | C89: =IF(COUNTA(A89)>0,VLOOKUP($A89,'[8]PLANILHA SINTÉTICA'!$A$9:$U$1082,3,0),"") -> 473423-8 | D89: =IF(COUNTA(A89)>0,VLOOKUP($A89,'PLANILHA SINTÉTICA'!$A$10:$T$1083,4,0),"") -> 196 | E89: =IF(COUNTA(A89)>0,VLOOKUP($A89,'PLANILHA SINTÉTICA'!$A$10:$T$1083,5,0),"") -> 196 | F89: =IF(ISERROR(VLOOKUP($A89,#REF!,8,0)),0,(VLOOKUP($A89,#REF!,8,0))) -> 0 | G89: =IF(COUNTA(A89)>0,VLOOKUP($A89,'[8]PLANILHA SINTÉTICA'!$A$9:$AC$1082,15,0),"") -> 15.28449 | H89: 0
A90: 29.05.10 | B90: =IF(COUNTA(#REF!)>0,VLOOKUP($A90,'PLANILHA SINTÉTICA'!$A$10:$T$1083,2,0),"") -> Cabo de cobre AFUMEX, ATOX, AFITOX ou equivalente (Não-Halogenado), isolação 0,6/1kV., de 50mm²., inclusive instalação em eletroduto/eletrocalha/leito. | C90: =IF(COUNTA(A90)>0,VLOOKUP($A90,'[8]PLANILHA SINTÉTICA'!$A$9:$U$1082,3,0),"") -> 398164-9 | D90: =IF(COUNTA(A90)>0,VLOOKUP($A90,'PLANILHA SINTÉTICA'!$A$10:$T$1083,4,0),"") -> 255.3 | E90: =IF(COUNTA(A90)>0,VLOOKUP($A90,'PLANILHA SINTÉTICA'!$A$10:$T$1083,5,0),"") -> 201.5 | F90: =IF(ISERROR(VLOOKUP($A90,#REF!,8,0)),0,(VLOOKUP($A90,#REF!,8,0))) -> 0 | G90: =IF(COUNTA(A90)>0,VLOOKUP($A90,'[8]PLANILHA SINTÉTICA'!$A$9:$AC$1082,15,0),"") -> 31.796848 | H90: 0
A91: 29.05.11 | B91: =IF(COUNTA(#REF!)>0,VLOOKUP($A91,'PLANILHA SINTÉTICA'!$A$10:$T$1083,2,0),"") -> Cabo de cobre AFUMEX, ATOX, AFITOX ou equivalente (Não-Halogenado), isolação 0,6/1kV., de 95mm²., inclusive instalação em eletroduto/eletrocalha/leito. | C91: =IF(COUNTA(A91)>0,VLOOKUP($A91,'[8]PLANILHA SINTÉTICA'!$A$9:$U$1082,3,0),"") -> 380041-5 | D91: =IF(COUNTA(A91)>0,VLOOKUP($A91,'PLANILHA SINTÉTICA'!$A$10:$T$1083,4,0),"") -> 269.1 | E91: =IF(COUNTA(A91)>0,VLOOKUP($A91,'PLANILHA SINTÉTICA'!$A$10:$T$1083,5,0),"") -> 130 | F91: =IF(ISERROR(VLOOKUP($A91,#REF!,8,0)),0,(VLOOKUP($A91,#REF!,8,0))) -> 0 | G91: =IF(COUNTA(A91)>0,VLOOKUP($A91,'[8]PLANILHA SINTÉTICA'!$A$9:$AC$1082,15,0),"") -> 50.808242 | H91: 0
A92: 29.05.12 | B92: =IF(COUNTA(#REF!)>0,VLOOKUP($A92,'PLANILHA SINTÉTICA'!$A$10:$T$1083,2,0),"") -> Cabo de cobre AFUMEX, ATOX, AFITOX ou equivalente (Não-Halogenado), isolação 0,6/1kV., de 150mm²., inclusive instalação em eletroduto/eletrocalha/leito. | C92: =IF(COUNTA(A92)>0,VLOOKUP($A92,'[8]PLANILHA SINTÉTICA'!$A$9:$U$1082,3,0),"") -> 468594-6 | D92: =IF(COUNTA(A92)>0,VLOOKUP($A92,'PLANILHA SINTÉTICA'!$A$10:$T$1083,4,0),"") -> 63.1 | E92: =IF(COUNTA(A92)>0,VLOOKUP($A92,'PLANILHA SINTÉTICA'!$A$10:$T$1083,5,0),"") -> 63.1 | F92: =IF(ISERROR(VLOOKUP($A92,#REF!,8,0)),0,(VLOOKUP($A92,#REF!,8,0))) -> 0 | G92: =IF(COUNTA(A92)>0,VLOOKUP($A92,'[8]PLANILHA SINTÉTICA'!$A$9:$AC$1082,15,0),"") -> 89.693172 | H92: 0
A93: 29.11.08 | B93: =IF(COUNTA(#REF!)>0,VLOOKUP($A93,'PLANILHA SINTÉTICA'!$A$10:$T$1083,2,0),"") -> Cabo de cobre AFUMEX, ATOX, AFITOX ou equivalente (Não-Halogenado), isolação 0,6/1kV., de 6,0mm²., inclusive instalação em eletroduto/eletrocalha/leito. | C93: =IF(COUNTA(A93)>0,VLOOKUP($A93,'[8]PLANILHA SINTÉTICA'!$A$9:$U$1082,3,0),"") -> 468390-0 | D93: =IF(COUNTA(A93)>0,VLOOKUP($A93,'PLANILHA SINTÉTICA'!$A$10:$T$1083,4,0),"") -> 375.4 | E93: =IF(COUNTA(A93)>0,VLOOKUP($A93,'PLANILHA SINTÉTICA'!$A$10:$T$1083,5,0),"") -> 375.4 | F93: =IF(ISERROR(VLOOKUP($A93,#REF!,8,0)),0,(VLOOKUP($A93,#REF!,8,0))) -> 0 | G93: =IF(COUNTA(A93)>0,VLOOKUP($A93,'[8]PLANILHA SINTÉTICA'!$A$9:$AC$1082,15,0),"") -> 5.150712 | H93: 0
A94: 29.11.12 | B94: =IF(COUNTA(#REF!)>0,VLOOKUP($A94,'PLANILHA SINTÉTICA'!$A$10:$T$1083,2,0),"") -> Cabo de cobre AFUMEX, ATOX, AFITOX ou equivalente (Não-Halogenado), isolação 0,6/1kV., de 35mm². , inclusive instalação em eletroduto/eletrocalha/leito. | C94: =IF(COUNTA(A94)>0,VLOOKUP($A94,'[8]PLANILHA SINTÉTICA'!$A$9:$U$1082,3,0),"") -> 203422-0 | D94: =IF(COUNTA(A94)>0,VLOOKUP($A94,'PLANILHA SINTÉTICA'!$A$10:$T$1083,4,0),"") -> 25.5 | E94: =IF(COUNTA(A94)>0,VLOOKUP($A94,'PLANILHA SINTÉTICA'!$A$10:$T$1083,5,0),"") -> 25.5 | F94: =IF(ISERROR(VLOOKUP($A94,#REF!,8,0)),0,(VLOOKUP($A94,#REF!,8,0))) -> 0 | G94: =IF(COUNTA(A94)>0,VLOOKUP($A94,'[8]PLANILHA SINTÉTICA'!$A$9:$AC$1082,15,0),"") -> 21.329294 | H94: 0
A95: 29.11.15 | B95: =IF(COUNTA(#REF!)>0,VLOOKUP($A95,'PLANILHA SINTÉTICA'!$A$10:$T$1083,2,0),"") -> Quadro de distribuição metálico de sobrepor, em chapa 16 BWG, para 24 circuitos monopolares padrão DIN, com barra de neutro e terra 150A, com porta e trinco, Cemar ou equivalente, inclusive instalação conforme projeto. | C95: =IF(COUNTA(A95)>0,VLOOKUP($A95,'[8]PLANILHA SINTÉTICA'!$A$9:$U$1082,3,0),"") -> 400966-5 | D95: =IF(COUNTA(A95)>0,VLOOKUP($A95,'PLANILHA SINTÉTICA'!$A$10:$T$1083,4,0),"") -> 3 | E95: =IF(COUNTA(A95)>0,VLOOKUP($A95,'PLANILHA SINTÉTICA'!$A$10:$T$1083,5,0),"") -> 3 | F95: =IF(ISERROR(VLOOKUP($A95,#REF!,8,0)),0,(VLOOKUP($A95,#REF!,8,0))) -> 0 | G95: =IF(COUNTA(A95)>0,VLOOKUP($A95,'[8]PLANILHA SINTÉTICA'!$A$9:$AC$1082,15,0),"") -> 590.260256 | H95: 0
A96: 29.11.16 | B96: =IF(COUNTA(#REF!)>0,VLOOKUP($A96,'PLANILHA SINTÉTICA'!$A$10:$T$1083,2,0),"") -> Quadro de distribuição metálico de sobrepor, em chapa 16 BWG, para 8 circuitos monopolares padrão DIN, com barra de neutro e terra, com porta e trinco, Cemar ou equivalente, inclusive instalação conforme projeto. | C96: =IF(COUNTA(A96)>0,VLOOKUP($A96,'[8]PLANILHA SINTÉTICA'!$A$9:$U$1082,3,0),"") -> 471384-2 | D96: =IF(COUNTA(A96)>0,VLOOKUP($A96,'PLANILHA SINTÉTICA'!$A$10:$T$1083,4,0),"") -> 4 | E96: =IF(COUNTA(A96)>0,VLOOKUP($A96,'PLANILHA SINTÉTICA'!$A$10:$T$1083,5,0),"") -> 3 | F96: =IF(ISERROR(VLOOKUP($A96,#REF!,8,0)),0,(VLOOKUP($A96,#REF!,8,0))) -> 0 | G96: =IF(COUNTA(A96)>0,VLOOKUP($A96,'[8]PLANILHA SINTÉTICA'!$A$9:$AC$1082,15,0),"") -> 264.277024 | H96: 0
A97: 29.11.21 | B97: =IF(COUNTA(#REF!)>0,VLOOKUP($A97,'PLANILHA SINTÉTICA'!$A$10:$T$1083,2,0),"") -> Fornecimento e instalação de disjuntor tripolar termomagnético de 100A Eletromar padrão IEC ou equivalente. | C97: =IF(COUNTA(A97)>0,VLOOKUP($A97,'[8]PLANILHA SINTÉTICA'!$A$9:$U$1082,3,0),"") -> 354786-8 | D97: =IF(COUNTA(A97)>0,VLOOKUP($A97,'PLANILHA SINTÉTICA'!$A$10:$T$1083,4,0),"") -> 1 | E97: =IF(COUNTA(A97)>0,VLOOKUP($A97,'PLANILHA SINTÉTICA'!$A$10:$T$1083,5,0),"") -> 1 | F97: =IF(ISERROR(VLOOKUP($A97,#REF!,8,0)),0,(VLOOKUP($A97,#REF!,8,0))) -> 0 | G97: =IF(COUNTA(A97)>0,VLOOKUP($A97,'[8]PLANILHA SINTÉTICA'!$A$9:$AC$1082,15,0),"") -> 121.289298 | H97: 0
A98: 29.13.06 | B98: =IF(COUNTA(#REF!)>0,VLOOKUP($A98,'PLANILHA SINTÉTICA'!$A$10:$T$1083,2,0),"") -> Fornecimento e instalação de disjuntor tripolar termomagnético de 80A Eletromar padrão IEC ou equivalente. | C98: =IF(COUNTA(A98)>0,VLOOKUP($A98,'[8]PLANILHA SINTÉTICA'!$A$9:$U$1082,3,0),"") -> 468592-0 | D98: =IF(COUNTA(A98)>0,VLOOKUP($A98,'PLANILHA SINTÉTICA'!$A$10:$T$1083,4,0),"") -> 3 | E98: =IF(COUNTA(A98)>0,VLOOKUP($A98,'PLANILHA SINTÉTICA'!$A$10:$T$1083,5,0),"") -> 3 | F98: =IF(ISERROR(VLOOKUP($A98,#REF!,8,0)),0,(VLOOKUP($A98,#REF!,8,0))) -> 0 | G98: =IF(COUNTA(A98)>0,VLOOKUP($A98,'[8]PLANILHA SINTÉTICA'!$A$9:$AC$1082,15,0),"") -> 121.289298 | H98: 0
A99: 29.13.09 | B99: =IF(COUNTA(#REF!)>0,VLOOKUP($A99,'PLANILHA SINTÉTICA'!$A$10:$T$1083,2,0),"") -> Quadro de distribuição metálico de embutir, em chapa 16 BWG, para 16 circuitos monopolares padrão DIN, com barra de neutro e terra, com porta e trinco, Cemar ou equivalente, inclusive instalação conforme projeto. | C99: =IF(COUNTA(A99)>0,VLOOKUP($A99,'[8]PLANILHA SINTÉTICA'!$A$9:$U$1082,3,0),"") -> 463747-0 | D99: =IF(COUNTA(A99)>0,VLOOKUP($A99,'PLANILHA SINTÉTICA'!$A$10:$T$1083,4,0),"") -> 2 | E99: =IF(COUNTA(A99)>0,VLOOKUP($A99,'PLANILHA SINTÉTICA'!$A$10:$T$1083,5,0),"") -> 2 | F99: =IF(ISERROR(VLOOKUP($A99,#REF!,8,0)),0,(VLOOKUP($A99,#REF!,8,0))) -> 0 | G99: =IF(COUNTA(A99)>0,VLOOKUP($A99,'[8]PLANILHA SINTÉTICA'!$A$9:$AC$1082,15,0),"") -> 279.130258 | H99: 0
A100: 31.08 | B100: =IF(COUNTA(#REF!)>0,VLOOKUP($A100,'PLANILHA SINTÉTICA'!$A$10:$T$1083,2,0),"") -> Fornecimento e instalação de cabo para sinal e detecção de incêndio em par trançado mais dreno shieldado acabamento em PVC Prysmian, Lipperfil ou equivalente CTR FLEX BL FT COBRE 2 x 1,5mm2 500V preto NBR 7289.. | C100: =IF(COUNTA(A100)>0,VLOOKUP($A100,'[8]PLANILHA SINTÉTICA'!$A$9:$U$1082,3,0),"") -> 469812-6 | D100: =IF(COUNTA(A100)>0,VLOOKUP($A100,'PLANILHA SINTÉTICA'!$A$10:$T$1083,4,0),"") -> 2686 | E100: =IF(COUNTA(A100)>0,VLOOKUP($A100,'PLANILHA SINTÉTICA'!$A$10:$T$1083,5,0),"") -> 2300 | F100: =IF(ISERROR(VLOOKUP($A100,#REF!,8,0)),0,(VLOOKUP($A100,#REF!,8,0))) -> 0 | G100: =IF(COUNTA(A100)>0,VLOOKUP($A100,'[8]PLANILHA SINTÉTICA'!$A$9:$AC$1082,15,0),"") -> 5.307892 | H100: 0
A101: 31.36 | B101: =IF(COUNTA(#REF!)>0,VLOOKUP($A101,'PLANILHA SINTÉTICA'!$A$10:$T$1083,2,0),"") -> Central eletrônica inteligente de detecção e alarme de incêndio, de 24Vcc, com capacidade para 6 laços do sistema de detecção e módulos de expansão das chaves de fluxo, compatível com os pontos de detecção e acionadores endereçáveis do projeto, inclusive as placas de laço, de fabricação Apolo ou equivalente, inclusive instalação e treinamento. | C101: =IF(COUNTA(A101)>0,VLOOKUP($A101,'[8]PLANILHA SINTÉTICA'!$A$9:$U$1082,3,0),"") -> 424724-8 | D101: =IF(COUNTA(A101)>0,VLOOKUP($A101,'PLANILHA SINTÉTICA'!$A$10:$T$1083,4,0),"") -> 1 | E101: =IF(COUNTA(A101)>0,VLOOKUP($A101,'PLANILHA SINTÉTICA'!$A$10:$T$1083,5,0),"") -> 1 | F101: =IF(ISERROR(VLOOKUP($A101,#REF!,8,0)),0,(VLOOKUP($A101,#REF!,8,0))) -> 0 | G101: =IF(COUNTA(A101)>0,VLOOKUP($A101,'[8]PLANILHA SINTÉTICA'!$A$9:$AC$1082,15,0),"") -> 13058.44614 | H101: 0
A102: 32.05 | B102: =IF(COUNTA(#REF!)>0,VLOOKUP($A102,'PLANILHA SINTÉTICA'!$A$10:$T$1083,2,0),"") -> Fornecimento de unidade interna(evaporadora) multisplit - CASSETE INVERTER, que utiliza o gás ecológico R-410A, com capacidade térmica de resfriamento nominal:24.000 BTU/H | C102: =IF(COUNTA(A102)>0,VLOOKUP($A102,'[8]PLANILHA SINTÉTICA'!$A$9:$U$1082,3,0),"") -> 422139-7 | D102: =IF(COUNTA(A102)>0,VLOOKUP($A102,'PLANILHA SINTÉTICA'!$A$10:$T$1083,4,0),"") -> 18 | E102: =IF(COUNTA(A102)>0,VLOOKUP($A102,'PLANILHA SINTÉTICA'!$A$10:$T$1083,5,0),"") -> 18 | F102: 2 | G102: =IF(COUNTA(A102)>0,VLOOKUP($A102,'[8]PLANILHA SINTÉTICA'!$A$9:$AC$1082,15,0),"") -> 2413.423362 | H102: 4826.85 | K102: =G102*74.65% -> 1801.62054 | L102: =ROUND(F102*K102,2) -> 3603.24
A103: 32.08 | B103: =IF(COUNTA(#REF!)>0,VLOOKUP($A103,'PLANILHA SINTÉTICA'!$A$10:$T$1083,2,0),"") -> Instalação , conforme projeto, de Condicionador de ar do tipo Split/CASSETE, com capacidade de 24.000 BTU/h, INVERTER, realizando os serviços de confecção de linhas frigoríficas em tubo de cobre utilizando nitrogênio com fluxo constante para realização das soldas evitando impurezas e a dos drenos termicamente isolados. Fornecimento e instalação de carga de fluido refrigerante ecológico R-410A. A execução da instalação deve ser executada por Técnico de Refrigeração devidamente especializado em equipamentos INVERTER. Realizar a interligação entre as unidades Evaporadora e Condensadora com cabo PP 4x 1,5mm²; inclusive fixação de unidade evaporadora e interligação de drenos, calços de borracha, bem como todos os acessórios necessários para a completa instalação e funcionamento do sistema, e limpeza final da obra. | C103: =IF(COUNTA(A103)>0,VLOOKUP($A103,'[8]PLANILHA SINTÉTICA'!$A$9:$U$1082,3,0),"") -> 276777-5 | D103: =IF(COUNTA(A103)>0,VLOOKUP($A103,'PLANILHA SINTÉTICA'!$A$10:$T$1083,4,0),"") -> 18 | E103: =IF(COUNTA(A103)>0,VLOOKUP($A103,'PLANILHA SINTÉTICA'!$A$10:$T$1083,5,0),"") -> 18 | F103: 6 | G103: =IF(COUNTA(A103)>0,VLOOKUP($A103,'[8]PLANILHA SINTÉTICA'!$A$9:$AC$1082,15,0),"") -> 1090.01409 | H103: 6540.08
A104: 32.11 | B104: =IF(COUNTA(#REF!)>0,VLOOKUP($A104,'PLANILHA SINTÉTICA'!$A$10:$T$1083,2,0),"") -> Instalação , conforme projeto, de Condicionador de ar do tipo Split/cassete, com capacidade de 18.000 BTU/h, INVERTER, realizando os serviços de confecção de linhas frigoríficas em tubo de cobre utilizando nitrogênio com fluxo constante para realização das soldas evitando impurezas e a dos drenos termicamente isolados. Fornecimento e instalação de carga de fluido refrigerante ecológico R-410A. A execução da instalação deve ser executada por Técnico de Refrigeração devidamente especializado em equipamentos INVERTER. Realizar a interligação entre as unidades Evaporadora e Condensadora com cabo PP4x1,5mm²; inclusive fixação de unidade evaporadora e interligação de drenos, calços de borracha, bem como todos os acessórios necessários para a completa instalação e funcionamento do sistema, e limpeza final da obra. | C104: =IF(COUNTA(A104)>0,VLOOKUP($A104,'[8]PLANILHA SINTÉTICA'!$A$9:$U$1082,3,0),"") -> 475570-7 | D104: =IF(COUNTA(A104)>0,VLOOKUP($A104,'PLANILHA SINTÉTICA'!$A$10:$T$1083,4,0),"") -> 110 | E104: =IF(COUNTA(A104)>0,VLOOKUP($A104,'PLANILHA SINTÉTICA'!$A$10:$T$1083,5,0),"") -> 91 | F104: 16 | G104: =IF(COUNTA(A104)>0,VLOOKUP($A104,'[8]PLANILHA SINTÉTICA'!$A$9:$AC$1082,15,0),"") -> 1061.897194 | H104: 16990.36
A105: 32.25 | B105: =IF(COUNTA(#REF!)>0,VLOOKUP($A105,'PLANILHA SINTÉTICA'!$A$10:$T$1083,2,0),"") -> Fornecimento e instalação de dutos em chapa de aço galvanizada bitola nº 24, incluindo acessórios de sustentação. | C105: =IF(COUNTA(A105)>0,VLOOKUP($A105,'[8]PLANILHA SINTÉTICA'!$A$9:$U$1082,3,0),"") -> 484196-4 | D105: =IF(COUNTA(A105)>0,VLOOKUP($A105,'PLANILHA SINTÉTICA'!$A$10:$T$1083,4,0),"") -> 432.29 | E105: =IF(COUNTA(A105)>0,VLOOKUP($A105,'PLANILHA SINTÉTICA'!$A$10:$T$1083,5,0),"") -> 432.29 | F105: =IF(ISERROR(VLOOKUP($A105,#REF!,8,0)),0,(VLOOKUP($A105,#REF!,8,0))) -> 0 | G105: =IF(COUNTA(A105)>0,VLOOKUP($A105,'[8]PLANILHA SINTÉTICA'!$A$9:$AC$1082,15,0),"") -> 49.695824 | H105: 0
A106: 32.26 | B106: =IF(COUNTA(#REF!)>0,VLOOKUP($A106,'PLANILHA SINTÉTICA'!$A$10:$T$1083,2,0),"") -> Fornecimento e instalação de dutos em chapa de aço galvanizada bitola nº 26, incluindo acessórios de sustentação. | C106: =IF(COUNTA(A106)>0,VLOOKUP($A106,'[8]PLANILHA SINTÉTICA'!$A$9:$U$1082,3,0),"") -> 484197-2 | D106: =IF(COUNTA(A106)>0,VLOOKUP($A106,'PLANILHA SINTÉTICA'!$A$10:$T$1083,4,0),"") -> 570.31 | E106: =IF(COUNTA(A106)>0,VLOOKUP($A106,'PLANILHA SINTÉTICA'!$A$10:$T$1083,5,0),"") -> 570.31 | F106: =IF(ISERROR(VLOOKUP($A106,#REF!,8,0)),0,(VLOOKUP($A106,#REF!,8,0))) -> 0 | G106: =IF(COUNTA(A106)>0,VLOOKUP($A106,'[8]PLANILHA SINTÉTICA'!$A$9:$AC$1082,15,0),"") -> 39.021976 | H106: 0
A107: 32.29 | B107: =IF(COUNTA(#REF!)>0,VLOOKUP($A107,'PLANILHA SINTÉTICA'!$A$10:$T$1083,2,0),"") -> Fornecimento e instalação de Duto flexível Aludec 60 ou equivalente, 125mm | C107: =IF(COUNTA(A107)>0,VLOOKUP($A107,'[8]PLANILHA SINTÉTICA'!$A$9:$U$1082,3,0),"") -> 432544-3 | D107: =IF(COUNTA(A107)>0,VLOOKUP($A107,'PLANILHA SINTÉTICA'!$A$10:$T$1083,4,0),"") -> 102 | E107: =IF(COUNTA(A107)>0,VLOOKUP($A107,'PLANILHA SINTÉTICA'!$A$10:$T$1083,5,0),"") -> 102 | F107: =IF(ISERROR(VLOOKUP($A107,#REF!,8,0)),0,(VLOOKUP($A107,#REF!,8,0))) -> 0 | G107: =IF(COUNTA(A107)>0,VLOOKUP($A107,'[8]PLANILHA SINTÉTICA'!$A$9:$AC$1082,15,0),"") -> 20.29951 | H107: 0
G108: TOTAL DA 49ª MEDIÇÃO | H108: =SUM(H8:H107) -> 29400.58 | J108: =SUM(J8:J107) -> 0 | L108: =SUM(L8:L107) -> 3603.24
J109: Total Reequilíbrio Med. 49ª | L109: =J108+L108 -> 3603.24

Sheet REEQUILÍBRIO (hidden)
A1: ' | B1: PODER JUDICIÁRIO | F1: Obra: | G1: =#REF! ->  | I1: REEQUILÍBRIO ECONÕMICO FINANCEIRO DA 48ª MEDIÇÃO CONFORME O 7º TA.
B2: TRIBUNAL DE JUSTIÇA DE PERNAMBUCO | F2: Local: | G2: =#REF! -> 
B3: DIRETORIA DE ENGENHARIA E ARQUITETURA | F3: Contrato: | G3: =#REF! -> 
B4: PLANILHA PARA LIQUIDAÇÃO - 49ª MEDIÇÃO | F4: Contratada: | G4: =#REF! -> 
G5: DATA: | H5: 2022-02-10 | I5: REEQUILIBRIO | K5: REEQUILIBRIO
A6: Item | B6: Código | C6: Cód. Efisco | D6: Discriminação/especificação dos serviços | E6: UNID | F6: QUANT | G6: SERVIÇO | I6: OBRA | K6: EQUIPAMENTO
G7: P. UNIT. | H7: P. PARCIAL | I7: P. UNIT. | J7: P. PARCIAL | K7: P. UNIT. | L7: P. PARCIAL
A8: 32.01 | B8: =IF(COUNTA(#REF!)>0,VLOOKUP($A8,'PLANILHA SINTÉTICA'!$A$10:$T$1083,2,0),"") -> Fornecimento de unidade interna(evaporadora) multisplit - CASSETE INVERTER, que utiliza o gás ecológico R-410A, com capacidade térmica de resfriamento nominal:12.000 BTU/H | C8: =IF(COUNTA(A8)>0,VLOOKUP($A8,'[8]PLANILHA SINTÉTICA'!$A$9:$U$1082,3,0),"") -> 390403-2 | D8: =IF(COUNTA(A8)>0,VLOOKUP($A8,'PLANILHA SINTÉTICA'!$A$10:$T$1083,4,0),"") -> 18 | E8: =IF(COUNTA(A8)>0,VLOOKUP($A8,'PLANILHA SINTÉTICA'!$A$10:$T$1083,5,0),"") -> 16 | F8: =IF(ISERROR(VLOOKUP($A8,#REF!,8,0)),0,(VLOOKUP($A8,#REF!,8,0))) -> 0 | G8: =IF(COUNTA(A8)>0,VLOOKUP($A8,'[8]PLANILHA SINTÉTICA'!$A$9:$AC$1082,15,0),"") -> 2019.890166 | H8: =ROUND(G8*F8,2) -> 0 | K8: =G8*74.65% -> 1507.848009 | L8: =ROUND(F8*K8,2) -> 0
A9: 32.03 | B9: =IF(COUNTA(#REF!)>0,VLOOKUP($A9,'PLANILHA SINTÉTICA'!$A$10:$T$1083,2,0),"") -> Fornecimento de unidade interna(evaporadora) multisplit - CASSETE INVERTER, que utiliza o gás ecológico R-410A, com capacidade térmica de resfriamento nominal:18.000 BTU/H | C9: =IF(COUNTA(A9)>0,VLOOKUP($A9,'[8]PLANILHA SINTÉTICA'!$A$9:$U$1082,3,0),"") -> 422138-9 | D9: =IF(COUNTA(A9)>0,VLOOKUP($A9,'PLANILHA SINTÉTICA'!$A$10:$T$1083,4,0),"") -> 110 | E9: =IF(COUNTA(A9)>0,VLOOKUP($A9,'PLANILHA SINTÉTICA'!$A$10:$T$1083,5,0),"") -> 91 | F9: =IF(ISERROR(VLOOKUP($A9,#REF!,8,0)),0,(VLOOKUP($A9,#REF!,8,0))) -> 0 | G9: =IF(COUNTA(A9)>0,VLOOKUP($A9,'[8]PLANILHA SINTÉTICA'!$A$9:$AC$1082,15,0),"") -> 2152.460996 | H9: =ROUND(G9*F9,2) -> 0 | K9: =G9*74.65% -> 1606.812134 | L9: =ROUND(F9*K9,2) -> 0
A10: 10.1 | B10: =IF(COUNTA(#REF!)>0,VLOOKUP($A10,'PLANILHA SINTÉTICA'!$A$10:$T$1083,2,0),"") -> Fornecimento e instalação de esquadrias tipo "PELE DE VIDRO", em alumínio anodizado cor bronze, com vidro laminado refletivo 6mm na cor verde, composta por painéis fixos e painéis de abrir tipo maximar, inclusive fechos e braços articulados em alumínio anodizado bronze, conforme projetos. (EPV1) | C10: =IF(COUNTA(A10)>0,VLOOKUP($A10,'[8]PLANILHA SINTÉTICA'!$A$9:$U$1082,3,0),"") -> 464030-6 | D10: =IF(COUNTA(A10)>0,VLOOKUP($A10,'PLANILHA SINTÉTICA'!$A$10:$T$1083,4,0),"") -> 292 | E10: =IF(COUNTA(A10)>0,VLOOKUP($A10,'PLANILHA SINTÉTICA'!$A$10:$T$1083,5,0),"") -> 292 | F10: =IF(ISERROR(VLOOKUP($A10,#REF!,8,0)),0,(VLOOKUP($A10,#REF!,8,0))) -> 0 | G10: =IF(COUNTA(A10)>0,VLOOKUP($A10,'[8]PLANILHA SINTÉTICA'!$A$9:$AC$1082,15,0),"") -> 1052.222988 | H10: =ROUND(G10*F10,2) -> 0 | I10: =G10*91.67% -> 964.5728131 | J10: =ROUND(F10*I10,2) -> 0
A11: 10.20 | B11: =IF(COUNTA(#REF!)>0,VLOOKUP($A11,'PLANILHA SINTÉTICA'!$A$10:$T$1083,2,0),"") -> Fornecimento e instalação de janela em alumínio anodizado bronze tipo correr, com vidro liso verde, espessura de 6mm, dimensão (14,58x1,70)m - JAV1. (Fachada Frontal - DET 01/36) | C11: =IF(COUNTA(A11)>0,VLOOKUP($A11,'[8]PLANILHA SINTÉTICA'!$A$9:$U$1082,3,0),"") -> 481929-2 | D11: =IF(COUNTA(A11)>0,VLOOKUP($A11,'PLANILHA SINTÉTICA'!$A$10:$T$1083,4,0),"") -> 12 | E11: =IF(COUNTA(A11)>0,VLOOKUP($A11,'PLANILHA SINTÉTICA'!$A$10:$T$1083,5,0),"") -> 12 | F11: =IF(ISERROR(VLOOKUP($A11,#REF!,8,0)),0,(VLOOKUP($A11,#REF!,8,0))) -> 0 | G11: =IF(COUNTA(A11)>0,VLOOKUP($A11,'[8]PLANILHA SINTÉTICA'!$A$9:$AC$1082,15,0),"") -> 10987.95627 | H11: =ROUND(G11*F11,2) -> 0 | I11: =G11*81.35% -> 8938.702422 | J11: =ROUND(F11*I11,2) -> 0
G12: TOTAL DA 49ª MEDIÇÃO | H12: =SUM(H8:H11) -> 0 | J12: =SUM(J8:J11) -> 0 | L12: =SUM(L8:L11) -> 0
J13: TOTAL REEQUILÍBRIO 49ª MED | L13: =J12+L12 -> 0

Sheet CRON. FINANC. (hidden)
A1: CONSTRUÇÃO DO FÓRUM DE LIMOEIRO - CRONOGRAMA FÍSICO-FINANCEIRO - ETAPAS DE EXECUÇÃO (MESES)
A4: MÊS | C4: 1 | D4: 2 | E4: 3 | G4: 4 | H4: 5 | I4: 6 | K4: 7 | L4: 8 | M4: 9 | N4: 10 | P4: 11 | R4: 12 | S4: 13 | T4: 14 | U4: 15 | V4: 16 | W4: 17 | X4: 18 | Y4: 19 | Z4: 20 | AA4: 21 | AB4: 22 | AC4: 23 | AD4: 24 | AE4: 24 | AF4: SUP
C5: 2017-06-01 | D5: 2017-07-01 | E5: 2017-08-01 | G5: 2017-09-01 | H5: 2017-10-01 | I5: 2017-11-01 | K5: 2017-12-01 | L5: 2018-01-01 | M5: 2018-02-01 | N5: 2018-03-01 | P5: 2018-04-01 | R5: 2018-05-01 | S5: 2018-06-01 | T5: 2018-07-01 | U5: 2018-08-01 | V5: 2018-09-01 | W5: 2018-10-01 | X5: 2018-11-01 | Y5: 2018-12-01 | Z5: 2019-01-01 | AA5: 2019-02-01 | AB5: 2019-03-01 | AC5: 2019-04-01 | AD5: 2019-05-01 | AE5: 2019-06-01
A6: MEDIÇÃO | C6: 1ª | D6: 2ª | E6: 3ª | F6: 4ª | G6: 5ª | H6: 6ª | I6: 7ª | J6: 8ª | K6: 9ª | M6: 10ª | N6: 11ª | O6: 12ª | P6: 13ª | Q6: 14ª | R6: 15ª | S6: 16ª | T6: 17ª | U6: 18ª | V6: 19ª | W6: 20ª | X6: 21ª | Y6: 22ª | Z6: 23ª | AA6: 24ª | AB6: 25ª | AC6: 26ª | AD6: 27ª | AE6: 27ª
A7: INICIAL | B7: PERCENTUAL POR MÊS | C7: 0.007832481601 | D7: 0.02875200754 | E7: 0.02669328775 | G7: 0.0349 | H7: 0.04217205449 | I7: 0.0524 | K7: 0.0694 | L7: 0.0946 | M7: 0.0773 | N7: 0.0635 | P7: 0.065 | R7: 0.05258817518 | S7: 0.05864896342 | T7: 0.09557753951 | U7: 0.07455647516 | V7: 0.07859770261 | W7: 0.06739661532 | X7: 0.01004637175 | Y7: 0 | Z7: 0 | AA7: 0 | AB7: 0 | AC7: 0 | AD7: 0 | AE7: 0 | AF7: 0
B8: PERCENTUAL ACUMULADO | C8: =SUM($C$7:C7) -> 0.007832481601 | D8: =SUM($C$7:D7) -> 0.03658448914 | E8: =SUM($C$7:E7) -> 0.06327777688 | G8: 0.0981 | H8: 0.1403 | I8: 0.1927 | K8: =SUM($C$7:K7) -> 0.2621498314 | L8: =SUM($C$7:L7) -> 0.3567498314 | M8: =SUM($C$7:M7) -> 0.4340498314 | N8: =SUM($C$7:N7) -> 0.4975498314 | P8: =SUM($C$7:P7) -> 0.5625498314 | R8: =SUM($C$7:R7) -> 0.6151380066 | S8: =SUM($C$7:S7) -> 0.67378697 | T8: =SUM($C$7:T7) -> 0.7693645095 | U8: =SUM($C$7:U7) -> 0.8439209846 | V8: =SUM($C$7:V7) -> 0.9225186873 | W8: =SUM($C$7:W7) -> 0.9899153026 | X8: =SUM($C$7:X7) -> 0.9999616743 | Y8: =SUM($C$7:Y7) -> 0.9999616743 | Z8: =SUM($C$7:Z7) -> 0.9999616743 | AA8: =SUM($C$7:AA7) -> 0.9999616743 | AB8: =SUM($C$7:AB7) -> 0.9999616743 | AC8: =SUM($C$7:AC7) -> 0.9999616743 | AD8: =SUM($C$7:AD7) -> 0.9999616743 | AE8: =SUM($C$7:AE7) -> 0.9999616743 | AF8: =SUM($C$7:AF7) -> 0.9999616743
A9: REVISADO | B9: PERCENTUAL POR MÊS | C9: 0.01000625356 | D9: 0.0227638329 | E9: 0.0215112865 | G9: 0.0226 | H9: 0.0144 | I9: 0.0099 | K9: 0.0174 | L9: 0.0235 | M9: 0.0309 | N9: 0.039 | P9: 0.0387 | R9: 0.0438917838 | S9: 0.04746738191 | T9: 0.04416231213 | U9: 0.05752331395 | V9: 0.05608246218 | W9: 0.05490653696 | X9: 0.05674213179 | Y9: 0.0756762439 | Z9: 0.0851 | AA9: 0.0844 | AB9: 0.072 | AC9: 0 | AD9: 0 | AE9: 0 | AF9: 0.0714
B10: PERCENTUAL ACUMULADO | C10: =SUM($C$9:C9) -> 0.01000625356 | D10: =SUM($C$9:D9) -> 0.03277008646 | E10: =SUM($C$9:E9) -> 0.05428137296 | G10: =SUM($C$9:G9) -> 0.07688137296 | H10: =SUM($C$9:H9) -> 0.09128137296 | I10: =SUM($C$9:I9) -> 0.101181373 | K10: =SUM($C$9:K9) -> 0.118581373 | L10: =SUM($C$9:L9) -> 0.142081373 | M10: =SUM($C$9:M9) -> 0.172981373 | N10: =SUM($C$9:N9) -> 0.211981373 | P10: =SUM($C$9:P9) -> 0.250681373 | R10: =SUM($C$9:R9) -> 0.2945731568 | S10: =SUM($C$9:S9) -> 0.3420405387 | T10: =SUM($C$9:T9) -> 0.3862028508 | U10: =SUM($C$9:U9) -> 0.4437261647 | V10: =SUM($C$9:V9) -> 0.4998086269 | W10: =SUM($C$9:W9) -> 0.5547151639 | X10: =SUM($C$9:X9) -> 0.6114572957 | Y10: =SUM($C$9:Y9) -> 0.6871335396 | Z10: =SUM($C$9:Z9) -> 0.7722335396 | AA10: =SUM($C$9:AA9) -> 0.8566335396 | AB10: =SUM($C$9:AB9) -> 0.9286335396 | AC10: =SUM($C$9:AC9) -> 0.9286335396 | AD10: =SUM($C$9:AD9) -> 0.9286335396 | AE10: =SUM($C$9:AE9) -> 0.9286335396 | AF10: =SUM($C$9:AF9) -> 1.00003354
A11: MEDIDO | B11: PERCENTUAL POR MÊS | C11: =C13 ->  | D11: =D13 ->  | E11: =E13+F13 ->  | G11: =G13 ->  | H11: =H13 ->  | I11: =I13+J13 ->  | K11: =#REF! ->  | M11: =#REF! ->  | N11: =#REF!+#REF! ->  | P11: =#REF!+#REF! ->  | R11: =#REF! ->  | S11: =#REF! ->  | T11: =#REF! ->  | U11: =#REF! ->  | V11: 0.0228 | W11: 0.0153 | X11: =#REF! ->  | Y11: =#REF! ->  | Z11: =#REF! ->  | AA11: =#REF! ->  | AB11: =#REF! ->  | AC11: =#REF! ->  | AD11: =#REF! ->  | AE11: =#REF! -> 
B12: PERCENTUAL ACUMULADO | C12: =IF(C11>0,SUM($C$11:C11),"") ->  | D12: =IF(D11>0,SUM($C$11:D11),"") ->  | E12: =IF(E11>0,SUM($C$11:F11),"") ->  | G12: =IF(G11>0,SUM($C$11:G11),"") ->  | H12: =IF(H11>0,SUM($C$11:H11),"") ->  | I12: =IF(I11>0,SUM($C$11:J11),"") ->  | K12: =IF(K11>0,SUM($C$11:K11),"") ->  | L12: =K12 ->  | M12: =IF(M11>0,SUM($C$11:M11),"") ->  | N12: =IF(N11>0,SUM($C$11:N11),"") ->  | P12: =N12+P11 ->  | R12: =IF(R11>0,SUM($C$11:R11),"") ->  | S12: =IF(S11>0,SUM($C$11:S11),"") ->  | T12: =IF(T11>0,SUM($C$11:T11),"") ->  | U12: =IF(U11>0,SUM($C$11:U11),"") ->  | V12: =IF(V11>0,SUM($C$11:V11),"") ->  | W12: =IF(W11>0,SUM($C$11:W11),"") ->  | X12: =IF(X11>0,SUM($C$11:X11),"") ->  | Y12: =IF(Y11>0,SUM($C$11:Y11),"") ->  | Z12: =IF(Z11>0,SUM($C$11:Z11),"") ->  | AA12: =IF(AA11>0,SUM($C$11:AA11),"") ->  | AB12: =IF(AB11>0,SUM($C$11:AB11),"") ->  | AC12: =IF(AC11>0,SUM($C$11:AC11),"") ->  | AD12: =IF(AD11>0,SUM($C$11:AD11),"") ->  | AE12: =IF(AE11>0,SUM($C$11:AE11),"") ->  | AF12: =IF(AF11>0,SUM($C$11:AF11),"") -> 
C13: =#REF! ->  | D13: =#REF! ->  | E13: =#REF! ->  | F13: =#REF! ->  | G13: =#REF! ->  | H13: =#REF! ->  | I13: =#REF! ->  | J13: =#REF! ->  | K13: =#REF! ->  | M13: =#REF! ->  | N13: =#REF! ->  | O13: =#REF! ->  | P13: =#REF! ->  | Q13: =#REF! ->  | R13: =#REF! ->  | S13: =#REF! ->  | T13: =#REF! ->  | U13: 0.0218 | V13: 0.0228 | W13: 0.0153
Q37: =56.25-25.07 -> 31.18 | S37: =+R10-S12 -> 
Q39: =25.07-22.15 -> 2.92
Q41: =P11/P9 -> 

Sheet 1ª MEDIÇÃO (hidden)
A1: TRIBUNAL DE JUSTIÇA DE PERNAMBUCO
A2: =#REF! -> 
A3: MEMÓRIA DE CALCULO - 1ª MEDIÇÃO
A4: ITEM | B4: DESCRIÇÃO | C4: QUANT. | D4: LARG. | E4: COMP. | F4: ALT. | G4: TAXA | H4: TOTAL | I4: UNID | J4: MEMORIAL FOTOGRÁFICO

Sheet 2ª MEDIÇÃO (hidden)
A1: TRIBUNAL DE JUSTIÇA DE PERNAMBUCO
A2: =#REF! -> 
A3: MEMÓRIA DE CALCULO - 2ª MEDIÇÃO
A4: ITEM | B4: DESCRIÇÃO | C4: QUANT. | D4: LARG. | E4: COMP. | F4: ALT. | G4: TAXA | H4: TOTAL | I4: UNID | J4: MEMORIAL FOTOGRÁFICO

Sheet 3ª MEDIÇÃO (hidden)
A1: TRIBUNAL DE JUSTIÇA DE PERNAMBUCO
A2: =#REF! -> 
A3: MEMÓRIA DE CALCULO - 3ª MEDIÇÃO
A4: ITEM | B4: DESCRIÇÃO | C4: QUANT. | D4: LARG. | E4: COMP. | F4: ALT. | G4: TAXA | H4: TOTAL | I4: UNID | J4: MEMORIAL FOTOGRÁFICO

Sheet 4ª MEDIÇÃO (hidden)
A1: TRIBUNAL DE JUSTIÇA DE PERNAMBUCO
A2: =#REF! -> 
A3: MEMÓRIA DE CALCULO - 4ª MEDIÇÃO
A4: ITEM | B4: DESCRIÇÃO | C4: QUANT. | D4: LARG. | E4: COMP. | F4: ALT. | G4: TAXA | H4: TOTAL | I4: UNID | J4: MEMORIAL FOTOGRÁFICO

Sheet 5ª MEDIÇÃO (hidden)
A1: TRIBUNAL DE JUSTIÇA DE PERNAMBUCO
A2: =#REF! -> 
A3: MEMÓRIA DE CALCULO - 5ª MEDIÇÃO
A4: ITEM | B4: DESCRIÇÃO | C4: QUANT. | D4: LARG. | E4: COMP. | F4: ALT. | G4: TAXA | H4: TOTAL | I4: UNID | J4: MEMORIAL FOTOGRÁFICO

Sheet 6ª MEDIÇÃO (hidden)
A1: TRIBUNAL DE JUSTIÇA DE PERNAMBUCO
A2: =#REF! -> 
A3: MEMÓRIA DE CALCULO - 6ª MEDIÇÃO
A4: ITEM | B4: DESCRIÇÃO | C4: QUANT. | D4: LARG. | E4: COMP. | F4: ALT. | G4: TAXA | H4: TOTAL | I4: UNID | J4: MEMORIAL FOTOGRÁFICO

Sheet 7ª MEDIÇÃO (hidden)
A1: TRIBUNAL DE JUSTIÇA DE PERNAMBUCO
A2: =#REF! -> 
A3: MEMÓRIA DE CALCULO - 7ª MEDIÇÃO
A4: ITEM | B4: DESCRIÇÃO | C4: QUANT. | D4: LARG. | E4: COMP. | F4: ALT. | G4: TAXA | H4: TOTAL | I4: UNID | J4: MEMORIAL FOTOGRÁFICO

Sheet 8ª MEDIÇÃO (hidden)
A1: TRIBUNAL DE JUSTIÇA DE PERNAMBUCO
A2: =#REF! -> 
A3: MEMÓRIA DE CALCULO - 8ª MEDIÇÃO
A4: ITEM | B4: DESCRIÇÃO | C4: QUANT. | D4: LARG. | E4: COMP. | F4: ALT. | G4: TAXA | H4: TOTAL | I4: UNID | J4: MEMORIAL FOTOGRÁFICO

Sheet 9ª MEDIÇÃO (hidden)
A1: TRIBUNAL DE JUSTIÇA DE PERNAMBUCO
A2: =#REF! -> 
A3: MEMÓRIA DE CALCULO - 9ª MEDIÇÃO
A4: ITEM | B4: DESCRIÇÃO | C4: QUANT. | D4: LARG. | E4: COMP. | F4: ALT. | G4: TAXA | H4: TOTAL | I4: UNID | J4: MEMORIAL FOTOGRÁFICO

Sheet PLANILHA SINTÉTICA
A1: PODER JUDICIÁRIO | M1: OBRA: | O1: CONSTRUÇÃO DO FÓRUM DE LIMOEIRO
M2: LOCAL: | O2: RODOVIA PE 90, KM 22, LT. VALE DE SANTANA
A3: TRIBUNAL DE JUSTIÇA DE PERNAMBUCO | M3: Nº CONTRATO: | O3: 61/2017
M4: SITUAÇÃO: | O4: ENCERRADA | HT4: Período da medição15/11 a 15/12/2019 | HU4: 15/12/2019 a 15/01/2020 | IA4: período da medição de 16/01 a 27/02/2020 | IE4: Período da Medição de 28/2 a 24/3 e 08/6 a 17/06 | IO4: Período da Medição 18/06 a 27/07/2020 | IV4: Período da medição 27/7 a 26/08/2020 | JC4: Período da Medição 27/08 a 28/09/2020 | JQ4: PERÍODO DA MEDIÇÃO 29/10/2020 A 07/12/2020 | KE4: periodo da medição 28-01-2021 a 27-02-2021 | KL4: Período da Medição de 27/02 a 26/03/2021 | KS4: Período da medição 27/03 a 28/04/2021 | LG4: PERÍODO DE 28/05 a 28/06/2021
A5: DIRETORIA DE ENGENHARIA E ARQUITETURA | M5: CONTRATADA: | O5: CONSTRUTORA E INCORPORADORA RR LTDA | P5: 1ª MEDIÇÃO | V5: 2ª MEDIÇÃO | AC5: 3ª MEDIÇÃO | AJ5: 4ª MEDIÇÃO | AQ5: 5ª MEDIÇÃO | AX5: 6ª MEDIÇÃO | BE5: 7ª MEDIÇÃO | BL5: 8ª MEDIÇÃO | BS5: 9ª MEDIÇÃO | BZ5: 10ª MEDIÇÃO | CG5: 11ª MEDIÇÃO | CN5: 12ª MEDIÇÃO | CU5: 13ª MEDIÇÃO | DB5: 14ª MEDIÇÃO | DI5: 15ª MEDIÇÃO | DP5: 16ª MEDIÇÃO | DW5: 17ª MEDIÇÃO | ED5: 18ª MEDIÇÃO | EK5: 19ª MEDIÇÃO | ER5: 20ª MEDIÇÃO | EY5: 21ª MEDIÇÃO | FF5: 22ª MEDIÇÃO | FM5: 23ª MEDIÇÃO | FT5: 24ª MEDIÇÃO (16/01/2019 - 15/02/2019) | GA5: 25ª MEDIÇÃO (16/02/2019 - 15/03/2019) | GH5: 26ª MEDIÇÃO (16/03/2019 - 15/04/2019) | GO5: 27ª MEDIÇÃO (16/04/2019 - 15/05/2019) | GV5: 28ª MEDIÇÃO (16/05/2019 - 15/06/2019) | HC5: 29ª MEDIÇÃO | HJ5: 30ª MEDIÇÃO | HQ5: 31ª MEDIÇÃO | HX5: 32ª MEDIÇÃO | IE5: 33ª MEDIÇÃO | IL5: 34ª MEDIÇÃO | IS5: 35ª MEDIÇÃO | IZ5: 36ª MEDIÇÃO | JG5: 37ª MEDIÇÃO | JN5: 38ª MEDIÇÃO | JU5: 39ª MEDIÇÃO | KB5: 40ª MEDIÇÃO | KI5: 41ª MEDIÇÃO | KP5: 42ª MEDIÇÃO | KW5: 43ª MEDIÇÃO (periodo de 28/04 a 27/05/2021) | LD5: 44ª MEDIÇÃO | LK5: 45ª MEDIÇÃO - Período de 28/06 a 26/08/2021 | LR5: 46ª MEDIÇÃO | LY5: 47ª MEDIÇÃO - Período 16/10 a 08/11/2021 | MF5: 48ª MEDIÇÃO (Período de 09/11 a 13/12/2021) | MM5: 49ª MEDIÇÃO (Período de 13/12/2021 a 10/02/2022) | MT5: 50ª MEDIÇÃO - Período 11/02 a 14/03/2022 | NA5: 51ª MEDIÇÃO - Período 15/03 a 28/04/2022 | NH5: 52ª MEDIÇÃO - PERÍODO 29/04 A 08/06/2022 | NO5: 53ª MEDIÇÃO - Período 09/06 a 04/07/2022 | NV5: 54ª MEDIÇÃO | OC5: SUPRESSÃO
M6: VALOR DO CONTRATO: | O6: 15984588.19
A7: PLANILHA QUANTITATIVOS EXECUTADOS E PREÇOS PRATICADOS | G7: BDI: 17,94% | I7: BDI: 24,40% | K7: BDI: 13,26% | M7: DATA DE ENCERRAMENTO: | O7: 2022-11-22
A8: ITEM | B8: DESCRIÇÃO | C8: UN | D8: QUANT. TOTAL | E8: QUANT. ACUM. | F8: QUANT. RESIDUAL | G8: MATERIAL | I8: MÃO DE OBRA | K8: EQUIPAMENTO | M8: TOTAL | P8: QUANT. MEDIDA | Q8: % MEDIDO | R8: MATERIAL | S8: MÃO DE OBRA | T8: EQUIPAMENTO | U8: TOTAL DA MEDIÇÃO | V8: QUANT. MEDIDA | W8: % MEDIDO | X8: % ACUM. | Y8: MATERIAL | Z8: MÃO DE OBRA | AA8: EQUIPAMENTO | AB8: TOTAL DA MEDIÇÃO | AC8: QUANT. MEDIDA | AD8: % MEDIDO | AE8: % ACUM. | AF8: MATERIAL | AG8: MÃO DE OBRA | AH8: EQUIPAMENTO | AI8: TOTAL DA MEDIÇÃO | AJ8: QUANT. MEDIDA | AK8: % MEDIDO | AL8: % ACUM. | AM8: MATERIAL | AN8: MÃO DE OBRA | AO8: EQUIPAMENTO | AP8: TOTAL DA MEDIÇÃO | AQ8: QUANT. MEDIDA | AR8: % MEDIDO | AS8: % ACUM. | AT8: MATERIAL | AU8: MÃO DE OBRA | AV8: EQUIPAMENTO | AW8: TOTAL DA MEDIÇÃO | AX8: QUANT. MEDIDA | AY8: % MEDIDO | AZ8: % ACUM. | BA8: MATERIAL | BB8: MÃO DE OBRA | BC8: EQUIPAMENTO | BD8: TOTAL DA MEDIÇÃO | BE8: QUANT. MEDIDA | BF8: % MEDIDO | BG8: % ACUM. | BH8: MATERIAL | BI8: MÃO DE OBRA | BJ8: EQUIPAMENTO | BK8: TOTAL DA MEDIÇÃO | BL8: QUANT. MEDIDA | BM8: % MEDIDO | BN8: % ACUM. | BO8: MATERIAL | BP8: MÃO DE OBRA | BQ8: EQUIPAMENTO | BR8: TOTAL DA MEDIÇÃO | BS8: QUANT. MEDIDA | BT8: % MEDIDO | BU8: % ACUM. | BV8: MATERIAL | BW8: MÃO DE OBRA | BX8: EQUIPAMENTO | BY8: TOTAL DA MEDIÇÃO | BZ8: QUANT. MEDIDA | CA8: % MEDIDO | CB8: % ACUM. | CC8: MAT. | CD8: MO | CE8: EQUIP. | CF8: TOTAL DA MEDIÇÃO | CG8: QUANT. MEDIDA | CH8: % MEDIDO | CI8: % ACUM. | CJ8: MATERIAL | CK8: MÃO DE OBRA | CL8: EQUIPAMENTO | CM8: TOTAL DA MEDIÇÃO | CN8: QUANT. MEDIDA | CO8: % MEDIDO | CP8: % ACUM. | CQ8: MATERIAL | CR8: MÃO DE OBRA | CS8: EQUIPAMENTO | CT8: TOTAL DA MEDIÇÃO | CU8: QUANT. MEDIDA | CV8: % MEDIDO | CW8: % ACUM. | CX8: MATERIAL | CY8: MÃO DE OBRA | CZ8: EQUIPAMENTO | DA8: TOTAL DA MEDIÇÃO | DB8: QUANT. MEDIDA | DC8: % MEDIDO | DD8: % ACUM. | DE8: MATERIAL | DF8: MÃO DE OBRA | DG8: EQUIPAMENTO | DH8: TOTAL DA MEDIÇÃO | DI8: QUANT. MEDIDA | DJ8: % MEDIDO | DK8: % ACUM. | DL8: MATERIAL | DM8: MÃO DE OBRA | DN8: EQUIPAMENTO | DO8: TOTAL DA MEDIÇÃO | DP8: QUANT. MEDIDA | DQ8: % MEDIDO | DR8: % ACUM. | DS8: MATERIAL | DT8: MÃO DE OBRA | DU8: EQUIPAMENTO | DV8: TOTAL DA MEDIÇÃO | DW8: QUANT. MEDIDA | DX8: % MEDIDO | DY8: % ACUM. | DZ8: MATERIAL | EA8: MÃO DE OBRA | EB8: EQUIPAMENTO | EC8: TOTAL DA MEDIÇÃO | ED8: QUANT. MEDIDA | EE8: % MEDIDO | EF8: % ACUM. | EG8: MATERIAL | EH8: MÃO DE OBRA | EI8: EQUIPAMENTO | EJ8: TOTAL DA MEDIÇÃO | EK8: QUANT. MEDIDA | EL8: % MEDIDO | EM8: % ACUM. | EN8: MATERIAL | EO8: MÃO DE OBRA | EP8: EQUIPAMENTO | EQ8: TOTAL DA MEDIÇÃO | ER8: QUANT. MEDIDA | ES8: % MEDIDO | ET8: % ACUM. | EU8: MATERIAL | EV8: MÃO DE OBRA | EW8: EQUIPAMENTO | EX8: TOTAL DA MEDIÇÃO | EY8: QUANT. MEDIDA | EZ8: % MEDIDO | FA8: % ACUM. | FB8: MATERIAL | FC8: MÃO DE OBRA | FD8: EQUIPAMENTO | FE8: TOTAL DA MEDIÇÃO | FF8: QUANT. MEDIDA | FG8: % MEDIDO | FH8: % ACUM. | FI8: MATERIAL | FJ8: MÃO DE OBRA | FK8: EQUIPAMENTO | FL8: TOTAL DA MEDIÇÃO | FM8: QUANT. MEDIDA | FN8: % MEDIDO | FO8: % ACUM. | FP8: MATERIAL | FQ8: MÃO DE OBRA | FR8: EQUIPAMENTO | FS8: TOTAL DA MEDIÇÃO | FT8: QUANT. MEDIDA | FU8: % MEDIDO | FV8: % ACUM. | FW8: MATERIAL | FX8: MÃO DE OBRA | FY8: EQUIPAMENTO | FZ8: TOTAL DA MEDIÇÃO | GA8: QUANT. MEDIDA | GB8: % MEDIDO | GC8: % ACUM. | GD8: MATERIAL | GE8: MÃO DE OBRA | GF8: EQUIPAMENTO | GG8: TOTAL DA MEDIÇÃO | GH8: QUANT. MEDIDA | GI8: % MEDIDO | GJ8: % ACUM. | GK8: MATERIAL | GL8: MÃO DE OBRA | GM8: EQUIPAMENTO | GN8: TOTAL DA MEDIÇÃO | GO8: QUANT. MEDIDA | GP8: % MEDIDO | GQ8: % ACUM. | GR8: MATERIAL | GS8: MÃO DE OBRA | GT8: EQUIPAMENTO | GU8: TOTAL DA MEDIÇÃO | GV8: QUANT. MEDIDA | GW8: % MEDIDO | GX8: % ACUM. | GY8: MATERIAL | GZ8: MÃO DE OBRA | HA8: EQUIPAMENTO | HB8: TOTAL DA MEDIÇÃO | HC8: QUANT. MEDIDA | HD8: % MEDIDO | HE8: % ACUM. | HF8: MATERIAL | HG8: MÃO DE OBRA | HH8: EQUIPAMENTO | HI8: TOTAL DA MEDIÇÃO | HJ8: QUANT. MEDIDA | HK8: % MEDIDO | HL8: % ACUM. | HM8: MATERIAL | HN8: MÃO DE OBRA | HO8: EQUIPAMENTO | HP8: TOTAL DA MEDIÇÃO | HQ8: QUANT. MEDIDA | HR8: % MEDIDO | HS8: % ACUM. | HT8: MATERIAL | HU8: MÃO DE OBRA | HV8: EQUIPAMENTO | HW8: TOTAL DA MEDIÇÃO | HX8: QUANT. MEDIDA | HY8: % MEDIDO | HZ8: % ACUM. | IA8: MATERIAL | IB8: MÃO DE OBRA | IC8: EQUIPAMENTO | ID8: TOTAL DA MEDIÇÃO | IE8: QUANT. MEDIDA | IF8: % MEDIDO | IG8: % ACUM. | IH8: MATERIAL | II8: MÃO DE OBRA | IJ8: EQUIPAMENTO | IK8: TOTAL DA MEDIÇÃO | IL8: QUANT. MEDIDA | IM8: % MEDIDO | IN8: % ACUM. | IO8: MATERIAL | IP8: MÃO DE OBRA | IQ8: EQUIPAMENTO | IR8: TOTAL DA MEDIÇÃO | IS8: QUANT. MEDIDA | IT8: % MEDIDO | IU8: % ACUM. | IV8: MATERIAL | IW8: MÃO DE OBRA | IX8: EQUIPAMENTO | IY8: TOTAL DA MEDIÇÃO | IZ8: QUANT. MEDIDA | JA8: % MEDIDO | JB8: % ACUM. | JC8: MATERIAL | JD8: MÃO DE OBRA | JE8: EQUIPAMENTO | JF8: TOTAL DA MEDIÇÃO | JG8: QUANT. MEDIDA | JH8: % MEDIDO | JI8: % ACUM. | JJ8: MATERIAL | JK8: MÃO DE OBRA | JL8: EQUIPAMENTO | JM8: TOTAL DA MEDIÇÃO | JN8: QUANT. MEDIDA | JO8: % MEDIDO | JP8: % ACUM. | JQ8: MATERIAL | JR8: MÃO DE OBRA | JS8: EQUIPAMENTO | JT8: TOTAL DA MEDIÇÃO | JU8: QUANT. MEDIDA | JV8: % MEDIDO | JW8: % ACUM. | JX8: MATERIAL | JY8: MÃO DE OBRA | JZ8: EQUIPAMENTO | KA8: TOTAL DA MEDIÇÃO | KB8: QUANT. MEDIDA | KC8: % MEDIDO | KD8: % ACUM. | KE8: MATERIAL | KF8: MÃO DE OBRA | KG8: EQUIPAMENTO | KH8: TOTAL DA MEDIÇÃO | KI8: QUANT. MEDIDA | KJ8: % MEDIDO | KK8: % ACUM. | KL8: MATERIAL | KM8: MÃO DE OBRA | KN8: EQUIPAMENTO | KO8: TOTAL DA MEDIÇÃO | KP8: QUANT. MEDIDA | KQ8: % MEDIDO | KR8: % ACUM. | KS8: MATERIAL | KT8: MÃO DE OBRA | KU8: EQUIPAMENTO | KV8: TOTAL DA MEDIÇÃO | KW8: QUANT. MEDIDA | KX8: % MEDIDO | KY8: % ACUM. | KZ8: MATERIAL | LA8: MÃO DE OBRA | LB8: EQUIPAMENTO | LC8: TOTAL DA MEDIÇÃO | LD8: QUANT. MEDIDA | LE8: % MEDIDO | LF8: % ACUM. | LG8: MATERIAL | LH8: MÃO DE OBRA | LI8: EQUIPAMENTO | LJ8: TOTAL DA MEDIÇÃO | LK8: QUANT. MEDIDA | LL8: % MEDIDO | LM8: % ACUM. | LN8: MATERIAL | LO8: MÃO DE OBRA | LP8: EQUIPAMENTO | LQ8: TOTAL DA MEDIÇÃO | LR8: QUANT. MEDIDA | LS8: % MEDIDO | LT8: % ACUM. | LU8: MATERIAL | LV8: MÃO DE OBRA | LW8: EQUIPAMENTO | LX8: TOTAL DA MEDIÇÃO | LY8: QUANT. MEDIDA | LZ8: % MEDIDO | MA8: % ACUM. | MB8: MATERIAL | MC8: MÃO DE OBRA | MD8: EQUIPAMENTO | ME8: TOTAL DA MEDIÇÃO | MF8: QUANT. MEDIDA | MG8: % MEDIDO | MH8: % ACUM. | MI8: MATERIAL | MJ8: MÃO DE OBRA | MK8: EQUIPAMENTO | ML8: TOTAL DA MEDIÇÃO | MM8: QUANT. MEDIDA | MN8: % MEDIDO | MO8: % ACUM. | MP8: MATERIAL | MQ8: MÃO DE OBRA | MR8: EQUIPAMENTO | MS8: TOTAL DA MEDIÇÃO | MT8: QUANT. MEDIDA | MU8: % MEDIDO | MV8: % ACUM. | MW8: MATERIAL | MX8: MÃO DE OBRA | MY8: EQUIPAMENTO | MZ8: TOTAL DA MEDIÇÃO | NA8: QUANT. MEDIDA | NB8: % MEDIDO | NC8: % ACUM. | ND8: MATERIAL | NE8: MÃO DE OBRA | NF8: EQUIPAMENTO | NG8: TOTAL DA MEDIÇÃO | NH8: QUANT. MEDIDA | NI8: % MEDIDO | NJ8: % ACUM. | NK8: MATERIAL | NL8: MÃO DE OBRA | NM8: EQUIPAMENTO | NN8: TOTAL DA MEDIÇÃO | NO8: QUANT. MEDIDA | NP8: % MEDIDO | NQ8: % ACUM. | NR8: MATERIAL | NS8: MÃO DE OBRA | NT8: EQUIPAMENTO | NU8: TOTAL DA MEDIÇÃO | NV8: QUANT. MEDIDA | NW8: % MEDIDO | NX8: % ACUM. | NY8: MATERIAL | NZ8: MÃO DE OBRA | OA8: EQUIPAMENTO | OB8: TOTAL DA MEDIÇÃO | OC8: QUANT. MEDIDA | OD8: % MEDIDO | OE8: % ACUM. | OF8: MATERIAL | OG8: MÃO DE OBRA | OH8: EQUIPAMENTO | OI8: TOTAL DA MEDIÇÃO
G9: P. UNIT | H9: P. TOTAL | I9: P. UNIT | J9: P. TOTAL | K9: P. UNIT | L9: P. TOTAL | M9: P. UNIT (R$) | O9: P. TOTAL (R$) | R9: P. TOTAL DA MED. | S9: P. TOTAL DA MED. | T9: P. TOTAL DA MED. | Y9: P. TOTAL DA MED. | Z9: P. TOTAL DA MED. | AA9: P. TOTAL DA MED. | AF9: P. TOTAL DA MED. | AG9: P. TOTAL DA MED. | AH9: P. TOTAL DA MED. | AM9: P. TOTAL DA MED. | AN9: P. TOTAL DA MED. | AO9: P. TOTAL DA MED. | AT9: P. TOTAL DA MED. | AU9: P. TOTAL DA MED. | AV9: P. TOTAL DA MED. | BA9: P. TOTAL DA MED. | BB9: P. TOTAL DA MED. | BC9: P. TOTAL DA MED. | BH9: P. TOTAL DA MED. | BI9: P. TOTAL DA MED. | BJ9: P. TOTAL DA MED. | BO9: P. TOTAL DA MED. | BP9: P. TOTAL DA MED. | BQ9: P. TOTAL DA MED. | BV9: P. TOTAL DA MED. | BW9: P. TOTAL DA MED. | BX9: P. TOTAL DA MED. | CC9: P. TOTAL DA MED. | CD9: P. TOTAL DA MED. | CE9: P. TOTAL DA MED. | CJ9: P. TOTAL DA MED. | CK9: P. TOTAL DA MED. | CL9: P. TOTAL DA MED. | CQ9: P. TOTAL DA MED. | CR9: P. TOTAL DA MED. | CS9: P. TOTAL DA MED. | CX9: P. TOTAL DA MED. | CY9: P. TOTAL DA MED. | CZ9: P. TOTAL DA MED. | DE9: P. TOTAL DA MED. | DF9: P. TOTAL DA MED. | DG9: P. TOTAL DA MED. | DL9: P. TOTAL DA MED. | DM9: P. TOTAL DA MED. | DN9: P. TOTAL DA MED. | DS9: P. TOTAL DA MED. | DT9: P. TOTAL DA MED. | DU9: P. TOTAL DA MED. | DZ9: P. TOTAL DA MED. | EA9: P. TOTAL DA MED. | EB9: P. TOTAL DA MED. | EG9: P. TOTAL DA MED. | EH9: P. TOTAL DA MED. | EI9: P. TOTAL DA MED. | EN9: P. TOTAL DA MED. | EO9: P. TOTAL DA MED. | EP9: P. TOTAL DA MED. | EU9: P. TOTAL DA MED. | EV9: P. TOTAL DA MED. | EW9: P. TOTAL DA MED. | FB9: P. TOTAL DA MED. | FC9: P. TOTAL DA MED. | FD9: P. TOTAL DA MED. | FI9: P. TOTAL DA MED. | FJ9: P. TOTAL DA MED. | FK9: P. TOTAL DA MED. | FP9: P. TOTAL DA MED. | FQ9: P. TOTAL DA MED. | FR9: P. TOTAL DA MED. | FW9: P. TOTAL DA MED. | FX9: P. TOTAL DA MED. | FY9: P. TOTAL DA MED. | GD9: P. TOTAL DA MED. | GE9: P. TOTAL DA MED. | GF9: P. TOTAL DA MED. | GK9: P. TOTAL DA MED. | GL9: P. TOTAL DA MED. | GM9: P. TOTAL DA MED. | GR9: P. TOTAL DA MED. | GS9: P. TOTAL DA MED. | GT9: P. TOTAL DA MED. | GY9: P. TOTAL DA MED. | GZ9: P. TOTAL DA MED. | HA9: P. TOTAL DA MED. | HF9: P. TOTAL DA MED. | HG9: P. TOTAL DA MED. | HH9: P. TOTAL DA MED. | HM9: P. TOTAL DA MED. | HN9: P. TOTAL DA MED. | HO9: P. TOTAL DA MED. | HT9: P. TOTAL DA MED. | HU9: P. TOTAL DA MED. | HV9: P. TOTAL DA MED. | IA9: P. TOTAL DA MED. | IB9: P. TOTAL DA MED. | IC9: P. TOTAL DA MED. | IH9: P. TOTAL DA MED. | II9: P. TOTAL DA MED. | IJ9: P. TOTAL DA MED. | IO9: P. TOTAL DA MED. | IP9: P. TOTAL DA MED. | IQ9: P. TOTAL DA MED. | IV9: P. TOTAL DA MED. | IW9: P. TOTAL DA MED. | IX9: P. TOTAL DA MED. | JC9: P. TOTAL DA MED. | JD9: P. TOTAL DA MED. | JE9: P. TOTAL DA MED. | JJ9: P. TOTAL DA MED. | JK9: P. TOTAL DA MED. | JL9: P. TOTAL DA MED. | JQ9: P. TOTAL DA MED. | JR9: P. TOTAL DA MED. | JS9: P. TOTAL DA MED. | JX9: P. TOTAL DA MED. | JY9: P. TOTAL DA MED. | JZ9: P. TOTAL DA MED. | KE9: P. TOTAL DA MED. | KF9: P. TOTAL DA MED. | KG9: P. TOTAL DA MED. | KL9: P. TOTAL DA MED. | KM9: P. TOTAL DA MED. | KN9: P. TOTAL DA MED. | KS9: P. TOTAL DA MED. | KT9: P. TOTAL DA MED. | KU9: P. TOTAL DA MED. | KZ9: P. TOTAL DA MED. | LA9: P. TOTAL DA MED. | LB9: P. TOTAL DA MED. | LG9: P. TOTAL DA MED. | LH9: P. TOTAL DA MED. | LI9: P. TOTAL DA MED. | LN9: P. TOTAL DA MED. | LO9: P. TOTAL DA MED. | LP9: P. TOTAL DA MED. | LU9: P. TOTAL DA MED. | LV9: P. TOTAL DA MED. | LW9: P. TOTAL DA MED. | MB9: P. TOTAL DA MED. | MC9: P. TOTAL DA MED. | MD9: P. TOTAL DA MED. | MI9: P. TOTAL DA MED. | MJ9: P. TOTAL DA MED. | MK9: P. TOTAL DA MED. | MP9: P. TOTAL DA MED. | MQ9: P. TOTAL DA MED. | MR9: P. TOTAL DA MED. | MW9: P. TOTAL DA MED. | MX9: P. TOTAL DA MED. | MY9: P. TOTAL DA MED. | ND9: P. TOTAL DA MED. | NE9: P. TOTAL DA MED. | NF9: P. TOTAL DA MED. | NK9: P. TOTAL DA MED. | NL9: P. TOTAL DA MED. | NM9: P. TOTAL DA MED. | NR9: P. TOTAL DA MED. | NS9: P. TOTAL DA MED. | NT9: P. TOTAL DA MED. | NY9: P. TOTAL DA MED. | NZ9: P. TOTAL DA MED. | OA9: P. TOTAL DA MED. | OF9: P. TOTAL DA MED. | OG9: P. TOTAL DA MED. | OH9: P. TOTAL DA MED.
A10: 1.0 | B10: PRÉDIO PRINCIPAL - SERVIÇOS PRELIMINARES | E10: =IF(D10>0,P10+V10+AC10+AJ10+AQ10+AX10+BE10+BL10+BS10+BZ10+CG10+CN10+CU10+DB10+DI10+DP10+DW10+ED10+EK10+ER10+EY10+FF10+FM10+FT10+GA10+GH10+GO10+GV10+HC10+HJ10+HQ10+HX10+IE10+IL10+IS10+IZ10+JG10+JN10+JU10+KB10+KI10+KP10+KW10+LD10+LK10+LR10+LY10+MF10+MM10+MT10+NA10+NH10+NO10+NV10+OC10,0) -> 0 | F10: =D10-E10 -> 0 | Q10: =IF($D10>0,P10/$D10,0) -> 0 | R10: =P10*$G10 -> 0 | S10: =$I10*P10 -> 0 | T10: =$K10*P10 -> 0 | U10: =ROUND($M10*P10,2) -> 0 | W10: =IF($D10>0,V10/$D10,0) -> 0 | X10: =IF($E10>0,$E10/$D10,0) -> 0 | Y10: =V10*$G10 -> 0 | Z10: =$I10*V10 -> 0 | AA10: =$K10*V10 -> 0 | AB10: =ROUND($M10*V10,2) -> 0 | AD10: =IF($D10>0,AC10/$D10,0) -> 0 | AE10: =IF($E10>0,$E10/$D10,0) -> 0 | AF10: =AC10*$G10 -> 0 | AG10: =$I10*AC10 -> 0 | AH10: =$K10*AC10 -> 0 | AI10: =ROUND($M10*AC10,2) -> 0 | AK10: =IF($D10>0,AJ10/$D10,0) -> 0 | AL10: =IF($E10>0,$E10/$D10,0) -> 0 | AM10: =AJ10*$G10 -> 0 | AN10: =$I10*AJ10 -> 0 | AO10: =$K10*AJ10 -> 0 | AP10: =ROUND($M10*AJ10,2) -> 0 | AR10: =IF($D10>0,AQ10/$D10,0) -> 0 | AS10: =IF($E10>0,$E10/$D10,0) -> 0 | AT10: =AQ10*$G10 -> 0 | AU10: =$I10*AQ10 -> 0 | AV10: =$K10*AQ10 -> 0 | AW10: =ROUND($M10*AQ10,2) -> 0 | AY10: =IF($D10>0,AX10/$D10,0) -> 0 | AZ10: =IF($E10>0,$E10/$D10,0) -> 0 | BA10: =AX10*$G10 -> 0 | BB10: =$I10*AX10 -> 0 | BC10: =$K10*AX10 -> 0 | BD10: =ROUND($M10*AX10,2) -> 0 | BE10: =IF(ISERROR(VLOOKUP(A10,'7ª MEDIÇÃO'!$A$5:$J$1048576,8,0)),0,(VLOOKUP(A10,'7ª MEDIÇÃO'!$A$5:$J$1048576,8,0))) -> 0 | BF10: =IF($D10>0,BE10/$D10,0) -> 0 | BG10: =IF($E10>0,$E10/$D10,0) -> 0 | BH10: =BE10*$G10 -> 0 | BI10: =$I10*BE10 -> 0 | BJ10: =$K10*BE10 -> 0 | BK10: =ROUND($M10*BE10,2) -> 0 | BL10: =IF(ISERROR(VLOOKUP(A10,'8ª MEDIÇÃO'!$A$5:$J$1048576,8,0)),0,(VLOOKUP(A10,'8ª MEDIÇÃO'!$A$5:$J$1048576,8,0))) -> 0 | BM10: =IF($D10>0,BL10/$D10,0) -> 0 | BN10: =IF($E10>0,$E10/$D10,0) -> 0 | BO10: =BL10*$G10 -> 0 | BP10: =$I10*BL10 -> 0 | BQ10: =$K10*BL10 -> 0 | BR10: =ROUND($M10*BL10,2) -> 0 | BS10: =IF(ISERROR(VLOOKUP(A10,'9ª MEDIÇÃO'!$A$5:$J$1048576,8,0)),0,(VLOOKUP(A10,'9ª MEDIÇÃO'!$A$5:$J$1048576,8,0))) -> 0 | BT10: =IF($D10>0,BS10/$D10,0) -> 0 | BU10: =IF($E10>0,$E10/$D10,0) -> 0 | BV10: =BS10*$G10 -> 0 | BW10: =$I10*BS10 -> 0 | BX10: =$K10*BS10 -> 0 | BY10: =ROUND($M10*BS10,2) -> 0 | BZ10: =IF(ISERROR(VLOOKUP(A10,#REF!,8,0)),0,(VLOOKUP(A10,#REF!,8,0))) -> 0 | CA10: =IF($D10>0,BZ10/$D10,0) -> 0 | CB10: =IF($E10>0,$E10/$D10,0) -> 0 | CC10: =BZ10*$G10 -> 0 | CD10: =$I10*BZ10 -> 0 | CE10: =$K10*BZ10 -> 0 | CF10: =ROUND($M10*BZ10,2) -> 0 | CG10: =IF(ISERROR(VLOOKUP($A10,#REF!,8,0)),0,(VLOOKUP($A10,#REF!,8,0))) -> 0 | CH10: =IF($D10>0,CG10/$D10,0) -> 0 | CI10: =IF($E10>0,$E10/$D10,0) -> 0 | CJ10: =CG10*$G10 -> 0 | CK10: =$I10*CG10 -> 0 | CL10: =$K10*CG10 -> 0 | CM10: =ROUND($M10*CG10,2) -> 0 | CN10: =IF(ISERROR(VLOOKUP($A10,#REF!,8,0)),0,(VLOOKUP($A10,#REF!,8,0))) -> 0 | CO10: =IF($D10>0,CN10/$D10,0) -> 0 | CP10: =IF($E10>0,$E10/$D10,0) -> 0 | CQ10: =CN10*$G10 -> 0 | CR10: =$I10*CN10 -> 0 | CS10: =$K10*CN10 -> 0 | CT10: =ROUND($M10*CN10,2) -> 0 | CU10: =IF(ISERROR(VLOOKUP($A10,#REF!,8,0)),0,(VLOOKUP($A10,#REF!,8,0))) -> 0 | CV10: =IF($D10>0,CU10/$D10,0) -> 0 | CW10: =IF($E10>0,$E10/$D10,0) -> 0 | CX10: =CU10*$G10 -> 0 | CY10: =$I10*CU10 -> 0 | CZ10: =$K10*CU10 -> 0 | DA10: =ROUND($M10*CU10,2) -> 0 | DB10: =IF(ISERROR(VLOOKUP($A10,#REF!,8,0)),0,(VLOOKUP($A10,#REF!,8,0))) -> 0 | DC10: =IF($D10>0,DB10/$D10,0) -> 0 | DD10: =IF($E10>0,$E10/$D10,0) -> 0 | DE10: =DB10*$G10 -> 0 | DF10: =$I10*DB10 -> 0 | DG10: =$K10*DB10 -> 0 | DH10: =ROUND($M10*DB10,2) -> 0 | DI10: =IF(ISERROR(VLOOKUP($A10,#REF!,8,0)),0,(VLOOKUP($A10,#REF!,8,0))) -> 0 | DJ10: =IF($D10>0,DI10/$D10,0) -> 0 | DK10: =IF($E10>0,$E10/$D10,0) -> 0 | DL10: =DI10*$G10 -> 0 | DM10: =$I10*DI10 -> 0 | DN10: =$K10*DI10 -> 0 | DO10: =ROUND($M10*DI10,2) -> 0 | DP10: =IF(ISERROR(VLOOKUP($A10,#REF!,8,0)),0,(VLOOKUP($A10,#REF!,8,0))) -> 0 | DQ10: =IF($D10>0,DP10/$D10,0) -> 0 | DR10: =IF($E10>0,$E10/$D10,0) -> 0 | DS10: =DP10*$G10 -> 0 | DT10: =$I10*DP10 -> 0 | DU10: =$K10*DP10 -> 0 | DV10: =ROUND($M10*DP10,2) -> 0 | DW10: =IF(ISERROR(VLOOKUP($A10,#REF!,8,0)),0,(VLOOKUP($A10,#REF!,8,0))) -> 0 | DX10: =IF($D10>0,DW10/$D10,0) -> 0 | DY10: =IF($E10>0,$E10/$D10,0) -> 0 | DZ10: =DW10*$G10 -> 0 | EA10: =$I10*DW10 -> 0 | EB10: =$K10*DW10 -> 0 | EC10: =ROUND($M10*DW10,2) -> 0 | ED10: =IF(ISERROR(VLOOKUP($A10,#REF!,8,0)),0,(VLOOKUP($A10,#REF!,8,0))) -> 0 | EE10: =IF($D10>0,ED10/$D10,0) -> 0 | EF10: =IF($E10>0,$E10/$D10,0) -> 0 | EG10: =ED10*$G10 -> 0 | EH10: =$I10*ED10 -> 0 | EI10: =$K10*ED10 -> 0 | EJ10: =ROUND($M10*ED10,2) -> 0 | EK10: =IF(ISERROR(VLOOKUP($A10,#REF!,8,0)),0,(VLOOKUP($A10,#REF!,8,0))) -> 0 | EL10: =IF($D10>0,EK10/$D10,0) -> 0 | EM10: =IF($E10>0,$E10/$D10,0) -> 0 | EN10: =EK10*$G10 -> 0 | EO10: =$I10*EK10 -> 0 | EP10: =$K10*EK10 -> 0 | EQ10: =ROUND($M10*EK10,2) -> 0 | ER10: =IF(ISERROR(VLOOKUP($A10,#REF!,8,0)),0,(VLOOKUP($A10,#REF!,8,0))) -> 0 | ES10: =IF($D10>0,ER10/$D10,0) -> 0 | ET10: =IF($E10>0,$E10/$D10,0) -> 0 | EU10: =ER10*$G10 -> 0 | EV10: =$I10*ER10 -> 0 | EW10: =$K10*ER10 -> 0 | EX10: =ROUND($M10*ER10,2) -> 0 | EY10: =IF(ISERROR(VLOOKUP($A10,#REF!,8,0)),0,(VLOOKUP($A10,#REF!,8,0))) -> 0 | EZ10: =IF($D10>0,EY10/$D10,0) -> 0 | FA10: =IF($E10>0,$E10/$D10,0) -> 0 | FB10: =EY10*$G10 -> 0 | FC10: =$I10*EY10 -> 0 | FD10: =$K10*EY10 -> 0 | FE10: =ROUND($M10*EY10,2) -> 0 | FF10: =IF(ISERROR(VLOOKUP($A10,#REF!,8,0)),0,(VLOOKUP($A10,#REF!,8,0))) -> 0 | FG10: =IF($D10>0,FF10/$D10,0) -> 0 | FH10: =IF($E10>0,$E10/$D10,0) -> 0 | FI10: =FF10*$G10 -> 0 | FJ10: =$I10*FF10 -> 0 | FK10: =$K10*FF10 -> 0 | FL10: =ROUND($M10*FF10,2) -> 0 | FM10: =IF(ISERROR(VLOOKUP($A10,#REF!,8,0)),0,(VLOOKUP($A10,#REF!,8,0))) -> 0 | FN10: =IF($D10>0,FM10/$D10,0) -> 0 | FO10: =IF($E10>0,$E10/$D10,0) -> 0 | FP10: =FM10*$G10 -> 0 | FQ10: =$I10*FM10 -> 0 | FR10: =$K10*FM10 -> 0 | FS10: =ROUND($M10*FM10,2) -> 0 | FT10: =IF(ISERROR(VLOOKUP($A10,#REF!,8,0)),0,(VLOOKUP($A10,#REF!,8,0))) -> 0 | FU10: =IF($D10>0,FT10/$D10,0) -> 0 | FV10: =IF($E10>0,$E10/$D10,0) -> 0 | FW10: =FT10*$G10 -> 0 | FX10: =$I10*FT10 -> 0 | FY10: =$K10*FT10 -> 0 | FZ10: =ROUND($M10*FT10,2) -> 0 | GA10: =IF(ISERROR(VLOOKUP($A10,#REF!,8,0)),0,(VLOOKUP($A10,#REF!,8,0))) -> 0 | GB10: =IF($D10>0,GA10/$D10,0) -> 0 | GC10: =IF($E10>0,$E10/$D10,0) -> 0 | GD10: =GA10*$G10 -> 0 | GE10: =$I10*GA10 -> 0 | GF10: =$K10*GA10 -> 0 | GG10: =ROUND($M10*GA10,2) -> 0 | GH10: =IF(ISERROR(VLOOKUP($A10,#REF!,8,0)),0,(VLOOKUP($A10,#REF!,8,0))) -> 0 | GI10: =IF($D10>0,GH10/$D10,0) -> 0 | GJ10: =IF($E10>0,$E10/$D10,0) -> 0 | GK10: =GH10*$G10 -> 0 | GL10: =$I10*GH10 -> 0 | GM10: =$K10*GH10 -> 0 | GN10: =ROUND($M10*GH10,2) -> 0 | GO10: =IF(ISERROR(VLOOKUP($A10,#REF!,8,0)),0,(VLOOKUP($A10,#REF!,8,0))) -> 0 | GP10: =IF($D10>0,GO10/$D10,0) -> 0 | GQ10: =IF($E10>0,$E10/$D10,0) -> 0 | GR10: =GO10*$G10 -> 0 | GS10: =$I10*GO10 -> 0 | GT10: =$K10*GO10 -> 0 | GU10: =ROUND($M10*GO10,2) -> 0 | GV10: =IF(ISERROR(VLOOKUP($A10,#REF!,8,0)),0,(VLOOKUP($A10,#REF!,8,0))) -> 0 | GW10: =IF($D10>0,GV10/$D10,0) -> 0 | GX10: =IF($E10>0,$E10/$D10,0) -> 0 | GY10: =GV10*$G10 -> 0 | GZ10: =$I10*GV10 -> 0 | HA10: =$K10*GV10 -> 0 | HB10: =ROUND($M10*GV10,2) -> 0 | HC10: =IF(ISERROR(VLOOKUP($A10,#REF!,8,0)),0,(VLOOKUP($A10,#REF!,8,0))) -> 0 | HD10: =IF($D10>0,HC10/$D10,0) -> 0 | HE10: =IF($E10>0,$E10/$D10,0) -> 0 | HF10: =HC10*$G10 -> 0 | HG10: =$I10*HC10 -> 0 | HH10: =$K10*HC10 -> 0 | HI10: =ROUND($M10*HC10,2) -> 0 | HJ10: =IF(ISERROR(VLOOKUP($A10,#REF!,8,0)),0,(VLOOKUP($A10,#REF!,8,0))) -> 0 | HK10: =IF($D10>0,HJ10/$D10,0) -> 0 | HL10: =IF($E10>0,$E10/$D10,0) -> 0 | HM10: =HJ10*$G10 -> 0 | HN10: =$I10*HJ10 -> 0 | HO10: =$K10*HJ10 -> 0 | HP10: =ROUND($M10*HJ10,2) -> 0 | HQ10: =IF(ISERROR(VLOOKUP($A10,#REF!,8,0)),0,(VLOOKUP($A10,#REF!,8,0))) -> 0 | HR10: =IF($D10>0,HQ10/$D10,0) -> 0 | HS10: =IF($E10>0,$E10/$D10,0) -> 0 | HT10: =HQ10*$G10 -> 0 | HU10: =$I10*HQ10 -> 0 | HV10: =$K10*HQ10 -> 0 | HW10: =ROUND($M10*HQ10,2) -> 0 | HX10: =IF(ISERROR(VLOOKUP($A10,#REF!,8,0)),0,(VLOOKUP($A10,#REF!,8,0))) -> 0 | HY10: =IF($D10>0,HX10/$D10,0) -> 0 | HZ10: =IF($E10>0,$E10/$D10,0) -> 0 | IA10: =HX10*$G10 -> 0 | IB10: =$I10*HX10 -> 0 | IC10: =$K10*HX10 -> 0 | ID10: =ROUND($M10*HX10,2) -> 0 | IE10: =IF(ISERROR(VLOOKUP($A10,#REF!,8,0)),0,(VLOOKUP($A10,#REF!,8,0))) -> 0 | IF10: =IF($D10>0,IE10/$D10,0) -> 0 | IG10: =IF($E10>0,$E10/$D10,0) -> 0 | IH10: =IE10*$G10 -> 0 | II10: =$I10*IE10 -> 0 | IJ10: =$K10*IE10 -> 0 | IK10: =ROUND($M10*IE10,2) -> 0 | IL10: =IF(ISERROR(VLOOKUP($A10,#REF!,8,0)),0,(VLOOKUP($A10,#REF!,8,0))) -> 0 | IM10: =IF($D10>0,IL10/$D10,0) -> 0 | IN10: =IF($E10>0,$E10/$D10,0) -> 0 | IO10: =IL10*$G10 -> 0 | IP10: =$I10*IL10 -> 0 | IQ10: =$K10*IL10 -> 0 | IR10: =ROUND($M10*IL10,2) -> 0 | IS10: =IF(ISERROR(VLOOKUP($A10,#REF!,8,0)),0,(VLOOKUP($A10,#REF!,8,0))) -> 0 | IT10: =IF($D10>0,IS10/$D10,0) -> 0 | IU10: =IF($E10>0,$E10/$D10,0) -> 0 | IV10: =IS10*$G10 -> 0 | IW10: =$I10*IS10 -> 0 | IX10: =$K10*IS10 -> 0 | IY10: =ROUND($M10*IS10,2) -> 0 | IZ10: =IF(ISERROR(VLOOKUP($A10,#REF!,8,0)),0,(VLOOKUP($A10,#REF!,8,0))) -> 0 | JA10: =IF($D10>0,IZ10/$D10,0) -> 0 | JB10: =IF($E10>0,$E10/$D10,0) -> 0 | JC10: =IZ10*$G10 -> 0 | JD10: =$I10*IZ10 -> 0 | JE10: =$K10*IZ10 -> 0 | JF10: =ROUND($M10*IZ10,2) -> 0 | JG10: =IF(ISERROR(VLOOKUP($A10,#REF!,8,0)),0,(VLOOKUP($A10,#REF!,8,0))) -> 0 | JH10: =IF($D10>0,JG10/$D10,0) -> 0 | JI10: =IF($E10>0,$E10/$D10,0) -> 0 | JJ10: =JG10*$G10 -> 0 | JK10: =$I10*JG10 -> 0 | JL10: =$K10*JG10 -> 0 | JM10: =ROUND($M10*JG10,2) -> 0 | JN10: =IF(ISERROR(VLOOKUP($A10,#REF!,8,0)),0,(VLOOKUP($A10,#REF!,8,0))) -> 0 | JO10: =IF($D10>0,JN10/$D10,0) -> 0 | JP10: =IF($E10>0,$E10/$D10,0) -> 0 | JQ10: =JN10*$G10 -> 0 | JR10: =$I10*JN10 -> 0 | JS10: =$K10*JN10 -> 0 | JT10: =ROUND($M10*JN10,2) -> 0 | JU10: =IF(ISERROR(VLOOKUP($A10,#REF!,8,0)),0,(VLOOKUP($A10,#REF!,8,0))) -> 0 | JV10: =IF($D10>0,JU10/$D10,0) -> 0 | JW10: =IF($E10>0,$E10/$D10,0) -> 0 | JX10: =JU10*$G10 -> 0 | JY10: =$I10*JU10 -> 0 | JZ10: =$K10*JU10 -> 0 | KA10: =ROUND($M10*JU10,2) -> 0 | KB10: =IF(ISERROR(VLOOKUP($A10,#REF!,8,0)),0,(VLOOKUP($A10,#REF!,8,0))) -> 0 | KC10: =IF($D10>0,KB10/$D10,0) -> 0 | KD10: =IF($E10>0,$E10/$D10,0) -> 0 | KE10: =KB10*$G10 -> 0 | KF10: =$I10*KB10 -> 0 | KG10: =$K10*KB10 -> 0 | KH10: =ROUND($M10*KB10,2) -> 0 | KI10: =IF(ISERROR(VLOOKUP($A10,#REF!,8,0)),0,(VLOOKUP($A10,#REF!,8,0))) -> 0 | KJ10: =IF($D10>0,KI10/$D10,0) -> 0 | KK10: =IF($E10>0,$E10/$D10,0) -> 0 | KL10: =KI10*$G10 -> 0 | KM10: =$I10*KI10 -> 0 | KN10: =$K10*KI10 -> 0 | KO10: =ROUND($M10*KI10,2) -> 0 | KP10: =IF(ISERROR(VLOOKUP($A10,#REF!,8,0)),0,(VLOOKUP($A10,#REF!,8,0))) -> 0 | KQ10: =IF($D10>0,KP10/$D10,0) -> 0 | KR10: =IF($E10>0,$E10/$D10,0) -> 0 | KS10: =KP10*$G10 -> 0 | KT10: =$I10*KP10 -> 0 | KU10: =$K10*KP10 -> 0 | KV10: =ROUND($M10*KP10,2) -> 0 | KW10: =IF(ISERROR(VLOOKUP($A10,#REF!,8,0)),0,(VLOOKUP($A10,#REF!,8,0))) -> 0 | KX10: =IF($D10>0,KW10/$D10,0) -> 0 | KY10: =IF($E10>0,$E10/$D10,0) -> 0 | KZ10: =KW10*$G10 -> 0 | LA10: =$I10*KW10 -> 0 | LB10: =$K10*KW10 -> 0 | LC10: =ROUND($M10*KW10,2) -> 0 | LD10: =IF(ISERROR(VLOOKUP($A10,#REF!,8,0)),0,(VLOOKUP($A10,#REF!,8,0))) -> 0 | LE10: =IF($D10>0,LD10/$D10,0) -> 0 | LF10: =IF($E10>0,$E10/$D10,0) -> 0 | LG10: =LD10*$G10 -> 0 | LH10: =$I10*LD10 -> 0 | LI10: =$K10*LD10 -> 0 | LJ10: =ROUND($M10*LD10,2) -> 0 | LK10: =IF(ISERROR(VLOOKUP($A10,#REF!,8,0)),0,(VLOOKUP($A10,#REF!,8,0))) -> 0 | LL10: =IF($D10>0,LK10/$D10,0) -> 0 | LM10: =IF($E10>0,$E10/$D10,0) -> 0 | LN10: =LK10*$G10 -> 0 | LO10: =$I10*LK10 -> 0 | LP10: =$K10*LK10 -> 0 | LQ10: =ROUND($M10*LK10,2) -> 0 | LR10: =IF(ISERROR(VLOOKUP($A10,#REF!,8,0)),0,(VLOOKUP($A10,#REF!,8,0))) -> 0 | LS10: =IF($D10>0,LR10/$D10,0) -> 0 | LT10: =IF($E10>0,$E10/$D10,0) -> 0 | LU10: =LR10*$G10 -> 0 | LV10: =$I10*LR10 -> 0 | LW10: =$K10*LR10 -> 0 | LX10: =ROUND($M10*LR10,2) -> 0 | LY10: =IF(ISERROR(VLOOKUP($A10,#REF!,8,0)),0,(VLOOKUP($A10,#REF!,8,0))) -> 0 | LZ10: =IF($D10>0,LY10/$D10,0) -> 0 | MA10: =IF($E10>0,$E10/$D10,0) -> 0 | MB10: =LY10*$G10 -> 0 | MC10: =$I10*LY10 -> 0 | MD10: =$K10*LY10 -> 0 | ME10: =ROUND($M10*LY10,2) -> 0 | MF10: =IF(ISERROR(VLOOKUP($A10,#REF!,8,0)),0,(VLOOKUP($A10,#REF!,8,0))) -> 0 | MG10: =IF($D10>0,MF10/$D10,0) -> 0 | MH10: =IF($E10>0,$E10/$D10,0) -> 0 | MI10: =MF10*$G10 -> 0 | MJ10: =$I10*MF10 -> 0 | MK10: =$K10*MF10 -> 0 | ML10: =ROUND($M10*MF10,2) -> 0 | MM10: =IF(ISERROR(VLOOKUP($A10,#REF!,8,0)),0,(VLOOKUP($A10,#REF!,8,0))) -> 0 | MN10: =IF($D10>0,MM10/$D10,0) -> 0 | MO10: =IF($E10>0,$E10/$D10,0) -> 0 | MP10: =MM10*$G10 -> 0 | MQ10: =$I10*MM10 -> 0 | MR10: =$K10*MM10 -> 0 | MS10: =ROUND($M10*MM10,2) -> 0 | MT10: =IF(ISERROR(VLOOKUP($A10,#REF!,8,0)),0,(VLOOKUP($A10,#REF!,8,0))) -> 0 | MU10: =IF($D10>0,MT10/$D10,0) -> 0 | MV10: =IF($E10>0,$E10/$D10,0) -> 0 | MW10: =MT10*$G10 -> 0 | MX10: =$I10*MT10 -> 0 | MY10: =$K10*MT10 -> 0 | MZ10: =ROUND($M10*MT10,2) -> 0 | NA10: =IF(ISERROR(VLOOKUP($A10,#REF!,8,0)),0,(VLOOKUP($A10,#REF!,8,0))) -> 0 | NB10: =IF($D10>0,NA10/$D10,0) -> 0 | NC10: =IF($E10>0,$E10/$D10,0) -> 0 | ND10: =NA10*$G10 -> 0 | NE10: =$I10*NA10 -> 0 | NF10: =$K10*NA10 -> 0 | NG10: =ROUND($M10*NA10,2) -> 0 | NH10: =IF(ISERROR(VLOOKUP($A10,#REF!,8,0)),0,(VLOOKUP($A10,#REF!,8,0))) -> 0 | NI10: =IF($D10>0,NH10/$D10,0) -> 0 | NJ10: =IF($E10>0,$E10/$D10,0) -> 0 | NK10: =NH10*$G10 -> 0 | NL10: =$I10*NH10 -> 0 | NM10: =$K10*NH10 -> 0 | NN10: =ROUND($M10*NH10,2) -> 0 | NO10: =IF(ISERROR(VLOOKUP($A10,#REF!,8,0)),0,(VLOOKUP($A10,#REF!,8,0))) -> 0 | NP10: =IF($D10>0,NO10/$D10,0) -> 0 | NQ10: =IF($E10>0,$E10/$D10,0) -> 0 | NR10: =NO10*$G10 -> 0 | NS10: =$I10*NO10 -> 0 | NT10: =$K10*NO10 -> 0 | NU10: =ROUND($M10*NO10,2) -> 0 | NV10: =IF(ISERROR(VLOOKUP($A10,#REF!,8,0)),0,(VLOOKUP($A10,#REF!,8,0))) -> 0 | NW10: =IF($D10>0,NV10/$D10,0) -> 0 | NX10: =IF($E10>0,$E10/$D10,0) -> 0 | NY10: =NV10*$G10 -> 0 | NZ10: =$I10*NV10 -> 0 | OA10: =$K10*NV10 -> 0 | OB10: =ROUND($M10*NV10,2) -> 0 | OC10: =IF(ISERROR(VLOOKUP($A10,#REF!,8,0)),0,(VLOOKUP($A10,#REF!,8,0))) -> 0 | OD10: =IF($D10>0,OC10/$D10,0) -> 0 | OE10: =IF($E10>0,$E10/$D10,0) -> 0 | OF10: =OC10*$G10 -> 0 | OG10: =$I10*OC10 -> 0 | OH10: =$K10*OC10 -> 0 | OI10: =ROUND($M10*OC10,2) -> 0 | OJ10: =SUM(OJ11:OJ82) -> 2859553.789 | OK10: =SUM(OK11:OK82) -> 2859553.789 | OL10: =OJ10/OK10 -> 1
A11: 1.1 | B11: Mobilização e Desmobilização da Obra | C11: un | D11: 2 | E11: 1 | F11: 1 | G11: 0 | H11: 0 | I11: 1088.78612 | J11: 2177.57224 | K11: 0 | L11: 0 | M11: 1088.78612 | N11: 1088.78612 | O11: 1088.78612 | P11: 1 | Q11: =IF($D11>0,P11/$D11,0) -> 0.5 | R11: =P11*$G11 -> 0 | S11: =$I11*P11 -> 1088.78612 | T11: =$K11*P11 -> 0 | U11: =ROUND($M11*P11,2) -> 1088.79 | W11: =IF($D11>0,V11/$D11,0) -> 0 | X11: =IF($E11>0,$E11/$D11,0) -> 0.5 | Y11: =V11*$G11 -> 0 | Z11: =$I11*V11 -> 0 | AA11: =$K11*V11 -> 0 | AB11: =ROUND($M11*V11,2) -> 0 | AD11: =IF($D11>0,AC11/$D11,0) -> 0 | AE11: =IF($E11>0,$E11/$D11,0) -> 0.5 | AF11: =AC11*$G11 -> 0 | AG11: =$I11*AC11 -> 0 | AH11: =$K11*AC11 -> 0 | AI11: =ROUND($M11*AC11,2) -> 0 | AK11: =IF($D11>0,AJ11/$D11,0) -> 0 | AL11: =IF($E11>0,$E11/$D11,0) -> 0.5 | AM11: =AJ11*$G11 -> 0 | AN11: =$I11*AJ11 -> 0 | AO11: =$K11*AJ11 -> 0 | AP11: =ROUND($M11*AJ11,2) -> 0 | AR11: =IF($D11>0,AQ11/$D11,0) -> 0 | AS11: =IF($E11>0,$E11/$D11,0) -> 0.5 | AT11: 0 | AU11: 0 | AV11: 0 | AW11: =ROUND($M11*AQ11,2) -> 0 | AY11: =IF($D11>0,AX11/$D11,0) -> 0 | AZ11: =IF($E11>0,$E11/$D11,0) -> 0.5 | BA11: =AX11*$G11 -> 0 | BB11: =$I11*AX11 -> 0 | BC11: =$K11*AX11 -> 0 | BD11: =ROUND($M11*AX11,2) -> 0 | BE11: =IF(ISERROR(VLOOKUP(A11,'7ª MEDIÇÃO'!$A$5:$J$1048576,8,0)),0,(VLOOKUP(A11,'7ª MEDIÇÃO'!$A$5:$J$1048576,8,0))) -> 0 | BF11: =IF($D11>0,BE11/$D11,0) -> 0 | BG11: =IF($E11>0,$E11/$D11,0) -> 0.5 | BH11: =BE11*$G11 -> 0 | BI11: =$I11*BE11 -> 0 | BJ11: =$K11*BE11 -> 0 | BK11: =ROUND($M11*BE11,2) -> 0 | BL11: =IF(ISERROR(VLOOKUP(A11,'8ª MEDIÇÃO'!$A$5:$J$1048576,8,0)),0,(VLOOKUP(A11,'8ª MEDIÇÃO'!$A$5:$J$1048576,8,0))) -> 0 | BM11: =IF($D11>0,BL11/$D11,0) -> 0 | BN11: =IF($E11>0,$E11/$D11,0) -> 0.5 | BO11: =BL11*$G11 -> 0 | BP11: =$I11*BL11 -> 0 | BQ11: =$K11*BL11 -> 0 | BR11: =ROUND($M11*BL11,2) -> 0 | BS11: =IF(ISERROR(VLOOKUP(A11,'9ª MEDIÇÃO'!$A$5:$J$1048576,8,0)),0,(VLOOKUP(A11,'9ª MEDIÇÃO'!$A$5:$J$1048576,8,0))) -> 0 | BT11: =IF($D11>0,BS11/$D11,0) -> 0 | BU11: =IF($E11>0,$E11/$D11,0) -> 0.5 | BV11: 0 | BW11: 0 | BX11: 0 | BY11: =ROUND($M11*BS11,2) -> 0 | BZ11: =IF(ISERROR(VLOOKUP(A11,#REF!,8,0)),0,(VLOOKUP(A11,#REF!,8,0))) -> 0 | CA11: =IF($D11>0,BZ11/$D11,0) -> 0 | CB11: =IF($E11>0,$E11/$D11,0) -> 0.5 | CC11: 0 | CD11: 0 | CE11: 0 | CF11: =ROUND($M11*BZ11,2) -> 0 | CG11: =IF(ISERROR(VLOOKUP($A11,#REF!,8,0)),0,(VLOOKUP($A11,#REF!,8,0))) -> 0 | CH11: =IF($D11>0,CG11/$D11,0) -> 0 | CI11: =IF($E11>0,$E11/$D11,0) -> 0.5 | CJ11: 0 | CK11: 0 | CL11: 0 | CM11: =ROUND($M11*CG11,2) -> 0 | CN11: =IF(ISERROR(VLOOKUP($A11,#REF!,8,0)),0,(VLOOKUP($A11,#REF!,8,0))) -> 0 | CO11: =IF($D11>0,CN11/$D11,0) -> 0 | CP11: =IF($E11>0,$E11/$D11,0) -> 0.5 | CQ11: 0 | CR11: 0 | CS11: 0 | CT11: =ROUND($M11*CN11,2) -> 0 | CU11: =IF(ISERROR(VLOOKUP($A11,#REF!,8,0)),0,(VLOOKUP($A11,#REF!,8,0))) -> 0 | CV11: =IF($D11>0,CU11/$D11,0) -> 0 | CW11: =IF($E11>0,$E11/$D11,0) -> 0.5 | CX11: 0 | CY11: 0 | CZ11: 0 | DA11: =ROUND($M11*CU11,2) -> 0 | DB11: =IF(ISERROR(VLOOKUP($A11,#REF!,8,0)),0,(VLOOKUP($A11,#REF!,8,0))) -> 0 | DC11: =IF($D11>0,DB11/$D11,0) -> 0 | DD11: =IF($E11>0,$E11/$D11,0) -> 0.5 | DE11: 0 | DF11: 0 | DG11: 0 | DH11: =ROUND($M11*DB11,2) -> 0 | DI11: =IF(ISERROR(VLOOKUP($A11,#REF!,8,0)),0,(VLOOKUP($A11,#REF!,8,0))) -> 0 | DJ11: =IF($D11>0,DI11/$D11,0) -> 0 | DK11: =IF($E11>0,$E11/$D11,0) -> 0.5 | DL11: 0 | DM11: 0 | DN11: 0 | DO11: =ROUND($M11*DI11,2) -> 0 | DP11: =IF(ISERROR(VLOOKUP($A11,#REF!,8,0)),0,(VLOOKUP($A11,#REF!,8,0))) -> 0 | DQ11: =IF($D11>0,DP11/$D11,0) -> 0 | DR11: =IF($E11>0,$E11/$D11,0) -> 0.5 | DS11: 0 | DT11: 0 | DU11: 0 | DV11: =ROUND($M11*DP11,2) -> 0 | DW11: =IF(ISERROR(VLOOKUP($A11,#REF!,8,0)),0,(VLOOKUP($A11,#REF!,8,0))) -> 0 | DX11: =IF($D11>0,DW11/$D11,0) -> 0 | DY11: =IF($E11>0,$E11/$D11,0) -> 0.5 | DZ11: 0 | EA11: 0 | EB11: 0 | EC11: =ROUND($M11*DW11,2) -> 0 | ED11: =IF(ISERROR(VLOOKUP($A11,#REF!,8,0)),0,(VLOOKUP($A11,#REF!,8,0))) -> 0 | EE11: =IF($D11>0,ED11/$D11,0) -> 0 | EF11: =IF($E11>0,$E11/$D11,0) -> 0.5 | EG11: 0 | EH11: 0 | EI11: 0 | EJ11: =ROUND($M11*ED11,2) -> 0 | EK11: =IF(ISERROR(VLOOKUP($A11,#REF!,8,0)),0,(VLOOKUP($A11,#REF!,8,0))) -> 0 | EL11: =IF($D11>0,EK11/$D11,0) -> 0 | EM11: =IF($E11>0,$E11/$D11,0) -> 0.5 | EN11: 0 | EO11: 0 | EP11: 0 | EQ11: =ROUND($M11*EK11,2) -> 0 | ER11: =IF(ISERROR(VLOOKUP($A11,#REF!,8,0)),0,(VLOOKUP($A11,#REF!,8,0))) -> 0 | ES11: =IF($D11>0,ER11/$D11,0) -> 0 | ET11: =IF($E11>0,$E11/$D11,0) -> 0.5 | EU11: 0 | EV11: 0 | EW11: 0 | EX11: =ROUND($M11*ER11,2) -> 0 | EY11: =IF(ISERROR(VLOOKUP($A11,#REF!,8,0)),0,(VLOOKUP($A11,#REF!,8,0))) -> 0 | EZ11: =IF($D11>0,EY11/$D11,0) -> 0 | FA11: =IF($E11>0,$E11/$D11,0) -> 0.5 | FB11: 0 | FC11: 0 | FD11: 0 | FE11: =ROUND($M11*EY11,2) -> 0 | FF11: =IF(ISERROR(VLOOKUP($A11,#REF!,8,0)),0,(VLOOKUP($A11,#REF!,8,0))) -> 0 | FG11: =IF($D11>0,FF11/$D11,0) -> 0 | FH11: =IF($E11>0,$E11/$D11,0) -> 0.5 | FI11: 0 | FJ11: 0 | FK11: 0 | FL11: =ROUND($M11*FF11,2) -> 0 | FM11: =IF(ISERROR(VLOOKUP($A11,#REF!,8,0)),0,(VLOOKUP($A11,#REF!,8,0))) -> 0 | FN11: =IF($D11>0,FM11/$D11,0) -> 0 | FO11: =IF($E11>0,$E11/$D11,0) -> 0.5 | FP11: 0 | FQ11: 0 | FR11: 0 | FS11: =ROUND($M11*FM11,2) -> 0 | FT11: =IF(ISERROR(VLOOKUP($A11,#REF!,8,0)),0,(VLOOKUP($A11,#REF!,8,0))) -> 0 | FU11: =IF($D11>0,FT11/$D11,0) -> 0 | FV11: =IF($E11>0,$E11/$D11,0) -> 0.5 | FW11: 0 | FX11: 0 | FY11: 0 | FZ11: =ROUND($M11*FT11,2) -> 0 | GA11: =IF(ISERROR(VLOOKUP($A11,#REF!,8,0)),0,(VLOOKUP($A11,#REF!,8,0))) -> 0 | GB11: =IF($D11>0,GA11/$D11,0) -> 0 | GC11: =IF($E11>0,$E11/$D11,0) -> 0.5 | GD11: 0 | GE11: 0 | GF11: 0 | GG11: =ROUND($M11*GA11,2) -> 0 | GH11: =IF(ISERROR(VLOOKUP($A11,#REF!,8,0)),0,(VLOOKUP($A11,#REF!,8,0))) -> 0 | GI11: =IF($D11>0,GH11/$D11,0) -> 0 | GJ11: =IF($E11>0,$E11/$D11,0) -> 0.5 | GK11: 0 | GL11: 0 | GM11: 0 | GN11: =ROUND($M11*GH11,2) -> 0 | GO11: =IF(ISERROR(VLOOKUP($A11,#REF!,8,0)),0,(VLOOKUP($A11,#REF!,8,0))) -> 0 | GP11: =IF($D11>0,GO11/$D11,0) -> 0 | GQ11: =IF($E11>0,$E11/$D11,0) -> 0.5 | GR11: 0 | GS11: 0 | GT11: 0 | GU11: =ROUND($M11*GO11,2) -> 0 | GV11: =IF(ISERROR(VLOOKUP($A11,#REF!,8,0)),0,(VLOOKUP($A11,#REF!,8,0))) -> 0 | GW11: =IF($D11>0,GV11/$D11,0) -> 0 | GX11: =IF($E11>0,$E11/$D11,0) -> 0.5 | GY11: 0 | GZ11: 0 | HA11: 0 | HB11: =ROUND($M11*GV11,2) -> 0 | HC11: =IF(ISERROR(VLOOKUP($A11,#REF!,8,0)),0,(VLOOKUP($A11,#REF!,8,0))) -> 0 | HD11: =IF($D11>0,HC11/$D11,0) -> 0 | HE11: =IF($E11>0,$E11/$D11,0) -> 0.5 | HF11: 0 | HG11: 0 | HH11: 0 | HI11: =ROUND($M11*HC11,2) -> 0 | HJ11: =IF(ISERROR(VLOOKUP($A11,#REF!,8,0)),0,(VLOOKUP($A11,#REF!,8,0))) -> 0 | HK11: =IF($D11>0,HJ11/$D11,0) -> 0 | HL11: =IF($E11>0,$E11/$D11,0) -> 0.5 | HM11: 0 | HN11: 0 | HO11: 0 | HP11: =ROUND($M11*HJ11,2) -> 0 | HQ11: =IF(ISERROR(VLOOKUP($A11,#REF!,8,0)),0,(VLOOKUP($A11,#REF!,8,0))) -> 0 | HR11: =IF($D11>0,HQ11/$D11,0) -> 0 | HS11: =IF($E11>0,$E11/$D11,0) -> 0.5 | HT11: 0 | HU11: 0 | HV11: 0 | HW11: =ROUND($M11*HQ11,2) -> 0 | HX11: =IF(ISERROR(VLOOKUP($A11,#REF!,8,0)),0,(VLOOKUP($A11,#REF!,8,0))) -> 0 | HY11: =IF($D11>0,HX11/$D11,0) -> 0 | HZ11: =IF($E11>0,$E11/$D11,0) -> 0.5 | IA11: 0 | IB11: 0 | IC11: 0 | ID11: =ROUND($M11*HX11,2) -> 0 | IE11: =IF(ISERROR(VLOOKUP($A11,#REF!,8,0)),0,(VLOOKUP($A11,#REF!,8,0))) -> 0 | IF11: =IF($D11>0,IE11/$D11,0) -> 0 | IG11: =IF($E11>0,$E11/$D11,0) -> 0.5 | IH11: 0 | II11: 0 | IJ11: 0 | IK11: =ROUND($M11*IE11,2) -> 0 | IL11: =IF(ISERROR(VLOOKUP($A11,#REF!,8,0)),0,(VLOOKUP($A11,#REF!,8,0))) -> 0 | IM11: =IF($D11>0,IL11/$D11,0) -> 0 | IN11: =IF($E11>0,$E11/$D11,0) -> 0.5 | IO11: 0 | IP11: 0 | IQ11: 0 | IR11: =ROUND($M11*IL11,2) -> 0 | IS11: =IF(ISERROR(VLOOKUP($A11,#REF!,8,0)),0,(VLOOKUP($A11,#REF!,8,0))) -> 0 | IT11: =IF($D11>0,IS11/$D11,0) -> 0 | IU11: =IF($E11>0,$E11/$D11,0) -> 0.5 | IV11: 0 | IW11: 0 | IX11: 0 | IY11: =ROUND($M11*IS11,2) -> 0 | IZ11: =IF(ISERROR(VLOOKUP($A11,#REF!,8,0)),0,(VLOOKUP($A11,#REF!,8,0))) -> 0 | JA11: =IF($D11>0,IZ11/$D11,0) -> 0 | JB11: =IF($E11>0,$E11/$D11,0) -> 0.5 | JC11: 0 | JD11: 0 | JE11: 0 | JF11: =ROUND($M11*IZ11,2) -> 0 | JG11: =IF(ISERROR(VLOOKUP($A11,#REF!,8,0)),0,(VLOOKUP($A11,#REF!,8,0))) -> 0 | JH11: =IF($D11>0,JG11/$D11,0) -> 0 | JI11: =IF($E11>0,$E11/$D11,0) -> 0.5 | JJ11: 0 | JK11: 0 | JL11: 0 | JM11: =ROUND($M11*JG11,2) -> 0 | JN11: =IF(ISERROR(VLOOKUP($A11,#REF!,8,0)),0,(VLOOKUP($A11,#REF!,8,0))) -> 0 | JO11: =IF($D11>0,JN11/$D11,0) -> 0 | JP11: =IF($E11>0,$E11/$D11,0) -> 0.5 | JQ11: 0 | JR11: 0 | JS11: 0 | JT11: =ROUND($M11*JN11,2) -> 0 | JU11: =IF(ISERROR(VLOOKUP($A11,#REF!,8,0)),0,(VLOOKUP($A11,#REF!,8,0))) -> 0 | JV11: =IF($D11>0,JU11/$D11,0) -> 0 | JW11: =IF($E11>0,$E11/$D11,0) -> 0.5 | JX11: 0 | JY11: 0 | JZ11: 0 | KA11: =ROUND($M11*JU11,2) -> 0 | KB11: =IF(ISERROR(VLOOKUP($A11,#REF!,8,0)),0,(VLOOKUP($A11,#REF!,8,0))) -> 0 | KC11: =IF($D11>0,KB11/$D11,0) -> 0 | KD11: =IF($E11>0,$E11/$D11,0) -> 0.5 | KE11: 0 | KF11: 0 | KG11: 0 | KH11: =ROUND($M11*KB11,2) -> 0 | KI11: =IF(ISERROR(VLOOKUP($A11,#REF!,8,0)),0,(VLOOKUP($A11,#REF!,8,0))) -> 0 | KJ11: =IF($D11>0,KI11/$D11,0) -> 0 | KK11: =IF($E11>0,$E11/$D11,0) -> 0.5 | KL11: 0 | KM11: 0 | KN11: 0 | KO11: =ROUND($M11*KI11,2) -> 0 | KP11: =IF(ISERROR(VLOOKUP($A11,#REF!,8,0)),0,(VLOOKUP($A11,#REF!,8,0))) -> 0 | KQ11: =IF($D11>0,KP11/$D11,0) -> 0 | KR11: =IF($E11>0,$E11/$D11,0) -> 0.5 | KS11: 0 | KT11: 0 | KU11: 0 | KV11: =ROUND($M11*KP11,2) -> 0 | KW11: =IF(ISERROR(VLOOKUP($A11,#REF!,8,0)),0,(VLOOKUP($A11,#REF!,8,0))) -> 0 | KX11: =IF($D11>0,KW11/$D11,0) -> 0 | KY11: =IF($E11>0,$E11/$D11,0) -> 0.5 | KZ11: 0 | LA11: 0 | LB11: 0 | LD11: =IF(ISERROR(VLOOKUP($A11,#REF!,8,0)),0,(VLOOKUP($A11,#REF!,8,0))) -> 0 | LE11: =IF($D11>0,LD11/$D11,0) -> 0 | LF11: =IF($E11>0,$E11/$D11,0) -> 0.5 | LG11: 0 | LH11: 0 | LI11: 0 | LJ11: =ROUND($M11*LD11,2) -> 0 | LK11: =IF(ISERROR(VLOOKUP($A11,#REF!,8,0)),0,(VLOOKUP($A11,#REF!,8,0))) -> 0 | LL11: =IF($D11>0,LK11/$D11,0) -> 0 | LM11: =IF($E11>0,$E11/$D11,0) -> 0.5 | LN11: 0 | LO11: 0 | LP11: 0 | LQ11: =ROUND($M11*LK11,2) -> 0 | LR11: =IF(ISERROR(VLOOKUP($A11,#REF!,8,0)),0,(VLOOKUP($A11,#REF!,8,0))) -> 0 | LS11: =IF($D11>0,LR11/$D11,0) -> 0 | LT11: =IF($E11>0,$E11/$D11,0) -> 0.5 | LU11: 0 | LV11: 0 | LW11: 0 | LX11: =ROUND($M11*LR11,2) -> 0 | LY11: =IF(ISERROR(VLOOKUP($A11,#REF!,8,0)),0,(VLOOKUP($A11,#REF!,8,0))) -> 0 | LZ11: =IF($D11>0,LY11/$D11,0) -> 0 | MA11: =IF($E11>0,$E11/$D11,0) -> 0.5 | MB11: 0 | MC11: 0 | MD11: 0 | ME11: =ROUND($M11*LY11,2) -> 0 | MF11: =IF(ISERROR(VLOOKUP($A11,#REF!,8,0)),0,(VLOOKUP($A11,#REF!,8,0))) -> 0 | MG11: =IF($D11>0,MF11/$D11,0) -> 0 | MH11: =IF($E11>0,$E11/$D11,0) -> 0.5 | MI11: 0 | MJ11: 0 | MK11: 0 | ML11: =ROUND($M11*MF11,2) -> 0 | MM11: =IF(ISERROR(VLOOKUP($A11,#REF!,8,0)),0,(VLOOKUP($A11,#REF!,8,0))) -> 0 | MN11: =IF($D11>0,MM11/$D11,0) -> 0 | MO11: =IF($E11>0,$E11/$D11,0) -> 0.5 | MP11: 0 | MQ11: 0 | MR11: 0 | MS11: =ROUND($M11*MM11,2) -> 0 | MT11: =IF(ISERROR(VLOOKUP($A11,#REF!,8,0)),0,(VLOOKUP($A11,#REF!,8,0))) -> 0 | MU11: =IF($D11>0,MT11/$D11,0) -> 0 | MV11: =IF($E11>0,$E11/$D11,0) -> 0.5 | MW11: 0 | MX11: 0 | MY11: 0 | MZ11: =ROUND($M11*MT11,2) -> 0 | NA11: =IF(ISERROR(VLOOKUP($A11,#REF!,8,0)),0,(VLOOKUP($A11,#REF!,8,0))) -> 0 | NB11: =IF($D11>0,NA11/$D11,0) -> 0 | NC11: =IF($E11>0,$E11/$D11,0) -> 0.5 | ND11: 0 | NE11: 0 | NF11: 0 | NG11: =ROUND($M11*NA11,2) -> 0 | NH11: =IF(ISERROR(VLOOKUP($A11,#REF!,8,0)),0,(VLOOKUP($A11,#REF!,8,0))) -> 0 | NI11: =IF($D11>0,NH11/$D11,0) -> 0 | NJ11: =IF($E11>0,$E11/$D11,0) -> 0.5 | NK11: 0 | NL11: 0 | NM11: 0 | NN11: =ROUND($M11*NH11,2) -> 0 | NO11: =IF(ISERROR(VLOOKUP($A11,#REF!,8,0)),0,(VLOOKUP($A11,#REF!,8,0))) -> 0 | NP11: =IF($D11>0,NO11/$D11,0) -> 0 | NQ11: =IF($E11>0,$E11/$D11,0) -> 0.5 | NR11: 0 | NS11: 0 | NT11: 0 | NU11: =ROUND($M11*NO11,2) -> 0 | NV11: =IF(ISERROR(VLOOKUP($A11,#REF!,8,0)),0,(VLOOKUP($A11,#REF!,8,0))) -> 0 | NW11: =IF($D11>0,NV11/$D11,0) -> 0 | NX11: =IF($E11>0,$E11/$D11,0) -> 0.5 | NY11: 0 | NZ11: 0 | OA11: 0 | OB11: =ROUND($M11*NV11,2) -> 0 | OC11: =IF(ISERROR(VLOOKUP($A11,#REF!,8,0)),0,(VLOOKUP($A11,#REF!,8,0))) -> 0 | OD11: =IF($D11>0,OC11/$D11,0) -> 0 | OE11: =IF($E11>0,$E11/$D11,0) -> 0.5 | OF11: 0 | OG11: 0 | OH11: 0 | OI11: =ROUND($M11*OC11,2) -> 0 | OJ11: =E11*M11 -> 1088.78612 | OK11: =O11 -> 1088.78612 | OL11: =OJ11/OK11 -> 1 | OM11: =OK11-OJ11 -> 0
A12: 1.2 | B12: Administração local pelo período da obra. | C12: un/mês | D12: 18 | E12: 17.8366 | F12: 0.1634 | G12: 58702.2762 | H12: 1056640.972 | I12: 65797.54848 | J12: 1184355.873 | K12: 0 | L12: 0 | M12: 124499.8247 | N12: 20343.27135 | O12: 2220653.573 | P12: 0.9566 | Q12: 0.05314444444 | R12: 56154.59741 | S12: 62941.93488 | T12: 0 | U12: 119096.53 | V12: 1.04 | W12: 0.05777777778 | X12: 0.9909222222 | Y12: 61050.36725 | Z12: 68429.45042 | AA12: 0 | AB12: 129479.82 | AC12: 0.5 | AD12: 0.02777777778 | AE12: 0.9909222222 | AF12: 29351.1381 | AG12: 32898.77424 | AH12: 0 | AI12: 62249.91 | AJ12: 0.5 | AK12: 0.02777777778 | AL12: 0.9909222222 | AM12: 29351.1381 | AN12: 32898.77424 | AO12: 0 | AP12: 62249.91 | AQ12: 0.5 | AR12: 0.02777777778 | AS12: 0.9909222222 | AT12: 29351.1381 | AU12: 32898.77424 | AV12: 0 | AW12: 62249.91 | AX12: 0.5 | AY12: 0.02777777778 | AZ12: 0.9909222222 | BA12: 29351.1381 | BB12: 32898.77424 | BC12: 0 | BD12: 62249.91 | BE12: 1 | BF12: 0.05555555556 | BG12: 0.9909222222 | BH12: 58702.2762 | BI12: 65797.54848 | BJ12: 0 | BK12: 124499.82 | BL12: 0.5 | BM12: 0.02777777778 | BN12: 0.9909222222 | BO12: 29351.1381 | BP12: 32898.77424 | BQ12: 0 | BR12: 62249.91 | BS12: 0.5 | BT12: 0.02777777778 | BU12: 0.9909222222 | BV12: 29351.1381 | BW12: 32898.77424 | BX12: 0 | BY12: 62249.91 | BZ12: =IF(ISERROR(VLOOKUP(A12,#REF!,8,0)),0,(VLOOKUP(A12,#REF!,8,0))) -> 0 | CA12: 0 | CB12: =IF($E12>0,$E12/$D12,0) -> 0.9909222222 | CC12: 0 | CD12: 0 | CE12: 0 | CF12: 0 | CG12: =IF(ISERROR(VLOOKUP($A12,#REF!,8,0)),0,(VLOOKUP($A12,#REF!,8,0))) -> 0 | CH12: 0 | CI12: 0.9909222222 | CJ12: 0 | CK12: 0 | CL12: 0 | CM12: 0 | CN12: =IF(ISERROR(VLOOKUP($A12,#REF!,8,0)),0,(VLOOKUP($A12,#REF!,8,0))) -> 0 | CO12: 0 | CP12: 0.9909222222 | CQ12: 0 | CR12: 0 | CS12: 0 | CT12: 0 | CU12: =IF(ISERROR(VLOOKUP($A12,#REF!,8,0)),0,(VLOOKUP($A12,#REF!,8,0))) -> 0 | CV12: 0 | CW12: 0.9909222222 | CX12: 0 | CY12: 0 | CZ12: 0 | DA12: 0 | DB12: =IF(ISERROR(VLOOKUP($A12,#REF!,8,0)),0,(VLOOKUP($A12,#REF!,8,0))) -> 0 | DC12: 0 | DD12: 0.9909222222 | DE12: 0 | DF12: 0 | DG12: 0 | DH12: 0 | DI12: =IF(ISERROR(VLOOKUP($A12,#REF!,8,0)),0,(VLOOKUP($A12,#REF!,8,0))) -> 0 | DJ12: 0 | DK12: 0.9909222222 | DL12: 0 | DM12: 0 | DN12: 0 | DO12: 0 | DP12: =IF(ISERROR(VLOOKUP($A12,#REF!,8,0)),0,(VLOOKUP($A12,#REF!,8,0))) -> 0 | DQ12: 0 | DR12: 0.9909222222 | DS12: 0 | DT12: 0 | DU12: 0 | DV12: 0 | DW12: =IF(ISERROR(VLOOKUP($A12,#REF!,8,0)),0,(VLOOKUP($A12,#REF!,8,0))) -> 0 | DX12: 0 | DY12: 0.9909222222 | DZ12: 0 | EA12: 0 | EB12: 0 | EC12: 0 | ED12: =IF(ISERROR(VLOOKUP($A12,#REF!,8,0)),0,(VLOOKUP($A12,#REF!,8,0))) -> 0 | EE12: 0 | EF12: 0.9909222222 | EG12: 0 | EH12: 0 | EI12: 0 | EJ12: 0 | EK12: =IF(ISERROR(VLOOKUP($A12,#REF!,8,0)),0,(VLOOKUP($A12,#REF!,8,0))) -> 0 | EL12: 0 | EM12: 0.9909222222 | EN12: 0 | EO12: 0 | EP12: 0 | EQ12: 0 | ER12: =IF(ISERROR(VLOOKUP($A12,#REF!,8,0)),0,(VLOOKUP($A12,#REF!,8,0))) -> 0 | ES12: 0 | ET12: 0.9909222222 | EU12: 0 | EV12: 0 | EW12: 0 | EX12: 0 | EY12: =IF(ISERROR(VLOOKUP($A12,#REF!,8,0)),0,(VLOOKUP($A12,#REF!,8,0))) -> 0 | EZ12: 0 | FA12: 0.9909222222 | FB12: 0 | FC12: 0 | FD12: 0 | FE12: 0 | FF12: =IF(ISERROR(VLOOKUP($A12,#REF!,8,0)),0,(VLOOKUP($A12,#REF!,8,0))) -> 0 | FG12: 0 | FH12: 0.9909222222 | FI12: 0 | FJ12: 0 | FK12: 0 | FL12: 0 | FM12: =IF(ISERROR(VLOOKUP($A12,#REF!,8,0)),0,(VLOOKUP($A12,#REF!,8,0))) -> 0 | FN12: 0 | FO12: 0.9909222222 | FP12: 0 | FQ12: 0 | FR12: 0 | FS12: 0 | FT12: =IF(ISERROR(VLOOKUP($A12,#REF!,8,0)),0,(VLOOKUP($A12,#REF!,8,0))) -> 0 | FU12: 0 | FV12: 0.9909222222 | FW12: 0 | FX12: 0 | FY12: 0 | FZ12: 0 | GA12: =IF(ISERROR(VLOOKUP($A12,#REF!,8,0)),0,(VLOOKUP($A12,#REF!,8,0))) -> 0 | GB12: 0 | GC12: 0.9909222222 | GD12: 0 | GE12: 0 | GF12: 0 | GG12: 0 | GH12: =IF(ISERROR(VLOOKUP($A12,#REF!,8,0)),0,(VLOOKUP($A12,#REF!,8,0))) -> 0 | GI12: 0 | GJ12: 0.9909222222 | GK12: 0 | GL12: 0 | GM12: 0 | GN12: 0 | GO12: =IF(ISERROR(VLOOKUP($A12,#REF!,8,0)),0,(VLOOKUP($A12,#REF!,8,0))) -> 0 | GP12: 0 | GQ12: 0.9909222222 | GR12: 0 | GS12: 0 | GT12: 0 | GU12: 0 | GV12: =IF(ISERROR(VLOOKUP($A12,#REF!,8,0)),0,(VLOOKUP($A12,#REF!,8,0))) -> 0 | GW12: 0 | GX12: 0.9909222222 | GY12: 0 | GZ12: 0 | HA12: 0 | HB12: 0 | HC12: =IF(ISERROR(VLOOKUP($A12,#REF!,8,0)),0,(VLOOKUP($A12,#REF!,8,0))) -> 0 | HD12: 0 | HE12: 0.9909222222 | HF12: 0 | HG12: 0 | HH12: 0 | HI12: 0 | HJ12: =IF(ISERROR(VLOOKUP($A12,#REF!,8,0)),0,(VLOOKUP($A12,#REF!,8,0))) -> 0 | HK12: 0 | HL12: 0.9909222222 | HM12: 0 | HN12: 0 | HO12: 0 | HP12: 0 | HQ12: =IF(ISERROR(VLOOKUP($A12,#REF!,8,0)),0,(VLOOKUP($A12,#REF!,8,0))) -> 0 | HR12: 0 | HS12: 0.9909222222 | HT12: 0 | HU12: 0 | HV12: 0 | HW12: 0 | HX12: =IF(ISERROR(VLOOKUP($A12,#REF!,8,0)),0,(VLOOKUP($A12,#REF!,8,0))) -> 0 | HY12: 0 | HZ12: 0.9909222222 | IA12: 0 | IB12: 0 | IC12: 0 | ID12: 0 | IE12: =IF(ISERROR(VLOOKUP($A12,#REF!,8,0)),0,(VLOOKUP($A12,#REF!,8,0))) -> 0 | IF12: 0 | IG12: 0.9909222222 | IH12: 0 | II12: 0 | IJ12: 0 | IK12: 0 | IL12: =IF(ISERROR(VLOOKUP($A12,#REF!,8,0)),0,(VLOOKUP($A12,#REF!,8,0))) -> 0 | IM12: 0 | IN12: 0.9909222222 | IO12: 0 | IP12: 0 | IQ12: 0 | IR12: 0 | IS12: =IF(ISERROR(VLOOKUP($A12,#REF!,8,0)),0,(VLOOKUP($A12,#REF!,8,0))) -> 0 | IT12: 0 | IU12: 0.9909222222 | IV12: 0 | IW12: 0 | IX12: 0 | IY12: 0 | IZ12: =IF(ISERROR(VLOOKUP($A12,#REF!,8,0)),0,(VLOOKUP($A12,#REF!,8,0))) -> 0 | JA12: 0 | JB12: 0.9909222222 | JC12: 0 | JD12: 0 | JE12: 0 | JF12: 0 | JG12: =IF(ISERROR(VLOOKUP($A12,#REF!,8,0)),0,(VLOOKUP($A12,#REF!,8,0))) -> 0 | JH12: 0 | JI12: 0.9909222222 | JJ12: 0 | JK12: 0 | JL12: 0 | JM12: 0 | JN12: =IF(ISERROR(VLOOKUP($A12,#REF!,8,0)),0,(VLOOKUP($A12,#REF!,8,0))) -> 0 | JO12: 0 | JP12: 0.9909222222 | JQ12: 0 | JR12: 0 | JS12: 0 | JT12: 0 | JU12: =IF(ISERROR(VLOOKUP($A12,#REF!,8,0)),0,(VLOOKUP($A12,#REF!,8,0))) -> 0 | JV12: 0 | JW12: 0.9909222222 | JX12: 0 | JY12: 0 | JZ12: 0 | KA12: 0 | KB12: =IF(ISERROR(VLOOKUP($A12,#REF!,8,0)),0,(VLOOKUP($A12,#REF!,8,0))) -> 0 | KC12: 0 | KD12: 0.9909222222 | KE12: 0 | KF12: 0 | KG12: 0 | KH12: 0 | KI12: =IF(ISERROR(VLOOKUP($A12,#REF!,8,0)),0,(VLOOKUP($A12,#REF!,8,0))) -> 0 | KJ12: 0 | KK12: 0.9909222222 | KL12: 0 | KM12: 0 | KN12: 0 | KO12: 0 | KP12: =IF(ISERROR(VLOOKUP($A12,#REF!,8,0)),0,(VLOOKUP($A12,#REF!,8,0))) -> 0 | KQ12: 0 | KR12: 0.9909222222 | KS12: 0 | KT12: 0 | KU12: 0 | KV12: 0 | KW12: =IF(ISERROR(VLOOKUP($A12,#REF!,8,0)),0,(VLOOKUP($A12,#REF!,8,0))) -> 0 | KX12: =IF($D12>0,KW12/$D12,0) -> 0 | KY12: 0.9909222222 | KZ12: =KW12*$G12 -> 0 | LA12: 0 | LB12: 0 | LC12: =ROUND($M12*KW12,2) -> 0 | LD12: =IF(ISERROR(VLOOKUP($A12,#REF!,8,0)),0,(VLOOKUP($A12,#REF!,8,0))) -> 0 | LE12: 0 | LF12: 0.9909222222 | LG12: 0 | LH12: 0 | LI12: 0 | LJ12: 0 | LK12: =IF(ISERROR(VLOOKUP($A12,#REF!,8,0)),0,(VLOOKUP($A12,#REF!,8,0))) -> 0 | LL12: 0 | LM12: 0.9909222222 | LN12: 0 | LO12: 0 | LP12: 0 | LQ12: 0 | LR12: =IF(ISERROR(VLOOKUP($A12,#REF!,8,0)),0,(VLOOKUP($A12,#REF!,8,0))) -> 0 | LS12: 0 | LT12: 0.9909222222 | LU12: 0 | LV12: 0 | LW12: 0 | LX12: 0 | LY12: =IF(ISERROR(VLOOKUP($A12,#REF!,8,0)),0,(VLOOKUP($A12,#REF!,8,0))) -> 0 | LZ12: 0 | MA12: 0.9909222222 | MB12: 0 | MC12: 0 | MD12: 0 | ME12: 0 | MF12: =IF(ISERROR(VLOOKUP($A12,#REF!,8,0)),0,(VLOOKUP($A12,#REF!,8,0))) -> 0 | MG12: 0 | MH12: 0.9909222222 | MI12: 0 | MJ12: 0 | MK12: 0 | ML12: 0 | MM12: =IF(ISERROR(VLOOKUP($A12,#REF!,8,0)),0,(VLOOKUP($A12,#REF!,8,0))) -> 0 | MN12: 0 | MO12: 0.9909222222 | MP12: 0 | MQ12: 0 | MR12: 0 | MS12: 0 | MT12: =IF(ISERROR(VLOOKUP($A12,#REF!,8,0)),0,(VLOOKUP($A12,#REF!,8,0))) -> 0 | MU12: 0 | MV12: 0.9909222222 | MW12: 0 | MX12: 0 | MY12: 0 | MZ12: 0 | NA12: =IF(ISERROR(VLOOKUP($A12,#REF!,8,0)),0,(VLOOKUP($A12,#REF!,8,0))) -> 0 | NB12: 0 | NC12: 0.9909222222 | ND12: 0 | NE12: 0 | NF12: 0 | NG12: 0 | NH12: =IF(ISERROR(VLOOKUP($A12,#REF!,8,0)),0,(VLOOKUP($A12,#REF!,8,0))) -> 0 | NI12: 0 | NJ12: 0.9909222222 | NK12: 0 | NL12: 0 | NM12: 0 | NN12: 0 | NO12: =IF(ISERROR(VLOOKUP($A12,#REF!,8,0)),0,(VLOOKUP($A12,#REF!,8,0))) -> 0 | NP12: 0 | NQ12: 0.9909222222 | NR12: 0 | NS12: 0 | NT12: 0 | NU12: 0 | NV12: =IF(ISERROR(VLOOKUP($A12,#REF!,8,0)),0,(VLOOKUP($A12,#REF!,8,0))) -> 0 | NW12: 0 | NX12: 0.9909222222 | NY12: 0 | NZ12: 0 | OA12: 0 | OB12: 0 | OC12: =IF(ISERROR(VLOOKUP($A12,#REF!,8,0)),0,(VLOOKUP($A12,#REF!,8,0))) -> 0 | OD12: 0 | OE12: 0.9909222222 | OF12: 0 | OG12: 0 | OH12: 0 | OI12: 0 | OJ12: 2220653.573 | OK12: 2220653.573 | OL12: 1 | OM12: =OK12-OJ12 -> 0
A13: 1.3 | B13: Placa de obra em chapa de aço galvanizado. | C13: m² | D13: 6 | E13: 6 | F13: 0 | G13: 194.848674 | H13: 1169.092044 | I13: 36.1382 | J13: 216.8292 | K13: 0 | L13: 0 | M13: 230.986874 | N13: 0 | O13: 1385.921244 | P13: 6 | Q13: 1 | R13: 1169.092044 | S13: 216.8292 | T13: 0 | U13: 1385.92 | W13: 0 | X13: 1 | Y13: 0 | Z13: 0 | AA13: 0 | AB13: 0 | AD13: 0 | AE13: 1 | AF13: 0 | AG13: 0 | AH13: 0 | AI13: 0 | AK13: 0 | AL13: 1 | AM13: 0 | AN13: 0 | AO13: 0 | AP13: 0 | AR13: 0 | AS13: 1 | AT13: 0 | AU13: 0 | AV13: 0 | AW13: 0 | AY13: 0 | AZ13: 1 | BA13: 0 | BB13: 0 | BC13: 0 | BD13: 0 | BE13: =IF(ISERROR(VLOOKUP(A13,'7ª MEDIÇÃO'!$A$5:$J$1048576,8,0)),0,(VLOOKUP(A13,'7ª MEDIÇÃO'!$A$5:$J$1048576,8,0))) -> 0 | BF13: 0 | BG13: 1 | BH13: 0 | BI13: 0 | BJ13: 0 | BK13: 0 | BL13: =IF(ISERROR(VLOOKUP(A13,'8ª MEDIÇÃO'!$A$5:$J$1048576,8,0)),0,(VLOOKUP(A13,'8ª MEDIÇÃO'!$A$5:$J$1048576,8,0))) -> 0 | BM13: 0 | BN13: 1 | BO13: 0 | BP13: 0 | BQ13: 0 | BR13: 0 | BS13: =IF(ISERROR(VLOOKUP(A13,'9ª MEDIÇÃO'!$A$5:$J$1048576,8,0)),0,(VLOOKUP(A13,'9ª MEDIÇÃO'!$A$5:$J$1048576,8,0))) -> 0 | BT13: 0 | BU13: 1 | BV13: 0 | BW13: 0 | BX13: 0 | BY13: 0 | BZ13: =IF(ISERROR(VLOOKUP(A13,#REF!,8,0)),0,(VLOOKUP(A13,#REF!,8,0))) -> 0 | CA13: 0 | CB13: 1 | CC13: 0 | CD13: 0 | CE13: 0 | CF13: 0 | CG13: =IF(ISERROR(VLOOKUP($A13,#REF!,8,0)),0,(VLOOKUP($A13,#REF!,8,0))) -> 0 | CH13: 0 | CI13: 1 | CJ13: 0 | CK13: 0 | CL13: 0 | CM13: 0 | CN13: =IF(ISERROR(VLOOKUP($A13,#REF!,8,0)),0,(VLOOKUP($A13,#REF!,8,0))) -> 0 | CO13: 0 | CP13: 1 | CQ13: 0 | CR13: 0 | CS13: 0 | CT13: 0 | CU13: =IF(ISERROR(VLOOKUP($A13,#REF!,8,0)),0,(VLOOKUP($A13,#REF!,8,0))) -> 0 | CV13: 0 | CW13: 1 | CX13: 0 | CY13: 0 | CZ13: 0 | DA13: 0 | DB13: =IF(ISERROR(VLOOKUP($A13,#REF!,8,0)),0,(VLOOKUP($A13,#REF!,8,0))) -> 0 | DC13: 0 | DD13: 1 | DE13: 0 | DF13: 0 | DG13: 0 | DH13: 0 | DI13: =IF(ISERROR(VLOOKUP($A13,#REF!,8,0)),0,(VLOOKUP($A13,#REF!,8,0))) -> 0 | DJ13: 0 | DK13: 1 | DL13: 0 | DM13: 0 | DN13: 0 | DO13: 0 | DP13: =IF(ISERROR(VLOOKUP($A13,#REF!,8,0)),0,(VLOOKUP($A13,#REF!,8,0))) -> 0 | DQ13: 0 | DR13: 1 | DS13: 0 | DT13: 0 | DU13: 0 | DV13: 0 | DW13: =IF(ISERROR(VLOOKUP($A13,#REF!,8,0)),0,(VLOOKUP($A13,#REF!,8,0))) -> 0 | DX13: 0 | DY13: 1 | DZ13: 0 | EA13: 0 | EB13: 0 | EC13: 0 | ED13: =IF(ISERROR(VLOOKUP($A13,#REF!,8,0)),0,(VLOOKUP($A13,#REF!,8,0))) -> 0 | EE13: 0 | EF13: 1 | EG13: 0 | EH13: 0 | EI13: 0 | EJ13: 0 | EK13: =IF(ISERROR(VLOOKUP($A13,#REF!,8,0)),0,(VLOOKUP($A13,#REF!,8,0))) -> 0 | EL13: 0 | EM13: 1 | EN13: 0 | EO13: 0 | EP13: 0 | EQ13: 0 | ER13: =IF(ISERROR(VLOOKUP($A13,#REF!,8,0)),0,(VLOOKUP($A13,#REF!,8,0))) -> 0 | ES13: 0 | ET13: 1 | EU13: 0 | EV13: 0 | EW13: 0 | EX13: 0 | EY13: =IF(ISERROR(VLOOKUP($A13,#REF!,8,0)),0,(VLOOKUP($A13,#REF!,8,0))) -> 0 | EZ13: 0 | FA13: 1 | FB13: 0 | FC13: 0 | FD13: 0 | FE13: 0 | FF13: =IF(ISERROR(VLOOKUP($A13,#REF!,8,0)),0,(VLOOKUP($A13,#REF!,8,0))) -> 0 | FG13: 0 | FH13: 1 | FI13: 0 | FJ13: 0 | FK13: 0 | FL13: 0 | FM13: =IF(ISERROR(VLOOKUP($A13,#REF!,8,0)),0,(VLOOKUP($A13,#REF!,8,0))) -> 0 | FN13: 0 | FO13: 1 | FP13: 0 | FQ13: 0 | FR13: 0 | FS13: 0 | FT13: =IF(ISERROR(VLOOKUP($A13,#REF!,8,0)),0,(VLOOKUP($A13,#REF!,8,0))) -> 0 | FU13: 0 | FV13: 1 | FW13: 0 | FX13: 0 | FY13: 0 | FZ13: 0 | GA13: =IF(ISERROR(VLOOKUP($A13,#REF!,8,0)),0,(VLOOKUP($A13,#REF!,8,0))) -> 0 | GB13: 0 | GC13: 1 | GD13: 0 | GE13: 0 | GF13: 0 | GG13: 0 | GH13: =IF(ISERROR(VLOOKUP($A13,#REF!,8,0)),0,(VLOOKUP($A13,#REF!,8,0))) -> 0 | GI13: 0 | GJ13: 1 | GK13: 0 | GL13: 0 | GM13: 0 | GN13: 0 | GO13: =IF(ISERROR(VLOOKUP($A13,#REF!,8,0)),0,(VLOOKUP($A13,#REF!,8,0))) -> 0 | GP13: 0 | GQ13: 1 | GR13: 0 | GS13: 0 | GT13: 0 | GU13: 0 | GV13: =IF(ISERROR(VLOOKUP($A13,#REF!,8,0)),0,(VLOOKUP($A13,#REF!,8,0))) -> 0 | GW13: 0 | GX13: 1 | GY13: 0 | GZ13: 0 | HA13: 0 | HB13: 0 | HC13: =IF(ISERROR(VLOOKUP($A13,#REF!,8,0)),0,(VLOOKUP($A13,#REF!,8,0))) -> 0 | HD13: 0 | HE13: 1 | HF13: 0 | HG13: 0 | HH13: 0 | HI13: 0 | HJ13: =IF(ISERROR(VLOOKUP($A13,#REF!,8,0)),0,(VLOOKUP($A13,#REF!,8,0))) -> 0 | HK13: 0 | HL13: 1 | HM13: 0 | HN13: 0 | HO13: 0 | HP13: 0 | HQ13: =IF(ISERROR(VLOOKUP($A13,#REF!,8,0)),0,(VLOOKUP($A13,#REF!,8,0))) -> 0 | HR13: 0 | HS13: 1 | HT13: 0 | HU13: 0 | HV13: 0 | HW13: 0 | HX13: =IF(ISERROR(VLOOKUP($A13,#REF!,8,0)),0,(VLOOKUP($A13,#REF!,8,0))) -> 0 | HY13: 0 | HZ13: 1 | IA13: 0 | IB13: 0 | IC13: 0 | ID13: 0 | IE13: =IF(ISERROR(VLOOKUP($A13,#REF!,8,0)),0,(VLOOKUP($A13,#REF!,8,0))) -> 0 | IF13: 0 | IG13: 1 | IH13: 0 | II13: 0 | IJ13: 0 | IK13: 0 | IL13: =IF(ISERROR(VLOOKUP($A13,#REF!,8,0)),0,(VLOOKUP($A13,#REF!,8,0))) -> 0 | IM13: 0 | IN13: 1 | IO13: 0 | IP13: 0 | IQ13: 0 | IR13: 0 | IS13: =IF(ISERROR(VLOOKUP($A13,#REF!,8,0)),0,(VLOOKUP($A13,#REF!,8,0))) -> 0 | IT13: 0 | IU13: 1 | IV13: 0 | IW13: 0 | IX13: 0 | IY13: 0 | IZ13: =IF(ISERROR(VLOOKUP($A13,#REF!,8,0)),0,(VLOOKUP($A13,#REF!,8,0))) -> 0 | JA13: 0 | JB13: 1 | JC13: 0 | JD13: 0 | JE13: 0 | JF13: 0 | JG13: =IF(ISERROR(VLOOKUP($A13,#REF!,8,0)),0,(VLOOKUP($A13,#REF!,8,0))) -> 0 | JH13: 0 | JI13: 1 | JJ13: 0 | JK13: 0 | JL13: 0 | JM13: 0 | JN13: =IF(ISERROR(VLOOKUP($A13,#REF!,8,0)),0,(VLOOKUP($A13,#REF!,8,0))) -> 0 | JO13: 0 | JP13: 1 | JQ13: 0 | JR13: 0 | JS13: 0 | JT13: 0 | JU13: =IF(ISERROR(VLOOKUP($A13,#REF!,8,0)),0,(VLOOKUP($A13,#REF!,8,0))) -> 0 | JV13: 0 | JW13: 1 | JX13: 0 | JY13: 0 | JZ13: 0 | KA13: 0 | KB13: =IF(ISERROR(VLOOKUP($A13,#REF!,8,0)),0,(VLOOKUP($A13,#REF!,8,0))) -> 0 | KC13: 0 | KD13: 1 | KE13: 0 | KF13: 0 | KG13: 0 | KH13: 0 | KI13: =IF(ISERROR(VLOOKUP($A13,#REF!,8,0)),0,(VLOOKUP($A13,#REF!,8,0))) -> 0 | KJ13: 0 | KK13: 1 | KL13: 0 | KM13: 0 | KN13: 0 | KO13: 0 | KP13: =IF(ISERROR(VLOOKUP($A13,#REF!,8,0)),0,(VLOOKUP($A13,#REF!,8,0))) -> 0 | KQ13: 0 | KR13: 1 | KS13: 0 | KT13: 0 | KU13: 0 | KV13: 0 | KW13: =IF(ISERROR(VLOOKUP($A13,#REF!,8,0)),0,(VLOOKUP($A13,#REF!,8,0))) -> 0 | KX13: 0 | KY13: 1 | KZ13: 0 | LA13: 0 | LB13: 0 | LC13: 0 | LD13: =IF(ISERROR(VLOOKUP($A13,#REF!,8,0)),0,(VLOOKUP($A13,#REF!,8,0))) -> 0 | LE13: 0 | LF13: 1 | LG13: 0 | LH13: 0 | LI13: 0 | LJ13: 0 | LK13: =IF(ISERROR(VLOOKUP($A13,#REF!,8,0)),0,(VLOOKUP($A13,#REF!,8,0))) -> 0 | LL13: 0 | LM13: 1 | LN13: 0 | LO13: 0 | LP13: 0 | LQ13: 0 | LR13: =IF(ISERROR(VLOOKUP($A13,#REF!,8,0)),0,(VLOOKUP($A13,#REF!,8,0))) -> 0 | LS13: 0 | LT13: 1 | LU13: 0 | LV13: 0 | LW13: 0 | LX13: 0 | LY13: =IF(ISERROR(VLOOKUP($A13,#REF!,8,0)),0,(VLOOKUP($A13,#REF!,8,0))) -> 0 | LZ13: 0 | MA13: 1 | MB13: 0 | MC13: 0 | MD13: 0 | ME13: 0 | MF13: =IF(ISERROR(VLOOKUP($A13,#REF!,8,0)),0,(VLOOKUP($A13,#REF!,8,0))) -> 0 | MG13: 0 | MH13: 1 | MI13: 0 | MJ13: 0 | MK13: 0 | ML13: 0 | MM13: =IF(ISERROR(VLOOKUP($A13,#REF!,8,0)),0,(VLOOKUP($A13,#REF!,8,0))) -> 0 | MN13: 0 | MO13: 1 | MP13: 0 | MQ13: 0 | MR13: 0 | MS13: 0 | MT13: =IF(ISERROR(VLOOKUP($A13,#REF!,8,0)),0,(VLOOKUP($A13,#REF!,8,0))) -> 0 | MU13: 0 | MV13: 1 | MW13: 0 | MX13: 0 | MY13: 0 | MZ13: 0 | NA13: =IF(ISERROR(VLOOKUP($A13,#REF!,8,0)),0,(VLOOKUP($A13,#REF!,8,0))) -> 0 | NB13: 0 | NC13: 1 | ND13: 0 | NE13: 0 | NF13: 0 | NG13: 0 | NH13: =IF(ISERROR(VLOOKUP($A13,#REF!,8,0)),0,(VLOOKUP($A13,#REF!,8,0))) -> 0 | NI13: 0 | NJ13: 1 | NK13: 0 | NL13: 0 | NM13: 0 | NN13: 0 | NO13: =IF(ISERROR(VLOOKUP($A13,#REF!,8,0)),0,(VLOOKUP($A13,#REF!,8,0))) -> 0 | NP13: 0 | NQ13: 1 | NR13: 0 | NS13: 0 | NT13: 0 | NU13: 0 | NV13: =IF(ISERROR(VLOOKUP($A13,#REF!,8,0)),0,(VLOOKUP($A13,#REF!,8,0))) -> 0 | NW13: 0 | NX13: 1 | NY13: 0 | NZ13: 0 | OA13: 0 | OB13: 0 | OC13: =IF(ISERROR(VLOOKUP($A13,#REF!,8,0)),0,(VLOOKUP($A13,#REF!,8,0))) -> 0 | OD13: 0 | OE13: 1 | OF13: 0 | OG13: 0 | OH13: 0 | OI13: 0 | OJ13: 1385.921244 | OK13: 1385.921244 | OL13: 1 | OM13: 0
A14: 1.4 | B14: Execução de sondagem geotécnica à percussão com a realização de 5 furos, com no mínimo 8,0m de profundidade ou até o impenetrável, inclusive mobilização e desmobilização. | C14: un | D14: 1 | E14: 1 | F14: 0 | G14: 0 | H14: 0 | I14: 4278.12844 | J14: 4278.12844 | K14: 0 | L14: 0 | M14: 4278.12844 | N14: 0 | O14: 4278.12844 | P14: 1 | Q14: 1 | R14: 0 | S14: 4278.12844 | T14: 0 | U14: 4278.13 | W14: 0 | X14: 1 | Y14: 0 | Z14: 0 | AA14: 0 | AB14: 0 | AD14: 0 | AE14: 1 | AF14: 0 | AG14: 0 | AH14: 0 | AI14: 0 | AK14: 0 | AL14: 1 | AM14: 0 | AN14: 0 | AO14: 0 | AP14: 0 | AR14: 0 | AS14: 1 | AT14: 0 | AU14: 0 | AV14: 0 | AW14: 0 | AY14: 0 | AZ14: 1 | BA14: 0 | BB14: 0 | BC14: 0 | BD14: 0 | BE14: =IF(ISERROR(VLOOKUP(A14,'7ª MEDIÇÃO'!$A$5:$J$1048576,8,0)),0,(VLOOKUP(A14,'7ª MEDIÇÃO'!$A$5:$J$1048576,8,0))) -> 0 | BF14: 0 | BG14: 1 | BH14: 0 | BI14: 0 | BJ14: 0 | BK14: 0 | BL14: =IF(ISERROR(VLOOKUP(A14,'8ª MEDIÇÃO'!$A$5:$J$1048576,8,0)),0,(VLOOKUP(A14,'8ª MEDIÇÃO'!$A$5:$J$1048576,8,0))) -> 0 | BM14: 0 | BN14: 1 | BO14: 0 | BP14: 0 | BQ14: 0 | BR14: 0 | BS14: =IF(ISERROR(VLOOKUP(A14,'9ª MEDIÇÃO'!$A$5:$J$1048576,8,0)),0,(VLOOKUP(A14,'9ª MEDIÇÃO'!$A$5:$J$1048576,8,0))) -> 0 | BT14: 0 | BU14: 1 | BV14: 0 | BW14: 0 | BX14: 0 | BY14: 0 | BZ14: =IF(ISERROR(VLOOKUP(A14,#REF!,8,0)),0,(VLOOKUP(A14,#REF!,8,0))) -> 0 | CA14: 0 | CB14: 1 | CC14: 0 | CD14: 0 | CE14: 0 | CF14: 0 | CG14: =IF(ISERROR(VLOOKUP($A14,#REF!,8,0)),0,(VLOOKUP($A14,#REF!,8,0))) -> 0 | CH14: 0 | CI14: 1 | CJ14: 0 | CK14: 0 | CL14: 0 | CM14: 0 | CN14: =IF(ISERROR(VLOOKUP($A14,#REF!,8,0)),0,(VLOOKUP($A14,#REF!,8,0))) -> 0 | CO14: 0 | CP14: 1 | CQ14: 0 | CR14: 0 | CS14: 0 | CT14: 0 | CU14: =IF(ISERROR(VLOOKUP($A14,#REF!,8,0)),0,(VLOOKUP($A14,#REF!,8,0))) -> 0 | CV14: 0 | CW14: 1 | CX14: 0 | CY14: 0 | CZ14: 0 | DA14: 0 | DB14: =IF(ISERROR(VLOOKUP($A14,#REF!,8,0)),0,(VLOOKUP($A14,#REF!,8,0))) -> 0 | DC14: 0 | DD14: 1 | DE14: 0 | DF14: 0 | DG14: 0 | DH14: 0 | DI14: =IF(ISERROR(VLOOKUP($A14,#REF!,8,0)),0,(VLOOKUP($A14,#REF!,8,0))) -> 0 | DJ14: 0 | DK14: 1 | DL14: 0 | DM14: 0 | DN14: 0 | DO14: 0 | DP14: =IF(ISERROR(VLOOKUP($A14,#REF!,8,0)),0,(VLOOKUP($A14,#REF!,8,0))) -> 0 | DQ14: 0 | DR14: 1 | DS14: 0 | DT14: 0 | DU14: 0 | DV14: 0 | DW14: =IF(ISERROR(VLOOKUP($A14,#REF!,8,0)),0,(VLOOKUP($A14,#REF!,8,0))) -> 0 | DX14: 0 | DY14: 1 | DZ14: 0 | EA14: 0 | EB14: 0 | EC14: 0 | ED14: =IF(ISERROR(VLOOKUP($A14,#REF!,8,0)),0,(VLOOKUP($A14,#REF!,8,0))) -> 0 | EE14: 0 | EF14: 1 | EG14: 0 | EH14: 0 | EI14: 0 | EJ14: 0 | EK14: =IF(ISERROR(VLOOKUP($A14,#REF!,8,0)),0,(VLOOKUP($A14,#REF!,8,0))) -> 0 | EL14: 0 | EM14: 1 | EN14: 0 | EO14: 0 | EP14: 0 | EQ14: 0 | ER14: =IF(ISERROR(VLOOKUP($A14,#REF!,8,0)),0,(VLOOKUP($A14,#REF!,8,0))) -> 0 | ES14: 0 | ET14: 1 | EU14: 0 | EV14: 0 | EW14: 0 | EX14: 0 | EY14: =IF(ISERROR(VLOOKUP($A14,#REF!,8,0)),0,(VLOOKUP($A14,#REF!,8,0))) -> 0 | EZ14: 0 | FA14: 1 | FB14: 0 | FC14: 0 | FD14: 0 | FE14: 0 | FF14: =IF(ISERROR(VLOOKUP($A14,#REF!,8,0)),0,(VLOOKUP($A14,#REF!,8,0))) -> 0 | FG14: 0 | FH14: 1 | FI14: 0 | FJ14: 0 | FK14: 0 | FL14: 0 | FM14: =IF(ISERROR(VLOOKUP($A14,#REF!,8,0)),0,(VLOOKUP($A14,#REF!,8,0))) -> 0 | FN14: 0 | FO14: 1 | FP14: 0 | FQ14: 0 | FR14: 0 | FS14: 0 | FT14: =IF(ISERROR(VLOOKUP($A14,#REF!,8,0)),0,(VLOOKUP($A14,#REF!,8,0))) -> 0 | FU14: 0 | FV14: 1 | FW14: 0 | FX14: 0 | FY14: 0 | FZ14: 0 | GA14: =IF(ISERROR(VLOOKUP($A14,#REF!,8,0)),0,(VLOOKUP($A14,#REF!,8,0))) -> 0 | GB14: 0 | GC14: 1 | GD14: 0 | GE14: 0 | GF14: 0 | GG14: 0 | GH14: =IF(ISERROR(VLOOKUP($A14,#REF!,8,0)),0,(VLOOKUP($A14,#REF!,8,0))) -> 0 | GI14: 0 | GJ14: 1 | GK14: 0 | GL14: 0 | GM14: 0 | GN14: 0 | GO14: =IF(ISERROR(VLOOKUP($A14,#REF!,8,0)),0,(VLOOKUP($A14,#REF!,8,0))) -> 0 | GP14: 0 | GQ14: 1 | GR14: 0 | GS14: 0 | GT14: 0 | GU14: 0 | GV14: =IF(ISERROR(VLOOKUP($A14,#REF!,8,0)),0,(VLOOKUP($A14,#REF!,8,0))) -> 0 | GW14: 0 | GX14: 1 | GY14: 0 | GZ14: 0 | HA14: 0 | HB14: 0 | HC14: =IF(ISERROR(VLOOKUP($A14,#REF!,8,0)),0,(VLOOKUP($A14,#REF!,8,0))) -> 0 | HD14: 0 | HE14: 1 | HF14: 0 | HG14: 0 | HH14: 0 | HI14: 0 | HJ14: =IF(ISERROR(VLOOKUP($A14,#REF!,8,0)),0,(VLOOKUP($A14,#REF!,8,0))) -> 0 | HK14: 0 | HL14: 1 | HM14: 0 | HN14: 0 | HO14: 0 | HP14: 0 | HQ14: =IF(ISERROR(VLOOKUP($A14,#REF!,8,0)),0,(VLOOKUP($A14,#REF!,8,0))) -> 0 | HR14: 0 | HS14: 1 | HT14: 0 | HU14: 0 | HV14: 0 | HW14: 0 | HX14: =IF(ISERROR(VLOOKUP($A14,#REF!,8,0)),0,(VLOOKUP($A14,#REF!,8,0))) -> 0 | HY14: 0 | HZ14: 1 | IA14: 0 | IB14: 0 | IC14: 0 | ID14: 0 | IE14: =IF(ISERROR(VLOOKUP($A14,#REF!,8,0)),0,(VLOOKUP($A14,#REF!,8,0))) -> 0 | IF14: 0 | IG14: 1 | IH14: 0 | II14: 0 | IJ14: 0 | IK14: 0 | IL14: =IF(ISERROR(VLOOKUP($A14,#REF!,8,0)),0,(VLOOKUP($A14,#REF!,8,0))) -> 0 | IM14: 0 | IN14: 1 | IO14: 0 | IP14: 0 | IQ14: 0 | IR14: 0 | IS14: =IF(ISERROR(VLOOKUP($A14,#REF!,8,0)),0,(VLOOKUP($A14,#REF!,8,0))) -> 0 | IT14: 0 | IU14: 1 | IV14: 0 | IW14: 0 | IX14: 0 | IY14: 0 | IZ14: =IF(ISERROR(VLOOKUP($A14,#REF!,8,0)),0,(VLOOKUP($A14,#REF!,8,0))) -> 0 | JA14: 0 | JB14: 1 | JC14: 0 | JD14: 0 | JE14: 0 | JF14: 0 | JG14: =IF(ISERROR(VLOOKUP($A14,#REF!,8,0)),0,(VLOOKUP($A14,#REF!,8,0))) -> 0 | JH14: 0 | JI14: 1 | JJ14: 0 | JK14: 0 | JL14: 0 | JM14: 0 | JN14: =IF(ISERROR(VLOOKUP($A14,#REF!,8,0)),0,(VLOOKUP($A14,#REF!,8,0))) -> 0 | JO14: 0 | JP14: 1 | JQ14: 0 | JR14: 0 | JS14: 0 | JT14: 0 | JU14: =IF(ISERROR(VLOOKUP($A14,#REF!,8,0)),0,(VLOOKUP($A14,#REF!,8,0))) -> 0 | JV14: 0 | JW14: 1 | JX14: 0 | JY14: 0 | JZ14: 0 | KA14: 0 | KB14: =IF(ISERROR(VLOOKUP($A14,#REF!,8,0)),0,(VLOOKUP($A14,#REF!,8,0))) -> 0 | KC14: 0 | KD14: 1 | KE14: 0 | KF14: 0 | KG14: 0 | KH14: 0 | KI14: =IF(ISERROR(VLOOKUP($A14,#REF!,8,0)),0,(VLOOKUP($A14,#REF!,8,0))) -> 0 | KJ14: 0 | KK14: 1 | KL14: 0 | KM14: 0 | KN14: 0 | KO14: 0 | KP14: =IF(ISERROR(VLOOKUP($A14,#REF!,8,0)),0,(VLOOKUP($A14,#REF!,8,0))) -> 0 | KQ14: 0 | KR14: 1 | KS14: 0 | KT14: 0 | KU14: 0 | KV14: 0 | KW14: =IF(ISERROR(VLOOKUP($A14,#REF!,8,0)),0,(VLOOKUP($A14,#REF!,8,0))) -> 0 | KX14: 0 | KY14: 1 | KZ14: 0 | LA14: 0 | LB14: 0 | LC14: 0 | LD14: =IF(ISERROR(VLOOKUP($A14,#REF!,8,0)),0,(VLOOKUP($A14,#REF!,8,0))) -> 0 | LE14: 0 | LF14: 1 | LG14: 0 | LH14: 0 | LI14: 0 | LJ14: 0 | LK14: =IF(ISERROR(VLOOKUP($A14,#REF!,8,0)),0,(VLOOKUP($A14,#REF!,8,0))) -> 0 | LL14: 0 | LM14: 1 | LN14: 0 | LO14: 0 | LP14: 0 | LQ14: 0 | LR14: =IF(ISERROR(VLOOKUP($A14,#REF!,8,0)),0,(VLOOKUP($A14,#REF!,8,0))) -> 0 | LS14: 0 | LT14: 1 | LU14: 0 | LV14: 0 | LW14: 0 | LX14: 0 | LY14: =IF(ISERROR(VLOOKUP($A14,#REF!,8,0)),0,(VLOOKUP($A14,#REF!,8,0))) -> 0 | LZ14: 0 | MA14: 1 | MB14: 0 | MC14: 0 | MD14: 0 | ME14: 0 | MF14: =IF(ISERROR(VLOOKUP($A14,#REF!,8,0)),0,(VLOOKUP($A14,#REF!,8,0))) -> 0 | MG14: 0 | MH14: 1 | MI14: 0 | MJ14: 0 | MK14: 0 | ML14: 0 | MM14: =IF(ISERROR(VLOOKUP($A14,#REF!,8,0)),0,(VLOOKUP($A14,#REF!,8,0))) -> 0 | MN14: 0 | MO14: 1 | MP14: 0 | MQ14: 0 | MR14: 0 | MS14: 0 | MT14: =IF(ISERROR(VLOOKUP($A14,#REF!,8,0)),0,(VLOOKUP($A14,#REF!,8,0))) -> 0 | MU14: 0 | MV14: 1 | MW14: 0 | MX14: 0 | MY14: 0 | MZ14: 0 | NA14: =IF(ISERROR(VLOOKUP($A14,#REF!,8,0)),0,(VLOOKUP($A14,#REF!,8,0))) -> 0 | NB14: 0 | NC14: 1 | ND14: 0 | NE14: 0 | NF14: 0 | NG14: 0 | NH14: =IF(ISERROR(VLOOKUP($A14,#REF!,8,0)),0,(VLOOKUP($A14,#REF!,8,0))) -> 0 | NI14: 0 | NJ14: 1 | NK14: 0 | NL14: 0 | NM14: 0 | NN14: 0 | NO14: =IF(ISERROR(VLOOKUP($A14,#REF!,8,0)),0,(VLOOKUP($A14,#REF!,8,0))) -> 0 | NP14: 0 | NQ14: 1 | NR14: 0 | NS14: 0 | NT14: 0 | NU14: 0 | NV14: =IF(ISERROR(VLOOKUP($A14,#REF!,8,0)),0,(VLOOKUP($A14,#REF!,8,0))) -> 0 | NW14: 0 | NX14: 1 | NY14: 0 | NZ14: 0 | OA14: 0 | OB14: 0 | OC14: =IF(ISERROR(VLOOKUP($A14,#REF!,8,0)),0,(VLOOKUP($A14,#REF!,8,0))) -> 0 | OD14: 0 | OE14: 1 | OF14: 0 | OG14: 0 | OH14: 0 | OI14: 0 | OJ14: 4278.12844 | OK14: 4278.12844 | OL14: 1 | OM14: 0
A15: 1.5 | B15: Execução de teste de absorção do solo, conforme norma vigente. | C15: un | D15: 1 | E15: 1 | F15: 0 | G15: 0 | H15: 0 | I15: 988.1092 | J15: 988.1092 | K15: 0 | L15: 0 | M15: 988.1092 | N15: 0 | O15: 988.1092 | P15: 1 | Q15: 1 | R15: 0 | S15: 988.1092 | T15: 0 | U15: 988.11 | W15: 0 | X15: 1 | Y15: 0 | Z15: 0 | AA15: 0 | AB15: 0 | AD15: 0 | AE15: 1 | AF15: 0 | AG15: 0 | AH15: 0 | AI15: 0 | AK15: 0 | AL15: 1 | AM15: 0 | AN15: 0 | AO15: 0 | AP15: 0 | AR15: 0 | AS15: 1 | AT15: 0 | AU15: 0 | AV15: 0 | AW15: 0 | AY15: 0 | AZ15: 1 | BA15: 0 | BB15: 0 | BC15: 0 | BD15: 0 | BE15: =IF(ISERROR(VLOOKUP(A15,'7ª MEDIÇÃO'!$A$5:$J$1048576,8,0)),0,(VLOOKUP(A15,'7ª MEDIÇÃO'!$A$5:$J$1048576,8,0))) -> 0 | BF15: 0 | BG15: 1 | BH15: 0 | BI15: 0 | BJ15: 0 | BK15: 0 | BL15: =IF(ISERROR(VLOOKUP(A15,'8ª MEDIÇÃO'!$A$5:$J$1048576,8,0)),0,(VLOOKUP(A15,'8ª MEDIÇÃO'!$A$5:$J$1048576,8,0))) -> 0 | BM15: 0 | BN15: 1 | BO15: 0 | BP15: 0 | BQ15: 0 | BR15: 0 | BS15: =IF(ISERROR(VLOOKUP(A15,'9ª MEDIÇÃO'!$A$5:$J$1048576,8,0)),0,(VLOOKUP(A15,'9ª MEDIÇÃO'!$A$5:$J$1048576,8,0))) -> 0 | BT15: 0 | BU15: 1 | BV15: 0 | BW15: 0 | BX15: 0 | BY15: 0 | BZ15: =IF(ISERROR(VLOOKUP(A15,#REF!,8,0)),0,(VLOOKUP(A15,#REF!,8,0))) -> 0 | CA15: 0 | CB15: 1 | CC15: 0 | CD15: 0 | CE15: 0 | CF15: 0 | CG15: =IF(ISERROR(VLOOKUP($A15,#REF!,8,0)),0,(VLOOKUP($A15,#REF!,8,0))) -> 0 | CH15: 0 | CI15: 1 | CJ15: 0 | CK15: 0 | CL15: 0 | CM15: 0 | CN15: =IF(ISERROR(VLOOKUP($A15,#REF!,8,0)),0,(VLOOKUP($A15,#REF!,8,0))) -> 0 | CO15: 0 | CP15: 1 | CQ15: 0 | CR15: 0 | CS15: 0 | CT15: 0 | CU15: =IF(ISERROR(VLOOKUP($A15,#REF!,8,0)),0,(VLOOKUP($A15,#REF!,8,0))) -> 0 | CV15: 0 | CW15: 1 | CX15: 0 | CY15: 0 | CZ15: 0 | DA15: 0 | DB15: =IF(ISERROR(VLOOKUP($A15,#REF!,8,0)),0,(VLOOKUP($A15,#REF!,8,0))) -> 0 | DC15: 0 | DD15: 1 | DE15: 0 | DF15: 0 | DG15: 0 | DH15: 0 | DI15: =IF(ISERROR(VLOOKUP($A15,#REF!,8,0)),0,(VLOOKUP($A15,#REF!,8,0))) -> 0 | DJ15: 0 | DK15: 1 | DL15: 0 | DM15: 0 | DN15: 0 | DO15: 0 | DP15: =IF(ISERROR(VLOOKUP($A15,#REF!,8,0)),0,(VLOOKUP($A15,#REF!,8,0))) -> 0 | DQ15: 0 | DR15: 1 | DS15: 0 | DT15: 0 | DU15: 0 | DV15: 0 | DW15: =IF(ISERROR(VLOOKUP($A15,#REF!,8,0)),0,(VLOOKUP($A15,#REF!,8,0))) -> 0 | DX15: 0 | DY15: 1 | DZ15: 0 | EA15: 0 | EB15: 0 | EC15: 0 | ED15: =IF(ISERROR(VLOOKUP($A15,#REF!,8,0)),0,(VLOOKUP($A15,#REF!,8,0))) -> 0 | EE15: 0 | EF15: 1 | EG15: 0 | EH15: 0 | EI15: 0 | EJ15: 0 | EK15: =IF(ISERROR(VLOOKUP($A15,#REF!,8,0)),0,(VLOOKUP($A15,#REF!,8,0))) -> 0 | EL15: 0 | EM15: 1 | EN15: 0 | EO15: 0 | EP15: 0 | EQ15: 0 | ER15: =IF(ISERROR(VLOOKUP($A15,#REF!,8,0)),0,(VLOOKUP($A15,#REF!,8,0))) -> 0 | ES15: 0 | ET15: 1 | EU15: 0 | EV15: 0 | EW15: 0 | EX15: 0 | EY15: =IF(ISERROR(VLOOKUP($A15,#REF!,8,0)),0,(VLOOKUP($A15,#REF!,8,0))) -> 0 | EZ15: 0 | FA15: 1 | FB15: 0 | FC15: 0 | FD15: 0 | FE15: 0 | FF15: =IF(ISERROR(VLOOKUP($A15,#REF!,8,0)),0,(VLOOKUP($A15,#REF!,8,0))) -> 0 | FG15: 0 | FH15: 1 | FI15: 0 | FJ15: 0 | FK15: 0 | FL15: 0 | FM15: =IF(ISERROR(VLOOKUP($A15,#REF!,8,0)),0,(VLOOKUP($A15,#REF!,8,0))) -> 0 | FN15: 0 | FO15: 1 | FP15: 0 | FQ15: 0 | FR15: 0 | FS15: 0 | FT15: =IF(ISERROR(VLOOKUP($A15,#REF!,8,0)),0,(VLOOKUP($A15,#REF!,8,0))) -> 0 | FU15: 0 | FV15: 1 | FW15: 0 | FX15: 0 | FY15: 0 | FZ15: 0 | GA15: =IF(ISERROR(VLOOKUP($A15,#REF!,8,0)),0,(VLOOKUP($A15,#REF!,8,0))) -> 0 | GB15: 0 | GC15: 1 | GD15: 0 | GE15: 0 | GF15: 0 | GG15: 0 | GH15: =IF(ISERROR(VLOOKUP($A15,#REF!,8,0)),0,(VLOOKUP($A15,#REF!,8,0))) -> 0 | GI15: 0 | GJ15: 1 | GK15: 0 | GL15: 0 | GM15: 0 | GN15: 0 | GO15: =IF(ISERROR(VLOOKUP($A15,#REF!,8,0)),0,(VLOOKUP($A15,#REF!,8,0))) -> 0 | GP15: 0 | GQ15: 1 | GR15: 0 | GS15: 0 | GT15: 0 | GU15: 0 | GV15: =IF(ISERROR(VLOOKUP($A15,#REF!,8,0)),0,(VLOOKUP($A15,#REF!,8,0))) -> 0 | GW15: 0 | GX15: 1 | GY15: 0 | GZ15: 0 | HA15: 0 | HB15: 0 | HC15: =IF(ISERROR(VLOOKUP($A15,#REF!,8,0)),0,(VLOOKUP($A15,#REF!,8,0))) -> 0 | HD15: 0 | HE15: 1 | HF15: 0 | HG15: 0 | HH15: 0 | HI15: 0 | HJ15: =IF(ISERROR(VLOOKUP($A15,#REF!,8,0)),0,(VLOOKUP($A15,#REF!,8,0))) -> 0 | HK15: 0 | HL15: 1 | HM15: 0 | HN15: 0 | HO15: 0 | HP15: 0 | HQ15: =IF(ISERROR(VLOOKUP($A15,#REF!,8,0)),0,(VLOOKUP($A15,#REF!,8,0))) -> 0 | HR15: 0 | HS15: 1 | HT15: 0 | HU15: 0 | HV15: 0 | HW15: 0 | HX15: =IF(ISERROR(VLOOKUP($A15,#REF!,8,0)),0,(VLOOKUP($A15,#REF!,8,0))) -> 0 | HY15: 0 | HZ15: 1 | IA15: 0 | IB15: 0 | IC15: 0 | ID15: 0 | IE15: =IF(ISERROR(VLOOKUP($A15,#REF!,8,0)),0,(VLOOKUP($A15,#REF!,8,0))) -> 0 | IF15: 0 | IG15: 1 | IH15: 0 | II15: 0 | IJ15: 0 | IK15: 0 | IL15: =IF(ISERROR(VLOOKUP($A15,#REF!,8,0)),0,(VLOOKUP($A15,#REF!,8,0))) -> 0 | IM15: 0 | IN15: 1 | IO15: 0 | IP15: 0 | IQ15: 0 | IR15: 0 | IS15: =IF(ISERROR(VLOOKUP($A15,#REF!,8,0)),0,(VLOOKUP($A15,#REF!,8,0))) -> 0 | IT15: 0 | IU15: 1 | IV15: 0 | IW15: 0 | IX15: 0 | IY15: 0 | IZ15: =IF(ISERROR(VLOOKUP($A15,#REF!,8,0)),0,(VLOOKUP($A15,#REF!,8,0))) -> 0 | JA15: 0 | JB15: 1 | JC15: 0 | JD15: 0 | JE15: 0 | JF15: 0 | JG15: =IF(ISERROR(VLOOKUP($A15,#REF!,8,0)),0,(VLOOKUP($A15,#REF!,8,0))) -> 0 | JH15: 0 | JI15: 1 | JJ15: 0 | JK15: 0 | JL15: 0 | JM15: 0 | JN15: =IF(ISERROR(VLOOKUP($A15,#REF!,8,0)),0,(VLOOKUP($A15,#REF!,8,0))) -> 0 | JO15: 0 | JP15: 1 | JQ15: 0 | JR15: 0 | JS15: 0 | JT15: 0 | JU15: =IF(ISERROR(VLOOKUP($A15,#REF!,8,0)),0,(VLOOKUP($A15,#REF!,8,0))) -> 0 | JV15: 0 | JW15: 1 | JX15: 0 | JY15: 0 | JZ15: 0 | KA15: 0 | KB15: =IF(ISERROR(VLOOKUP($A15,#REF!,8,0)),0,(VLOOKUP($A15,#REF!,8,0))) -> 0 | KC15: 0 | KD15: 1 | KE15: 0 | KF15: 0 | KG15: 0 | KH15: 0 | KI15: =IF(ISERROR(VLOOKUP($A15,#REF!,8,0)),0,(VLOOKUP($A15,#REF!,8,0))) -> 0 | KJ15: 0 | KK15: 1 | KL15: 0 | KM15: 0 | KN15: 0 | KO15: 0 | KP15: =IF(ISERROR(VLOOKUP($A15,#REF!,8,0)),0,(VLOOKUP($A15,#REF!,8,0))) -> 0 | KQ15: 0 | KR15: 1 | KS15: 0 | KT15: 0 | KU15: 0 | KV15: 0 | KW15: =IF(ISERROR(VLOOKUP($A15,#REF!,8,0)),0,(VLOOKUP($A15,#REF!,8,0))) -> 0 | KX15: 0 | KY15: 1 | KZ15: 0 | LA15: 0 | LB15: 0 | LC15: 0 | LD15: =IF(ISERROR(VLOOKUP($A15,#REF!,8,0)),0,(VLOOKUP($A15,#REF!,8,0))) -> 0 | LE15: 0 | LF15: 1 | LG15: 0 | LH15: 0 | LI15: 0 | LJ15: 0 | LK15: =IF(ISERROR(VLOOKUP($A15,#REF!,8,0)),0,(VLOOKUP($A15,#REF!,8,0))) -> 0 | LL15: 0 | LM15: 1 | LN15: 0 | LO15: 0 | LP15: 0 | LQ15: 0 | LR15: =IF(ISERROR(VLOOKUP($A15,#REF!,8,0)),0,(VLOOKUP($A15,#REF!,8,0))) -> 0 | LS15: 0 | LT15: 1 | LU15: 0 | LV15: 0 | LW15: 0 | LX15: 0 | LY15: =IF(ISERROR(VLOOKUP($A15,#REF!,8,0)),0,(VLOOKUP($A15,#REF!,8,0))) -> 0 | LZ15: 0 | MA15: 1 | MB15: 0 | MC15: 0 | MD15: 0 | ME15: 0 | MF15: =IF(ISERROR(VLOOKUP($A15,#REF!,8,0)),0,(VLOOKUP($A15,#REF!,8,0))) -> 0 | MG15: 0 | MH15: 1 | MI15: 0 | MJ15: 0 | MK15: 0 | ML15: 0 | MM15: =IF(ISERROR(VLOOKUP($A15,#REF!,8,0)),0,(VLOOKUP($A15,#REF!,8,0))) -> 0 | MN15: 0 | MO15: 1 | MP15: 0 | MQ15: 0 | MR15: 0 | MS15: 0 | MT15: =IF(ISERROR(VLOOKUP($A15,#REF!,8,0)),0,(VLOOKUP($A15,#REF!,8,0))) -> 0 | MU15: 0 | MV15: 1 | MW15: 0 | MX15: 0 | MY15: 0 | MZ15: 0 | NA15: =IF(ISERROR(VLOOKUP($A15,#REF!,8,0)),0,(VLOOKUP($A15,#REF!,8,0))) -> 0 | NB15: 0 | NC15: 1 | ND15: 0 | NE15: 0 | NF15: 0 | NG15: 0 | NH15: =IF(ISERROR(VLOOKUP($A15,#REF!,8,0)),0,(VLOOKUP($A15,#REF!,8,0))) -> 0 | NI15: 0 | NJ15: 1 | NK15: 0 | NL15: 0 | NM15: 0 | NN15: 0 | NO15: =IF(ISERROR(VLOOKUP($A15,#REF!,8,0)),0,(VLOOKUP($A15,#REF!,8,0))) -> 0 | NP15: 0 | NQ15: 1 | NR15: 0 | NS15: 0 | NT15: 0 | NU15: 0 | NV15: =IF(ISERROR(VLOOKUP($A15,#REF!,8,0)),0,(VLOOKUP($A15,#REF!,8,0))) -> 0 | NW15: 0 | NX15: 1 | NY15: 0 | NZ15: 0 | OA15: 0 | OB15: 0 | OC15: =IF(ISERROR(VLOOKUP($A15,#REF!,8,0)),0,(VLOOKUP($A15,#REF!,8,0))) -> 0 | OD15: 0 | OE15: 1 | OF15: 0 | OG15: 0 | OH15: 0 | OI15: 0 | OJ15: 988.1092 | OK15: 988.1092 | OL15: 1 | OM15: 0
A16: 1.6 | B16: Revisão com adequação de Projeto Executivo de Sistema de Prevenção e combate à incêndio, inclusive ART. | C16: um | D16: 1 | E16: 1 | F16: 0 | G16: 0 | H16: 0 | I16: 6725.90992 | J16: 6725.90992 | K16: 0 | L16: 0 | M16: 6725.90992 | N16: 0 | O16: 6725.90992 | Q16: 0 | R16: 0 | S16: 0 | T16: 0 | U16: 0 | W16: 0 | X16: 1 | Y16: 0 | Z16: 0 | AA16: 0 | AB16: 0 | AD16: 0 | AE16: 1 | AF16: 0 | AG16: 0 | AH16: 0 | AI16: 0 | AK16: 0 | AL16: 1 | AM16: 0 | AN16: 0 | AO16: 0 | AP16: 0 | AR16: 0 | AS16: 1 | AT16: 0 | AU16: 0 | AV16: 0 | AW16: 0 | AY16: 0 | AZ16: 1 | BA16: 0 | BB16: 0 | BC16: 0 | BD16: 0 | BE16: =IF(ISERROR(VLOOKUP(A16,'7ª MEDIÇÃO'!$A$5:$J$1048576,8,0)),0,(VLOOKUP(A16,'7ª MEDIÇÃO'!$A$5:$J$1048576,8,0))) -> 0 | BF16: 0 | BG16: 1 | BH16: 0 | BI16: 0 | BJ16: 0 | BK16: 0 | BL16: =IF(ISERROR(VLOOKUP(A16,'8ª MEDIÇÃO'!$A$5:$J$1048576,8,0)),0,(VLOOKUP(A16,'8ª MEDIÇÃO'!$A$5:$J$1048576,8,0))) -> 0 | BM16: 0 | BN16: 1 | BO16: 0 | BP16: 0 | BQ16: 0 | BR16: 0 | BS16: =IF(ISERROR(VLOOKUP(A16,'9ª MEDIÇÃO'!$A$5:$J$1048576,8,0)),0,(VLOOKUP(A16,'9ª MEDIÇÃO'!$A$5:$J$1048576,8,0))) -> 0 | BT16: 0 | BU16: 1 | BV16: 0 | BW16: 0 | BX16: 0 | BY16: 0 | BZ16: =IF(ISERROR(VLOOKUP(A16,#REF!,8,0)),0,(VLOOKUP(A16,#REF!,8,0))) -> 0 | CA16: 0 | CB16: 1 | CC16: 0 | CD16: 0 | CE16: 0 | CF16: 0 | CG16: =IF(ISERROR(VLOOKUP($A16,#REF!,8,0)),0,(VLOOKUP($A16,#REF!,8,0))) -> 0 | CH16: 0 | CI16: 1 | CJ16: 0 | CK16: 0 | CL16: 0 | CM16: 0 | CN16: =IF(ISERROR(VLOOKUP($A16,#REF!,8,0)),0,(VLOOKUP($A16,#REF!,8,0))) -> 0 | CO16: 0 | CP16: 1 | CQ16: 0 | CR16: 0 | CS16: 0 | CT16: 0 | CU16: =IF(ISERROR(VLOOKUP($A16,#REF!,8,0)),0,(VLOOKUP($A16,#REF!,8,0))) -> 0 | CV16: 0 | CW16: 1 | CX16: 0 | CY16: 0 | CZ16: 0 | DA16: 0 | DB16: =IF(ISERROR(VLOOKUP($A16,#REF!,8,0)),0,(VLOOKUP($A16,#REF!,8,0))) -> 0 | DC16: 0 | DD16: 1 | DE16: 0 | DF16: 0 | DG16: 0 | DH16: 0 | DI16: =IF(ISERROR(VLOOKUP($A16,#REF!,8,0)),0,(VLOOKUP($A16,#REF!,8,0))) -> 0 | DJ16: 0 | DK16: 1 | DL16: 0 | DM16: 0 | DN16: 0 | DO16: 0 | DP16: =IF(ISERROR(VLOOKUP($A16,#REF!,8,0)),0,(VLOOKUP($A16,#REF!,8,0))) -> 0 | DQ16: 0 | DR16: 1 | DS16: 0 | DT16: 0 | DU16: 0 | DV16: 0 | DW16: =IF(ISERROR(VLOOKUP($A16,#REF!,8,0)),0,(VLOOKUP($A16,#REF!,8,0))) -> 0 | DX16: 0 | DY16: 1 | DZ16: 0 | EA16: 0 | EB16: 0 | EC16: 0 | ED16: =IF(ISERROR(VLOOKUP($A16,#REF!,8,0)),0,(VLOOKUP($A16,#REF!,8,0))) -> 0 | EE16: 0 | EF16: 1 | EG16: 0 | EH16: 0 | EI16: 0 | EJ16: 0 | EK16: =IF(ISERROR(VLOOKUP($A16,#REF!,8,0)),0,(VLOOKUP($A16,#REF!,8,0))) -> 0 | EL16: 0 | EM16: 1 | EN16: 0 | EO16: 0 | EP16: 0 | EQ16: 0 | ER16: =IF(ISERROR(VLOOKUP($A16,#REF!,8,0)),0,(VLOOKUP($A16,#REF!,8,0))) -> 0 | ES16: 0 | ET16: 1 | EU16: 0 | EV16: 0 | EW16: 0 | EX16: 0 | EY16: =IF(ISERROR(VLOOKUP($A16,#REF!,8,0)),0,(VLOOKUP($A16,#REF!,8,0))) -> 0 | EZ16: 0 | FA16: 1 | FB16: 0 | FC16: 0 | FD16: 0 | FE16: 0 | FF16: =IF(ISERROR(VLOOKUP($A16,#REF!,8,0)),0,(VLOOKUP($A16,#REF!,8,0))) -> 0 | FG16: 0 | FH16: 1 | FI16: 0 | FJ16: 0 | FK16: 0 | FL16: 0 | FM16: =IF(ISERROR(VLOOKUP($A16,#REF!,8,0)),0,(VLOOKUP($A16,#REF!,8,0))) -> 0 | FN16: 0 | FO16: 1 | FP16: 0 | FQ16: 0 | FR16: 0 | FS16: 0 | FT16: =IF(ISERROR(VLOOKUP($A16,#REF!,8,0)),0,(VLOOKUP($A16,#REF!,8,0))) -> 0 | FU16: 0 | FV16: 1 | FW16: 0 | FX16: 0 | FY16: 0 | FZ16: 0 | GA16: =IF(ISERROR(VLOOKUP($A16,#REF!,8,0)),0,(VLOOKUP($A16,#REF!,8,0))) -> 0 | GB16: 0 | GC16: 1 | GD16: 0 | GE16: 0 | GF16: 0 | GG16: 0 | GH16: =IF(ISERROR(VLOOKUP($A16,#REF!,8,0)),0,(VLOOKUP($A16,#REF!,8,0))) -> 0 | GI16: 0 | GJ16: 1 | GK16: 0 | GL16: 0 | GM16: 0 | GN16: 0 | GO16: =IF(ISERROR(VLOOKUP($A16,#REF!,8,0)),0,(VLOOKUP($A16,#REF!,8,0))) -> 0 | GP16: 0 | GQ16: 1 | GR16: 0 | GS16: 0 | GT16: 0 | GU16: 0 | GV16: =IF(ISERROR(VLOOKUP($A16,#REF!,8,0)),0,(VLOOKUP($A16,#REF!,8,0))) -> 0 | GW16: 0 | GX16: 1 | GY16: 0 | GZ16: 0 | HA16: 0 | HB16: 0 | HC16: =IF(ISERROR(VLOOKUP($A16,#REF!,8,0)),0,(VLOOKUP($A16,#REF!,8,0))) -> 0 | HD16: 0 | HE16: 1 | HF16: 0 | HG16: 0 | HH16: 0 | HI16: 0 | HJ16: =IF(ISERROR(VLOOKUP($A16,#REF!,8,0)),0,(VLOOKUP($A16,#REF!,8,0))) -> 0 | HK16: 0 | HL16: 1 | HM16: 0 | HN16: 0 | HO16: 0 | HP16: 0 | HQ16: =IF(ISERROR(VLOOKUP($A16,#REF!,8,0)),0,(VLOOKUP($A16,#REF!,8,0))) -> 0 | HR16: 0 | HS16: 1 | HT16: 0 | HU16: 0 | HV16: 0 | HW16: 0 | HX16: =IF(ISERROR(VLOOKUP($A16,#REF!,8,0)),0,(VLOOKUP($A16,#REF!,8,0))) -> 0 | HY16: 0 | HZ16: 1 | IA16: 0 | IB16: 0 | IC16: 0 | ID16: 0 | IE16: =IF(ISERROR(VLOOKUP($A16,#REF!,8,0)),0,(VLOOKUP($A16,#REF!,8,0))) -> 0 | IF16: 0 | IG16: 1 | IH16: 0 | II16: 0 | IJ16: 0 | IK16: 0 | IL16: =IF(ISERROR(VLOOKUP($A16,#REF!,8,0)),0,(VLOOKUP($A16,#REF!,8,0))) -> 0 | IM16: 0 | IN16: 1 | IO16: 0 | IP16: 0 | IQ16: 0 | IR16: 0 | IS16: =IF(ISERROR(VLOOKUP($A16,#REF!,8,0)),0,(VLOOKUP($A16,#REF!,8,0))) -> 0 | IT16: 0 | IU16: 1 | IV16: 0 | IW16: 0 | IX16: 0 | IY16: 0 | IZ16: =IF(ISERROR(VLOOKUP($A16,#REF!,8,0)),0,(VLOOKUP($A16,#REF!,8,0))) -> 0 | JA16: 0 | JB16: 1 | JC16: 0 | JD16: 0 | JE16: 0 | JF16: 0 | JG16: =IF(ISERROR(VLOOKUP($A16,#REF!,8,0)),0,(VLOOKUP($A16,#REF!,8,0))) -> 0 | JH16: 0 | JI16: 1 | JJ16: 0 | JK16: 0 | JL16: 0 | JM16: 0 | JN16: =IF(ISERROR(VLOOKUP($A16,#REF!,8,0)),0,(VLOOKUP($A16,#REF!,8,0))) -> 0 | JO16: 0 | JP16: 1 | JQ16: 0 | JR16: 0 | JS16: 0 | JT16: 0 | JU16: =IF(ISERROR(VLOOKUP($A16,#REF!,8,0)),0,(VLOOKUP($A16,#REF!,8,0))) -> 0 | JV16: 0 | JW16: 1 | JX16: 0 | JY16: 0 | JZ16: 0 | KA16: 0 | KB16: =IF(ISERROR(VLOOKUP($A16,#REF!,8,0)),0,(VLOOKUP($A16,#REF!,8,0))) -> 0 | KC16: 0 | KD16: 1 | KE16: 0 | KF16: 0 | KG16: 0 | KH16: 0 | KI16: =IF(ISERROR(VLOOKUP($A16,#REF!,8,0)),0,(VLOOKUP($A16,#REF!,8,0))) -> 0 | KJ16: 0 | KK16: 1 | KL16: 0 | KM16: 0 | KN16: 0 | KO16: 0 | KP16: =IF(ISERROR(VLOOKUP($A16,#REF!,8,0)),0,(VLOOKUP($A16,#REF!,8,0))) -> 0 | KQ16: 0 | KR16: 1 | KS16: 0 | KT16: 0 | KU16: 0 | KV16: 0 | KW16: =IF(ISERROR(VLOOKUP($A16,#REF!,8,0)),0,(VLOOKUP($A16,#REF!,8,0))) -> 0 | KX16: 0 | KY16: 1 | KZ16: 0 | LA16: 0 | LB16: 0 | LC16: 0 | LD16: =IF(ISERROR(VLOOKUP($A16,#REF!,8,0)),0,(VLOOKUP($A16,#REF!,8,0))) -> 0 | LE16: 0 | LF16: 1 | LG16: 0 | LH16: 0 | LI16: 0 | LJ16: 0 | LK16: =IF(ISERROR(VLOOKUP($A16,#REF!,8,0)),0,(VLOOKUP($A16,#REF!,8,0))) -> 0 | LL16: 0 | LM16: 1 | LN16: 0 | LO16: 0 | LP16: 0 | LQ16: 0 | LR16: =IF(ISERROR(VLOOKUP($A16,#REF!,8,0)),0,(VLOOKUP($A16,#REF!,8,0))) -> 0 | LS16: 0 | LT16: 1 | LU16: 0 | LV16: 0 | LW16: 0 | LX16: 0 | LY16: =IF(ISERROR(VLOOKUP($A16,#REF!,8,0)),0,(VLOOKUP($A16,#REF!,8,0))) -> 0 | LZ16: 0 | MA16: 1 | MB16: 0 | MC16: 0 | MD16: 0 | ME16: 0 | MF16: =IF(ISERROR(VLOOKUP($A16,#REF!,8,0)),0,(VLOOKUP($A16,#REF!,8,0))) -> 0 | MG16: 0 | MH16: 1 | MI16: 0 | MJ16: 0 | MK16: 0 | ML16: 0 | MM16: =IF(ISERROR(VLOOKUP($A16,#REF!,8,0)),0,(VLOOKUP($A16,#REF!,8,0))) -> 0 | MN16: 0 | MO16: 1 | MP16: 0 | MQ16: 0 | MR16: 0 | MS16: 0 | MT16: =IF(ISERROR(VLOOKUP($A16,#REF!,8,0)),0,(VLOOKUP($A16,#REF!,8,0))) -> 0 | MU16: 0 | MV16: 1 | MW16: 0 | MX16: 0 | MY16: 0 | MZ16: 0 | NA16: =IF(ISERROR(VLOOKUP($A16,#REF!,8,0)),0,(VLOOKUP($A16,#REF!,8,0))) -> 0 | NB16: 0 | NC16: 1 | ND16: 0 | NE16: 0 | NF16: 0 | NG16: 0 | NH16: =IF(ISERROR(VLOOKUP($A16,#REF!,8,0)),0,(VLOOKUP($A16,#REF!,8,0))) -> 0 | NI16: 0 | NJ16: 1 | NK16: 0 | NL16: 0 | NM16: 0 | NN16: 0 | NO16: =IF(ISERROR(VLOOKUP($A16,#REF!,8,0)),0,(VLOOKUP($A16,#REF!,8,0))) -> 0 | NP16: 0 | NQ16: 1 | NR16: 0 | NS16: 0 | NT16: 0 | NU16: 0 | NV16: =IF(ISERROR(VLOOKUP($A16,#REF!,8,0)),0,(VLOOKUP($A16,#REF!,8,0))) -> 0 | NW16: 0 | NX16: 1 | NY16: 0 | NZ16: 0 | OA16: 0 | OB16: 0 | OC16: =IF(ISERROR(VLOOKUP($A16,#REF!,8,0)),0,(VLOOKUP($A16,#REF!,8,0))) -> 0 | OD16: 0 | OE16: 1 | OF16: 0 | OG16: 0 | OH16: 0 | OI16: 0 | OJ16: 6725.90992 | OK16: 6725.90992 | OL16: 1 | OM16: 0
A17: 1.7 | B17: Revisão com adequação de Projeto Executivo de Climatização, inclusive ART. | C17: un | D17: 1 | E17: 1 | F17: 0 | G17: 0 | H17: 0 | I17: 13352.9094 | J17: 13352.9094 | K17: 0 | L17: 0 | M17: 13352.9094 | N17: 0 | O17: 13352.9094 | Q17: 0 | R17: =P17*$G17 -> 0 | S17: 0 | T17: 0 | U17: 0 | W17: 0 | X17: 1 | Y17: 0 | Z17: 0 | AA17: 0 | AB17: 0 | AD17: 0 | AE17: 1 | AF17: 0 | AG17: 0 | AH17: 0 | AI17: 0 | AK17: 0 | AL17: 1 | AM17: 0 | AN17: 0 | AO17: 0 | AP17: 0 | AR17: 0 | AS17: 1 | AT17: 0 | AU17: 0 | AV17: 0 | AW17: 0 | AY17: 0 | AZ17: 1 | BA17: 0 | BB17: 0 | BC17: 0 | BD17: 0 | BE17: =IF(ISERROR(VLOOKUP(A17,'7ª MEDIÇÃO'!$A$5:$J$1048576,8,0)),0,(VLOOKUP(A17,'7ª MEDIÇÃO'!$A$5:$J$1048576,8,0))) -> 0 | BF17: 0 | BG17: 1 | BH17: 0 | BI17: 0 | BJ17: 0 | BK17: 0 | BL17: =IF(ISERROR(VLOOKUP(A17,'8ª MEDIÇÃO'!$A$5:$J$1048576,8,0)),0,(VLOOKUP(A17,'8ª MEDIÇÃO'!$A$5:$J$1048576,8,0))) -> 0 | BM17: 0 | BN17: 1 | BO17: 0 | BP17: 0 | BQ17: 0 | BR17: 0 | BS17: =IF(ISERROR(VLOOKUP(A17,'9ª MEDIÇÃO'!$A$5:$J$1048576,8,0)),0,(VLOOKUP(A17,'9ª MEDIÇÃO'!$A$5:$J$1048576,8,0))) -> 0 | BT17: 0 | BU17: 1 | BV17: 0 | BW17: 0 | BX17: 0 | BY17: 0 | BZ17: =IF(ISERROR(VLOOKUP(A17,#REF!,8,0)),0,(VLOOKUP(A17,#REF!,8,0))) -> 0 | CA17: 0 | CB17: 1 | CC17: 0 | CD17: 0 | CE17: 0 | CF17: 0 | CG17: =IF(ISERROR(VLOOKUP($A17,#REF!,8,0)),0,(VLOOKUP($A17,#REF!,8,0))) -> 0 | CH17: 0 | CI17: 1 | CJ17: 0 | CK17: 0 | CL17: 0 | CM17: 0 | CN17: =IF(ISERROR(VLOOKUP($A17,#REF!,8,0)),0,(VLOOKUP($A17,#REF!,8,0))) -> 0 | CO17: 0 | CP17: 1 | CQ17: 0 | CR17: 0 | CS17: 0 | CT17: 0 | CU17: =IF(ISERROR(VLOOKUP($A17,#REF!,8,0)),0,(VLOOKUP($A17,#REF!,8,0))) -> 0 | CV17: 0 | CW17: 1 | CX17: 0 | CY17: 0 | CZ17: 0 | DA17: 0 | DB17: =IF(ISERROR(VLOOKUP($A17,#REF!,8,0)),0,(VLOOKUP($A17,#REF!,8,0))) -> 0 | DC17: 0 | DD17: 1 | DE17: 0 | DF17: 0 | DG17: 0 | DH17: 0 | DI17: =IF(ISERROR(VLOOKUP($A17,#REF!,8,0)),0,(VLOOKUP($A17,#REF!,8,0))) -> 0 | DJ17: 0 | DK17: 1 | DL17: 0 | DM17: 0 | DN17: 0 | DO17: 0 | DP17: =IF(ISERROR(VLOOKUP($A17,#REF!,8,0)),0,(VLOOKUP($A17,#REF!,8,0))) -> 0 | DQ17: 0 | DR17: 1 | DS17: 0 | DT17: 0 | DU17: 0 | DV17: 0 | DW17: =IF(ISERROR(VLOOKUP($A17,#REF!,8,0)),0,(VLOOKUP($A17,#REF!,8,0))) -> 0 | DX17: 0 | DY17: 1 | DZ17: 0 | EA17: 0 | EB17: 0 | EC17: 0 | ED17: =IF(ISERROR(VLOOKUP($A17,#REF!,8,0)),0,(VLOOKUP($A17,#REF!,8,0))) -> 0 | EE17: 0 | EF17: 1 | EG17: 0 | EH17: 0 | EI17: 0 | EJ17: 0 | EK17: =IF(ISERROR(VLOOKUP($A17,#REF!,8,0)),0,(VLOOKUP($A17,#REF!,8,0))) -> 0 | EL17: 0 | EM17: 1 | EN17: 0 | EO17: 0 | EP17: 0 | EQ17: 0 | ER17: =IF(ISERROR(VLOOKUP($A17,#REF!,8,0)),0,(VLOOKUP($A17,#REF!,8,0))) -> 0 | ES17: 0 | ET17: 1 | EU17: 0 | EV17: 0 | EW17: 0 | EX17: 0 | EY17: =IF(ISERROR(VLOOKUP($A17,#REF!,8,0)),0,(VLOOKUP($A17,#REF!,8,0))) -> 0 | EZ17: 0 | FA17: 1 | FB17: 0 | FC17: 0 | FD17: 0 | FE17: 0 | FF17: =IF(ISERROR(VLOOKUP($A17,#REF!,8,0)),0,(VLOOKUP($A17,#REF!,8,0))) -> 0 | FG17: 0 | FH17: 1 | FI17: 0 | FJ17: 0 | FK17: 0 | FL17: 0 | FM17: =IF(ISERROR(VLOOKUP($A17,#REF!,8,0)),0,(VLOOKUP($A17,#REF!,8,0))) -> 0 | FN17: 0 | FO17: 1 | FP17: 0 | FQ17: 0 | FR17: 0 | FS17: 0 | FT17: =IF(ISERROR(VLOOKUP($A17,#REF!,8,0)),0,(VLOOKUP($A17,#REF!,8,0))) -> 0 | FU17: 0 | FV17: 1 | FW17: 0 | FX17: 0 | FY17: 0 | FZ17: 0 | GA17: =IF(ISERROR(VLOOKUP($A17,#REF!,8,0)),0,(VLOOKUP($A17,#REF!,8,0))) -> 0 | GB17: 0 | GC17: 1 | GD17: 0 | GE17: 0 | GF17: 0 | GG17: 0 | GH17: =IF(ISERROR(VLOOKUP($A17,#REF!,8,0)),0,(VLOOKUP($A17,#REF!,8,0))) -> 0 | GI17: 0 | GJ17: 1 | GK17: 0 | GL17: 0 | GM17: 0 | GN17: 0 | GO17: =IF(ISERROR(VLOOKUP($A17,#REF!,8,0)),0,(VLOOKUP($A17,#REF!,8,0))) -> 0 | GP17: 0 | GQ17: 1 | GR17: 0 | GS17: 0 | GT17: 0 | GU17: 0 | GV17: =IF(ISERROR(VLOOKUP($A17,#REF!,8,0)),0,(VLOOKUP($A17,#REF!,8,0))) -> 0 | GW17: 0 | GX17: 1 | GY17: 0 | GZ17: 0 | HA17: 0 | HB17: 0 | HD17: 0 | HE17: 1 | HF17: 0 | HG17: 0 | HH17: 0 | HI17: 0 | HJ17: =IF(ISERROR(VLOOKUP($A17,#REF!,8,0)),0,(VLOOKUP($A17,#REF!,8,0))) -> 0 | HK17: 0 | HL17: 1 | HM17: 0 | HN17: 0 | HO17: 0 | HP17: 0 | HQ17: =IF(ISERROR(VLOOKUP($A17,#REF!,8,0)),0,(VLOOKUP($A17,#REF!,8,0))) -> 0 | HR17: 0 | HS17: 1 | HT17: 0 | HU17: 0 | HV17: 0 | HW17: 0 | HX17: =IF(ISERROR(VLOOKUP($A17,#REF!,8,0)),0,(VLOOKUP($A17,#REF!,8,0))) -> 0 | HY17: 0 | HZ17: 1 | IA17: 0 | IB17: 0 | IC17: 0 | ID17: 0 | IE17: =IF(ISERROR(VLOOKUP($A17,#REF!,8,0)),0,(VLOOKUP($A17,#REF!,8,0))) -> 0 | IF17: 0 | IG17: 1 | IH17: 0 | II17: 0 | IJ17: 0 | IK17: 0 | IL17: =IF(ISERROR(VLOOKUP($A17,#REF!,8,0)),0,(VLOOKUP($A17,#REF!,8,0))) -> 0 | IM17: 0 | IN17: 1 | IO17: 0 | IP17: 0 | IQ17: 0 | IR17: 0 | IS17: =IF(ISERROR(VLOOKUP($A17,#REF!,8,0)),0,(VLOOKUP($A17,#REF!,8,0))) -> 0 | IT17: 0 | IU17: 1 | IV17: 0 | IW17: 0 | IX17: 0 | IY17: 0 | IZ17: =IF(ISERROR(VLOOKUP($A17,#REF!,8,0)),0,(VLOOKUP($A17,#REF!,8,0))) -> 0 | JA17: 0 | JB17: 1 | JC17: 0 | JD17: 0 | JE17: 0 | JF17: 0 | JG17: =IF(ISERROR(VLOOKUP($A17,#REF!,8,0)),0,(VLOOKUP($A17,#REF!,8,0))) -> 0 | JH17: 0 | JI17: 1 | JJ17: 0 | JK17: 0 | JL17: 0 | JM17: 0 | JN17: =IF(ISERROR(VLOOKUP($A17,#REF!,8,0)),0,(VLOOKUP($A17,#REF!,8,0))) -> 0 | JO17: 0 | JP17: 1 | JQ17: 0 | JR17: 0 | JS17: 0 | JT17: 0 | JU17: =IF(ISERROR(VLOOKUP($A17,#REF!,8,0)),0,(VLOOKUP($A17,#REF!,8,0))) -> 0 | JV17: 0 | JW17: 1 | JX17: 0 | JY17: 0 | JZ17: 0 | KA17: 0 | KB17: =IF(ISERROR(VLOOKUP($A17,#REF!,8,0)),0,(VLOOKUP($A17,#REF!,8,0))) -> 0 | KC17: 0 | KD17: 1 | KE17: 0 | KF17: 0 | KG17: 0 | KH17: 0 | KI17: =IF(ISERROR(VLOOKUP($A17,#REF!,8,0)),0,(VLOOKUP($A17,#REF!,8,0))) -> 0 | KJ17: 0 | KK17: 1 | KL17: 0 | KM17: 0 | KN17: 0 | KO17: 0 | KP17: =IF(ISERROR(VLOOKUP($A17,#REF!,8,0)),0,(VLOOKUP($A17,#REF!,8,0))) -> 0 | KQ17: 0 | KR17: 1 | KS17: 0 | KT17: 0 | KU17: 0 | KV17: 0 | KW17: =IF(ISERROR(VLOOKUP($A17,#REF!,8,0)),0,(VLOOKUP($A17,#REF!,8,0))) -> 0 | KX17: 0 | KY17: 1 | KZ17: 0 | LA17: 0 | LB17: 0 | LC17: 0 | LD17: =IF(ISERROR(VLOOKUP($A17,#REF!,8,0)),0,(VLOOKUP($A17,#REF!,8,0))) -> 0 | LE17: 0 | LF17: 1 | LG17: 0 | LH17: 0 | LI17: 0 | LJ17: 0 | LK17: =IF(ISERROR(VLOOKUP($A17,#REF!,8,0)),0,(VLOOKUP($A17,#REF!,8,0))) -> 0 | LL17: 0 | LM17: 1 | LN17: 0 | LO17: 0 | LP17: 0 | LQ17: 0 | LR17: =IF(ISERROR(VLOOKUP($A17,#REF!,8,0)),0,(VLOOKUP($A17,#REF!,8,0))) -> 0 | LS17: 0 | LT17: 1 | LU17: 0 | LV17: 0 | LW17: 0 | LX17: 0 | LY17: =IF(ISERROR(VLOOKUP($A17,#REF!,8,0)),0,(VLOOKUP($A17,#REF!,8,0))) -> 0 | LZ17: 0 | MA17: 1 | MB17: 0 | MC17: 0 | MD17: 0 | ME17: 0 | MF17: =IF(ISERROR(VLOOKUP($A17,#REF!,8,0)),0,(VLOOKUP($A17,#REF!,8,0))) -> 0 | MG17: 0 | MH17: 1 | MI17: 0 | MJ17: 0 | MK17: 0 | ML17: 0 | MM17: =IF(ISERROR(VLOOKUP($A17,#REF!,8,0)),0,(VLOOKUP($A17,#REF!,8,0))) -> 0 | MN17: 0 | MO17: 1 | MP17: 0 | MQ17: 0 | MR17: 0 | MS17: 0 | MT17: =IF(ISERROR(VLOOKUP($A17,#REF!,8,0)),0,(VLOOKUP($A17,#REF!,8,0))) -> 0 | MU17: 0 | MV17: 1 | MW17: 0 | MX17: 0 | MY17: 0 | MZ17: 0 | NA17: =IF(ISERROR(VLOOKUP($A17,#REF!,8,0)),0,(VLOOKUP($A17,#REF!,8,0))) -> 0 | NB17: 0 | NC17: 1 | ND17: 0 | NE17: 0 | NF17: 0 | NG17: 0 | NH17: =IF(ISERROR(VLOOKUP($A17,#REF!,8,0)),0,(VLOOKUP($A17,#REF!,8,0))) -> 0 | NI17: 0 | NJ17: 1 | NK17: 0 | NL17: 0 | NM17: 0 | NN17: 0 | NO17: =IF(ISERROR(VLOOKUP($A17,#REF!,8,0)),0,(VLOOKUP($A17,#REF!,8,0))) -> 0 | NP17: 0 | NQ17: 1 | NR17: 0 | NS17: 0 | NT17: 0 | NU17: 0 | NV17: =IF(ISERROR(VLOOKUP($A17,#REF!,8,0)),0,(VLOOKUP($A17,#REF!,8,0))) -> 0 | NW17: 0 | NX17: 1 | NY17: 0 | NZ17: 0 | OA17: 0 | OB17: 0 | OC17: =IF(ISERROR(VLOOKUP($A17,#REF!,8,0)),0,(VLOOKUP($A17,#REF!,8,0))) -> 0 | OD17: 0 | OE17: 1 | OF17: 0 | OG17: 0 | OH17: 0 | OI17: 0 | OJ17: 13352.9094 | OK17: 13352.9094 | OL17: 1 | OM17: 0
